Workbook

Sheet PRESENTACIÓN
J8: INSTITUTO MEXICANO DEL TRANSPORTE
J9: IMT
J10: INTERNATIONAL GEOSYNTHETICS SOCIETY
J11: IGS CAPITULO MEXICO
J12: UNIVERSIDAD AUTONOMA DE CHIHUAHUA
J13: UACH
J15: METODOLOGÍA PARA DISEÑOS DE MUROS MECÁNICAMENTE ESTABILIZADOS CON GEOSINTÉTICOS
J18: MUROS CON RELLENOS HORIZONTALES
J20: Esta metodología esta basada en la publicación No. FHWA-NHI-00-043 “Mechanically Stabilized Earth Walls and Reinforced Soil Slopes, Design & Construction Guidelines”, del Departamento de Transporte de la Federal Highway Administration(FHWA) en los Estados Unidos de América, los valores requeridos para la realización de este diseño están mencionados en la parte teórica de este manual.

Sheet INICIO
C1: METODOLOGÍA PARA DISEÑOS DE MUROS MECANICAMENTE ESTABILIZADOS
C3: MUROS CON RELLENOS HORIZONTALES
E11: MENU DE INICIO

Sheet GEOMETRIA DEL MURO
H1: METODOLOGÍA PARA DISEÑOS DE MUROS MECANICAMENTE ESTABILIZADOS
H3: MUROS CON RELLENOS HORIZONTALES
A8: a) Geometría del Muro Mecánicamente Estabilizado.
E10: H = | F10: 3.73 | G10: m
E12: L = | F12: 4.3 | G12: m
E14: Er: | F14: 0.5 | G14: m
E16: Θ= | F16: 90 | G16: °
E18: β = | F18: 0 | G18: °

Sheet PROPIEDADES DE LOS SUELOS
C1: METODOLOGÍA PARA DISEÑOS DE MUROS MECANICAMENTE ESTABILIZADOS
C3: MUROS CON RELLENOS HORIZONTALES
A11: c) Propiedades de los suelos.
B13: Suelo de cimentación o de desplante:
B14: gc = | C14: 16.43 | D14: KN/m3
B15: Cc = | C15: 99 | D15: KN/m2
B16: ϕc = | C16: 28 | D16: °
B18: Relleno retenido:
B19: gf = | C19: 18 | D19: KN/m3
B20: Cf = | C20: 10 | D20: KN/m2
B21: ϕf = | C21: 30 | D21: °
B23: Masa de suelo reforzado:
B24: gr = | C24: 18 | D24: KN/m3
B25: Cr = | C25: 10 | D25: KN/m2
B26: ϕr = | C26: 30 | D26: °

Sheet PROPIEDADES DEL GEOSINTETICO
C1: METODOLOGÍA PARA DISEÑOS DE MUROS MECANICAMENTE ESTABILIZADOS
C3: MUROS CON RELLENOS HORIZONTALES
A11: d) Propiedades del Geosintético.
A13: C = | B13: 2
A15: Ci = | B15: 0.66
A16: Zi = | B16: Profundidad a la que se encuentra el refuerzo
D17: Relación de cobertura.
B18: si:
C19: b = | D19: 1 | E19: m
B20: 2
C21: Sh = | D21: 1 | E21: m
A22: Rc = | B22: 1
A25: α = | B25: =IF(C25="Geotextil",0.6,IF(C25="Geomalla",0.8,0)) -> 0.8 | C25: Geomalla
A28: d.1) Coeficiente de fricción de la interacción Suelo/Refuerzo.
A30: r = | C30: °

Sheet CARGAS DISTRIBUIDAS
C1: METODOLOGÍA PARA DISEÑOS DE MUROS MECANICAMENTE ESTABILIZADOS
C3: MUROS CON RELLENOS HORIZONTALES
A11: b) Cargas aplicadas en el Muro Mecánicamente Estabilizado.
A13: q(Carga distribuida) = | B13: 25 | C13: KN/m · m
A37: Cargas por sismo:
B39: A = | C39: 0.17

Sheet CARGAS CONCENTRADAS
G1: METODOLOGÍA PARA DISEÑOS DE MUROS MECANICAMENTE ESTABILIZADOS
G3: MUROS CON RELLENOS HORIZONTALES
F11: INCREMENTO DE ESFUERZO HORIZONTAL POR CARGAS CONCENTRADAS
A17: DATOS:
A18: Ph1 = | B18: 0 | C18: KN/m
A19: Pv1 = | B19: 0 | C19: KN/m
A20: a = | B20: 0 | C20: m
A21: g = | B21: 0 | C21: KN/m3 | D21: Peso especifico del relleno que retiene la estructura especial.
A22: ϕ = | B22: 0 | C22: ° | D22: Coeficiente de friccion de el suelo que retiene la estructura especial.
A23: Ka = | B23: =(TAN(RADIANS(45-(B22/2))))^2 -> 1
A24: q = | B24: ='CARGAS DISTRIBUIDAS'!B13 -> 25 | C24: KN/m · m
A25: F1 = | B25: =0.5*(B23*B21*B20^2) -> 0 | C25: KN/m
E26: Ubicación de F1 con respecto a la parte superior del muro = | F26: =(1/3)*B20 -> 0 | G26: m
A27: F2 = | B27: =B24*B23*B20 -> 0 | C27: KN/m
E28: Ubicación de F2 con respecto a la parte superior del muro = | F28: =0.5*B20 -> 0 | G28: m
A29: Cf = | B29: 0 | C29: m
A30: bf = | B30: 0 | C30: m
A31: e´ = | B31: =IF(B19=0,0,(((B19*(0.5*B30)-((B25*F26)+(B18*B20)+(B27*F28))))/B19)) -> 0 | C31: m
A32: li = | B32: =IF(B31=0,0,((B29+B30-(2*B31))*TAN((RADIANS(45+(B22/2)))))) -> 0 | C32: m
C34: ΔσHmax = | D34: =IF(B32=0,0,((B18+B25+B27)/B32)) -> 0 | E34: KN/m2
G43: INCREMENTO DE ESFUERZO VERTICAL POR CARGAS PUNTUALES
A48: Pv1 = | B48: =B19 -> 0 | C48: KN/m
A49: bf = | B49: =B30 -> 0 | C49: m
A50: d = cf = | B50: =B29 -> 0 | C50: m
A51: Z2 = | B51: 2d-bf
A52: Z2 = | B52: =(2*B50)-B49 -> 0 | C52: m
A53: Di = | B53: =IF(B49=0,0,IF('GEOMETRIA DEL MURO'!BL9<=B52,B49+'GEOMETRIA DEL MURO'!F10,(((B49+'GEOMETRIA DEL MURO'!F10)/2)+B50))) -> 0 | C53: m
C59: ΔσVmax = | D59: =IF(B48=0,0,B48/(B53*('GEOMETRIA DEL MURO'!F12+'GEOMETRIA DEL MURO'!F10))) -> 0 | E59: KN/m2

Sheet MC ANALISIS EXTERNO
C1: METODOLOGÍA PARA DISEÑOS DE MUROS MECANICAMENTE ESTABILIZADOS
C3: MUROS CON RELLENOS HORIZONTALES
D11: ANÁLISIS EXTERNO DE LA ESTRUCTURA
E12: FUERZAS HORIZONTALES
A13: a) Se obtiene los diagramas de presiones que actuan en el muro:
A33: b) Magnitud y ubicación de la fuerza provocada por el suelo retenido.
A35: Nota: se requiere el coeficiente de activo de presión del suelo retenido por lo que lo obtenemos con la siguiente expresión:
C39: Ka = | D39: =((SIN(RADIANS('GEOMETRIA DEL MURO'!F16+'PROPIEDADES DE LOS SUELOS'!C21)))^2)/(((SIN(RADIANS('GEOMETRIA DEL MURO'!F16)))^2)*(SIN(RADIANS('GEOMETRIA DEL MURO'!F16-'GEOMETRIA DEL MURO'!F18)))*(1+((((SIN(RADIANS('PROPIEDADES DE LOS SUELOS'!C21+'GEOMETRIA DEL MURO'!F18)))*(SIN(RADIANS('PROPIEDADES DE LOS SUELOS'!C21-'GEOMETRIA DEL MURO'!F18))))/((SIN(RADIANS('GEOMETRIA DEL MURO'!F16-'GEOMETRIA DEL MURO'!F18)))*(SIN(RADIANS('GEOMETRIA DEL MURO'!F16+'GEOMETRIA DEL MURO'!F18)))))^(1/2)))^2) -> 0.3333333333
B41: Magnitud de la Fuerza F1 :
C45: F1 = | D45: =(0.5*D39*'PROPIEDADES DE LOS SUELOS'!C19*('GEOMETRIA DEL MURO'!F10^2)) -> 41.7387 | E45: KN/m
B47: Ubicación de la Fuerza F1:
C51: h1 = | D51: =(1/3)*'GEOMETRIA DEL MURO'!F10 -> 1.243333333 | E51: m.
A53: c) Magnitud y ubicación de la fuerza provocada por la sobrecarga "q"
B55: Magnitud de la Fuerza F2 :
C59: F2 = | D59: ='CARGAS DISTRIBUIDAS'!B13*'MC ANALISIS EXTERNO'!D39*'GEOMETRIA DEL MURO'!F10 -> 31.08333333 | E59: KN/m
B61: Ubicación de la Fuerza F2:
C65: h2 = | D65: =(1/2)*'GEOMETRIA DEL MURO'!F10 -> 1.865 | E65: m.
A67: d) Magnitud y ubicación de las fuerzas provocadas por la acción de un sismo.
A71: A = Aceleración Máxima de sismo.
A72: A = | B72: ='CARGAS DISTRIBUIDAS'!C39 -> 0.17
A74: Por lo tanto:
B75: Am = | C75: =(1.45-B72)*B72 -> 0.2176
B77: Magnitud de la fuerza de inercia horizontal PIR:
C80: PIR = | D80: =(0.5*C75*'PROPIEDADES DE LOS SUELOS'!C24*('GEOMETRIA DEL MURO'!F10^2)) -> 27.24702336 | E80: KN/m
B82: Ubicación de la fuerza de inercia horizontal PIR:
C86: hpIR = | D86: ='GEOMETRIA DEL MURO'!F10/2 -> 1.865 | E86: m.
B88: Magnitud del empuje sísmico PAE al 50% de su valor:
C91: 50% PAE = | D91: =50%*(0.375*C75*'PROPIEDADES DE LOS SUELOS'!C19*('GEOMETRIA DEL MURO'!F10^2)) -> 10.21763376 | E91: KN/m
B93: Ubicación del empuje sísmico PAE
C97: hpAE = | D97: =0.6*'GEOMETRIA DEL MURO'!F10 -> 2.238 | E97: m.
A99: RESUMEN:
C100: Fuerza provocada por: | D100: Magnitud (KN/m) | E100: Ubicación (m)
C101: Empuje de relleno retenido | D101: =D45 -> 41.7387 | E101: =D51 -> 1.243333333
C102: Sobrecarga | D102: =D59 -> 31.08333333 | E102: =D65 -> 1.865
C103: Sismo (Fuerza inercial horizontal) | D103: =D80 -> 27.24702336 | E103: =D86 -> 1.865
C104: Sismo (Empuje sísmico al 50% de su magnitud) | D104: =D91 -> 10.21763376 | E104: =D97 -> 2.238
C106: ANÁLISIS EXTERNO DE LA ESTRUCTURA
D107: FUERZAS VERTICALES
D125: L = | E125: ='GEOMETRIA DEL MURO'!F12 -> 4.3 | F125: m.
A127: a) Magnitud y ubicación de la fuerza vertical provocada por el suelo reforzado.
B129: Magnitud de la fuerza vertical V1 :
C132: V1 = | D132: ='PROPIEDADES DE LOS SUELOS'!C24*'GEOMETRIA DEL MURO'!F10*E125 -> 288.702 | E132: KN/m
B134: Ubicación de la fuerza vertical V1
C137: lv1 = | D137: =0.5*E125 -> 2.15 | E137: m.
A139: b) Magnitud y ubicación de la fuerza vertical provocada la sobrecarga "q"
B141: Magnitud de la fuerza vertical V2
C144: V2 = | D144: ='CARGAS DISTRIBUIDAS'!B13*E125 -> 107.5 | E144: KN/m
B146: Ubicación de la fuerza vertical V2
C149: lv2 = | D149: =0.5*E125 -> 2.15 | E149: m.
A151: c) Magnitud y ubicación de la fuerza vertical Resultante.
B153: Magnitud de la fuerza vertical R
C156: R = | D156: =D132+D144 -> 396.202 | E156: KN/m
B157: Ubicación de la fuerza Vertical R
B159: Se necesita encontrar la excentricidad de la fuerza resultante:
B164: Por lo que:
C168: MRAP = | D168: =(D132*(E125/2))+(D144*(E125/2)) -> 851.8343 | E168: KN/m · m
C172: MR = | D172: =(D132*(E125/2)) -> 620.7093 | E172: KN/m · m
C176: Mv = | D176: =(D45*D51)+(D59*D65)+(D80*D86)+(D91*D97) -> 183.5482966 | E176: KN/m · m
B178: Entonces:
C182: e = | D182: =IF(D132+D144=0,0,(E125/2)-((D168-D176)/(D132+D144))) -> 0.4632694852 | E182: m.
B184: Condición
B185: si:
D188: =E125/6 -> 0.7166666667 | E188: m | F188: =IF(D182<=D188,"CUMPLE CONDICIÓN DE EXCENTRICIDAD","NO CUMPLE CONDICIÓN DE EXCENTRICIDAD, REQUIERE INCREMENTAR LONGITUD DE REFUERZO (L)") -> CUMPLE CONDICIÓN DE EXCENTRICIDAD
C192: ANÁLISIS EXTERNO DE LA ESTRUCTURA
C193: REVISIÓN DE FACTORES DE SEGURIDAD
A195: a) Revisión del factor de seguridad por deslizamiento del muro.
B200: Por lo que:
B204: si:
B205: ϕc = | C205: ='PROPIEDADES DE LOS SUELOS'!C16 -> 28 | D205: °
B206: ϕr = | C206: ='PROPIEDADES DE LOS SUELOS'!C26 -> 30 | D206: °
B207: r = | C207: ='PROPIEDADES DEL GEOSINTETICO'!B30 -> 0 | D207: ° | E207: Coef. De fricción de la interacción Suelo/Refuerzo, dado por el fabricante del material Geosintético que se va a utilizar
A209: μ es la tangente del mínimo de los coeficientes de fricción dados anteriormente, en caso de que no se tenga el valor de "r", se compara con los otros dos valores.
B211: μ= | C211: =IF(C207=0,TAN(RADIANS(MIN(C205:C206))),TAN(RADIANS(MIN(C205:C207)))) -> 0.5317094317 | D211: °
B213: entonces
C216: Pr = | D216: =(D132+D144)*C211 -> 210.6643402 | E216: KN/m
B218: Y
C221: Pd = | D221: =SUM(D101:D104) -> 110.2866905 | E221: KN/m
B223: Por lo tanto:
C227: F.S.des = | D227: =IF(D221=0,0,D216/D221) -> 1.910151981 | F227: =IF(D227>=1.5,"CUMPLE CON EL FACTOR DE SEGURIDAD DE DESLIZAMIENTO","NO CUMPLE CON EL FACTOR DE SEGURIDAD DE DESLIZAMIENTO, SE REQUIERE INCREMENTAR LA LONGITUD DE REFUERZO (L) O MEJORAR LAS CONDICIONES DEL SUELO DE DESPLANTE.") -> CUMPLE CON EL FACTOR DE SEGURIDAD DE DESLIZAMIENTO
A230: b) Revisión del factor de seguridad por volteo del muro.
C235: F.S.V = | D235: =IF(D176=0,0,D172/D176) -> 3.381721931 | F235: =IF(D235>=2.5,"CUMPLE CON EL FACTOR DE SEGURIDAD POR VOLTEO","NO CUMPLE CON EL FACTOR DE SEGURIDAD POR VOLTEO, SE REQUIERE INCREMENTAR LA LONGITUD DE REFUERZO (L)") -> CUMPLE CON EL FACTOR DE SEGURIDAD POR VOLTEO

Sheet MC ANALISIS INTERNO
D1: METODOLOGÍA PARA DISEÑOS DE MUROS MECANICAMENTE ESTABILIZADOS
D3: MUROS CON RELLENOS HORIZONTALES
E11: ANÁLISIS INTERNO DE LA ESTRUCTURA
E12: CARGAS ADMISIBLES
A14: a) Esfuerzo máximo vertical.
C18: σv = | D18: =IF(('MC ANALISIS EXTERNO'!E125-(2*'MC ANALISIS EXTERNO'!D182))=0,0,(('MC ANALISIS EXTERNO'!D132+'MC ANALISIS EXTERNO'!D144)/('MC ANALISIS EXTERNO'!E125-(2*'MC ANALISIS EXTERNO'!D182)))+'CARGAS CONCENTRADAS'!D59) -> 117.4467399 | E18: KN/m2
Q19: FACTORES DE CAPACIDAD DE CARGA
A20: b) Carga última. | Q20: j | R20: Nc | S20: Nq | T20: Ng
Q21: 0 | R21: 5.14 | S21: 1 | T21: 0
Q22: 1 | R22: 5.38 | S22: 1.09 | T22: 0.07
Q23: 2 | R23: 5.63 | S23: 1.2 | T23: 0.15
B24: si = | C24: ϕc = | D24: ='PROPIEDADES DE LOS SUELOS'!C16 -> 28 | E24: ° | Q24: 3 | R24: 5.9 | S24: 1.31 | T24: 0.24
Q25: 4 | R25: 6.19 | S25: 1.43 | T25: 0.34
B26: Tenemos los factores de capacidad de carga de: | Q26: 5 | R26: 6.49 | S26: 1.57 | T26: 0.45
Q27: 6 | R27: 6.81 | S27: 1.72 | T27: 0.57
C28: Nc = | D28: =VLOOKUP(D24,Q21:T68,2,TRUE) -> 25.8 | Q28: 7 | R28: 7.16 | S28: 1.88 | T28: 0.71
C29: Nq = | D29: =VLOOKUP(D24,'MC ANALISIS INTERNO'!Q21:T68,3,TRUE) -> 14.72 | Q29: 8 | R29: 7.53 | S29: 2.06 | T29: 0.86
C30: Ng = | D30: =VLOOKUP(D24,'MC ANALISIS INTERNO'!Q21:T68,4,TRUE) -> 16.72 | Q30: 9 | R30: 7.92 | S30: 2.25 | T30: 1.03
Q31: 10 | R31: 8.35 | S31: 2.47 | T31: 1.22
Q32: 11 | R32: 8.8 | S32: 2.71 | T32: 1.44
Q33: 12 | R33: 9.28 | S33: 2.97 | T33: 1.69
C34: qult = | D34: =('PROPIEDADES DE LOS SUELOS'!C15*'MC ANALISIS INTERNO'!D28)+((0.5*('MC ANALISIS EXTERNO'!E125-(2*'MC ANALISIS EXTERNO'!D182))*'PROPIEDADES DE LOS SUELOS'!C14*'MC ANALISIS INTERNO'!D30)) -> 3017.561065 | E34: KN/m2 | Q34: 13 | R34: 9.81 | S34: 3.26 | T34: 1.97
Q35: 14 | R35: 10.37 | S35: 3.59 | T35: 2.29
A36: c) Carga admisible. | Q36: 15 | R36: 10.98 | S36: 3.94 | T36: 2.65
Q37: 16 | R37: 11.63 | S37: 4.34 | T37: 3.06
B38: Se comprueba la siguiente relación: | Q38: 17 | R38: 12.34 | S38: 4.77 | T38: 3.53
Q39: 18 | R39: 13.1 | S39: 5.26 | T39: 4.07
Q40: 19 | R40: 13.93 | S40: 5.8 | T40: 4.68
Q41: 20 | R41: 14.83 | S41: 6.4 | T41: 5.39
B42: Por lo que: | C42: F.S. = | D42: 2.5 | Q42: 21 | R42: 15.82 | S42: 7.07 | T42: 6.2
Q43: 22 | R43: 16.88 | S43: 7.82 | T43: 7.13
Q44: 23 | R44: 18.05 | S44: 8.66 | T44: 8.2
Q45: 24 | R45: 19.32 | S45: 9.6 | T45: 9.44
C46: qa = | D46: =D34/D42 -> 1207.024426 | E46: KN/m2 | F46: =IF(D18<=D46,"CUMPLE LA CONDICIÓN DE CARGA ADMISIBLE CON RESPECTO AL ESFUERZO VERTICAL APLICADO", "NO CUMPLE LA CONDICIÓN DE CARGA ADMISIBLE, SE REQUIERE INCREMENTAR LA LONGITUD DE REFUERZO (L) O MEJORAR LAS CONDICIONES DEL SUELO DE DESPLANTE") -> CUMPLE LA CONDICIÓN DE CARGA ADMISIBLE CON RESPECTO AL ESFUERZO VERTICAL APLICADO | Q46: 25 | R46: 20.72 | S46: 10.66 | T46: 10.88
Q47: 26 | R47: 22.25 | S47: 11.85 | T47: 12.54
Q48: 27 | R48: 23.94 | S48: 13.2 | T48: 14.47
Q49: 28 | R49: 25.8 | S49: 14.72 | T49: 16.72
B50: De acuerdo a la gráfica mostrada a la derecha, se tiene que: | Q50: 29 | R50: 27.86 | S50: 16.44 | T50: 19.34
Q51: 30 | R51: 30.14 | S51: 18.4 | T51: 22.4
Q52: 31 | R52: 32.67 | S52: 20.63 | T52: 25.9
Q53: 32 | R53: 35.49 | S53: 23.18 | T53: 30.22
Q54: 33 | R54: 38.64 | S54: 26.09 | T54: 35.19
Q55: 37 | R55: 55.63 | S55: 42.92 | T55: 66.19
C56: Kar = | D56: =((SIN(RADIANS('GEOMETRIA DEL MURO'!F16+'PROPIEDADES DE LOS SUELOS'!C26)))^2)/(((SIN(RADIANS('GEOMETRIA DEL MURO'!F16)))^2)*(SIN(RADIANS('GEOMETRIA DEL MURO'!F16-'GEOMETRIA DEL MURO'!F18)))*(1+((((SIN(RADIANS('PROPIEDADES DE LOS SUELOS'!C26+'GEOMETRIA DEL MURO'!F18)))*(SIN(RADIANS('PROPIEDADES DE LOS SUELOS'!C26-'GEOMETRIA DEL MURO'!F18))))/((SIN(RADIANS('GEOMETRIA DEL MURO'!F16-'GEOMETRIA DEL MURO'!F18)))*(SIN(RADIANS('GEOMETRIA DEL MURO'!F16+'GEOMETRIA DEL MURO'!F18)))))^(1/2)))^2) -> 0.3333333333 | Q56: 38 | R56: 61.35 | S56: 48.93 | T56: 78.03
Q57: 39 | R57: 37.87 | S57: 55.96 | T57: 92.25
B58: Por lo que el Esfuerzo Maximo horizontal del muro es: | Q58: 40 | R58: 75.31 | S58: 64.2 | T58: 109.41
Q59: 41 | R59: 83.86 | S59: 73.9 | T59: 130.22
Q60: 42 | R60: 93.71 | S60: 85.38 | T60: 155.55
Q61: 43 | R61: 105.11 | S61: 99.02 | T61: 186.54
Q62: 44 | R62: 118.37 | S62: 115.31 | T62: 224.64
Q63: 45 | R63: 133.88 | S63: 134.88 | T63: 271.76
C64: σH = | D64: =(D56*D18)+'CARGAS CONCENTRADAS'!D34 -> 39.14891329 | E64: KN/m2 | Q64: 46 | R64: 152.1 | S64: 158.51 | T64: 330.35
A65: d) Espaciamiento entre cada capa de refuerzo. | Q65: 47 | R65: 173.64 | S65: 187.21 | T65: 403.67
Q66: 48 | R66: 199.26 | S66: 222.31 | T66: 496.01
A67: Se propone el espaciamiento de = | D67: ='GEOMETRIA DEL MURO'!F14 -> 0.5 | E67: m | Q67: 49 | R67: 229.93 | S67: 265.51 | T67: 613.16
Q68: 50 | R68: 266.89 | S68: 319.07 | T68: 762.89
B69: Para el primer y ultimo refuerzo tenemos un ancho tributario de:
C71: Sv = | D71: 0.5 | E71: m
B73: Para el restante de los refuerzos tenemos:
C75: Sv = | D75: =D67 -> 0.5 | E75: m
A77: e) Revisión de deslizamiento de la primera capa de refuerzo a partir de la parte inferior del muro.
C81: Fa1@primer refuerzo = | D81: =0.5*'PROPIEDADES DE LOS SUELOS'!C24*(('GEOMETRIA DEL MURO'!F10)^2)*D56 -> 41.7387 | E81: KN/m
C85: Fa2@primer refuerzo = | D85: ='CARGAS DISTRIBUIDAS'!B13*('GEOMETRIA DEL MURO'!F10)*D56 -> 31.08333333 | E85: KN/m
B87: Por lo que el Factor de seguridad de deslizamiento en el primer refuerzo es:
F90: Ci = | G90: ='PROPIEDADES DEL GEOSINTETICO'!B15 -> 0.66
C92: F.S.des@primer refuerzo = | D92: =IF(D81+D85=0,0,('PROPIEDADES DE LOS SUELOS'!C24*('GEOMETRIA DEL MURO'!F10)*'MC ANALISIS EXTERNO'!E125*TAN(RADIANS('PROPIEDADES DE LOS SUELOS'!C26))*'MC ANALISIS INTERNO'!G90)/(D81+D85)) -> 1.510672417 | E92: =IF(D92>=1.48,"CUMPLE CON EL FACTOR DE SEGURIDAD DE DESLIZAMIENTO EN EL PRIMER REFUERZO EN LA PRIMERA CAPA DE REFUERZO","NO CUMPLE CON EL FACTOR DE SEGURIDAD DE DESLIZAMIENTO EN LA PRIMERA CAPA DE REFUERZO, SE REQUIERE INCREMENTAR LA LONGITUD DE REFUERZO(L)") -> CUMPLE CON EL FACTOR DE SEGURIDAD DE DESLIZAMIENTO EN EL PRIMER REFUERZO EN LA PRIMERA CAPA DE REFUERZO
A96: f) Tensión máxima por capa de refuerzo.
E100: Numero de capas de acuerdo a el espaciamiento propuesto: | F100: =IF(D67=0,0,IF((('GEOMETRIA DEL MURO'!F10/D67))<=0,0,ROUND((('GEOMETRIA DEL MURO'!F10/D67)),0))) -> 7 | G100: Capas de geosintético
A102: Capa No | B102: Zi (m) | C102: Sv (m) | D102: Tmax (KN/m) | F102: Capa No | G102: Zi (m) | H102: Sv (m) | I102: Tmax (KN/m) | K102: Capa No | L102: Zi (m) | M102: Sv (m) | N102: Tmax (KN/m)
A103: 1 | B103: =IF(A103<=$F$100,A103*$D$67,"") -> 0.5 | C103: =IF(A103<=$F$100,IF(A103=1,$D$71,IF(A103=$F$100,$D$75,$D$75)),"") -> 0.5 | D103: =IF(A103<=$F$100,(($D$56*('PROPIEDADES DE LOS SUELOS'!$C$24*B103+'CARGAS DISTRIBUIDAS'!$B$13+'CARGAS CONCENTRADAS'!$D$59)+'CARGAS CONCENTRADAS'!$D$34)*C103),"") -> 5.666666667 | F103: 31 | G103: =IF(F103<=$F$100,F103*$D$67,"") ->  | H103: =IF(F103<=$F$100,IF(F103=1,$D$71,IF(F103=$F$100,$D$75,$D$75)),"") ->  | I103: =IF(F103<=$F$100,(($D$56*('PROPIEDADES DE LOS SUELOS'!$C$24*G103+'CARGAS DISTRIBUIDAS'!$B$13+'CARGAS CONCENTRADAS'!$D$59)+'CARGAS CONCENTRADAS'!$D$34)*H103),"") ->  | K103: 61 | L103: =IF(K103<=$F$100,K103*$D$67,"") ->  | M103: =IF(K103<=$F$100,IF(K103=1,$D$71,IF(K103=$F$100,$D$75,$D$75)),"") ->  | N103: =IF(K103<=$F$100,(($D$56*('PROPIEDADES DE LOS SUELOS'!$C$24*L103+'CARGAS DISTRIBUIDAS'!$B$13+'CARGAS CONCENTRADAS'!$D$59)+'CARGAS CONCENTRADAS'!$D$34)*M103),"") -> 
A104: 2 | B104: =IF(A104<=$F$100,A104*$D$67,"") -> 1 | C104: 0.5 | D104: =IF(A104<=$F$100,(($D$56*('PROPIEDADES DE LOS SUELOS'!$C$24*B104+'CARGAS DISTRIBUIDAS'!$B$13+'CARGAS CONCENTRADAS'!$D$59)+'CARGAS CONCENTRADAS'!$D$34)*C104),"") -> 7.166666667 | F104: 32 | G104: =IF(F104<=$F$100,F104*$D$67,"") ->  | I104: =IF(F104<=$F$100,(($D$56*('PROPIEDADES DE LOS SUELOS'!$C$24*G104+'CARGAS DISTRIBUIDAS'!$B$13+'CARGAS CONCENTRADAS'!$D$59)+'CARGAS CONCENTRADAS'!$D$34)*H104),"") ->  | K104: 62 | L104: =IF(K104<=$F$100,K104*$D$67,"") ->  | N104: =IF(K104<=$F$100,(($D$56*('PROPIEDADES DE LOS SUELOS'!$C$24*L104+'CARGAS DISTRIBUIDAS'!$B$13+'CARGAS CONCENTRADAS'!$D$59)+'CARGAS CONCENTRADAS'!$D$34)*M104),"") -> 
A105: 3 | B105: 1.5 | C105: 0.5 | D105: =IF(A105<=$F$100,(($D$56*('PROPIEDADES DE LOS SUELOS'!$C$24*B105+'CARGAS DISTRIBUIDAS'!$B$13+'CARGAS CONCENTRADAS'!$D$59)+'CARGAS CONCENTRADAS'!$D$34)*C105),"") -> 8.666666667 | F105: 33 | I105: =IF(F105<=$F$100,(($D$56*('PROPIEDADES DE LOS SUELOS'!$C$24*G105+'CARGAS DISTRIBUIDAS'!$B$13+'CARGAS CONCENTRADAS'!$D$59)+'CARGAS CONCENTRADAS'!$D$34)*H105),"") ->  | K105: 63 | N105: =IF(K105<=$F$100,(($D$56*('PROPIEDADES DE LOS SUELOS'!$C$24*L105+'CARGAS DISTRIBUIDAS'!$B$13+'CARGAS CONCENTRADAS'!$D$59)+'CARGAS CONCENTRADAS'!$D$34)*M105),"") -> 
A106: 4 | B106: 2 | C106: 0.5 | D106: =IF(A106<=$F$100,(($D$56*('PROPIEDADES DE LOS SUELOS'!$C$24*B106+'CARGAS DISTRIBUIDAS'!$B$13+'CARGAS CONCENTRADAS'!$D$59)+'CARGAS CONCENTRADAS'!$D$34)*C106),"") -> 10.16666667 | F106: 34 | I106: =IF(F106<=$F$100,(($D$56*('PROPIEDADES DE LOS SUELOS'!$C$24*G106+'CARGAS DISTRIBUIDAS'!$B$13+'CARGAS CONCENTRADAS'!$D$59)+'CARGAS CONCENTRADAS'!$D$34)*H106),"") ->  | K106: 64 | N106: =IF(K106<=$F$100,(($D$56*('PROPIEDADES DE LOS SUELOS'!$C$24*L106+'CARGAS DISTRIBUIDAS'!$B$13+'CARGAS CONCENTRADAS'!$D$59)+'CARGAS CONCENTRADAS'!$D$34)*M106),"") -> 
A107: 5 | B107: 2.5 | C107: 0.5 | D107: =IF(A107<=$F$100,(($D$56*('PROPIEDADES DE LOS SUELOS'!$C$24*B107+'CARGAS DISTRIBUIDAS'!$B$13+'CARGAS CONCENTRADAS'!$D$59)+'CARGAS CONCENTRADAS'!$D$34)*C107),"") -> 11.66666667 | F107: 35 | I107: =IF(F107<=$F$100,(($D$56*('PROPIEDADES DE LOS SUELOS'!$C$24*G107+'CARGAS DISTRIBUIDAS'!$B$13+'CARGAS CONCENTRADAS'!$D$59)+'CARGAS CONCENTRADAS'!$D$34)*H107),"") ->  | K107: 65 | N107: =IF(K107<=$F$100,(($D$56*('PROPIEDADES DE LOS SUELOS'!$C$24*L107+'CARGAS DISTRIBUIDAS'!$B$13+'CARGAS CONCENTRADAS'!$D$59)+'CARGAS CONCENTRADAS'!$D$34)*M107),"") -> 
A108: 6 | B108: 3 | C108: 0.5 | D108: =IF(A108<=$F$100,(($D$56*('PROPIEDADES DE LOS SUELOS'!$C$24*B108+'CARGAS DISTRIBUIDAS'!$B$13+'CARGAS CONCENTRADAS'!$D$59)+'CARGAS CONCENTRADAS'!$D$34)*C108),"") -> 13.16666667 | F108: 36 | I108: =IF(F108<=$F$100,(($D$56*('PROPIEDADES DE LOS SUELOS'!$C$24*G108+'CARGAS DISTRIBUIDAS'!$B$13+'CARGAS CONCENTRADAS'!$D$59)+'CARGAS CONCENTRADAS'!$D$34)*H108),"") ->  | K108: 66 | N108: =IF(K108<=$F$100,(($D$56*('PROPIEDADES DE LOS SUELOS'!$C$24*L108+'CARGAS DISTRIBUIDAS'!$B$13+'CARGAS CONCENTRADAS'!$D$59)+'CARGAS CONCENTRADAS'!$D$34)*M108),"") -> 
A109: 7 | B109: 3.5 | C109: 0.5 | D109: =IF(A109<=$F$100,(($D$56*('PROPIEDADES DE LOS SUELOS'!$C$24*B109+'CARGAS DISTRIBUIDAS'!$B$13+'CARGAS CONCENTRADAS'!$D$59)+'CARGAS CONCENTRADAS'!$D$34)*C109),"") -> 14.66666667 | F109: 37 | I109: =IF(F109<=$F$100,(($D$56*('PROPIEDADES DE LOS SUELOS'!$C$24*G109+'CARGAS DISTRIBUIDAS'!$B$13+'CARGAS CONCENTRADAS'!$D$59)+'CARGAS CONCENTRADAS'!$D$34)*H109),"") ->  | K109: 67 | N109: =IF(K109<=$F$100,(($D$56*('PROPIEDADES DE LOS SUELOS'!$C$24*L109+'CARGAS DISTRIBUIDAS'!$B$13+'CARGAS CONCENTRADAS'!$D$59)+'CARGAS CONCENTRADAS'!$D$34)*M109),"") -> 
A110: 8 | D110: =IF(A110<=$F$100,(($D$56*('PROPIEDADES DE LOS SUELOS'!$C$24*B110+'CARGAS DISTRIBUIDAS'!$B$13+'CARGAS CONCENTRADAS'!$D$59)+'CARGAS CONCENTRADAS'!$D$34)*C110),"") ->  | F110: 38 | I110: =IF(F110<=$F$100,(($D$56*('PROPIEDADES DE LOS SUELOS'!$C$24*G110+'CARGAS DISTRIBUIDAS'!$B$13+'CARGAS CONCENTRADAS'!$D$59)+'CARGAS CONCENTRADAS'!$D$34)*H110),"") ->  | K110: 68 | N110: =IF(K110<=$F$100,(($D$56*('PROPIEDADES DE LOS SUELOS'!$C$24*L110+'CARGAS DISTRIBUIDAS'!$B$13+'CARGAS CONCENTRADAS'!$D$59)+'CARGAS CONCENTRADAS'!$D$34)*M110),"") -> 
A111: 9 | B111: =IF(A111<=$F$100,A111*$D$67,"") ->  | D111: =IF(A111<=$F$100,(($D$56*('PROPIEDADES DE LOS SUELOS'!$C$24*B111+'CARGAS DISTRIBUIDAS'!$B$13+'CARGAS CONCENTRADAS'!$D$59)+'CARGAS CONCENTRADAS'!$D$34)*C111),"") ->  | F111: 39 | I111: =IF(F111<=$F$100,(($D$56*('PROPIEDADES DE LOS SUELOS'!$C$24*G111+'CARGAS DISTRIBUIDAS'!$B$13+'CARGAS CONCENTRADAS'!$D$59)+'CARGAS CONCENTRADAS'!$D$34)*H111),"") ->  | K111: 69 | N111: =IF(K111<=$F$100,(($D$56*('PROPIEDADES DE LOS SUELOS'!$C$24*L111+'CARGAS DISTRIBUIDAS'!$B$13+'CARGAS CONCENTRADAS'!$D$59)+'CARGAS CONCENTRADAS'!$D$34)*M111),"") -> 
A112: 10 | C112: =IF(A112<=$F$100,IF(A112=1,$D$71,IF(A112=$F$100,$D$75,$D$75)),"") ->  | D112: =IF(A112<=$F$100,(($D$56*('PROPIEDADES DE LOS SUELOS'!$C$24*B112+'CARGAS DISTRIBUIDAS'!$B$13+'CARGAS CONCENTRADAS'!$D$59)+'CARGAS CONCENTRADAS'!$D$34)*C112),"") ->  | F112: 40 | I112: =IF(F112<=$F$100,(($D$56*('PROPIEDADES DE LOS SUELOS'!$C$24*G112+'CARGAS DISTRIBUIDAS'!$B$13+'CARGAS CONCENTRADAS'!$D$59)+'CARGAS CONCENTRADAS'!$D$34)*H112),"") ->  | K112: 70 | N112: =IF(K112<=$F$100,(($D$56*('PROPIEDADES DE LOS SUELOS'!$C$24*L112+'CARGAS DISTRIBUIDAS'!$B$13+'CARGAS CONCENTRADAS'!$D$59)+'CARGAS CONCENTRADAS'!$D$34)*M112),"") -> 
A113: 11 | C113: =IF(A113<=$F$100,IF(A113=1,$D$71,IF(A113=$F$100,$D$75,$D$75)),"") ->  | D113: =IF(A113<=$F$100,(($D$56*('PROPIEDADES DE LOS SUELOS'!$C$24*B113+'CARGAS DISTRIBUIDAS'!$B$13+'CARGAS CONCENTRADAS'!$D$59)+'CARGAS CONCENTRADAS'!$D$34)*C113),"") ->  | F113: 41 | I113: =IF(F113<=$F$100,(($D$56*('PROPIEDADES DE LOS SUELOS'!$C$24*G113+'CARGAS DISTRIBUIDAS'!$B$13+'CARGAS CONCENTRADAS'!$D$59)+'CARGAS CONCENTRADAS'!$D$34)*H113),"") ->  | K113: 71 | N113: =IF(K113<=$F$100,(($D$56*('PROPIEDADES DE LOS SUELOS'!$C$24*L113+'CARGAS DISTRIBUIDAS'!$B$13+'CARGAS CONCENTRADAS'!$D$59)+'CARGAS CONCENTRADAS'!$D$34)*M113),"") -> 
A114: 12 | D114: =IF(A114<=$F$100,(($D$56*('PROPIEDADES DE LOS SUELOS'!$C$24*B114+'CARGAS DISTRIBUIDAS'!$B$13+'CARGAS CONCENTRADAS'!$D$59)+'CARGAS CONCENTRADAS'!$D$34)*C114),"") ->  | F114: 42 | I114: =IF(F114<=$F$100,(($D$56*('PROPIEDADES DE LOS SUELOS'!$C$24*G114+'CARGAS DISTRIBUIDAS'!$B$13+'CARGAS CONCENTRADAS'!$D$59)+'CARGAS CONCENTRADAS'!$D$34)*H114),"") ->  | K114: 72 | N114: =IF(K114<=$F$100,(($D$56*('PROPIEDADES DE LOS SUELOS'!$C$24*L114+'CARGAS DISTRIBUIDAS'!$B$13+'CARGAS CONCENTRADAS'!$D$59)+'CARGAS CONCENTRADAS'!$D$34)*M114),"") -> 
A115: 13 | D115: =IF(A115<=$F$100,(($D$56*('PROPIEDADES DE LOS SUELOS'!$C$24*B115+'CARGAS DISTRIBUIDAS'!$B$13+'CARGAS CONCENTRADAS'!$D$59)+'CARGAS CONCENTRADAS'!$D$34)*C115),"") ->  | F115: 43 | I115: =IF(F115<=$F$100,(($D$56*('PROPIEDADES DE LOS SUELOS'!$C$24*G115+'CARGAS DISTRIBUIDAS'!$B$13+'CARGAS CONCENTRADAS'!$D$59)+'CARGAS CONCENTRADAS'!$D$34)*H115),"") ->  | K115: 73 | N115: =IF(K115<=$F$100,(($D$56*('PROPIEDADES DE LOS SUELOS'!$C$24*L115+'CARGAS DISTRIBUIDAS'!$B$13+'CARGAS CONCENTRADAS'!$D$59)+'CARGAS CONCENTRADAS'!$D$34)*M115),"") -> 
A116: 14 | D116: =IF(A116<=$F$100,(($D$56*('PROPIEDADES DE LOS SUELOS'!$C$24*B116+'CARGAS DISTRIBUIDAS'!$B$13+'CARGAS CONCENTRADAS'!$D$59)+'CARGAS CONCENTRADAS'!$D$34)*C116),"") ->  | F116: 44 | I116: =IF(F116<=$F$100,(($D$56*('PROPIEDADES DE LOS SUELOS'!$C$24*G116+'CARGAS DISTRIBUIDAS'!$B$13+'CARGAS CONCENTRADAS'!$D$59)+'CARGAS CONCENTRADAS'!$D$34)*H116),"") ->  | K116: 74 | N116: =IF(K116<=$F$100,(($D$56*('PROPIEDADES DE LOS SUELOS'!$C$24*L116+'CARGAS DISTRIBUIDAS'!$B$13+'CARGAS CONCENTRADAS'!$D$59)+'CARGAS CONCENTRADAS'!$D$34)*M116),"") -> 
A117: 15 | D117: =IF(A117<=$F$100,(($D$56*('PROPIEDADES DE LOS SUELOS'!$C$24*B117+'CARGAS DISTRIBUIDAS'!$B$13+'CARGAS CONCENTRADAS'!$D$59)+'CARGAS CONCENTRADAS'!$D$34)*C117),"") ->  | F117: 45 | I117: =IF(F117<=$F$100,(($D$56*('PROPIEDADES DE LOS SUELOS'!$C$24*G117+'CARGAS DISTRIBUIDAS'!$B$13+'CARGAS CONCENTRADAS'!$D$59)+'CARGAS CONCENTRADAS'!$D$34)*H117),"") ->  | K117: 75 | N117: =IF(K117<=$F$100,(($D$56*('PROPIEDADES DE LOS SUELOS'!$C$24*L117+'CARGAS DISTRIBUIDAS'!$B$13+'CARGAS CONCENTRADAS'!$D$59)+'CARGAS CONCENTRADAS'!$D$34)*M117),"") -> 
A118: 16 | D118: =IF(A118<=$F$100,(($D$56*('PROPIEDADES DE LOS SUELOS'!$C$24*B118+'CARGAS DISTRIBUIDAS'!$B$13+'CARGAS CONCENTRADAS'!$D$59)+'CARGAS CONCENTRADAS'!$D$34)*C118),"") ->  | F118: 46 | I118: =IF(F118<=$F$100,(($D$56*('PROPIEDADES DE LOS SUELOS'!$C$24*G118+'CARGAS DISTRIBUIDAS'!$B$13+'CARGAS CONCENTRADAS'!$D$59)+'CARGAS CONCENTRADAS'!$D$34)*H118),"") ->  | K118: 76 | N118: =IF(K118<=$F$100,(($D$56*('PROPIEDADES DE LOS SUELOS'!$C$24*L118+'CARGAS DISTRIBUIDAS'!$B$13+'CARGAS CONCENTRADAS'!$D$59)+'CARGAS CONCENTRADAS'!$D$34)*M118),"") -> 
A119: 17 | D119: =IF(A119<=$F$100,(($D$56*('PROPIEDADES DE LOS SUELOS'!$C$24*B119+'CARGAS DISTRIBUIDAS'!$B$13+'CARGAS CONCENTRADAS'!$D$59)+'CARGAS CONCENTRADAS'!$D$34)*C119),"") ->  | F119: 47 | I119: =IF(F119<=$F$100,(($D$56*('PROPIEDADES DE LOS SUELOS'!$C$24*G119+'CARGAS DISTRIBUIDAS'!$B$13+'CARGAS CONCENTRADAS'!$D$59)+'CARGAS CONCENTRADAS'!$D$34)*H119),"") ->  | K119: 77 | N119: =IF(K119<=$F$100,(($D$56*('PROPIEDADES DE LOS SUELOS'!$C$24*L119+'CARGAS DISTRIBUIDAS'!$B$13+'CARGAS CONCENTRADAS'!$D$59)+'CARGAS CONCENTRADAS'!$D$34)*M119),"") -> 
A120: 18 | D120: =IF(A120<=$F$100,(($D$56*('PROPIEDADES DE LOS SUELOS'!$C$24*B120+'CARGAS DISTRIBUIDAS'!$B$13+'CARGAS CONCENTRADAS'!$D$59)+'CARGAS CONCENTRADAS'!$D$34)*C120),"") ->  | F120: 48 | I120: =IF(F120<=$F$100,(($D$56*('PROPIEDADES DE LOS SUELOS'!$C$24*G120+'CARGAS DISTRIBUIDAS'!$B$13+'CARGAS CONCENTRADAS'!$D$59)+'CARGAS CONCENTRADAS'!$D$34)*H120),"") ->  | K120: 78 | N120: =IF(K120<=$F$100,(($D$56*('PROPIEDADES DE LOS SUELOS'!$C$24*L120+'CARGAS DISTRIBUIDAS'!$B$13+'CARGAS CONCENTRADAS'!$D$59)+'CARGAS CONCENTRADAS'!$D$34)*M120),"") -> 
A121: 19 | D121: =IF(A121<=$F$100,(($D$56*('PROPIEDADES DE LOS SUELOS'!$C$24*B121+'CARGAS DISTRIBUIDAS'!$B$13+'CARGAS CONCENTRADAS'!$D$59)+'CARGAS CONCENTRADAS'!$D$34)*C121),"") ->  | F121: 49 | I121: =IF(F121<=$F$100,(($D$56*('PROPIEDADES DE LOS SUELOS'!$C$24*G121+'CARGAS DISTRIBUIDAS'!$B$13+'CARGAS CONCENTRADAS'!$D$59)+'CARGAS CONCENTRADAS'!$D$34)*H121),"") ->  | K121: 79 | N121: =IF(K121<=$F$100,(($D$56*('PROPIEDADES DE LOS SUELOS'!$C$24*L121+'CARGAS DISTRIBUIDAS'!$B$13+'CARGAS CONCENTRADAS'!$D$59)+'CARGAS CONCENTRADAS'!$D$34)*M121),"") -> 
A122: 20 | D122: =IF(A122<=$F$100,(($D$56*('PROPIEDADES DE LOS SUELOS'!$C$24*B122+'CARGAS DISTRIBUIDAS'!$B$13+'CARGAS CONCENTRADAS'!$D$59)+'CARGAS CONCENTRADAS'!$D$34)*C122),"") ->  | F122: 50 | I122: =IF(F122<=$F$100,(($D$56*('PROPIEDADES DE LOS SUELOS'!$C$24*G122+'CARGAS DISTRIBUIDAS'!$B$13+'CARGAS CONCENTRADAS'!$D$59)+'CARGAS CONCENTRADAS'!$D$34)*H122),"") ->  | K122: 80 | N122: =IF(K122<=$F$100,(($D$56*('PROPIEDADES DE LOS SUELOS'!$C$24*L122+'CARGAS DISTRIBUIDAS'!$B$13+'CARGAS CONCENTRADAS'!$D$59)+'CARGAS CONCENTRADAS'!$D$34)*M122),"") -> 
A123: 21 | D123: =IF(A123<=$F$100,(($D$56*('PROPIEDADES DE LOS SUELOS'!$C$24*B123+'CARGAS DISTRIBUIDAS'!$B$13+'CARGAS CONCENTRADAS'!$D$59)+'CARGAS CONCENTRADAS'!$D$34)*C123),"") ->  | F123: 51 | I123: =IF(F123<=$F$100,(($D$56*('PROPIEDADES DE LOS SUELOS'!$C$24*G123+'CARGAS DISTRIBUIDAS'!$B$13+'CARGAS CONCENTRADAS'!$D$59)+'CARGAS CONCENTRADAS'!$D$34)*H123),"") ->  | K123: 81 | N123: =IF(K123<=$F$100,(($D$56*('PROPIEDADES DE LOS SUELOS'!$C$24*L123+'CARGAS DISTRIBUIDAS'!$B$13+'CARGAS CONCENTRADAS'!$D$59)+'CARGAS CONCENTRADAS'!$D$34)*M123),"") -> 
A124: 22 | D124: =IF(A124<=$F$100,(($D$56*('PROPIEDADES DE LOS SUELOS'!$C$24*B124+'CARGAS DISTRIBUIDAS'!$B$13+'CARGAS CONCENTRADAS'!$D$59)+'CARGAS CONCENTRADAS'!$D$34)*C124),"") ->  | F124: 52 | I124: =IF(F124<=$F$100,(($D$56*('PROPIEDADES DE LOS SUELOS'!$C$24*G124+'CARGAS DISTRIBUIDAS'!$B$13+'CARGAS CONCENTRADAS'!$D$59)+'CARGAS CONCENTRADAS'!$D$34)*H124),"") ->  | K124: 82 | N124: =IF(K124<=$F$100,(($D$56*('PROPIEDADES DE LOS SUELOS'!$C$24*L124+'CARGAS DISTRIBUIDAS'!$B$13+'CARGAS CONCENTRADAS'!$D$59)+'CARGAS CONCENTRADAS'!$D$34)*M124),"") -> 
A125: 23 | D125: =IF(A125<=$F$100,(($D$56*('PROPIEDADES DE LOS SUELOS'!$C$24*B125+'CARGAS DISTRIBUIDAS'!$B$13+'CARGAS CONCENTRADAS'!$D$59)+'CARGAS CONCENTRADAS'!$D$34)*C125),"") ->  | F125: 53 | I125: =IF(F125<=$F$100,(($D$56*('PROPIEDADES DE LOS SUELOS'!$C$24*G125+'CARGAS DISTRIBUIDAS'!$B$13+'CARGAS CONCENTRADAS'!$D$59)+'CARGAS CONCENTRADAS'!$D$34)*H125),"") ->  | K125: 83 | N125: =IF(K125<=$F$100,(($D$56*('PROPIEDADES DE LOS SUELOS'!$C$24*L125+'CARGAS DISTRIBUIDAS'!$B$13+'CARGAS CONCENTRADAS'!$D$59)+'CARGAS CONCENTRADAS'!$D$34)*M125),"") -> 
A126: 24 | D126: =IF(A126<=$F$100,(($D$56*('PROPIEDADES DE LOS SUELOS'!$C$24*B126+'CARGAS DISTRIBUIDAS'!$B$13+'CARGAS CONCENTRADAS'!$D$59)+'CARGAS CONCENTRADAS'!$D$34)*C126),"") ->  | F126: 54 | I126: =IF(F126<=$F$100,(($D$56*('PROPIEDADES DE LOS SUELOS'!$C$24*G126+'CARGAS DISTRIBUIDAS'!$B$13+'CARGAS CONCENTRADAS'!$D$59)+'CARGAS CONCENTRADAS'!$D$34)*H126),"") ->  | K126: 84 | N126: =IF(K126<=$F$100,(($D$56*('PROPIEDADES DE LOS SUELOS'!$C$24*L126+'CARGAS DISTRIBUIDAS'!$B$13+'CARGAS CONCENTRADAS'!$D$59)+'CARGAS CONCENTRADAS'!$D$34)*M126),"") -> 
A127: 25 | D127: =IF(A127<=$F$100,(($D$56*('PROPIEDADES DE LOS SUELOS'!$C$24*B127+'CARGAS DISTRIBUIDAS'!$B$13+'CARGAS CONCENTRADAS'!$D$59)+'CARGAS CONCENTRADAS'!$D$34)*C127),"") ->  | F127: 55 | I127: =IF(F127<=$F$100,(($D$56*('PROPIEDADES DE LOS SUELOS'!$C$24*G127+'CARGAS DISTRIBUIDAS'!$B$13+'CARGAS CONCENTRADAS'!$D$59)+'CARGAS CONCENTRADAS'!$D$34)*H127),"") ->  | K127: 85 | N127: =IF(K127<=$F$100,(($D$56*('PROPIEDADES DE LOS SUELOS'!$C$24*L127+'CARGAS DISTRIBUIDAS'!$B$13+'CARGAS CONCENTRADAS'!$D$59)+'CARGAS CONCENTRADAS'!$D$34)*M127),"") -> 
A128: 26 | D128: =IF(A128<=$F$100,(($D$56*('PROPIEDADES DE LOS SUELOS'!$C$24*B128+'CARGAS DISTRIBUIDAS'!$B$13+'CARGAS CONCENTRADAS'!$D$59)+'CARGAS CONCENTRADAS'!$D$34)*C128),"") ->  | F128: 56 | I128: =IF(F128<=$F$100,(($D$56*('PROPIEDADES DE LOS SUELOS'!$C$24*G128+'CARGAS DISTRIBUIDAS'!$B$13+'CARGAS CONCENTRADAS'!$D$59)+'CARGAS CONCENTRADAS'!$D$34)*H128),"") ->  | K128: 86 | N128: =IF(K128<=$F$100,(($D$56*('PROPIEDADES DE LOS SUELOS'!$C$24*L128+'CARGAS DISTRIBUIDAS'!$B$13+'CARGAS CONCENTRADAS'!$D$59)+'CARGAS CONCENTRADAS'!$D$34)*M128),"") -> 
A129: 27 | D129: =IF(A129<=$F$100,(($D$56*('PROPIEDADES DE LOS SUELOS'!$C$24*B129+'CARGAS DISTRIBUIDAS'!$B$13+'CARGAS CONCENTRADAS'!$D$59)+'CARGAS CONCENTRADAS'!$D$34)*C129),"") ->  | F129: 57 | I129: =IF(F129<=$F$100,(($D$56*('PROPIEDADES DE LOS SUELOS'!$C$24*G129+'CARGAS DISTRIBUIDAS'!$B$13+'CARGAS CONCENTRADAS'!$D$59)+'CARGAS CONCENTRADAS'!$D$34)*H129),"") ->  | K129: 87 | N129: =IF(K129<=$F$100,(($D$56*('PROPIEDADES DE LOS SUELOS'!$C$24*L129+'CARGAS DISTRIBUIDAS'!$B$13+'CARGAS CONCENTRADAS'!$D$59)+'CARGAS CONCENTRADAS'!$D$34)*M129),"") -> 
A130: 28 | D130: =IF(A130<=$F$100,(($D$56*('PROPIEDADES DE LOS SUELOS'!$C$24*B130+'CARGAS DISTRIBUIDAS'!$B$13+'CARGAS CONCENTRADAS'!$D$59)+'CARGAS CONCENTRADAS'!$D$34)*C130),"") ->  | F130: 58 | I130: =IF(F130<=$F$100,(($D$56*('PROPIEDADES DE LOS SUELOS'!$C$24*G130+'CARGAS DISTRIBUIDAS'!$B$13+'CARGAS CONCENTRADAS'!$D$59)+'CARGAS CONCENTRADAS'!$D$34)*H130),"") ->  | K130: 88 | N130: =IF(K130<=$F$100,(($D$56*('PROPIEDADES DE LOS SUELOS'!$C$24*L130+'CARGAS DISTRIBUIDAS'!$B$13+'CARGAS CONCENTRADAS'!$D$59)+'CARGAS CONCENTRADAS'!$D$34)*M130),"") -> 
A131: 29 | D131: =IF(A131<=$F$100,(($D$56*('PROPIEDADES DE LOS SUELOS'!$C$24*B131+'CARGAS DISTRIBUIDAS'!$B$13+'CARGAS CONCENTRADAS'!$D$59)+'CARGAS CONCENTRADAS'!$D$34)*C131),"") ->  | F131: 59 | I131: =IF(F131<=$F$100,(($D$56*('PROPIEDADES DE LOS SUELOS'!$C$24*G131+'CARGAS DISTRIBUIDAS'!$B$13+'CARGAS CONCENTRADAS'!$D$59)+'CARGAS CONCENTRADAS'!$D$34)*H131),"") ->  | K131: 89 | N131: =IF(K131<=$F$100,(($D$56*('PROPIEDADES DE LOS SUELOS'!$C$24*L131+'CARGAS DISTRIBUIDAS'!$B$13+'CARGAS CONCENTRADAS'!$D$59)+'CARGAS CONCENTRADAS'!$D$34)*M131),"") -> 
A132: 30 | D132: =IF(A132<=$F$100,(($D$56*('PROPIEDADES DE LOS SUELOS'!$C$24*B132+'CARGAS DISTRIBUIDAS'!$B$13+'CARGAS CONCENTRADAS'!$D$59)+'CARGAS CONCENTRADAS'!$D$34)*C132),"") ->  | F132: 60 | I132: =IF(F132<=$F$100,(($D$56*('PROPIEDADES DE LOS SUELOS'!$C$24*G132+'CARGAS DISTRIBUIDAS'!$B$13+'CARGAS CONCENTRADAS'!$D$59)+'CARGAS CONCENTRADAS'!$D$34)*H132),"") ->  | K132: 90 | N132: =IF(K132<=$F$100,(($D$56*('PROPIEDADES DE LOS SUELOS'!$C$24*L132+'CARGAS DISTRIBUIDAS'!$B$13+'CARGAS CONCENTRADAS'!$D$59)+'CARGAS CONCENTRADAS'!$D$34)*M132),"") -> 

Sheet REVISION
D1: METODOLOGÍA PARA DISEÑOS DE MUROS MECANICAMENTE ESTABILIZADOS
D3: MUROS CON RELLENOS HORIZONTALES
A11: Revisión de Factores de seguridad mínimos para los análisis de estabilidad externa e interna.
A13: Condiciones para el análisis de estabilidad externa.
B14: Condición de excentricidad "e":
C18: si : | D18: e = | E18: ='MC ANALISIS EXTERNO'!D182 -> 0.4632694852 | F18: m
E20: ='MC ANALISIS EXTERNO'!$D$188 -> 0.7166666667 | F20: m
C22: entonces:
D23: ='MC ANALISIS EXTERNO'!F188 -> CUMPLE CONDICIÓN DE EXCENTRICIDAD
B27: Condición del Factor de Seguridad por deslizamiento del muro "F.S.des":
C31: Si:
D32: Pr = | E32: ='MC ANALISIS EXTERNO'!D216 -> 210.6643402 | F32: KN/m
D33: Pd = | E33: ='MC ANALISIS EXTERNO'!D221 -> 110.2866905 | F33: KN/m
C35: Entonces:
D36: F.S.des = | E36: ='MC ANALISIS EXTERNO'!D227 -> 1.910151981
C38: Por lo tanto:
D39: ='MC ANALISIS EXTERNO'!F227 -> CUMPLE CON EL FACTOR DE SEGURIDAD DE DESLIZAMIENTO
B43: Condición del Factor de Seguridad por volteo del muro "F.S.V:
C47: Si:
D48: MR = | E48: ='MC ANALISIS EXTERNO'!D172 -> 620.7093 | F48: KN/m · m
D49: Mv = | E49: ='MC ANALISIS EXTERNO'!D176 -> 183.5482966 | F49: KN/m · m
C51: Entonces:
D52: F.S.V = | E52: ='MC ANALISIS EXTERNO'!D235 -> 3.381721931
C54: Por lo tanto:
D55: ='MC ANALISIS EXTERNO'!F235 -> CUMPLE CON EL FACTOR DE SEGURIDAD POR VOLTEO
A64: Condiciones para el análisis de estabilidad interna.
B65: Condición del Esfuerzo Vertical:
C68: si:
D69: σv = | E69: ='MC ANALISIS INTERNO'!D18 -> 117.4467399 | F69: KN/m2
D70: qa = | E70: ='MC ANALISIS INTERNO'!D46 -> 1207.024426 | F70: KN/m2
C72: Por lo tanto:
D73: ='MC ANALISIS INTERNO'!F46 -> CUMPLE LA CONDICIÓN DE CARGA ADMISIBLE CON RESPECTO AL ESFUERZO VERTICAL APLICADO
B77: Condición de factor de seguridad de la primera capa de refuerzo:
C81: si:
D82: F.S.des@primer refuerzo = | E82: ='MC ANALISIS INTERNO'!D92 -> 1.510672417
C84: Por lo tanto:
D85: ='MC ANALISIS INTERNO'!E92 -> CUMPLE CON EL FACTOR DE SEGURIDAD DE DESLIZAMIENTO EN EL PRIMER REFUERZO EN LA PRIMERA CAPA DE REFUERZO

Sheet DISEÑO
D1: METODOLOGÍA PARA DISEÑOS DE MUROS MECANICAMENTE ESTABILIZADOS
D3: MUROS CON RELLENOS HORIZONTALES
E11: DISEÑO
E12: LONGITUD REQUERIDA DE GEOSINTETICO
A14: a) Longitud necesaria de empotramiento para evitar la falla por extracción
B19: Donde:
B20: C = | C20: ='PROPIEDADES DEL GEOSINTETICO'!B13 -> 2
B21: Ci = | C21: ='PROPIEDADES DEL GEOSINTETICO'!B15 -> 0.66
B22: Zi = | C22: Profundidad a la que se encuentra el refuerzo
D23: si: | E23: b = | F23: ='PROPIEDADES DEL GEOSINTETICO'!D19 -> 1 | G23: m
E24: Sh = | F24: ='PROPIEDADES DEL GEOSINTETICO'!D21 -> 1 | G24: m
B25: Rc = | C25: =F23/F24 -> 1
B26: α = | C26: ='PROPIEDADES DEL GEOSINTETICO'!B25 -> 0.8 | D26: =IF(C26='PROPIEDADES DEL GEOSINTETICO'!B25,"Geomalla","Geotextil") -> Geomalla
A28: Capa No. | B28: Zi (m) | C28: Le (m) | D28: Le (final,m) | F28: Capa No. | G28: Zi (m) | H28: Le (m) | I28: Le (final,m) | K28: Capa No. | L28: Zi (m) | M28: Le (m) | N28: Le (final,m)
A29: 1 | B29: ='MC ANALISIS INTERNO'!B103 -> 0.5 | C29: =IF(A29<='MC ANALISIS INTERNO'!$F$100,((1.5*'MC ANALISIS INTERNO'!D103))/($C$20*TAN(RADIANS('PROPIEDADES DE LOS SUELOS'!$C$26))*$C$21*'PROPIEDADES DE LOS SUELOS'!$C$24*B29*$C$25*$C$26),"") -> 1.549077427 | D29: =IF(C29<=1,1,C29) -> 1.549077427 | F29: 31 | G29: ='MC ANALISIS INTERNO'!G103 ->  | H29: =IF(F29<='MC ANALISIS INTERNO'!$F$100,((1.5*'MC ANALISIS INTERNO'!H103))/($C$20*TAN(RADIANS('PROPIEDADES DE LOS SUELOS'!$C$26))*$C$21*'PROPIEDADES DE LOS SUELOS'!$C$24*G29*$C$25*$C$26),"") ->  | I29: =IF(H29<=1,1,H29) ->  | K29: 61 | L29: ='MC ANALISIS INTERNO'!L103 ->  | M29: =IF(K29<='MC ANALISIS INTERNO'!$F$100,((1.5*'MC ANALISIS INTERNO'!L103))/($C$20*TAN(RADIANS('PROPIEDADES DE LOS SUELOS'!$C$26))*$C$21*'PROPIEDADES DE LOS SUELOS'!$C$24*L29*$C$25*$C$26),"") ->  | N29: =IF(M29<=1,1,M29) -> 
A30: 2 | B30: ='MC ANALISIS INTERNO'!B104 -> 1 | C30: =IF(A30<='MC ANALISIS INTERNO'!$F$100,((1.5*'MC ANALISIS INTERNO'!D104))/($C$20*TAN(RADIANS('PROPIEDADES DE LOS SUELOS'!$C$26))*$C$21*'PROPIEDADES DE LOS SUELOS'!$C$24*B30*$C$25*$C$26),"") -> 0.9795636669 | D30: =IF(C30<=1,1,C30) -> 1 | F30: 32 | G30: ='MC ANALISIS INTERNO'!G104 ->  | H30: =IF(F30<='MC ANALISIS INTERNO'!$F$100,((1.5*'MC ANALISIS INTERNO'!H104))/($C$20*TAN(RADIANS('PROPIEDADES DE LOS SUELOS'!$C$26))*$C$21*'PROPIEDADES DE LOS SUELOS'!$C$24*G30*$C$25*$C$26),"") ->  | I30: =IF(H30<=1,1,H30) ->  | K30: 62 | L30: ='MC ANALISIS INTERNO'!L104 ->  | M30: =IF(K30<='MC ANALISIS INTERNO'!$F$100,((1.5*'MC ANALISIS INTERNO'!L104))/($C$20*TAN(RADIANS('PROPIEDADES DE LOS SUELOS'!$C$26))*$C$21*'PROPIEDADES DE LOS SUELOS'!$C$24*L30*$C$25*$C$26),"") ->  | N30: =IF(M30<=1,1,M30) -> 
A31: 3 | B31: ='MC ANALISIS INTERNO'!B105 -> 1.5 | C31: =IF(A31<='MC ANALISIS INTERNO'!$F$100,((1.5*'MC ANALISIS INTERNO'!D105))/($C$20*TAN(RADIANS('PROPIEDADES DE LOS SUELOS'!$C$26))*$C$21*'PROPIEDADES DE LOS SUELOS'!$C$24*B31*$C$25*$C$26),"") -> 0.789725747 | D31: 1 | F31: 33 | G31: ='MC ANALISIS INTERNO'!G105 ->  | H31: =IF(F31<='MC ANALISIS INTERNO'!$F$100,((1.5*'MC ANALISIS INTERNO'!H105))/($C$20*TAN(RADIANS('PROPIEDADES DE LOS SUELOS'!$C$26))*$C$21*'PROPIEDADES DE LOS SUELOS'!$C$24*G31*$C$25*$C$26),"") ->  | K31: 63 | L31: ='MC ANALISIS INTERNO'!L105 ->  | M31: =IF(K31<='MC ANALISIS INTERNO'!$F$100,((1.5*'MC ANALISIS INTERNO'!L105))/($C$20*TAN(RADIANS('PROPIEDADES DE LOS SUELOS'!$C$26))*$C$21*'PROPIEDADES DE LOS SUELOS'!$C$24*L31*$C$25*$C$26),"") -> 
A32: 4 | B32: ='MC ANALISIS INTERNO'!B106 -> 2 | C32: =IF(A32<='MC ANALISIS INTERNO'!$F$100,((1.5*'MC ANALISIS INTERNO'!D106))/($C$20*TAN(RADIANS('PROPIEDADES DE LOS SUELOS'!$C$26))*$C$21*'PROPIEDADES DE LOS SUELOS'!$C$24*B32*$C$25*$C$26),"") -> 0.694806787 | D32: 1 | F32: 34 | G32: ='MC ANALISIS INTERNO'!G106 ->  | H32: =IF(F32<='MC ANALISIS INTERNO'!$F$100,((1.5*'MC ANALISIS INTERNO'!H106))/($C$20*TAN(RADIANS('PROPIEDADES DE LOS SUELOS'!$C$26))*$C$21*'PROPIEDADES DE LOS SUELOS'!$C$24*G32*$C$25*$C$26),"") ->  | K32: 64 | L32: ='MC ANALISIS INTERNO'!L106 ->  | M32: =IF(K32<='MC ANALISIS INTERNO'!$F$100,((1.5*'MC ANALISIS INTERNO'!L106))/($C$20*TAN(RADIANS('PROPIEDADES DE LOS SUELOS'!$C$26))*$C$21*'PROPIEDADES DE LOS SUELOS'!$C$24*L32*$C$25*$C$26),"") -> 
A33: 5 | B33: ='MC ANALISIS INTERNO'!B107 -> 2.5 | C33: =IF(A33<='MC ANALISIS INTERNO'!$F$100,((1.5*'MC ANALISIS INTERNO'!D107))/($C$20*TAN(RADIANS('PROPIEDADES DE LOS SUELOS'!$C$26))*$C$21*'PROPIEDADES DE LOS SUELOS'!$C$24*B33*$C$25*$C$26),"") -> 0.637855411 | D33: 1 | F33: 35 | G33: ='MC ANALISIS INTERNO'!G107 ->  | H33: =IF(F33<='MC ANALISIS INTERNO'!$F$100,((1.5*'MC ANALISIS INTERNO'!H107))/($C$20*TAN(RADIANS('PROPIEDADES DE LOS SUELOS'!$C$26))*$C$21*'PROPIEDADES DE LOS SUELOS'!$C$24*G33*$C$25*$C$26),"") ->  | K33: 65 | L33: ='MC ANALISIS INTERNO'!L107 ->  | M33: =IF(K33<='MC ANALISIS INTERNO'!$F$100,((1.5*'MC ANALISIS INTERNO'!L107))/($C$20*TAN(RADIANS('PROPIEDADES DE LOS SUELOS'!$C$26))*$C$21*'PROPIEDADES DE LOS SUELOS'!$C$24*L33*$C$25*$C$26),"") -> 
A34: 6 | B34: ='MC ANALISIS INTERNO'!B108 -> 3 | C34: =IF(A34<='MC ANALISIS INTERNO'!$F$100,((1.5*'MC ANALISIS INTERNO'!D108))/($C$20*TAN(RADIANS('PROPIEDADES DE LOS SUELOS'!$C$26))*$C$21*'PROPIEDADES DE LOS SUELOS'!$C$24*B34*$C$25*$C$26),"") -> 0.599887827 | D34: 1 | F34: 36 | G34: ='MC ANALISIS INTERNO'!G108 ->  | H34: =IF(F34<='MC ANALISIS INTERNO'!$F$100,((1.5*'MC ANALISIS INTERNO'!H108))/($C$20*TAN(RADIANS('PROPIEDADES DE LOS SUELOS'!$C$26))*$C$21*'PROPIEDADES DE LOS SUELOS'!$C$24*G34*$C$25*$C$26),"") ->  | K34: 66 | L34: ='MC ANALISIS INTERNO'!L108 ->  | M34: =IF(K34<='MC ANALISIS INTERNO'!$F$100,((1.5*'MC ANALISIS INTERNO'!L108))/($C$20*TAN(RADIANS('PROPIEDADES DE LOS SUELOS'!$C$26))*$C$21*'PROPIEDADES DE LOS SUELOS'!$C$24*L34*$C$25*$C$26),"") -> 
A35: 7 | B35: ='MC ANALISIS INTERNO'!B109 -> 3.5 | C35: =IF(A35<='MC ANALISIS INTERNO'!$F$100,((1.5*'MC ANALISIS INTERNO'!D109))/($C$20*TAN(RADIANS('PROPIEDADES DE LOS SUELOS'!$C$26))*$C$21*'PROPIEDADES DE LOS SUELOS'!$C$24*B35*$C$25*$C$26),"") -> 0.5727681242 | D35: 1 | F35: 37 | G35: ='MC ANALISIS INTERNO'!G109 ->  | H35: =IF(F35<='MC ANALISIS INTERNO'!$F$100,((1.5*'MC ANALISIS INTERNO'!H109))/($C$20*TAN(RADIANS('PROPIEDADES DE LOS SUELOS'!$C$26))*$C$21*'PROPIEDADES DE LOS SUELOS'!$C$24*G35*$C$25*$C$26),"") ->  | K35: 67 | L35: ='MC ANALISIS INTERNO'!L109 ->  | M35: =IF(K35<='MC ANALISIS INTERNO'!$F$100,((1.5*'MC ANALISIS INTERNO'!L109))/($C$20*TAN(RADIANS('PROPIEDADES DE LOS SUELOS'!$C$26))*$C$21*'PROPIEDADES DE LOS SUELOS'!$C$24*L35*$C$25*$C$26),"") -> 
A36: 8 | B36: ='MC ANALISIS INTERNO'!B110 ->  | C36: =IF(A36<='MC ANALISIS INTERNO'!$F$100,((1.5*'MC ANALISIS INTERNO'!D110))/($C$20*TAN(RADIANS('PROPIEDADES DE LOS SUELOS'!$C$26))*$C$21*'PROPIEDADES DE LOS SUELOS'!$C$24*B36*$C$25*$C$26),"") ->  | F36: 38 | G36: ='MC ANALISIS INTERNO'!G110 ->  | H36: =IF(F36<='MC ANALISIS INTERNO'!$F$100,((1.5*'MC ANALISIS INTERNO'!H110))/($C$20*TAN(RADIANS('PROPIEDADES DE LOS SUELOS'!$C$26))*$C$21*'PROPIEDADES DE LOS SUELOS'!$C$24*G36*$C$25*$C$26),"") ->  | K36: 68 | L36: ='MC ANALISIS INTERNO'!L110 ->  | M36: =IF(K36<='MC ANALISIS INTERNO'!$F$100,((1.5*'MC ANALISIS INTERNO'!L110))/($C$20*TAN(RADIANS('PROPIEDADES DE LOS SUELOS'!$C$26))*$C$21*'PROPIEDADES DE LOS SUELOS'!$C$24*L36*$C$25*$C$26),"") -> 
A37: 9 | B37: ='MC ANALISIS INTERNO'!B111 ->  | C37: =IF(A37<='MC ANALISIS INTERNO'!$F$100,((1.5*'MC ANALISIS INTERNO'!D111))/($C$20*TAN(RADIANS('PROPIEDADES DE LOS SUELOS'!$C$26))*$C$21*'PROPIEDADES DE LOS SUELOS'!$C$24*B37*$C$25*$C$26),"") ->  | F37: 39 | G37: ='MC ANALISIS INTERNO'!G111 ->  | H37: =IF(F37<='MC ANALISIS INTERNO'!$F$100,((1.5*'MC ANALISIS INTERNO'!H111))/($C$20*TAN(RADIANS('PROPIEDADES DE LOS SUELOS'!$C$26))*$C$21*'PROPIEDADES DE LOS SUELOS'!$C$24*G37*$C$25*$C$26),"") ->  | K37: 69 | L37: ='MC ANALISIS INTERNO'!L111 ->  | M37: =IF(K37<='MC ANALISIS INTERNO'!$F$100,((1.5*'MC ANALISIS INTERNO'!L111))/($C$20*TAN(RADIANS('PROPIEDADES DE LOS SUELOS'!$C$26))*$C$21*'PROPIEDADES DE LOS SUELOS'!$C$24*L37*$C$25*$C$26),"") -> 
A38: 10 | B38: ='MC ANALISIS INTERNO'!B112 ->  | C38: =IF(A38<='MC ANALISIS INTERNO'!$F$100,((1.5*'MC ANALISIS INTERNO'!D112))/($C$20*TAN(RADIANS('PROPIEDADES DE LOS SUELOS'!$C$26))*$C$21*'PROPIEDADES DE LOS SUELOS'!$C$24*B38*$C$25*$C$26),"") ->  | F38: 40 | G38: ='MC ANALISIS INTERNO'!G112 ->  | H38: =IF(F38<='MC ANALISIS INTERNO'!$F$100,((1.5*'MC ANALISIS INTERNO'!H112))/($C$20*TAN(RADIANS('PROPIEDADES DE LOS SUELOS'!$C$26))*$C$21*'PROPIEDADES DE LOS SUELOS'!$C$24*G38*$C$25*$C$26),"") ->  | K38: 70 | L38: ='MC ANALISIS INTERNO'!L112 ->  | M38: =IF(K38<='MC ANALISIS INTERNO'!$F$100,((1.5*'MC ANALISIS INTERNO'!L112))/($C$20*TAN(RADIANS('PROPIEDADES DE LOS SUELOS'!$C$26))*$C$21*'PROPIEDADES DE LOS SUELOS'!$C$24*L38*$C$25*$C$26),"") -> 
A39: 11 | B39: ='MC ANALISIS INTERNO'!B113 ->  | C39: =IF(A39<='MC ANALISIS INTERNO'!$F$100,((1.5*'MC ANALISIS INTERNO'!D113))/($C$20*TAN(RADIANS('PROPIEDADES DE LOS SUELOS'!$C$26))*$C$21*'PROPIEDADES DE LOS SUELOS'!$C$24*B39*$C$25*$C$26),"") ->  | F39: 41 | G39: ='MC ANALISIS INTERNO'!G113 ->  | H39: =IF(F39<='MC ANALISIS INTERNO'!$F$100,((1.5*'MC ANALISIS INTERNO'!H113))/($C$20*TAN(RADIANS('PROPIEDADES DE LOS SUELOS'!$C$26))*$C$21*'PROPIEDADES DE LOS SUELOS'!$C$24*G39*$C$25*$C$26),"") ->  | K39: 71 | L39: ='MC ANALISIS INTERNO'!L113 ->  | M39: =IF(K39<='MC ANALISIS INTERNO'!$F$100,((1.5*'MC ANALISIS INTERNO'!L113))/($C$20*TAN(RADIANS('PROPIEDADES DE LOS SUELOS'!$C$26))*$C$21*'PROPIEDADES DE LOS SUELOS'!$C$24*L39*$C$25*$C$26),"") -> 
A40: 12 | B40: ='MC ANALISIS INTERNO'!B114 ->  | C40: =IF(A40<='MC ANALISIS INTERNO'!$F$100,((1.5*'MC ANALISIS INTERNO'!D114))/($C$20*TAN(RADIANS('PROPIEDADES DE LOS SUELOS'!$C$26))*$C$21*'PROPIEDADES DE LOS SUELOS'!$C$24*B40*$C$25*$C$26),"") ->  | F40: 42 | G40: ='MC ANALISIS INTERNO'!G114 ->  | H40: =IF(F40<='MC ANALISIS INTERNO'!$F$100,((1.5*'MC ANALISIS INTERNO'!H114))/($C$20*TAN(RADIANS('PROPIEDADES DE LOS SUELOS'!$C$26))*$C$21*'PROPIEDADES DE LOS SUELOS'!$C$24*G40*$C$25*$C$26),"") ->  | K40: 72 | L40: ='MC ANALISIS INTERNO'!L114 ->  | M40: =IF(K40<='MC ANALISIS INTERNO'!$F$100,((1.5*'MC ANALISIS INTERNO'!L114))/($C$20*TAN(RADIANS('PROPIEDADES DE LOS SUELOS'!$C$26))*$C$21*'PROPIEDADES DE LOS SUELOS'!$C$24*L40*$C$25*$C$26),"") -> 
A41: 13 | B41: ='MC ANALISIS INTERNO'!B115 ->  | C41: =IF(A41<='MC ANALISIS INTERNO'!$F$100,((1.5*'MC ANALISIS INTERNO'!D115))/($C$20*TAN(RADIANS('PROPIEDADES DE LOS SUELOS'!$C$26))*$C$21*'PROPIEDADES DE LOS SUELOS'!$C$24*B41*$C$25*$C$26),"") ->  | F41: 43 | G41: ='MC ANALISIS INTERNO'!G115 ->  | H41: =IF(F41<='MC ANALISIS INTERNO'!$F$100,((1.5*'MC ANALISIS INTERNO'!H115))/($C$20*TAN(RADIANS('PROPIEDADES DE LOS SUELOS'!$C$26))*$C$21*'PROPIEDADES DE LOS SUELOS'!$C$24*G41*$C$25*$C$26),"") ->  | K41: 73 | L41: ='MC ANALISIS INTERNO'!L115 ->  | M41: =IF(K41<='MC ANALISIS INTERNO'!$F$100,((1.5*'MC ANALISIS INTERNO'!L115))/($C$20*TAN(RADIANS('PROPIEDADES DE LOS SUELOS'!$C$26))*$C$21*'PROPIEDADES DE LOS SUELOS'!$C$24*L41*$C$25*$C$26),"") -> 
A42: 14 | B42: ='MC ANALISIS INTERNO'!B116 ->  | C42: =IF(A42<='MC ANALISIS INTERNO'!$F$100,((1.5*'MC ANALISIS INTERNO'!D116))/($C$20*TAN(RADIANS('PROPIEDADES DE LOS SUELOS'!$C$26))*$C$21*'PROPIEDADES DE LOS SUELOS'!$C$24*B42*$C$25*$C$26),"") ->  | F42: 44 | G42: ='MC ANALISIS INTERNO'!G116 ->  | H42: =IF(F42<='MC ANALISIS INTERNO'!$F$100,((1.5*'MC ANALISIS INTERNO'!H116))/($C$20*TAN(RADIANS('PROPIEDADES DE LOS SUELOS'!$C$26))*$C$21*'PROPIEDADES DE LOS SUELOS'!$C$24*G42*$C$25*$C$26),"") ->  | K42: 74 | L42: ='MC ANALISIS INTERNO'!L116 ->  | M42: =IF(K42<='MC ANALISIS INTERNO'!$F$100,((1.5*'MC ANALISIS INTERNO'!L116))/($C$20*TAN(RADIANS('PROPIEDADES DE LOS SUELOS'!$C$26))*$C$21*'PROPIEDADES DE LOS SUELOS'!$C$24*L42*$C$25*$C$26),"") -> 
A43: 15 | B43: ='MC ANALISIS INTERNO'!B117 ->  | C43: =IF(A43<='MC ANALISIS INTERNO'!$F$100,((1.5*'MC ANALISIS INTERNO'!D117))/($C$20*TAN(RADIANS('PROPIEDADES DE LOS SUELOS'!$C$26))*$C$21*'PROPIEDADES DE LOS SUELOS'!$C$24*B43*$C$25*$C$26),"") ->  | F43: 45 | G43: ='MC ANALISIS INTERNO'!G117 ->  | H43: =IF(F43<='MC ANALISIS INTERNO'!$F$100,((1.5*'MC ANALISIS INTERNO'!H117))/($C$20*TAN(RADIANS('PROPIEDADES DE LOS SUELOS'!$C$26))*$C$21*'PROPIEDADES DE LOS SUELOS'!$C$24*G43*$C$25*$C$26),"") ->  | K43: 75 | L43: ='MC ANALISIS INTERNO'!L117 ->  | M43: =IF(K43<='MC ANALISIS INTERNO'!$F$100,((1.5*'MC ANALISIS INTERNO'!L117))/($C$20*TAN(RADIANS('PROPIEDADES DE LOS SUELOS'!$C$26))*$C$21*'PROPIEDADES DE LOS SUELOS'!$C$24*L43*$C$25*$C$26),"") -> 
A44: 16 | B44: ='MC ANALISIS INTERNO'!B118 ->  | C44: =IF(A44<='MC ANALISIS INTERNO'!$F$100,((1.5*'MC ANALISIS INTERNO'!D118))/($C$20*TAN(RADIANS('PROPIEDADES DE LOS SUELOS'!$C$26))*$C$21*'PROPIEDADES DE LOS SUELOS'!$C$24*B44*$C$25*$C$26),"") ->  | F44: 46 | G44: ='MC ANALISIS INTERNO'!G118 ->  | H44: =IF(F44<='MC ANALISIS INTERNO'!$F$100,((1.5*'MC ANALISIS INTERNO'!H118))/($C$20*TAN(RADIANS('PROPIEDADES DE LOS SUELOS'!$C$26))*$C$21*'PROPIEDADES DE LOS SUELOS'!$C$24*G44*$C$25*$C$26),"") ->  | K44: 76 | L44: ='MC ANALISIS INTERNO'!L118 ->  | M44: =IF(K44<='MC ANALISIS INTERNO'!$F$100,((1.5*'MC ANALISIS INTERNO'!L118))/($C$20*TAN(RADIANS('PROPIEDADES DE LOS SUELOS'!$C$26))*$C$21*'PROPIEDADES DE LOS SUELOS'!$C$24*L44*$C$25*$C$26),"") -> 
A45: 17 | B45: ='MC ANALISIS INTERNO'!B119 ->  | C45: =IF(A45<='MC ANALISIS INTERNO'!$F$100,((1.5*'MC ANALISIS INTERNO'!D119))/($C$20*TAN(RADIANS('PROPIEDADES DE LOS SUELOS'!$C$26))*$C$21*'PROPIEDADES DE LOS SUELOS'!$C$24*B45*$C$25*$C$26),"") ->  | F45: 47 | G45: ='MC ANALISIS INTERNO'!G119 ->  | H45: =IF(F45<='MC ANALISIS INTERNO'!$F$100,((1.5*'MC ANALISIS INTERNO'!H119))/($C$20*TAN(RADIANS('PROPIEDADES DE LOS SUELOS'!$C$26))*$C$21*'PROPIEDADES DE LOS SUELOS'!$C$24*G45*$C$25*$C$26),"") ->  | K45: 77 | L45: ='MC ANALISIS INTERNO'!L119 ->  | M45: =IF(K45<='MC ANALISIS INTERNO'!$F$100,((1.5*'MC ANALISIS INTERNO'!L119))/($C$20*TAN(RADIANS('PROPIEDADES DE LOS SUELOS'!$C$26))*$C$21*'PROPIEDADES DE LOS SUELOS'!$C$24*L45*$C$25*$C$26),"") -> 
A46: 18 | B46: ='MC ANALISIS INTERNO'!B120 ->  | C46: =IF(A46<='MC ANALISIS INTERNO'!$F$100,((1.5*'MC ANALISIS INTERNO'!D120))/($C$20*TAN(RADIANS('PROPIEDADES DE LOS SUELOS'!$C$26))*$C$21*'PROPIEDADES DE LOS SUELOS'!$C$24*B46*$C$25*$C$26),"") ->  | F46: 48 | G46: ='MC ANALISIS INTERNO'!G120 ->  | H46: =IF(F46<='MC ANALISIS INTERNO'!$F$100,((1.5*'MC ANALISIS INTERNO'!H120))/($C$20*TAN(RADIANS('PROPIEDADES DE LOS SUELOS'!$C$26))*$C$21*'PROPIEDADES DE LOS SUELOS'!$C$24*G46*$C$25*$C$26),"") ->  | K46: 78 | L46: ='MC ANALISIS INTERNO'!L120 ->  | M46: =IF(K46<='MC ANALISIS INTERNO'!$F$100,((1.5*'MC ANALISIS INTERNO'!L120))/($C$20*TAN(RADIANS('PROPIEDADES DE LOS SUELOS'!$C$26))*$C$21*'PROPIEDADES DE LOS SUELOS'!$C$24*L46*$C$25*$C$26),"") -> 
A47: 19 | B47: ='MC ANALISIS INTERNO'!B121 ->  | C47: =IF(A47<='MC ANALISIS INTERNO'!$F$100,((1.5*'MC ANALISIS INTERNO'!D121))/($C$20*TAN(RADIANS('PROPIEDADES DE LOS SUELOS'!$C$26))*$C$21*'PROPIEDADES DE LOS SUELOS'!$C$24*B47*$C$25*$C$26),"") ->  | F47: 49 | G47: ='MC ANALISIS INTERNO'!G121 ->  | H47: =IF(F47<='MC ANALISIS INTERNO'!$F$100,((1.5*'MC ANALISIS INTERNO'!H121))/($C$20*TAN(RADIANS('PROPIEDADES DE LOS SUELOS'!$C$26))*$C$21*'PROPIEDADES DE LOS SUELOS'!$C$24*G47*$C$25*$C$26),"") ->  | K47: 79 | L47: ='MC ANALISIS INTERNO'!L121 ->  | M47: =IF(K47<='MC ANALISIS INTERNO'!$F$100,((1.5*'MC ANALISIS INTERNO'!L121))/($C$20*TAN(RADIANS('PROPIEDADES DE LOS SUELOS'!$C$26))*$C$21*'PROPIEDADES DE LOS SUELOS'!$C$24*L47*$C$25*$C$26),"") -> 
A48: 20 | B48: ='MC ANALISIS INTERNO'!B122 ->  | C48: =IF(A48<='MC ANALISIS INTERNO'!$F$100,((1.5*'MC ANALISIS INTERNO'!D122))/($C$20*TAN(RADIANS('PROPIEDADES DE LOS SUELOS'!$C$26))*$C$21*'PROPIEDADES DE LOS SUELOS'!$C$24*B48*$C$25*$C$26),"") ->  | F48: 50 | G48: ='MC ANALISIS INTERNO'!G122 ->  | H48: =IF(F48<='MC ANALISIS INTERNO'!$F$100,((1.5*'MC ANALISIS INTERNO'!H122))/($C$20*TAN(RADIANS('PROPIEDADES DE LOS SUELOS'!$C$26))*$C$21*'PROPIEDADES DE LOS SUELOS'!$C$24*G48*$C$25*$C$26),"") ->  | K48: 80 | L48: ='MC ANALISIS INTERNO'!L122 ->  | M48: =IF(K48<='MC ANALISIS INTERNO'!$F$100,((1.5*'MC ANALISIS INTERNO'!L122))/($C$20*TAN(RADIANS('PROPIEDADES DE LOS SUELOS'!$C$26))*$C$21*'PROPIEDADES DE LOS SUELOS'!$C$24*L48*$C$25*$C$26),"") -> 
A49: 21 | B49: ='MC ANALISIS INTERNO'!B123 ->  | C49: =IF(A49<='MC ANALISIS INTERNO'!$F$100,((1.5*'MC ANALISIS INTERNO'!D123))/($C$20*TAN(RADIANS('PROPIEDADES DE LOS SUELOS'!$C$26))*$C$21*'PROPIEDADES DE LOS SUELOS'!$C$24*B49*$C$25*$C$26),"") ->  | F49: 51 | G49: ='MC ANALISIS INTERNO'!G123 ->  | H49: =IF(F49<='MC ANALISIS INTERNO'!$F$100,((1.5*'MC ANALISIS INTERNO'!H123))/($C$20*TAN(RADIANS('PROPIEDADES DE LOS SUELOS'!$C$26))*$C$21*'PROPIEDADES DE LOS SUELOS'!$C$24*G49*$C$25*$C$26),"") ->  | K49: 81 | L49: ='MC ANALISIS INTERNO'!L123 ->  | M49: =IF(K49<='MC ANALISIS INTERNO'!$F$100,((1.5*'MC ANALISIS INTERNO'!L123))/($C$20*TAN(RADIANS('PROPIEDADES DE LOS SUELOS'!$C$26))*$C$21*'PROPIEDADES DE LOS SUELOS'!$C$24*L49*$C$25*$C$26),"") -> 
A50: 22 | B50: ='MC ANALISIS INTERNO'!B124 ->  | C50: =IF(A50<='MC ANALISIS INTERNO'!$F$100,((1.5*'MC ANALISIS INTERNO'!D124))/($C$20*TAN(RADIANS('PROPIEDADES DE LOS SUELOS'!$C$26))*$C$21*'PROPIEDADES DE LOS SUELOS'!$C$24*B50*$C$25*$C$26),"") ->  | F50: 52 | G50: ='MC ANALISIS INTERNO'!G124 ->  | H50: =IF(F50<='MC ANALISIS INTERNO'!$F$100,((1.5*'MC ANALISIS INTERNO'!H124))/($C$20*TAN(RADIANS('PROPIEDADES DE LOS SUELOS'!$C$26))*$C$21*'PROPIEDADES DE LOS SUELOS'!$C$24*G50*$C$25*$C$26),"") ->  | K50: 82 | L50: ='MC ANALISIS INTERNO'!L124 ->  | M50: =IF(K50<='MC ANALISIS INTERNO'!$F$100,((1.5*'MC ANALISIS INTERNO'!L124))/($C$20*TAN(RADIANS('PROPIEDADES DE LOS SUELOS'!$C$26))*$C$21*'PROPIEDADES DE LOS SUELOS'!$C$24*L50*$C$25*$C$26),"") -> 
A51: 23 | B51: ='MC ANALISIS INTERNO'!B125 ->  | C51: =IF(A51<='MC ANALISIS INTERNO'!$F$100,((1.5*'MC ANALISIS INTERNO'!D125))/($C$20*TAN(RADIANS('PROPIEDADES DE LOS SUELOS'!$C$26))*$C$21*'PROPIEDADES DE LOS SUELOS'!$C$24*B51*$C$25*$C$26),"") ->  | F51: 53 | G51: ='MC ANALISIS INTERNO'!G125 ->  | H51: =IF(F51<='MC ANALISIS INTERNO'!$F$100,((1.5*'MC ANALISIS INTERNO'!H125))/($C$20*TAN(RADIANS('PROPIEDADES DE LOS SUELOS'!$C$26))*$C$21*'PROPIEDADES DE LOS SUELOS'!$C$24*G51*$C$25*$C$26),"") ->  | K51: 83 | L51: ='MC ANALISIS INTERNO'!L125 ->  | M51: =IF(K51<='MC ANALISIS INTERNO'!$F$100,((1.5*'MC ANALISIS INTERNO'!L125))/($C$20*TAN(RADIANS('PROPIEDADES DE LOS SUELOS'!$C$26))*$C$21*'PROPIEDADES DE LOS SUELOS'!$C$24*L51*$C$25*$C$26),"") -> 
A52: 24 | B52: ='MC ANALISIS INTERNO'!B126 ->  | C52: =IF(A52<='MC ANALISIS INTERNO'!$F$100,((1.5*'MC ANALISIS INTERNO'!D126))/($C$20*TAN(RADIANS('PROPIEDADES DE LOS SUELOS'!$C$26))*$C$21*'PROPIEDADES DE LOS SUELOS'!$C$24*B52*$C$25*$C$26),"") ->  | F52: 54 | G52: ='MC ANALISIS INTERNO'!G126 ->  | H52: =IF(F52<='MC ANALISIS INTERNO'!$F$100,((1.5*'MC ANALISIS INTERNO'!H126))/($C$20*TAN(RADIANS('PROPIEDADES DE LOS SUELOS'!$C$26))*$C$21*'PROPIEDADES DE LOS SUELOS'!$C$24*G52*$C$25*$C$26),"") ->  | K52: 84 | L52: ='MC ANALISIS INTERNO'!L126 ->  | M52: =IF(K52<='MC ANALISIS INTERNO'!$F$100,((1.5*'MC ANALISIS INTERNO'!L126))/($C$20*TAN(RADIANS('PROPIEDADES DE LOS SUELOS'!$C$26))*$C$21*'PROPIEDADES DE LOS SUELOS'!$C$24*L52*$C$25*$C$26),"") -> 
A53: 25 | B53: ='MC ANALISIS INTERNO'!B127 ->  | C53: =IF(A53<='MC ANALISIS INTERNO'!$F$100,((1.5*'MC ANALISIS INTERNO'!D127))/($C$20*TAN(RADIANS('PROPIEDADES DE LOS SUELOS'!$C$26))*$C$21*'PROPIEDADES DE LOS SUELOS'!$C$24*B53*$C$25*$C$26),"") ->  | F53: 55 | G53: ='MC ANALISIS INTERNO'!G127 ->  | H53: =IF(F53<='MC ANALISIS INTERNO'!$F$100,((1.5*'MC ANALISIS INTERNO'!H127))/($C$20*TAN(RADIANS('PROPIEDADES DE LOS SUELOS'!$C$26))*$C$21*'PROPIEDADES DE LOS SUELOS'!$C$24*G53*$C$25*$C$26),"") ->  | K53: 85 | L53: ='MC ANALISIS INTERNO'!L127 ->  | M53: =IF(K53<='MC ANALISIS INTERNO'!$F$100,((1.5*'MC ANALISIS INTERNO'!L127))/($C$20*TAN(RADIANS('PROPIEDADES DE LOS SUELOS'!$C$26))*$C$21*'PROPIEDADES DE LOS SUELOS'!$C$24*L53*$C$25*$C$26),"") -> 
A54: 26 | B54: ='MC ANALISIS INTERNO'!B128 ->  | C54: =IF(A54<='MC ANALISIS INTERNO'!$F$100,((1.5*'MC ANALISIS INTERNO'!D128))/($C$20*TAN(RADIANS('PROPIEDADES DE LOS SUELOS'!$C$26))*$C$21*'PROPIEDADES DE LOS SUELOS'!$C$24*B54*$C$25*$C$26),"") ->  | F54: 56 | G54: ='MC ANALISIS INTERNO'!G128 ->  | H54: =IF(F54<='MC ANALISIS INTERNO'!$F$100,((1.5*'MC ANALISIS INTERNO'!H128))/($C$20*TAN(RADIANS('PROPIEDADES DE LOS SUELOS'!$C$26))*$C$21*'PROPIEDADES DE LOS SUELOS'!$C$24*G54*$C$25*$C$26),"") ->  | K54: 86 | L54: ='MC ANALISIS INTERNO'!L128 ->  | M54: =IF(K54<='MC ANALISIS INTERNO'!$F$100,((1.5*'MC ANALISIS INTERNO'!L128))/($C$20*TAN(RADIANS('PROPIEDADES DE LOS SUELOS'!$C$26))*$C$21*'PROPIEDADES DE LOS SUELOS'!$C$24*L54*$C$25*$C$26),"") -> 
A55: 27 | B55: ='MC ANALISIS INTERNO'!B129 ->  | C55: =IF(A55<='MC ANALISIS INTERNO'!$F$100,((1.5*'MC ANALISIS INTERNO'!D129))/($C$20*TAN(RADIANS('PROPIEDADES DE LOS SUELOS'!$C$26))*$C$21*'PROPIEDADES DE LOS SUELOS'!$C$24*B55*$C$25*$C$26),"") ->  | F55: 57 | G55: ='MC ANALISIS INTERNO'!G129 ->  | H55: =IF(F55<='MC ANALISIS INTERNO'!$F$100,((1.5*'MC ANALISIS INTERNO'!H129))/($C$20*TAN(RADIANS('PROPIEDADES DE LOS SUELOS'!$C$26))*$C$21*'PROPIEDADES DE LOS SUELOS'!$C$24*G55*$C$25*$C$26),"") ->  | K55: 87 | L55: ='MC ANALISIS INTERNO'!L129 ->  | M55: =IF(K55<='MC ANALISIS INTERNO'!$F$100,((1.5*'MC ANALISIS INTERNO'!L129))/($C$20*TAN(RADIANS('PROPIEDADES DE LOS SUELOS'!$C$26))*$C$21*'PROPIEDADES DE LOS SUELOS'!$C$24*L55*$C$25*$C$26),"") -> 
A56: 28 | B56: ='MC ANALISIS INTERNO'!B130 ->  | C56: =IF(A56<='MC ANALISIS INTERNO'!$F$100,((1.5*'MC ANALISIS INTERNO'!D130))/($C$20*TAN(RADIANS('PROPIEDADES DE LOS SUELOS'!$C$26))*$C$21*'PROPIEDADES DE LOS SUELOS'!$C$24*B56*$C$25*$C$26),"") ->  | F56: 58 | G56: ='MC ANALISIS INTERNO'!G130 ->  | H56: =IF(F56<='MC ANALISIS INTERNO'!$F$100,((1.5*'MC ANALISIS INTERNO'!H130))/($C$20*TAN(RADIANS('PROPIEDADES DE LOS SUELOS'!$C$26))*$C$21*'PROPIEDADES DE LOS SUELOS'!$C$24*G56*$C$25*$C$26),"") ->  | K56: 88 | L56: ='MC ANALISIS INTERNO'!L130 ->  | M56: =IF(K56<='MC ANALISIS INTERNO'!$F$100,((1.5*'MC ANALISIS INTERNO'!L130))/($C$20*TAN(RADIANS('PROPIEDADES DE LOS SUELOS'!$C$26))*$C$21*'PROPIEDADES DE LOS SUELOS'!$C$24*L56*$C$25*$C$26),"") -> 
A57: 29 | B57: ='MC ANALISIS INTERNO'!B131 ->  | C57: =IF(A57<='MC ANALISIS INTERNO'!$F$100,((1.5*'MC ANALISIS INTERNO'!D131))/($C$20*TAN(RADIANS('PROPIEDADES DE LOS SUELOS'!$C$26))*$C$21*'PROPIEDADES DE LOS SUELOS'!$C$24*B57*$C$25*$C$26),"") ->  | F57: 59 | G57: ='MC ANALISIS INTERNO'!G131 ->  | H57: =IF(F57<='MC ANALISIS INTERNO'!$F$100,((1.5*'MC ANALISIS INTERNO'!H131))/($C$20*TAN(RADIANS('PROPIEDADES DE LOS SUELOS'!$C$26))*$C$21*'PROPIEDADES DE LOS SUELOS'!$C$24*G57*$C$25*$C$26),"") ->  | K57: 89 | L57: ='MC ANALISIS INTERNO'!L131 ->  | M57: =IF(K57<='MC ANALISIS INTERNO'!$F$100,((1.5*'MC ANALISIS INTERNO'!L131))/($C$20*TAN(RADIANS('PROPIEDADES DE LOS SUELOS'!$C$26))*$C$21*'PROPIEDADES DE LOS SUELOS'!$C$24*L57*$C$25*$C$26),"") -> 
A58: 30 | B58: ='MC ANALISIS INTERNO'!B132 ->  | C58: =IF(A58<='MC ANALISIS INTERNO'!$F$100,((1.5*'MC ANALISIS INTERNO'!D132))/($C$20*TAN(RADIANS('PROPIEDADES DE LOS SUELOS'!$C$26))*$C$21*'PROPIEDADES DE LOS SUELOS'!$C$24*B58*$C$25*$C$26),"") ->  | F58: 60 | G58: ='MC ANALISIS INTERNO'!G132 ->  | H58: =IF(F58<='MC ANALISIS INTERNO'!$F$100,((1.5*'MC ANALISIS INTERNO'!H132))/($C$20*TAN(RADIANS('PROPIEDADES DE LOS SUELOS'!$C$26))*$C$21*'PROPIEDADES DE LOS SUELOS'!$C$24*G58*$C$25*$C$26),"") ->  | K58: 90 | L58: ='MC ANALISIS INTERNO'!L132 ->  | M58: =IF(K58<='MC ANALISIS INTERNO'!$F$100,((1.5*'MC ANALISIS INTERNO'!L132))/($C$20*TAN(RADIANS('PROPIEDADES DE LOS SUELOS'!$C$26))*$C$21*'PROPIEDADES DE LOS SUELOS'!$C$24*L58*$C$25*$C$26),"") -> 
A61: b) Longitud necesaria en la zona activa del suelo reforzado, para evitar la falla por elongación o ruptura.
A65: Capa No. | B65: Zi (m) | C65: La (m) | E65: Capa No. | F65: Zi (m) | G65: La (m) | I65: Capa No. | J65: Zi (m) | K65: La (m)
A66: 1 | B66: ='MC ANALISIS INTERNO'!B103 -> 0.5 | C66: =IF(A66<='MC ANALISIS INTERNO'!$F$100,('GEOMETRIA DEL MURO'!$F$10-B66)*TAN(RADIANS(45-('PROPIEDADES DE LOS SUELOS'!$C$26/2))),"") -> 1.864841369 | E66: 31 | F66: ='MC ANALISIS INTERNO'!G103 ->  | G66: =IF(E66<='MC ANALISIS INTERNO'!$F$100,('GEOMETRIA DEL MURO'!$F$10-F66)*TAN(RADIANS(45-('PROPIEDADES DE LOS SUELOS'!$C$26/2))),"") ->  | I66: 61 | J66: ='MC ANALISIS INTERNO'!L103 ->  | K66: =IF(I66<='MC ANALISIS INTERNO'!$F$100,('GEOMETRIA DEL MURO'!$F$10-J66)*TAN(RADIANS(45-('PROPIEDADES DE LOS SUELOS'!$C$26/2))),"") -> 
A67: 2 | B67: ='MC ANALISIS INTERNO'!B104 -> 1 | C67: =IF(A67<='MC ANALISIS INTERNO'!$F$100,('GEOMETRIA DEL MURO'!$F$10-B67)*TAN(RADIANS(45-('PROPIEDADES DE LOS SUELOS'!$C$26/2))),"") -> 1.576166235 | E67: 32 | F67: ='MC ANALISIS INTERNO'!G104 ->  | G67: =IF(E67<='MC ANALISIS INTERNO'!$F$100,('GEOMETRIA DEL MURO'!$F$10-F67)*TAN(RADIANS(45-('PROPIEDADES DE LOS SUELOS'!$C$26/2))),"") ->  | I67: 62 | J67: ='MC ANALISIS INTERNO'!L104 ->  | K67: =IF(I67<='MC ANALISIS INTERNO'!$F$100,('GEOMETRIA DEL MURO'!$F$10-J67)*TAN(RADIANS(45-('PROPIEDADES DE LOS SUELOS'!$C$26/2))),"") -> 
A68: 3 | B68: ='MC ANALISIS INTERNO'!B105 -> 1.5 | C68: =IF(A68<='MC ANALISIS INTERNO'!$F$100,('GEOMETRIA DEL MURO'!$F$10-B68)*TAN(RADIANS(45-('PROPIEDADES DE LOS SUELOS'!$C$26/2))),"") -> 1.2874911 | E68: 33 | F68: ='MC ANALISIS INTERNO'!G105 ->  | G68: =IF(E68<='MC ANALISIS INTERNO'!$F$100,('GEOMETRIA DEL MURO'!$F$10-F68)*TAN(RADIANS(45-('PROPIEDADES DE LOS SUELOS'!$C$26/2))),"") ->  | I68: 63 | J68: ='MC ANALISIS INTERNO'!L105 ->  | K68: =IF(I68<='MC ANALISIS INTERNO'!$F$100,('GEOMETRIA DEL MURO'!$F$10-J68)*TAN(RADIANS(45-('PROPIEDADES DE LOS SUELOS'!$C$26/2))),"") -> 
A69: 4 | B69: ='MC ANALISIS INTERNO'!B106 -> 2 | C69: =IF(A69<='MC ANALISIS INTERNO'!$F$100,('GEOMETRIA DEL MURO'!$F$10-B69)*TAN(RADIANS(45-('PROPIEDADES DE LOS SUELOS'!$C$26/2))),"") -> 0.9988159657 | E69: 34 | F69: ='MC ANALISIS INTERNO'!G106 ->  | G69: =IF(E69<='MC ANALISIS INTERNO'!$F$100,('GEOMETRIA DEL MURO'!$F$10-F69)*TAN(RADIANS(45-('PROPIEDADES DE LOS SUELOS'!$C$26/2))),"") ->  | I69: 64 | J69: ='MC ANALISIS INTERNO'!L106 ->  | K69: =IF(I69<='MC ANALISIS INTERNO'!$F$100,('GEOMETRIA DEL MURO'!$F$10-J69)*TAN(RADIANS(45-('PROPIEDADES DE LOS SUELOS'!$C$26/2))),"") -> 
A70: 5 | B70: ='MC ANALISIS INTERNO'!B107 -> 2.5 | C70: =IF(A70<='MC ANALISIS INTERNO'!$F$100,('GEOMETRIA DEL MURO'!$F$10-B70)*TAN(RADIANS(45-('PROPIEDADES DE LOS SUELOS'!$C$26/2))),"") -> 0.7101408311 | E70: 35 | F70: ='MC ANALISIS INTERNO'!G107 ->  | G70: =IF(E70<='MC ANALISIS INTERNO'!$F$100,('GEOMETRIA DEL MURO'!$F$10-F70)*TAN(RADIANS(45-('PROPIEDADES DE LOS SUELOS'!$C$26/2))),"") ->  | I70: 65 | J70: ='MC ANALISIS INTERNO'!L107 ->  | K70: =IF(I70<='MC ANALISIS INTERNO'!$F$100,('GEOMETRIA DEL MURO'!$F$10-J70)*TAN(RADIANS(45-('PROPIEDADES DE LOS SUELOS'!$C$26/2))),"") -> 
A71: 6 | B71: ='MC ANALISIS INTERNO'!B108 -> 3 | C71: =IF(A71<='MC ANALISIS INTERNO'!$F$100,('GEOMETRIA DEL MURO'!$F$10-B71)*TAN(RADIANS(45-('PROPIEDADES DE LOS SUELOS'!$C$26/2))),"") -> 0.4214656965 | E71: 36 | F71: ='MC ANALISIS INTERNO'!G108 ->  | G71: =IF(E71<='MC ANALISIS INTERNO'!$F$100,('GEOMETRIA DEL MURO'!$F$10-F71)*TAN(RADIANS(45-('PROPIEDADES DE LOS SUELOS'!$C$26/2))),"") ->  | I71: 66 | J71: ='MC ANALISIS INTERNO'!L108 ->  | K71: =IF(I71<='MC ANALISIS INTERNO'!$F$100,('GEOMETRIA DEL MURO'!$F$10-J71)*TAN(RADIANS(45-('PROPIEDADES DE LOS SUELOS'!$C$26/2))),"") -> 
A72: 7 | B72: ='MC ANALISIS INTERNO'!B109 -> 3.5 | C72: =IF(A72<='MC ANALISIS INTERNO'!$F$100,('GEOMETRIA DEL MURO'!$F$10-B72)*TAN(RADIANS(45-('PROPIEDADES DE LOS SUELOS'!$C$26/2))),"") -> 0.1327905619 | E72: 37 | F72: ='MC ANALISIS INTERNO'!G109 ->  | G72: =IF(E72<='MC ANALISIS INTERNO'!$F$100,('GEOMETRIA DEL MURO'!$F$10-F72)*TAN(RADIANS(45-('PROPIEDADES DE LOS SUELOS'!$C$26/2))),"") ->  | I72: 67 | J72: ='MC ANALISIS INTERNO'!L109 ->  | K72: =IF(I72<='MC ANALISIS INTERNO'!$F$100,('GEOMETRIA DEL MURO'!$F$10-J72)*TAN(RADIANS(45-('PROPIEDADES DE LOS SUELOS'!$C$26/2))),"") -> 
A73: 8 | B73: ='MC ANALISIS INTERNO'!B110 ->  | C73: =IF(A73<='MC ANALISIS INTERNO'!$F$100,('GEOMETRIA DEL MURO'!$F$10-B73)*TAN(RADIANS(45-('PROPIEDADES DE LOS SUELOS'!$C$26/2))),"") ->  | E73: 38 | F73: ='MC ANALISIS INTERNO'!G110 ->  | G73: =IF(E73<='MC ANALISIS INTERNO'!$F$100,('GEOMETRIA DEL MURO'!$F$10-F73)*TAN(RADIANS(45-('PROPIEDADES DE LOS SUELOS'!$C$26/2))),"") ->  | I73: 68 | J73: ='MC ANALISIS INTERNO'!L110 ->  | K73: =IF(I73<='MC ANALISIS INTERNO'!$F$100,('GEOMETRIA DEL MURO'!$F$10-J73)*TAN(RADIANS(45-('PROPIEDADES DE LOS SUELOS'!$C$26/2))),"") -> 
A74: 9 | B74: ='MC ANALISIS INTERNO'!B111 ->  | C74: =IF(A74<='MC ANALISIS INTERNO'!$F$100,('GEOMETRIA DEL MURO'!$F$10-B74)*TAN(RADIANS(45-('PROPIEDADES DE LOS SUELOS'!$C$26/2))),"") ->  | E74: 39 | F74: ='MC ANALISIS INTERNO'!G111 ->  | G74: =IF(E74<='MC ANALISIS INTERNO'!$F$100,('GEOMETRIA DEL MURO'!$F$10-F74)*TAN(RADIANS(45-('PROPIEDADES DE LOS SUELOS'!$C$26/2))),"") ->  | I74: 69 | J74: ='MC ANALISIS INTERNO'!L111 ->  | K74: =IF(I74<='MC ANALISIS INTERNO'!$F$100,('GEOMETRIA DEL MURO'!$F$10-J74)*TAN(RADIANS(45-('PROPIEDADES DE LOS SUELOS'!$C$26/2))),"") -> 
A75: 10 | B75: ='MC ANALISIS INTERNO'!B112 ->  | C75: =IF(A75<='MC ANALISIS INTERNO'!$F$100,('GEOMETRIA DEL MURO'!$F$10-B75)*TAN(RADIANS(45-('PROPIEDADES DE LOS SUELOS'!$C$26/2))),"") ->  | E75: 40 | F75: ='MC ANALISIS INTERNO'!G112 ->  | G75: =IF(E75<='MC ANALISIS INTERNO'!$F$100,('GEOMETRIA DEL MURO'!$F$10-F75)*TAN(RADIANS(45-('PROPIEDADES DE LOS SUELOS'!$C$26/2))),"") ->  | I75: 70 | J75: ='MC ANALISIS INTERNO'!L112 ->  | K75: =IF(I75<='MC ANALISIS INTERNO'!$F$100,('GEOMETRIA DEL MURO'!$F$10-J75)*TAN(RADIANS(45-('PROPIEDADES DE LOS SUELOS'!$C$26/2))),"") -> 
A76: 11 | B76: ='MC ANALISIS INTERNO'!B113 ->  | C76: =IF(A76<='MC ANALISIS INTERNO'!$F$100,('GEOMETRIA DEL MURO'!$F$10-B76)*TAN(RADIANS(45-('PROPIEDADES DE LOS SUELOS'!$C$26/2))),"") ->  | E76: 41 | F76: ='MC ANALISIS INTERNO'!G113 ->  | G76: =IF(E76<='MC ANALISIS INTERNO'!$F$100,('GEOMETRIA DEL MURO'!$F$10-F76)*TAN(RADIANS(45-('PROPIEDADES DE LOS SUELOS'!$C$26/2))),"") ->  | I76: 71 | J76: ='MC ANALISIS INTERNO'!L113 ->  | K76: =IF(I76<='MC ANALISIS INTERNO'!$F$100,('GEOMETRIA DEL MURO'!$F$10-J76)*TAN(RADIANS(45-('PROPIEDADES DE LOS SUELOS'!$C$26/2))),"") -> 
A77: 12 | B77: ='MC ANALISIS INTERNO'!B114 ->  | C77: =IF(A77<='MC ANALISIS INTERNO'!$F$100,('GEOMETRIA DEL MURO'!$F$10-B77)*TAN(RADIANS(45-('PROPIEDADES DE LOS SUELOS'!$C$26/2))),"") ->  | E77: 42 | F77: ='MC ANALISIS INTERNO'!G114 ->  | G77: =IF(E77<='MC ANALISIS INTERNO'!$F$100,('GEOMETRIA DEL MURO'!$F$10-F77)*TAN(RADIANS(45-('PROPIEDADES DE LOS SUELOS'!$C$26/2))),"") ->  | I77: 72 | J77: ='MC ANALISIS INTERNO'!L114 ->  | K77: =IF(I77<='MC ANALISIS INTERNO'!$F$100,('GEOMETRIA DEL MURO'!$F$10-J77)*TAN(RADIANS(45-('PROPIEDADES DE LOS SUELOS'!$C$26/2))),"") -> 
A78: 13 | B78: ='MC ANALISIS INTERNO'!B115 ->  | C78: =IF(A78<='MC ANALISIS INTERNO'!$F$100,('GEOMETRIA DEL MURO'!$F$10-B78)*TAN(RADIANS(45-('PROPIEDADES DE LOS SUELOS'!$C$26/2))),"") ->  | E78: 43 | F78: ='MC ANALISIS INTERNO'!G115 ->  | G78: =IF(E78<='MC ANALISIS INTERNO'!$F$100,('GEOMETRIA DEL MURO'!$F$10-F78)*TAN(RADIANS(45-('PROPIEDADES DE LOS SUELOS'!$C$26/2))),"") ->  | I78: 73 | J78: ='MC ANALISIS INTERNO'!L115 ->  | K78: =IF(I78<='MC ANALISIS INTERNO'!$F$100,('GEOMETRIA DEL MURO'!$F$10-J78)*TAN(RADIANS(45-('PROPIEDADES DE LOS SUELOS'!$C$26/2))),"") -> 
A79: 14 | B79: ='MC ANALISIS INTERNO'!B116 ->  | C79: =IF(A79<='MC ANALISIS INTERNO'!$F$100,('GEOMETRIA DEL MURO'!$F$10-B79)*TAN(RADIANS(45-('PROPIEDADES DE LOS SUELOS'!$C$26/2))),"") ->  | E79: 44 | F79: ='MC ANALISIS INTERNO'!G116 ->  | G79: =IF(E79<='MC ANALISIS INTERNO'!$F$100,('GEOMETRIA DEL MURO'!$F$10-F79)*TAN(RADIANS(45-('PROPIEDADES DE LOS SUELOS'!$C$26/2))),"") ->  | I79: 74 | J79: ='MC ANALISIS INTERNO'!L116 ->  | K79: =IF(I79<='MC ANALISIS INTERNO'!$F$100,('GEOMETRIA DEL MURO'!$F$10-J79)*TAN(RADIANS(45-('PROPIEDADES DE LOS SUELOS'!$C$26/2))),"") -> 
A80: 15 | B80: ='MC ANALISIS INTERNO'!B117 ->  | C80: =IF(A80<='MC ANALISIS INTERNO'!$F$100,('GEOMETRIA DEL MURO'!$F$10-B80)*TAN(RADIANS(45-('PROPIEDADES DE LOS SUELOS'!$C$26/2))),"") ->  | E80: 45 | F80: ='MC ANALISIS INTERNO'!G117 ->  | G80: =IF(E80<='MC ANALISIS INTERNO'!$F$100,('GEOMETRIA DEL MURO'!$F$10-F80)*TAN(RADIANS(45-('PROPIEDADES DE LOS SUELOS'!$C$26/2))),"") ->  | I80: 75 | J80: ='MC ANALISIS INTERNO'!L117 ->  | K80: =IF(I80<='MC ANALISIS INTERNO'!$F$100,('GEOMETRIA DEL MURO'!$F$10-J80)*TAN(RADIANS(45-('PROPIEDADES DE LOS SUELOS'!$C$26/2))),"") -> 
A81: 16 | B81: ='MC ANALISIS INTERNO'!B118 ->  | C81: =IF(A81<='MC ANALISIS INTERNO'!$F$100,('GEOMETRIA DEL MURO'!$F$10-B81)*TAN(RADIANS(45-('PROPIEDADES DE LOS SUELOS'!$C$26/2))),"") ->  | E81: 46 | F81: ='MC ANALISIS INTERNO'!G118 ->  | G81: =IF(E81<='MC ANALISIS INTERNO'!$F$100,('GEOMETRIA DEL MURO'!$F$10-F81)*TAN(RADIANS(45-('PROPIEDADES DE LOS SUELOS'!$C$26/2))),"") ->  | I81: 76 | J81: ='MC ANALISIS INTERNO'!L118 ->  | K81: =IF(I81<='MC ANALISIS INTERNO'!$F$100,('GEOMETRIA DEL MURO'!$F$10-J81)*TAN(RADIANS(45-('PROPIEDADES DE LOS SUELOS'!$C$26/2))),"") -> 
A82: 17 | B82: ='MC ANALISIS INTERNO'!B119 ->  | C82: =IF(A82<='MC ANALISIS INTERNO'!$F$100,('GEOMETRIA DEL MURO'!$F$10-B82)*TAN(RADIANS(45-('PROPIEDADES DE LOS SUELOS'!$C$26/2))),"") ->  | E82: 47 | F82: ='MC ANALISIS INTERNO'!G119 ->  | G82: =IF(E82<='MC ANALISIS INTERNO'!$F$100,('GEOMETRIA DEL MURO'!$F$10-F82)*TAN(RADIANS(45-('PROPIEDADES DE LOS SUELOS'!$C$26/2))),"") ->  | I82: 77 | J82: ='MC ANALISIS INTERNO'!L119 ->  | K82: =IF(I82<='MC ANALISIS INTERNO'!$F$100,('GEOMETRIA DEL MURO'!$F$10-J82)*TAN(RADIANS(45-('PROPIEDADES DE LOS SUELOS'!$C$26/2))),"") -> 
A83: 18 | B83: ='MC ANALISIS INTERNO'!B120 ->  | C83: =IF(A83<='MC ANALISIS INTERNO'!$F$100,('GEOMETRIA DEL MURO'!$F$10-B83)*TAN(RADIANS(45-('PROPIEDADES DE LOS SUELOS'!$C$26/2))),"") ->  | E83: 48 | F83: ='MC ANALISIS INTERNO'!G120 ->  | G83: =IF(E83<='MC ANALISIS INTERNO'!$F$100,('GEOMETRIA DEL MURO'!$F$10-F83)*TAN(RADIANS(45-('PROPIEDADES DE LOS SUELOS'!$C$26/2))),"") ->  | I83: 78 | J83: ='MC ANALISIS INTERNO'!L120 ->  | K83: =IF(I83<='MC ANALISIS INTERNO'!$F$100,('GEOMETRIA DEL MURO'!$F$10-J83)*TAN(RADIANS(45-('PROPIEDADES DE LOS SUELOS'!$C$26/2))),"") -> 
A84: 19 | B84: ='MC ANALISIS INTERNO'!B121 ->  | C84: =IF(A84<='MC ANALISIS INTERNO'!$F$100,('GEOMETRIA DEL MURO'!$F$10-B84)*TAN(RADIANS(45-('PROPIEDADES DE LOS SUELOS'!$C$26/2))),"") ->  | E84: 49 | F84: ='MC ANALISIS INTERNO'!G121 ->  | G84: =IF(E84<='MC ANALISIS INTERNO'!$F$100,('GEOMETRIA DEL MURO'!$F$10-F84)*TAN(RADIANS(45-('PROPIEDADES DE LOS SUELOS'!$C$26/2))),"") ->  | I84: 79 | J84: ='MC ANALISIS INTERNO'!L121 ->  | K84: =IF(I84<='MC ANALISIS INTERNO'!$F$100,('GEOMETRIA DEL MURO'!$F$10-J84)*TAN(RADIANS(45-('PROPIEDADES DE LOS SUELOS'!$C$26/2))),"") -> 
A85: 20 | B85: ='MC ANALISIS INTERNO'!B122 ->  | C85: =IF(A85<='MC ANALISIS INTERNO'!$F$100,('GEOMETRIA DEL MURO'!$F$10-B85)*TAN(RADIANS(45-('PROPIEDADES DE LOS SUELOS'!$C$26/2))),"") ->  | E85: 50 | F85: ='MC ANALISIS INTERNO'!G122 ->  | G85: =IF(E85<='MC ANALISIS INTERNO'!$F$100,('GEOMETRIA DEL MURO'!$F$10-F85)*TAN(RADIANS(45-('PROPIEDADES DE LOS SUELOS'!$C$26/2))),"") ->  | I85: 80 | J85: ='MC ANALISIS INTERNO'!L122 ->  | K85: =IF(I85<='MC ANALISIS INTERNO'!$F$100,('GEOMETRIA DEL MURO'!$F$10-J85)*TAN(RADIANS(45-('PROPIEDADES DE LOS SUELOS'!$C$26/2))),"") -> 
A86: 21 | B86: ='MC ANALISIS INTERNO'!B123 ->  | C86: =IF(A86<='MC ANALISIS INTERNO'!$F$100,('GEOMETRIA DEL MURO'!$F$10-B86)*TAN(RADIANS(45-('PROPIEDADES DE LOS SUELOS'!$C$26/2))),"") ->  | E86: 51 | F86: ='MC ANALISIS INTERNO'!G123 ->  | G86: =IF(E86<='MC ANALISIS INTERNO'!$F$100,('GEOMETRIA DEL MURO'!$F$10-F86)*TAN(RADIANS(45-('PROPIEDADES DE LOS SUELOS'!$C$26/2))),"") ->  | I86: 81 | J86: ='MC ANALISIS INTERNO'!L123 ->  | K86: =IF(I86<='MC ANALISIS INTERNO'!$F$100,('GEOMETRIA DEL MURO'!$F$10-J86)*TAN(RADIANS(45-('PROPIEDADES DE LOS SUELOS'!$C$26/2))),"") -> 
A87: 22 | B87: ='MC ANALISIS INTERNO'!B124 ->  | C87: =IF(A87<='MC ANALISIS INTERNO'!$F$100,('GEOMETRIA DEL MURO'!$F$10-B87)*TAN(RADIANS(45-('PROPIEDADES DE LOS SUELOS'!$C$26/2))),"") ->  | E87: 52 | F87: ='MC ANALISIS INTERNO'!G124 ->  | G87: =IF(E87<='MC ANALISIS INTERNO'!$F$100,('GEOMETRIA DEL MURO'!$F$10-F87)*TAN(RADIANS(45-('PROPIEDADES DE LOS SUELOS'!$C$26/2))),"") ->  | I87: 82 | J87: ='MC ANALISIS INTERNO'!L124 ->  | K87: =IF(I87<='MC ANALISIS INTERNO'!$F$100,('GEOMETRIA DEL MURO'!$F$10-J87)*TAN(RADIANS(45-('PROPIEDADES DE LOS SUELOS'!$C$26/2))),"") -> 
A88: 23 | B88: ='MC ANALISIS INTERNO'!B125 ->  | C88: =IF(A88<='MC ANALISIS INTERNO'!$F$100,('GEOMETRIA DEL MURO'!$F$10-B88)*TAN(RADIANS(45-('PROPIEDADES DE LOS SUELOS'!$C$26/2))),"") ->  | E88: 53 | F88: ='MC ANALISIS INTERNO'!G125 ->  | G88: =IF(E88<='MC ANALISIS INTERNO'!$F$100,('GEOMETRIA DEL MURO'!$F$10-F88)*TAN(RADIANS(45-('PROPIEDADES DE LOS SUELOS'!$C$26/2))),"") ->  | I88: 83 | J88: ='MC ANALISIS INTERNO'!L125 ->  | K88: =IF(I88<='MC ANALISIS INTERNO'!$F$100,('GEOMETRIA DEL MURO'!$F$10-J88)*TAN(RADIANS(45-('PROPIEDADES DE LOS SUELOS'!$C$26/2))),"") -> 
A89: 24 | B89: ='MC ANALISIS INTERNO'!B126 ->  | C89: =IF(A89<='MC ANALISIS INTERNO'!$F$100,('GEOMETRIA DEL MURO'!$F$10-B89)*TAN(RADIANS(45-('PROPIEDADES DE LOS SUELOS'!$C$26/2))),"") ->  | E89: 54 | F89: ='MC ANALISIS INTERNO'!G126 ->  | G89: =IF(E89<='MC ANALISIS INTERNO'!$F$100,('GEOMETRIA DEL MURO'!$F$10-F89)*TAN(RADIANS(45-('PROPIEDADES DE LOS SUELOS'!$C$26/2))),"") ->  | I89: 84 | J89: ='MC ANALISIS INTERNO'!L126 ->  | K89: =IF(I89<='MC ANALISIS INTERNO'!$F$100,('GEOMETRIA DEL MURO'!$F$10-J89)*TAN(RADIANS(45-('PROPIEDADES DE LOS SUELOS'!$C$26/2))),"") -> 
A90: 25 | B90: ='MC ANALISIS INTERNO'!B127 ->  | C90: =IF(A90<='MC ANALISIS INTERNO'!$F$100,('GEOMETRIA DEL MURO'!$F$10-B90)*TAN(RADIANS(45-('PROPIEDADES DE LOS SUELOS'!$C$26/2))),"") ->  | E90: 55 | F90: ='MC ANALISIS INTERNO'!G127 ->  | G90: =IF(E90<='MC ANALISIS INTERNO'!$F$100,('GEOMETRIA DEL MURO'!$F$10-F90)*TAN(RADIANS(45-('PROPIEDADES DE LOS SUELOS'!$C$26/2))),"") ->  | I90: 85 | J90: ='MC ANALISIS INTERNO'!L127 ->  | K90: =IF(I90<='MC ANALISIS INTERNO'!$F$100,('GEOMETRIA DEL MURO'!$F$10-J90)*TAN(RADIANS(45-('PROPIEDADES DE LOS SUELOS'!$C$26/2))),"") -> 
A91: 26 | B91: ='MC ANALISIS INTERNO'!B128 ->  | C91: =IF(A91<='MC ANALISIS INTERNO'!$F$100,('GEOMETRIA DEL MURO'!$F$10-B91)*TAN(RADIANS(45-('PROPIEDADES DE LOS SUELOS'!$C$26/2))),"") ->  | E91: 56 | F91: ='MC ANALISIS INTERNO'!G128 ->  | G91: =IF(E91<='MC ANALISIS INTERNO'!$F$100,('GEOMETRIA DEL MURO'!$F$10-F91)*TAN(RADIANS(45-('PROPIEDADES DE LOS SUELOS'!$C$26/2))),"") ->  | I91: 86 | J91: ='MC ANALISIS INTERNO'!L128 ->  | K91: =IF(I91<='MC ANALISIS INTERNO'!$F$100,('GEOMETRIA DEL MURO'!$F$10-J91)*TAN(RADIANS(45-('PROPIEDADES DE LOS SUELOS'!$C$26/2))),"") -> 
A92: 27 | B92: ='MC ANALISIS INTERNO'!B129 ->  | C92: =IF(A92<='MC ANALISIS INTERNO'!$F$100,('GEOMETRIA DEL MURO'!$F$10-B92)*TAN(RADIANS(45-('PROPIEDADES DE LOS SUELOS'!$C$26/2))),"") ->  | E92: 57 | F92: ='MC ANALISIS INTERNO'!G129 ->  | G92: =IF(E92<='MC ANALISIS INTERNO'!$F$100,('GEOMETRIA DEL MURO'!$F$10-F92)*TAN(RADIANS(45-('PROPIEDADES DE LOS SUELOS'!$C$26/2))),"") ->  | I92: 87 | J92: ='MC ANALISIS INTERNO'!L129 ->  | K92: =IF(I92<='MC ANALISIS INTERNO'!$F$100,('GEOMETRIA DEL MURO'!$F$10-J92)*TAN(RADIANS(45-('PROPIEDADES DE LOS SUELOS'!$C$26/2))),"") -> 
A93: 28 | B93: ='MC ANALISIS INTERNO'!B130 ->  | C93: =IF(A93<='MC ANALISIS INTERNO'!$F$100,('GEOMETRIA DEL MURO'!$F$10-B93)*TAN(RADIANS(45-('PROPIEDADES DE LOS SUELOS'!$C$26/2))),"") ->  | E93: 58 | F93: ='MC ANALISIS INTERNO'!G130 ->  | G93: =IF(E93<='MC ANALISIS INTERNO'!$F$100,('GEOMETRIA DEL MURO'!$F$10-F93)*TAN(RADIANS(45-('PROPIEDADES DE LOS SUELOS'!$C$26/2))),"") ->  | I93: 88 | J93: ='MC ANALISIS INTERNO'!L130 ->  | K93: =IF(I93<='MC ANALISIS INTERNO'!$F$100,('GEOMETRIA DEL MURO'!$F$10-J93)*TAN(RADIANS(45-('PROPIEDADES DE LOS SUELOS'!$C$26/2))),"") -> 
A94: 29 | B94: ='MC ANALISIS INTERNO'!B131 ->  | C94: =IF(A94<='MC ANALISIS INTERNO'!$F$100,('GEOMETRIA DEL MURO'!$F$10-B94)*TAN(RADIANS(45-('PROPIEDADES DE LOS SUELOS'!$C$26/2))),"") ->  | E94: 59 | F94: ='MC ANALISIS INTERNO'!G131 ->  | G94: =IF(E94<='MC ANALISIS INTERNO'!$F$100,('GEOMETRIA DEL MURO'!$F$10-F94)*TAN(RADIANS(45-('PROPIEDADES DE LOS SUELOS'!$C$26/2))),"") ->  | I94: 89 | J94: ='MC ANALISIS INTERNO'!L131 ->  | K94: =IF(I94<='MC ANALISIS INTERNO'!$F$100,('GEOMETRIA DEL MURO'!$F$10-J94)*TAN(RADIANS(45-('PROPIEDADES DE LOS SUELOS'!$C$26/2))),"") -> 
A95: 30 | B95: ='MC ANALISIS INTERNO'!B132 ->  | C95: =IF(A95<='MC ANALISIS INTERNO'!$F$100,('GEOMETRIA DEL MURO'!$F$10-B95)*TAN(RADIANS(45-('PROPIEDADES DE LOS SUELOS'!$C$26/2))),"") ->  | E95: 60 | F95: ='MC ANALISIS INTERNO'!G132 ->  | G95: =IF(E95<='MC ANALISIS INTERNO'!$F$100,('GEOMETRIA DEL MURO'!$F$10-F95)*TAN(RADIANS(45-('PROPIEDADES DE LOS SUELOS'!$C$26/2))),"") ->  | I95: 90 | J95: ='MC ANALISIS INTERNO'!L132 ->  | K95: =IF(I95<='MC ANALISIS INTERNO'!$F$100,('GEOMETRIA DEL MURO'!$F$10-J95)*TAN(RADIANS(45-('PROPIEDADES DE LOS SUELOS'!$C$26/2))),"") -> 
A98: c) Longitud requerida por cada capa de refuerzo para su funcionamiento adecuado.
A100: Capa No. | B100: Zi (m) | C100: LT (m) | D100: ='MC ANALISIS INTERNO'!$D$102 -> Tmax (KN/m) | F100: Capa No. | G100: Zi (m) | H100: LT (m) | I100: ='MC ANALISIS INTERNO'!$D$102 -> Tmax (KN/m) | K100: Capa No. | L100: Zi (m) | M100: LT (m) | N100: ='MC ANALISIS INTERNO'!$D$102 -> Tmax (KN/m)
A101: 1 | B101: ='MC ANALISIS INTERNO'!B103 -> 0.5 | C101: =IF(A101<='MC ANALISIS INTERNO'!$F$100,D29+C66,"") -> 3.413918796 | D101: ='MC ANALISIS INTERNO'!D103 -> 5.666666667 | F101: 31 | G101: ='MC ANALISIS INTERNO'!G103 ->  | H101: =IF(F101<='MC ANALISIS INTERNO'!$F$100,I29+G66,"") ->  | I101: ='MC ANALISIS INTERNO'!I103 ->  | K101: 61 | L101: ='MC ANALISIS INTERNO'!L103 ->  | M101: =IF(K101<='MC ANALISIS INTERNO'!$F$100,N29+K66,"") ->  | N101: ='MC ANALISIS INTERNO'!N103 -> 
A102: 2 | B102: ='MC ANALISIS INTERNO'!B104 -> 1 | C102: =IF(A102<='MC ANALISIS INTERNO'!$F$100,D30+C67,"") -> 2.576166235 | D102: ='MC ANALISIS INTERNO'!D104 -> 7.166666667 | F102: 32 | G102: ='MC ANALISIS INTERNO'!G104 ->  | H102: =IF(F102<='MC ANALISIS INTERNO'!$F$100,I30+G67,"") ->  | I102: ='MC ANALISIS INTERNO'!I104 ->  | K102: 62 | L102: ='MC ANALISIS INTERNO'!L104 ->  | M102: =IF(K102<='MC ANALISIS INTERNO'!$F$100,N30+K67,"") ->  | N102: ='MC ANALISIS INTERNO'!N104 -> 
A103: 3 | B103: ='MC ANALISIS INTERNO'!B105 -> 1.5 | C103: =IF(A103<='MC ANALISIS INTERNO'!$F$100,D31+C68,"") -> 2.2874911 | D103: ='MC ANALISIS INTERNO'!D105 -> 8.666666667 | F103: 33 | G103: ='MC ANALISIS INTERNO'!G105 ->  | H103: =IF(F103<='MC ANALISIS INTERNO'!$F$100,I31+G68,"") ->  | I103: ='MC ANALISIS INTERNO'!I105 ->  | K103: 63 | L103: ='MC ANALISIS INTERNO'!L105 ->  | M103: =IF(K103<='MC ANALISIS INTERNO'!$F$100,N31+K68,"") ->  | N103: ='MC ANALISIS INTERNO'!N105 -> 
A104: 4 | B104: ='MC ANALISIS INTERNO'!B106 -> 2 | C104: =IF(A104<='MC ANALISIS INTERNO'!$F$100,D32+C69,"") -> 1.998815966 | D104: ='MC ANALISIS INTERNO'!D106 -> 10.16666667 | F104: 34 | G104: ='MC ANALISIS INTERNO'!G106 ->  | H104: =IF(F104<='MC ANALISIS INTERNO'!$F$100,I32+G69,"") ->  | I104: ='MC ANALISIS INTERNO'!I106 ->  | K104: 64 | L104: ='MC ANALISIS INTERNO'!L106 ->  | M104: =IF(K104<='MC ANALISIS INTERNO'!$F$100,N32+K69,"") ->  | N104: ='MC ANALISIS INTERNO'!N106 -> 
A105: 5 | B105: ='MC ANALISIS INTERNO'!B107 -> 2.5 | C105: =IF(A105<='MC ANALISIS INTERNO'!$F$100,D33+C70,"") -> 1.710140831 | D105: ='MC ANALISIS INTERNO'!D107 -> 11.66666667 | F105: 35 | G105: ='MC ANALISIS INTERNO'!G107 ->  | H105: =IF(F105<='MC ANALISIS INTERNO'!$F$100,I33+G70,"") ->  | I105: ='MC ANALISIS INTERNO'!I107 ->  | K105: 65 | L105: ='MC ANALISIS INTERNO'!L107 ->  | M105: =IF(K105<='MC ANALISIS INTERNO'!$F$100,N33+K70,"") ->  | N105: ='MC ANALISIS INTERNO'!N107 -> 
A106: 6 | B106: ='MC ANALISIS INTERNO'!B108 -> 3 | C106: =IF(A106<='MC ANALISIS INTERNO'!$F$100,D34+C71,"") -> 1.421465697 | D106: ='MC ANALISIS INTERNO'!D108 -> 13.16666667 | F106: 36 | G106: ='MC ANALISIS INTERNO'!G108 ->  | H106: =IF(F106<='MC ANALISIS INTERNO'!$F$100,I34+G71,"") ->  | I106: ='MC ANALISIS INTERNO'!I108 ->  | K106: 66 | L106: ='MC ANALISIS INTERNO'!L108 ->  | M106: =IF(K106<='MC ANALISIS INTERNO'!$F$100,N34+K71,"") ->  | N106: ='MC ANALISIS INTERNO'!N108 -> 
A107: 7 | B107: ='MC ANALISIS INTERNO'!B109 -> 3.5 | C107: =IF(A107<='MC ANALISIS INTERNO'!$F$100,D35+C72,"") -> 1.132790562 | D107: ='MC ANALISIS INTERNO'!D109 -> 14.66666667 | F107: 37 | G107: ='MC ANALISIS INTERNO'!G109 ->  | H107: =IF(F107<='MC ANALISIS INTERNO'!$F$100,I35+G72,"") ->  | I107: ='MC ANALISIS INTERNO'!I109 ->  | K107: 67 | L107: ='MC ANALISIS INTERNO'!L109 ->  | M107: =IF(K107<='MC ANALISIS INTERNO'!$F$100,N35+K72,"") ->  | N107: ='MC ANALISIS INTERNO'!N109 -> 
A108: 8 | B108: ='MC ANALISIS INTERNO'!B110 ->  | C108: =IF(A108<='MC ANALISIS INTERNO'!$F$100,D36+C73,"") ->  | D108: ='MC ANALISIS INTERNO'!D110 ->  | F108: 38 | G108: ='MC ANALISIS INTERNO'!G110 ->  | H108: =IF(F108<='MC ANALISIS INTERNO'!$F$100,I36+G73,"") ->  | I108: ='MC ANALISIS INTERNO'!I110 ->  | K108: 68 | L108: ='MC ANALISIS INTERNO'!L110 ->  | M108: =IF(K108<='MC ANALISIS INTERNO'!$F$100,N36+K73,"") ->  | N108: ='MC ANALISIS INTERNO'!N110 -> 
A109: 9 | B109: ='MC ANALISIS INTERNO'!B111 ->  | C109: =IF(A109<='MC ANALISIS INTERNO'!$F$100,D37+C74,"") ->  | D109: ='MC ANALISIS INTERNO'!D111 ->  | F109: 39 | G109: ='MC ANALISIS INTERNO'!G111 ->  | H109: =IF(F109<='MC ANALISIS INTERNO'!$F$100,I37+G74,"") ->  | I109: ='MC ANALISIS INTERNO'!I111 ->  | K109: 69 | L109: ='MC ANALISIS INTERNO'!L111 ->  | M109: =IF(K109<='MC ANALISIS INTERNO'!$F$100,N37+K74,"") ->  | N109: ='MC ANALISIS INTERNO'!N111 -> 
A110: 10 | B110: ='MC ANALISIS INTERNO'!B112 ->  | C110: =IF(A110<='MC ANALISIS INTERNO'!$F$100,D38+C75,"") ->  | D110: ='MC ANALISIS INTERNO'!D112 ->  | F110: 40 | G110: ='MC ANALISIS INTERNO'!G112 ->  | H110: =IF(F110<='MC ANALISIS INTERNO'!$F$100,I38+G75,"") ->  | I110: ='MC ANALISIS INTERNO'!I112 ->  | K110: 70 | L110: ='MC ANALISIS INTERNO'!L112 ->  | M110: =IF(K110<='MC ANALISIS INTERNO'!$F$100,N38+K75,"") ->  | N110: ='MC ANALISIS INTERNO'!N112 -> 
A111: 11 | B111: ='MC ANALISIS INTERNO'!B113 ->  | C111: =IF(A111<='MC ANALISIS INTERNO'!$F$100,D39+C76,"") ->  | D111: ='MC ANALISIS INTERNO'!D113 ->  | F111: 41 | G111: ='MC ANALISIS INTERNO'!G113 ->  | H111: =IF(F111<='MC ANALISIS INTERNO'!$F$100,I39+G76,"") ->  | I111: ='MC ANALISIS INTERNO'!I113 ->  | K111: 71 | L111: ='MC ANALISIS INTERNO'!L113 ->  | M111: =IF(K111<='MC ANALISIS INTERNO'!$F$100,N39+K76,"") ->  | N111: ='MC ANALISIS INTERNO'!N113 -> 
A112: 12 | B112: ='MC ANALISIS INTERNO'!B114 ->  | C112: =IF(A112<='MC ANALISIS INTERNO'!$F$100,D40+C77,"") ->  | D112: ='MC ANALISIS INTERNO'!D114 ->  | F112: 42 | G112: ='MC ANALISIS INTERNO'!G114 ->  | H112: =IF(F112<='MC ANALISIS INTERNO'!$F$100,I40+G77,"") ->  | I112: ='MC ANALISIS INTERNO'!I114 ->  | K112: 72 | L112: ='MC ANALISIS INTERNO'!L114 ->  | M112: =IF(K112<='MC ANALISIS INTERNO'!$F$100,N40+K77,"") ->  | N112: ='MC ANALISIS INTERNO'!N114 -> 
A113: 13 | B113: ='MC ANALISIS INTERNO'!B115 ->  | C113: =IF(A113<='MC ANALISIS INTERNO'!$F$100,D41+C78,"") ->  | D113: ='MC ANALISIS INTERNO'!D115 ->  | F113: 43 | G113: ='MC ANALISIS INTERNO'!G115 ->  | H113: =IF(F113<='MC ANALISIS INTERNO'!$F$100,I41+G78,"") ->  | I113: ='MC ANALISIS INTERNO'!I115 ->  | K113: 73 | L113: ='MC ANALISIS INTERNO'!L115 ->  | M113: =IF(K113<='MC ANALISIS INTERNO'!$F$100,N41+K78,"") ->  | N113: ='MC ANALISIS INTERNO'!N115 -> 
A114: 14 | B114: ='MC ANALISIS INTERNO'!B116 ->  | C114: =IF(A114<='MC ANALISIS INTERNO'!$F$100,D42+C79,"") ->  | D114: ='MC ANALISIS INTERNO'!D116 ->  | F114: 44 | G114: ='MC ANALISIS INTERNO'!G116 ->  | H114: =IF(F114<='MC ANALISIS INTERNO'!$F$100,I42+G79,"") ->  | I114: ='MC ANALISIS INTERNO'!I116 ->  | K114: 74 | L114: ='MC ANALISIS INTERNO'!L116 ->  | M114: =IF(K114<='MC ANALISIS INTERNO'!$F$100,N42+K79,"") ->  | N114: ='MC ANALISIS INTERNO'!N116 -> 
A115: 15 | B115: ='MC ANALISIS INTERNO'!B117 ->  | C115: =IF(A115<='MC ANALISIS INTERNO'!$F$100,D43+C80,"") ->  | D115: ='MC ANALISIS INTERNO'!D117 ->  | F115: 45 | G115: ='MC ANALISIS INTERNO'!G117 ->  | H115: =IF(F115<='MC ANALISIS INTERNO'!$F$100,I43+G80,"") ->  | I115: ='MC ANALISIS INTERNO'!I117 ->  | K115: 75 | L115: ='MC ANALISIS INTERNO'!L117 ->  | M115: =IF(K115<='MC ANALISIS INTERNO'!$F$100,N43+K80,"") ->  | N115: ='MC ANALISIS INTERNO'!N117 -> 
A116: 16 | B116: ='MC ANALISIS INTERNO'!B118 ->  | C116: =IF(A116<='MC ANALISIS INTERNO'!$F$100,D44+C81,"") ->  | D116: ='MC ANALISIS INTERNO'!D118 ->  | F116: 46 | G116: ='MC ANALISIS INTERNO'!G118 ->  | H116: =IF(F116<='MC ANALISIS INTERNO'!$F$100,I44+G81,"") ->  | I116: ='MC ANALISIS INTERNO'!I118 ->  | K116: 76 | L116: ='MC ANALISIS INTERNO'!L118 ->  | M116: =IF(K116<='MC ANALISIS INTERNO'!$F$100,N44+K81,"") ->  | N116: ='MC ANALISIS INTERNO'!N118 -> 
A117: 17 | B117: ='MC ANALISIS INTERNO'!B119 ->  | C117: =IF(A117<='MC ANALISIS INTERNO'!$F$100,D45+C82,"") ->  | D117: ='MC ANALISIS INTERNO'!D119 ->  | F117: 47 | G117: ='MC ANALISIS INTERNO'!G119 ->  | H117: =IF(F117<='MC ANALISIS INTERNO'!$F$100,I45+G82,"") ->  | I117: ='MC ANALISIS INTERNO'!I119 ->  | K117: 77 | L117: ='MC ANALISIS INTERNO'!L119 ->  | M117: =IF(K117<='MC ANALISIS INTERNO'!$F$100,N45+K82,"") ->  | N117: ='MC ANALISIS INTERNO'!N119 -> 
A118: 18 | B118: ='MC ANALISIS INTERNO'!B120 ->  | C118: =IF(A118<='MC ANALISIS INTERNO'!$F$100,D46+C83,"") ->  | D118: ='MC ANALISIS INTERNO'!D120 ->  | F118: 48 | G118: ='MC ANALISIS INTERNO'!G120 ->  | H118: =IF(F118<='MC ANALISIS INTERNO'!$F$100,I46+G83,"") ->  | I118: ='MC ANALISIS INTERNO'!I120 ->  | K118: 78 | L118: ='MC ANALISIS INTERNO'!L120 ->  | M118: =IF(K118<='MC ANALISIS INTERNO'!$F$100,N46+K83,"") ->  | N118: ='MC ANALISIS INTERNO'!N120 -> 
A119: 19 | B119: ='MC ANALISIS INTERNO'!B121 ->  | C119: =IF(A119<='MC ANALISIS INTERNO'!$F$100,D47+C84,"") ->  | D119: ='MC ANALISIS INTERNO'!D121 ->  | F119: 49 | G119: ='MC ANALISIS INTERNO'!G121 ->  | H119: =IF(F119<='MC ANALISIS INTERNO'!$F$100,I47+G84,"") ->  | I119: ='MC ANALISIS INTERNO'!I121 ->  | K119: 79 | L119: ='MC ANALISIS INTERNO'!L121 ->  | M119: =IF(K119<='MC ANALISIS INTERNO'!$F$100,N47+K84,"") ->  | N119: ='MC ANALISIS INTERNO'!N121 -> 
A120: 20 | B120: ='MC ANALISIS INTERNO'!B122 ->  | C120: =IF(A120<='MC ANALISIS INTERNO'!$F$100,D48+C85,"") ->  | D120: ='MC ANALISIS INTERNO'!D122 ->  | F120: 50 | G120: ='MC ANALISIS INTERNO'!G122 ->  | H120: =IF(F120<='MC ANALISIS INTERNO'!$F$100,I48+G85,"") ->  | I120: ='MC ANALISIS INTERNO'!I122 ->  | K120: 80 | L120: ='MC ANALISIS INTERNO'!L122 ->  | M120: =IF(K120<='MC ANALISIS INTERNO'!$F$100,N48+K85,"") ->  | N120: ='MC ANALISIS INTERNO'!N122 -> 
A121: 21 | B121: ='MC ANALISIS INTERNO'!B123 ->  | C121: =IF(A121<='MC ANALISIS INTERNO'!$F$100,D49+C86,"") ->  | D121: ='MC ANALISIS INTERNO'!D123 ->  | F121: 51 | G121: ='MC ANALISIS INTERNO'!G123 ->  | H121: =IF(F121<='MC ANALISIS INTERNO'!$F$100,I49+G86,"") ->  | I121: ='MC ANALISIS INTERNO'!I123 ->  | K121: 81 | L121: ='MC ANALISIS INTERNO'!L123 ->  | M121: =IF(K121<='MC ANALISIS INTERNO'!$F$100,N49+K86,"") ->  | N121: ='MC ANALISIS INTERNO'!N123 -> 
A122: 22 | B122: ='MC ANALISIS INTERNO'!B124 ->  | C122: =IF(A122<='MC ANALISIS INTERNO'!$F$100,D50+C87,"") ->  | D122: ='MC ANALISIS INTERNO'!D124 ->  | F122: 52 | G122: ='MC ANALISIS INTERNO'!G124 ->  | H122: =IF(F122<='MC ANALISIS INTERNO'!$F$100,I50+G87,"") ->  | I122: ='MC ANALISIS INTERNO'!I124 ->  | K122: 82 | L122: ='MC ANALISIS INTERNO'!L124 ->  | M122: =IF(K122<='MC ANALISIS INTERNO'!$F$100,N50+K87,"") ->  | N122: ='MC ANALISIS INTERNO'!N124 -> 
A123: 23 | B123: ='MC ANALISIS INTERNO'!B125 ->  | C123: =IF(A123<='MC ANALISIS INTERNO'!$F$100,D51+C88,"") ->  | D123: ='MC ANALISIS INTERNO'!D125 ->  | F123: 53 | G123: ='MC ANALISIS INTERNO'!G125 ->  | H123: =IF(F123<='MC ANALISIS INTERNO'!$F$100,I51+G88,"") ->  | I123: ='MC ANALISIS INTERNO'!I125 ->  | K123: 83 | L123: ='MC ANALISIS INTERNO'!L125 ->  | M123: =IF(K123<='MC ANALISIS INTERNO'!$F$100,N51+K88,"") ->  | N123: ='MC ANALISIS INTERNO'!N125 -> 
A124: 24 | B124: ='MC ANALISIS INTERNO'!B126 ->  | C124: =IF(A124<='MC ANALISIS INTERNO'!$F$100,D52+C89,"") ->  | D124: ='MC ANALISIS INTERNO'!D126 ->  | F124: 54 | G124: ='MC ANALISIS INTERNO'!G126 ->  | H124: =IF(F124<='MC ANALISIS INTERNO'!$F$100,I52+G89,"") ->  | I124: ='MC ANALISIS INTERNO'!I126 ->  | K124: 84 | L124: ='MC ANALISIS INTERNO'!L126 ->  | M124: =IF(K124<='MC ANALISIS INTERNO'!$F$100,N52+K89,"") ->  | N124: ='MC ANALISIS INTERNO'!N126 -> 
A125: 25 | B125: ='MC ANALISIS INTERNO'!B127 ->  | C125: =IF(A125<='MC ANALISIS INTERNO'!$F$100,D53+C90,"") ->  | D125: ='MC ANALISIS INTERNO'!D127 ->  | F125: 55 | G125: ='MC ANALISIS INTERNO'!G127 ->  | H125: =IF(F125<='MC ANALISIS INTERNO'!$F$100,I53+G90,"") ->  | I125: ='MC ANALISIS INTERNO'!I127 ->  | K125: 85 | L125: ='MC ANALISIS INTERNO'!L127 ->  | M125: =IF(K125<='MC ANALISIS INTERNO'!$F$100,N53+K90,"") ->  | N125: ='MC ANALISIS INTERNO'!N127 -> 
A126: 26 | B126: ='MC ANALISIS INTERNO'!B128 ->  | C126: =IF(A126<='MC ANALISIS INTERNO'!$F$100,D54+C91,"") ->  | D126: ='MC ANALISIS INTERNO'!D128 ->  | F126: 56 | G126: ='MC ANALISIS INTERNO'!G128 ->  | H126: =IF(F126<='MC ANALISIS INTERNO'!$F$100,I54+G91,"") ->  | I126: ='MC ANALISIS INTERNO'!I128 ->  | K126: 86 | L126: ='MC ANALISIS INTERNO'!L128 ->  | M126: =IF(K126<='MC ANALISIS INTERNO'!$F$100,N54+K91,"") ->  | N126: ='MC ANALISIS INTERNO'!N128 -> 
A127: 27 | B127: ='MC ANALISIS INTERNO'!B129 ->  | C127: =IF(A127<='MC ANALISIS INTERNO'!$F$100,D55+C92,"") ->  | D127: ='MC ANALISIS INTERNO'!D129 ->  | F127: 57 | G127: ='MC ANALISIS INTERNO'!G129 ->  | H127: =IF(F127<='MC ANALISIS INTERNO'!$F$100,I55+G92,"") ->  | I127: ='MC ANALISIS INTERNO'!I129 ->  | K127: 87 | L127: ='MC ANALISIS INTERNO'!L129 ->  | M127: =IF(K127<='MC ANALISIS INTERNO'!$F$100,N55+K92,"") ->  | N127: ='MC ANALISIS INTERNO'!N129 -> 
A128: 28 | B128: ='MC ANALISIS INTERNO'!B130 ->  | C128: =IF(A128<='MC ANALISIS INTERNO'!$F$100,D56+C93,"") ->  | D128: ='MC ANALISIS INTERNO'!D130 ->  | F128: 58 | G128: ='MC ANALISIS INTERNO'!G130 ->  | H128: =IF(F128<='MC ANALISIS INTERNO'!$F$100,I56+G93,"") ->  | I128: ='MC ANALISIS INTERNO'!I130 ->  | K128: 88 | L128: ='MC ANALISIS INTERNO'!L130 ->  | M128: =IF(K128<='MC ANALISIS INTERNO'!$F$100,N56+K93,"") ->  | N128: ='MC ANALISIS INTERNO'!N130 -> 
A129: 29 | B129: ='MC ANALISIS INTERNO'!B131 ->  | C129: =IF(A129<='MC ANALISIS INTERNO'!$F$100,D57+C94,"") ->  | D129: ='MC ANALISIS INTERNO'!D131 ->  | F129: 59 | G129: ='MC ANALISIS INTERNO'!G131 ->  | H129: =IF(F129<='MC ANALISIS INTERNO'!$F$100,I57+G94,"") ->  | I129: ='MC ANALISIS INTERNO'!I131 ->  | K129: 89 | L129: ='MC ANALISIS INTERNO'!L131 ->  | M129: =IF(K129<='MC ANALISIS INTERNO'!$F$100,N57+K94,"") ->  | N129: ='MC ANALISIS INTERNO'!N131 -> 
A130: 30 | B130: ='MC ANALISIS INTERNO'!B132 ->  | C130: =IF(A130<='MC ANALISIS INTERNO'!$F$100,D58+C95,"") ->  | D130: ='MC ANALISIS INTERNO'!D132 ->  | F130: 60 | G130: ='MC ANALISIS INTERNO'!G132 ->  | H130: =IF(F130<='MC ANALISIS INTERNO'!$F$100,I58+G95,"") ->  | I130: ='MC ANALISIS INTERNO'!I132 ->  | K130: 90 | L130: ='MC ANALISIS INTERNO'!L132 ->  | M130: =IF(K130<='MC ANALISIS INTERNO'!$F$100,N58+K95,"") ->  | N130: ='MC ANALISIS INTERNO'!N132 -> 
A133: NOTA:
A134: SI LA LONGITUD PROPUESTA AL INICIO DEL ANALISIS DE LA ESTRUCTURA ES MAYOR QUE LA RESULTANTE EN CADA UNA DE LAS CAPAS DADAS EN LA TABLA ANTERIOR, ENTONCES, DE ACUERDO A LAS CONDICIONES DE LA ESTRUCTURA Y DE LOS FACTORES EXTERNOS, SE TOMA UN CRITERIO, TOMANDO EN CUENTA QUE SE PUEDE USAR EN TODA LA ALTURA DEL MURO LA MISMA LONGITUD DE REFUERZO, O TOMAR LAS LONGITUDES DADAS EN LA TABLA.

Sheet DISEÑO POR SISMO
D1: METODOLOGÍA PARA DISEÑOS DE MUROS MECANICAMENTE ESTABILIZADOS
D3: MUROS CON RELLENOS HORIZONTALES
E11: DISEÑO POR SISMO
D12: TENSION TOTAL GENERADA POR LA ACCIÓN DE UN SISMO
A14: a) Fuerza inercial interna, debido al peso del relleno y la aceleración sísmica dentro de la zona activa.
B19: donde:
C21: Am = | D21: ='MC ANALISIS EXTERNO'!$C$75 -> 0.2176
C27: Areazona activa = | D27: =(('GEOMETRIA DEL MURO'!F10^2)*TAN(RADIANS(90-(45+('PROPIEDADES DE LOS SUELOS'!C26/2)))))/2 -> 4.01630828 | E27: m2
C30: WA = | D30: =D27*'PROPIEDADES DE LOS SUELOS'!C24 -> 72.29354904 | E30: KN/m
B33: Por lo tanto:
C34: PI = | D34: =D21*D30 -> 15.73107627 | E34: KN/m
A38: b) Incremento de la tensión máxima por la acción de un sismo.
A44: Capa No. | B44: Le | C44: Tmax | D44: Tmd | E44: Ttotal | G44: Capa No. | H44: Le | I44: Tmax | J44: Tmd | K44: Ttotal | M44: Capa No. | N44: Le | O44: Tmax | P44: Tmd | Q44: Ttotal
A45: 1 | B45: =DISEÑO!D29 -> 1.549077427 | C45: ='MC ANALISIS INTERNO'!D103 -> 5.666666667 | D45: =IF(A45<='MC ANALISIS INTERNO'!$F$100,$D$34*(B45/((SUM($B$45:$B$74))+(SUM($H$45:$H$74))+(SUM($N$45:$N$74)))),"") -> 3.228030894 | E45: =IF(D45=0,C45+D45,IF(A45<='MC ANALISIS INTERNO'!$F$100,C45+D45,"")) -> 8.89469756 | G45: 31 | H45: =DISEÑO!I29 ->  | I45: =DISEÑO!I101 ->  | J45: =IF(G45<='MC ANALISIS INTERNO'!$F$100,$D$34*(H45/((SUM($B$45:$B$74))+(SUM($H$45:$H$74))+(SUM($N$45:$N$74)))),"") ->  | K45: =IF(J45=0,I45+J45,IF(G45<='MC ANALISIS INTERNO'!$F$100,I45+J45,"")) ->  | M45: 61 | N45: =DISEÑO!N29 ->  | O45: =DISEÑO!N101 ->  | P45: =IF(M45<='MC ANALISIS INTERNO'!$F$100,$D$34*(N45/((SUM($B$45:$B$74))+(SUM($H$45:$H$74))+(SUM($N$45:$N$74)))),"") ->  | Q45: =IF(P45=0,O45+P45,IF(M45<='MC ANALISIS INTERNO'!$F$100,O45+P45,"")) -> 
A46: 2 | B46: =DISEÑO!D30 -> 1 | C46: ='MC ANALISIS INTERNO'!D104 -> 7.166666667 | D46: =IF(A46<='MC ANALISIS INTERNO'!$F$100,$D$34*(B46/((SUM($B$45:$B$74))+(SUM($H$45:$H$74))+(SUM($N$45:$N$74)))),"") -> 2.083840896 | E46: =IF(D46=0,C46+D46,IF(A46<='MC ANALISIS INTERNO'!$F$100,C46+D46,"")) -> 9.250507563 | G46: 32 | H46: =DISEÑO!I30 ->  | I46: =DISEÑO!I102 ->  | J46: =IF(G46<='MC ANALISIS INTERNO'!$F$100,$D$34*(H46/((SUM($B$45:$B$74))+(SUM($H$45:$H$74))+(SUM($N$45:$N$74)))),"") ->  | K46: =IF(J46=0,I46+J46,IF(G46<='MC ANALISIS INTERNO'!$F$100,I46+J46,"")) ->  | M46: 62 | N46: =DISEÑO!N30 ->  | O46: =DISEÑO!N102 ->  | P46: =IF(M46<='MC ANALISIS INTERNO'!$F$100,$D$34*(N46/((SUM($B$45:$B$74))+(SUM($H$45:$H$74))+(SUM($N$45:$N$74)))),"") ->  | Q46: =IF(P46=0,O46+P46,IF(M46<='MC ANALISIS INTERNO'!$F$100,O46+P46,"")) -> 
A47: 3 | B47: =DISEÑO!D31 -> 1 | C47: ='MC ANALISIS INTERNO'!D105 -> 8.666666667 | D47: =IF(A47<='MC ANALISIS INTERNO'!$F$100,$D$34*(B47/((SUM($B$45:$B$74))+(SUM($H$45:$H$74))+(SUM($N$45:$N$74)))),"") -> 2.083840896 | E47: =IF(D47=0,C47+D47,IF(A47<='MC ANALISIS INTERNO'!$F$100,C47+D47,"")) -> 10.75050756 | G47: 33 | H47: =DISEÑO!I31 ->  | I47: =DISEÑO!I103 ->  | J47: =IF(G47<='MC ANALISIS INTERNO'!$F$100,$D$34*(H47/((SUM($B$45:$B$74))+(SUM($H$45:$H$74))+(SUM($N$45:$N$74)))),"") ->  | K47: =IF(J47=0,I47+J47,IF(G47<='MC ANALISIS INTERNO'!$F$100,I47+J47,"")) ->  | M47: 63 | N47: =DISEÑO!N31 ->  | O47: =DISEÑO!N103 ->  | P47: =IF(M47<='MC ANALISIS INTERNO'!$F$100,$D$34*(N47/((SUM($B$45:$B$74))+(SUM($H$45:$H$74))+(SUM($N$45:$N$74)))),"") ->  | Q47: =IF(P47=0,O47+P47,IF(M47<='MC ANALISIS INTERNO'!$F$100,O47+P47,"")) -> 
A48: 4 | B48: =DISEÑO!D32 -> 1 | C48: ='MC ANALISIS INTERNO'!D106 -> 10.16666667 | D48: =IF(A48<='MC ANALISIS INTERNO'!$F$100,$D$34*(B48/((SUM($B$45:$B$74))+(SUM($H$45:$H$74))+(SUM($N$45:$N$74)))),"") -> 2.083840896 | E48: =IF(D48=0,C48+D48,IF(A48<='MC ANALISIS INTERNO'!$F$100,C48+D48,"")) -> 12.25050756 | G48: 34 | H48: =DISEÑO!I32 ->  | I48: =DISEÑO!I104 ->  | J48: =IF(G48<='MC ANALISIS INTERNO'!$F$100,$D$34*(H48/((SUM($B$45:$B$74))+(SUM($H$45:$H$74))+(SUM($N$45:$N$74)))),"") ->  | K48: =IF(J48=0,I48+J48,IF(G48<='MC ANALISIS INTERNO'!$F$100,I48+J48,"")) ->  | M48: 64 | N48: =DISEÑO!N32 ->  | O48: =DISEÑO!N104 ->  | P48: =IF(M48<='MC ANALISIS INTERNO'!$F$100,$D$34*(N48/((SUM($B$45:$B$74))+(SUM($H$45:$H$74))+(SUM($N$45:$N$74)))),"") ->  | Q48: =IF(P48=0,O48+P48,IF(M48<='MC ANALISIS INTERNO'!$F$100,O48+P48,"")) -> 
A49: 5 | B49: =DISEÑO!D33 -> 1 | C49: ='MC ANALISIS INTERNO'!D107 -> 11.66666667 | D49: =IF(A49<='MC ANALISIS INTERNO'!$F$100,$D$34*(B49/((SUM($B$45:$B$74))+(SUM($H$45:$H$74))+(SUM($N$45:$N$74)))),"") -> 2.083840896 | E49: =IF(D49=0,C49+D49,IF(A49<='MC ANALISIS INTERNO'!$F$100,C49+D49,"")) -> 13.75050756 | G49: 35 | H49: =DISEÑO!I33 ->  | I49: =DISEÑO!I105 ->  | J49: =IF(G49<='MC ANALISIS INTERNO'!$F$100,$D$34*(H49/((SUM($B$45:$B$74))+(SUM($H$45:$H$74))+(SUM($N$45:$N$74)))),"") ->  | K49: =IF(J49=0,I49+J49,IF(G49<='MC ANALISIS INTERNO'!$F$100,I49+J49,"")) ->  | M49: 65 | N49: =DISEÑO!N33 ->  | O49: =DISEÑO!N105 ->  | P49: =IF(M49<='MC ANALISIS INTERNO'!$F$100,$D$34*(N49/((SUM($B$45:$B$74))+(SUM($H$45:$H$74))+(SUM($N$45:$N$74)))),"") ->  | Q49: =IF(P49=0,O49+P49,IF(M49<='MC ANALISIS INTERNO'!$F$100,O49+P49,"")) -> 
A50: 6 | B50: =DISEÑO!D34 -> 1 | C50: ='MC ANALISIS INTERNO'!D108 -> 13.16666667 | D50: =IF(A50<='MC ANALISIS INTERNO'!$F$100,$D$34*(B50/((SUM($B$45:$B$74))+(SUM($H$45:$H$74))+(SUM($N$45:$N$74)))),"") -> 2.083840896 | E50: =IF(D50=0,C50+D50,IF(A50<='MC ANALISIS INTERNO'!$F$100,C50+D50,"")) -> 15.25050756 | G50: 36 | H50: =DISEÑO!I34 ->  | I50: =DISEÑO!I106 ->  | J50: =IF(G50<='MC ANALISIS INTERNO'!$F$100,$D$34*(H50/((SUM($B$45:$B$74))+(SUM($H$45:$H$74))+(SUM($N$45:$N$74)))),"") ->  | K50: =IF(J50=0,I50+J50,IF(G50<='MC ANALISIS INTERNO'!$F$100,I50+J50,"")) ->  | M50: 66 | N50: =DISEÑO!N34 ->  | O50: =DISEÑO!N106 ->  | P50: =IF(M50<='MC ANALISIS INTERNO'!$F$100,$D$34*(N50/((SUM($B$45:$B$74))+(SUM($H$45:$H$74))+(SUM($N$45:$N$74)))),"") ->  | Q50: =IF(P50=0,O50+P50,IF(M50<='MC ANALISIS INTERNO'!$F$100,O50+P50,"")) -> 
A51: 7 | B51: =DISEÑO!D35 -> 1 | C51: ='MC ANALISIS INTERNO'!D109 -> 14.66666667 | D51: =IF(A51<='MC ANALISIS INTERNO'!$F$100,$D$34*(B51/((SUM($B$45:$B$74))+(SUM($H$45:$H$74))+(SUM($N$45:$N$74)))),"") -> 2.083840896 | E51: =IF(D51=0,C51+D51,IF(A51<='MC ANALISIS INTERNO'!$F$100,C51+D51,"")) -> 16.75050756 | G51: 37 | H51: =DISEÑO!I35 ->  | I51: =DISEÑO!I107 ->  | J51: =IF(G51<='MC ANALISIS INTERNO'!$F$100,$D$34*(H51/((SUM($B$45:$B$74))+(SUM($H$45:$H$74))+(SUM($N$45:$N$74)))),"") ->  | K51: =IF(J51=0,I51+J51,IF(G51<='MC ANALISIS INTERNO'!$F$100,I51+J51,"")) ->  | M51: 67 | N51: =DISEÑO!N35 ->  | O51: =DISEÑO!N107 ->  | P51: =IF(M51<='MC ANALISIS INTERNO'!$F$100,$D$34*(N51/((SUM($B$45:$B$74))+(SUM($H$45:$H$74))+(SUM($N$45:$N$74)))),"") ->  | Q51: =IF(P51=0,O51+P51,IF(M51<='MC ANALISIS INTERNO'!$F$100,O51+P51,"")) -> 
A52: 8 | B52: =DISEÑO!D36 ->  | C52: ='MC ANALISIS INTERNO'!D110 ->  | D52: =IF(A52<='MC ANALISIS INTERNO'!$F$100,$D$34*(B52/((SUM($B$45:$B$74))+(SUM($H$45:$H$74))+(SUM($N$45:$N$74)))),"") ->  | E52: =IF(D52=0,C52+D52,IF(A52<='MC ANALISIS INTERNO'!$F$100,C52+D52,"")) ->  | G52: 38 | H52: =DISEÑO!I36 ->  | I52: =DISEÑO!I108 ->  | J52: =IF(G52<='MC ANALISIS INTERNO'!$F$100,$D$34*(H52/((SUM($B$45:$B$74))+(SUM($H$45:$H$74))+(SUM($N$45:$N$74)))),"") ->  | K52: =IF(J52=0,I52+J52,IF(G52<='MC ANALISIS INTERNO'!$F$100,I52+J52,"")) ->  | M52: 68 | N52: =DISEÑO!N36 ->  | O52: =DISEÑO!N108 ->  | P52: =IF(M52<='MC ANALISIS INTERNO'!$F$100,$D$34*(N52/((SUM($B$45:$B$74))+(SUM($H$45:$H$74))+(SUM($N$45:$N$74)))),"") ->  | Q52: =IF(P52=0,O52+P52,IF(M52<='MC ANALISIS INTERNO'!$F$100,O52+P52,"")) -> 
A53: 9 | B53: =DISEÑO!D37 ->  | C53: ='MC ANALISIS INTERNO'!D111 ->  | D53: =IF(A53<='MC ANALISIS INTERNO'!$F$100,$D$34*(B53/((SUM($B$45:$B$74))+(SUM($H$45:$H$74))+(SUM($N$45:$N$74)))),"") ->  | E53: =IF(D53=0,C53+D53,IF(A53<='MC ANALISIS INTERNO'!$F$100,C53+D53,"")) ->  | G53: 39 | H53: =DISEÑO!I37 ->  | I53: =DISEÑO!I109 ->  | J53: =IF(G53<='MC ANALISIS INTERNO'!$F$100,$D$34*(H53/((SUM($B$45:$B$74))+(SUM($H$45:$H$74))+(SUM($N$45:$N$74)))),"") ->  | K53: =IF(J53=0,I53+J53,IF(G53<='MC ANALISIS INTERNO'!$F$100,I53+J53,"")) ->  | M53: 69 | N53: =DISEÑO!N37 ->  | O53: =DISEÑO!N109 ->  | P53: =IF(M53<='MC ANALISIS INTERNO'!$F$100,$D$34*(N53/((SUM($B$45:$B$74))+(SUM($H$45:$H$74))+(SUM($N$45:$N$74)))),"") ->  | Q53: =IF(P53=0,O53+P53,IF(M53<='MC ANALISIS INTERNO'!$F$100,O53+P53,"")) -> 
A54: 10 | B54: =DISEÑO!D38 ->  | C54: ='MC ANALISIS INTERNO'!D112 ->  | D54: =IF(A54<='MC ANALISIS INTERNO'!$F$100,$D$34*(B54/((SUM($B$45:$B$74))+(SUM($H$45:$H$74))+(SUM($N$45:$N$74)))),"") ->  | E54: =IF(D54=0,C54+D54,IF(A54<='MC ANALISIS INTERNO'!$F$100,C54+D54,"")) ->  | G54: 40 | H54: =DISEÑO!I38 ->  | I54: =DISEÑO!I110 ->  | J54: =IF(G54<='MC ANALISIS INTERNO'!$F$100,$D$34*(H54/((SUM($B$45:$B$74))+(SUM($H$45:$H$74))+(SUM($N$45:$N$74)))),"") ->  | K54: =IF(J54=0,I54+J54,IF(G54<='MC ANALISIS INTERNO'!$F$100,I54+J54,"")) ->  | M54: 70 | N54: =DISEÑO!N38 ->  | O54: =DISEÑO!N110 ->  | P54: =IF(M54<='MC ANALISIS INTERNO'!$F$100,$D$34*(N54/((SUM($B$45:$B$74))+(SUM($H$45:$H$74))+(SUM($N$45:$N$74)))),"") ->  | Q54: =IF(P54=0,O54+P54,IF(M54<='MC ANALISIS INTERNO'!$F$100,O54+P54,"")) -> 
A55: 11 | B55: =DISEÑO!D39 ->  | C55: ='MC ANALISIS INTERNO'!D113 ->  | D55: =IF(A55<='MC ANALISIS INTERNO'!$F$100,$D$34*(B55/((SUM($B$45:$B$74))+(SUM($H$45:$H$74))+(SUM($N$45:$N$74)))),"") ->  | E55: =IF(D55=0,C55+D55,IF(A55<='MC ANALISIS INTERNO'!$F$100,C55+D55,"")) ->  | G55: 41 | H55: =DISEÑO!I39 ->  | I55: =DISEÑO!I111 ->  | J55: =IF(G55<='MC ANALISIS INTERNO'!$F$100,$D$34*(H55/((SUM($B$45:$B$74))+(SUM($H$45:$H$74))+(SUM($N$45:$N$74)))),"") ->  | K55: =IF(J55=0,I55+J55,IF(G55<='MC ANALISIS INTERNO'!$F$100,I55+J55,"")) ->  | M55: 71 | N55: =DISEÑO!N39 ->  | O55: =DISEÑO!N111 ->  | P55: =IF(M55<='MC ANALISIS INTERNO'!$F$100,$D$34*(N55/((SUM($B$45:$B$74))+(SUM($H$45:$H$74))+(SUM($N$45:$N$74)))),"") ->  | Q55: =IF(P55=0,O55+P55,IF(M55<='MC ANALISIS INTERNO'!$F$100,O55+P55,"")) -> 
A56: 12 | B56: =DISEÑO!D40 ->  | C56: ='MC ANALISIS INTERNO'!D114 ->  | D56: =IF(A56<='MC ANALISIS INTERNO'!$F$100,$D$34*(B56/((SUM($B$45:$B$74))+(SUM($H$45:$H$74))+(SUM($N$45:$N$74)))),"") ->  | E56: =IF(D56=0,C56+D56,IF(A56<='MC ANALISIS INTERNO'!$F$100,C56+D56,"")) ->  | G56: 42 | H56: =DISEÑO!I40 ->  | I56: =DISEÑO!I112 ->  | J56: =IF(G56<='MC ANALISIS INTERNO'!$F$100,$D$34*(H56/((SUM($B$45:$B$74))+(SUM($H$45:$H$74))+(SUM($N$45:$N$74)))),"") ->  | K56: =IF(J56=0,I56+J56,IF(G56<='MC ANALISIS INTERNO'!$F$100,I56+J56,"")) ->  | M56: 72 | N56: =DISEÑO!N40 ->  | O56: =DISEÑO!N112 ->  | P56: =IF(M56<='MC ANALISIS INTERNO'!$F$100,$D$34*(N56/((SUM($B$45:$B$74))+(SUM($H$45:$H$74))+(SUM($N$45:$N$74)))),"") ->  | Q56: =IF(P56=0,O56+P56,IF(M56<='MC ANALISIS INTERNO'!$F$100,O56+P56,"")) -> 
A57: 13 | B57: =DISEÑO!D41 ->  | C57: ='MC ANALISIS INTERNO'!D115 ->  | D57: =IF(A57<='MC ANALISIS INTERNO'!$F$100,$D$34*(B57/((SUM($B$45:$B$74))+(SUM($H$45:$H$74))+(SUM($N$45:$N$74)))),"") ->  | E57: =IF(D57=0,C57+D57,IF(A57<='MC ANALISIS INTERNO'!$F$100,C57+D57,"")) ->  | G57: 43 | H57: =DISEÑO!I41 ->  | I57: =DISEÑO!I113 ->  | J57: =IF(G57<='MC ANALISIS INTERNO'!$F$100,$D$34*(H57/((SUM($B$45:$B$74))+(SUM($H$45:$H$74))+(SUM($N$45:$N$74)))),"") ->  | K57: =IF(J57=0,I57+J57,IF(G57<='MC ANALISIS INTERNO'!$F$100,I57+J57,"")) ->  | M57: 73 | N57: =DISEÑO!N41 ->  | O57: =DISEÑO!N113 ->  | P57: =IF(M57<='MC ANALISIS INTERNO'!$F$100,$D$34*(N57/((SUM($B$45:$B$74))+(SUM($H$45:$H$74))+(SUM($N$45:$N$74)))),"") ->  | Q57: =IF(P57=0,O57+P57,IF(M57<='MC ANALISIS INTERNO'!$F$100,O57+P57,"")) -> 
A58: 14 | B58: =DISEÑO!D42 ->  | C58: ='MC ANALISIS INTERNO'!D116 ->  | D58: =IF(A58<='MC ANALISIS INTERNO'!$F$100,$D$34*(B58/((SUM($B$45:$B$74))+(SUM($H$45:$H$74))+(SUM($N$45:$N$74)))),"") ->  | E58: =IF(D58=0,C58+D58,IF(A58<='MC ANALISIS INTERNO'!$F$100,C58+D58,"")) ->  | G58: 44 | H58: =DISEÑO!I42 ->  | I58: =DISEÑO!I114 ->  | J58: =IF(G58<='MC ANALISIS INTERNO'!$F$100,$D$34*(H58/((SUM($B$45:$B$74))+(SUM($H$45:$H$74))+(SUM($N$45:$N$74)))),"") ->  | K58: =IF(J58=0,I58+J58,IF(G58<='MC ANALISIS INTERNO'!$F$100,I58+J58,"")) ->  | M58: 74 | N58: =DISEÑO!N42 ->  | O58: =DISEÑO!N114 ->  | P58: =IF(M58<='MC ANALISIS INTERNO'!$F$100,$D$34*(N58/((SUM($B$45:$B$74))+(SUM($H$45:$H$74))+(SUM($N$45:$N$74)))),"") ->  | Q58: =IF(P58=0,O58+P58,IF(M58<='MC ANALISIS INTERNO'!$F$100,O58+P58,"")) -> 
A59: 15 | B59: =DISEÑO!D43 ->  | C59: ='MC ANALISIS INTERNO'!D117 ->  | D59: =IF(A59<='MC ANALISIS INTERNO'!$F$100,$D$34*(B59/((SUM($B$45:$B$74))+(SUM($H$45:$H$74))+(SUM($N$45:$N$74)))),"") ->  | E59: =IF(D59=0,C59+D59,IF(A59<='MC ANALISIS INTERNO'!$F$100,C59+D59,"")) ->  | G59: 45 | H59: =DISEÑO!I43 ->  | I59: =DISEÑO!I115 ->  | J59: =IF(G59<='MC ANALISIS INTERNO'!$F$100,$D$34*(H59/((SUM($B$45:$B$74))+(SUM($H$45:$H$74))+(SUM($N$45:$N$74)))),"") ->  | K59: =IF(J59=0,I59+J59,IF(G59<='MC ANALISIS INTERNO'!$F$100,I59+J59,"")) ->  | M59: 75 | N59: =DISEÑO!N43 ->  | O59: =DISEÑO!N115 ->  | P59: =IF(M59<='MC ANALISIS INTERNO'!$F$100,$D$34*(N59/((SUM($B$45:$B$74))+(SUM($H$45:$H$74))+(SUM($N$45:$N$74)))),"") ->  | Q59: =IF(P59=0,O59+P59,IF(M59<='MC ANALISIS INTERNO'!$F$100,O59+P59,"")) -> 
A60: 16 | B60: =DISEÑO!D44 ->  | C60: ='MC ANALISIS INTERNO'!D118 ->  | D60: =IF(A60<='MC ANALISIS INTERNO'!$F$100,$D$34*(B60/((SUM($B$45:$B$74))+(SUM($H$45:$H$74))+(SUM($N$45:$N$74)))),"") ->  | E60: =IF(D60=0,C60+D60,IF(A60<='MC ANALISIS INTERNO'!$F$100,C60+D60,"")) ->  | G60: 46 | H60: =DISEÑO!I44 ->  | I60: =DISEÑO!I116 ->  | J60: =IF(G60<='MC ANALISIS INTERNO'!$F$100,$D$34*(H60/((SUM($B$45:$B$74))+(SUM($H$45:$H$74))+(SUM($N$45:$N$74)))),"") ->  | K60: =IF(J60=0,I60+J60,IF(G60<='MC ANALISIS INTERNO'!$F$100,I60+J60,"")) ->  | M60: 76 | N60: =DISEÑO!N44 ->  | O60: =DISEÑO!N116 ->  | P60: =IF(M60<='MC ANALISIS INTERNO'!$F$100,$D$34*(N60/((SUM($B$45:$B$74))+(SUM($H$45:$H$74))+(SUM($N$45:$N$74)))),"") ->  | Q60: =IF(P60=0,O60+P60,IF(M60<='MC ANALISIS INTERNO'!$F$100,O60+P60,"")) -> 
A61: 17 | B61: =DISEÑO!D45 ->  | C61: ='MC ANALISIS INTERNO'!D119 ->  | D61: =IF(A61<='MC ANALISIS INTERNO'!$F$100,$D$34*(B61/((SUM($B$45:$B$74))+(SUM($H$45:$H$74))+(SUM($N$45:$N$74)))),"") ->  | E61: =IF(D61=0,C61+D61,IF(A61<='MC ANALISIS INTERNO'!$F$100,C61+D61,"")) ->  | G61: 47 | H61: =DISEÑO!I45 ->  | I61: =DISEÑO!I117 ->  | J61: =IF(G61<='MC ANALISIS INTERNO'!$F$100,$D$34*(H61/((SUM($B$45:$B$74))+(SUM($H$45:$H$74))+(SUM($N$45:$N$74)))),"") ->  | K61: =IF(J61=0,I61+J61,IF(G61<='MC ANALISIS INTERNO'!$F$100,I61+J61,"")) ->  | M61: 77 | N61: =DISEÑO!N45 ->  | O61: =DISEÑO!N117 ->  | P61: =IF(M61<='MC ANALISIS INTERNO'!$F$100,$D$34*(N61/((SUM($B$45:$B$74))+(SUM($H$45:$H$74))+(SUM($N$45:$N$74)))),"") ->  | Q61: =IF(P61=0,O61+P61,IF(M61<='MC ANALISIS INTERNO'!$F$100,O61+P61,"")) -> 
A62: 18 | B62: =DISEÑO!D46 ->  | C62: ='MC ANALISIS INTERNO'!D120 ->  | D62: =IF(A62<='MC ANALISIS INTERNO'!$F$100,$D$34*(B62/((SUM($B$45:$B$74))+(SUM($H$45:$H$74))+(SUM($N$45:$N$74)))),"") ->  | E62: =IF(D62=0,C62+D62,IF(A62<='MC ANALISIS INTERNO'!$F$100,C62+D62,"")) ->  | G62: 48 | H62: =DISEÑO!I46 ->  | I62: =DISEÑO!I118 ->  | J62: =IF(G62<='MC ANALISIS INTERNO'!$F$100,$D$34*(H62/((SUM($B$45:$B$74))+(SUM($H$45:$H$74))+(SUM($N$45:$N$74)))),"") ->  | K62: =IF(J62=0,I62+J62,IF(G62<='MC ANALISIS INTERNO'!$F$100,I62+J62,"")) ->  | M62: 78 | N62: =DISEÑO!N46 ->  | O62: =DISEÑO!N118 ->  | P62: =IF(M62<='MC ANALISIS INTERNO'!$F$100,$D$34*(N62/((SUM($B$45:$B$74))+(SUM($H$45:$H$74))+(SUM($N$45:$N$74)))),"") ->  | Q62: =IF(P62=0,O62+P62,IF(M62<='MC ANALISIS INTERNO'!$F$100,O62+P62,"")) -> 
A63: 19 | B63: =DISEÑO!D47 ->  | C63: ='MC ANALISIS INTERNO'!D121 ->  | D63: =IF(A63<='MC ANALISIS INTERNO'!$F$100,$D$34*(B63/((SUM($B$45:$B$74))+(SUM($H$45:$H$74))+(SUM($N$45:$N$74)))),"") ->  | E63: =IF(D63=0,C63+D63,IF(A63<='MC ANALISIS INTERNO'!$F$100,C63+D63,"")) ->  | G63: 49 | H63: =DISEÑO!I47 ->  | I63: =DISEÑO!I119 ->  | J63: =IF(G63<='MC ANALISIS INTERNO'!$F$100,$D$34*(H63/((SUM($B$45:$B$74))+(SUM($H$45:$H$74))+(SUM($N$45:$N$74)))),"") ->  | K63: =IF(J63=0,I63+J63,IF(G63<='MC ANALISIS INTERNO'!$F$100,I63+J63,"")) ->  | M63: 79 | N63: =DISEÑO!N47 ->  | O63: =DISEÑO!N119 ->  | P63: =IF(M63<='MC ANALISIS INTERNO'!$F$100,$D$34*(N63/((SUM($B$45:$B$74))+(SUM($H$45:$H$74))+(SUM($N$45:$N$74)))),"") ->  | Q63: =IF(P63=0,O63+P63,IF(M63<='MC ANALISIS INTERNO'!$F$100,O63+P63,"")) -> 
A64: 20 | B64: =DISEÑO!D48 ->  | C64: ='MC ANALISIS INTERNO'!D122 ->  | D64: =IF(A64<='MC ANALISIS INTERNO'!$F$100,$D$34*(B64/((SUM($B$45:$B$74))+(SUM($H$45:$H$74))+(SUM($N$45:$N$74)))),"") ->  | E64: =IF(D64=0,C64+D64,IF(A64<='MC ANALISIS INTERNO'!$F$100,C64+D64,"")) ->  | G64: 50 | H64: =DISEÑO!I48 ->  | I64: =DISEÑO!I120 ->  | J64: =IF(G64<='MC ANALISIS INTERNO'!$F$100,$D$34*(H64/((SUM($B$45:$B$74))+(SUM($H$45:$H$74))+(SUM($N$45:$N$74)))),"") ->  | K64: =IF(J64=0,I64+J64,IF(G64<='MC ANALISIS INTERNO'!$F$100,I64+J64,"")) ->  | M64: 80 | N64: =DISEÑO!N48 ->  | O64: =DISEÑO!N120 ->  | P64: =IF(M64<='MC ANALISIS INTERNO'!$F$100,$D$34*(N64/((SUM($B$45:$B$74))+(SUM($H$45:$H$74))+(SUM($N$45:$N$74)))),"") ->  | Q64: =IF(P64=0,O64+P64,IF(M64<='MC ANALISIS INTERNO'!$F$100,O64+P64,"")) -> 
A65: 21 | B65: =DISEÑO!D49 ->  | C65: ='MC ANALISIS INTERNO'!D123 ->  | D65: =IF(A65<='MC ANALISIS INTERNO'!$F$100,$D$34*(B65/((SUM($B$45:$B$74))+(SUM($H$45:$H$74))+(SUM($N$45:$N$74)))),"") ->  | E65: =IF(D65=0,C65+D65,IF(A65<='MC ANALISIS INTERNO'!$F$100,C65+D65,"")) ->  | G65: 51 | H65: =DISEÑO!I49 ->  | I65: =DISEÑO!I121 ->  | J65: =IF(G65<='MC ANALISIS INTERNO'!$F$100,$D$34*(H65/((SUM($B$45:$B$74))+(SUM($H$45:$H$74))+(SUM($N$45:$N$74)))),"") ->  | K65: =IF(J65=0,I65+J65,IF(G65<='MC ANALISIS INTERNO'!$F$100,I65+J65,"")) ->  | M65: 81 | N65: =DISEÑO!N49 ->  | O65: =DISEÑO!N121 ->  | P65: =IF(M65<='MC ANALISIS INTERNO'!$F$100,$D$34*(N65/((SUM($B$45:$B$74))+(SUM($H$45:$H$74))+(SUM($N$45:$N$74)))),"") ->  | Q65: =IF(P65=0,O65+P65,IF(M65<='MC ANALISIS INTERNO'!$F$100,O65+P65,"")) -> 
A66: 22 | B66: =DISEÑO!D50 ->  | C66: ='MC ANALISIS INTERNO'!D124 ->  | D66: =IF(A66<='MC ANALISIS INTERNO'!$F$100,$D$34*(B66/((SUM($B$45:$B$74))+(SUM($H$45:$H$74))+(SUM($N$45:$N$74)))),"") ->  | E66: =IF(D66=0,C66+D66,IF(A66<='MC ANALISIS INTERNO'!$F$100,C66+D66,"")) ->  | G66: 52 | H66: =DISEÑO!I50 ->  | I66: =DISEÑO!I122 ->  | J66: =IF(G66<='MC ANALISIS INTERNO'!$F$100,$D$34*(H66/((SUM($B$45:$B$74))+(SUM($H$45:$H$74))+(SUM($N$45:$N$74)))),"") ->  | K66: =IF(J66=0,I66+J66,IF(G66<='MC ANALISIS INTERNO'!$F$100,I66+J66,"")) ->  | M66: 82 | N66: =DISEÑO!N50 ->  | O66: =DISEÑO!N122 ->  | P66: =IF(M66<='MC ANALISIS INTERNO'!$F$100,$D$34*(N66/((SUM($B$45:$B$74))+(SUM($H$45:$H$74))+(SUM($N$45:$N$74)))),"") ->  | Q66: =IF(P66=0,O66+P66,IF(M66<='MC ANALISIS INTERNO'!$F$100,O66+P66,"")) -> 
A67: 23 | B67: =DISEÑO!D51 ->  | C67: ='MC ANALISIS INTERNO'!D125 ->  | D67: =IF(A67<='MC ANALISIS INTERNO'!$F$100,$D$34*(B67/((SUM($B$45:$B$74))+(SUM($H$45:$H$74))+(SUM($N$45:$N$74)))),"") ->  | E67: =IF(D67=0,C67+D67,IF(A67<='MC ANALISIS INTERNO'!$F$100,C67+D67,"")) ->  | G67: 53 | H67: =DISEÑO!I51 ->  | I67: =DISEÑO!I123 ->  | J67: =IF(G67<='MC ANALISIS INTERNO'!$F$100,$D$34*(H67/((SUM($B$45:$B$74))+(SUM($H$45:$H$74))+(SUM($N$45:$N$74)))),"") ->  | K67: =IF(J67=0,I67+J67,IF(G67<='MC ANALISIS INTERNO'!$F$100,I67+J67,"")) ->  | M67: 83 | N67: =DISEÑO!N51 ->  | O67: =DISEÑO!N123 ->  | P67: =IF(M67<='MC ANALISIS INTERNO'!$F$100,$D$34*(N67/((SUM($B$45:$B$74))+(SUM($H$45:$H$74))+(SUM($N$45:$N$74)))),"") ->  | Q67: =IF(P67=0,O67+P67,IF(M67<='MC ANALISIS INTERNO'!$F$100,O67+P67,"")) -> 
A68: 24 | B68: =DISEÑO!D52 ->  | C68: ='MC ANALISIS INTERNO'!D126 ->  | D68: =IF(A68<='MC ANALISIS INTERNO'!$F$100,$D$34*(B68/((SUM($B$45:$B$74))+(SUM($H$45:$H$74))+(SUM($N$45:$N$74)))),"") ->  | E68: =IF(D68=0,C68+D68,IF(A68<='MC ANALISIS INTERNO'!$F$100,C68+D68,"")) ->  | G68: 54 | H68: =DISEÑO!I52 ->  | I68: =DISEÑO!I124 ->  | J68: =IF(G68<='MC ANALISIS INTERNO'!$F$100,$D$34*(H68/((SUM($B$45:$B$74))+(SUM($H$45:$H$74))+(SUM($N$45:$N$74)))),"") ->  | K68: =IF(J68=0,I68+J68,IF(G68<='MC ANALISIS INTERNO'!$F$100,I68+J68,"")) ->  | M68: 84 | N68: =DISEÑO!N52 ->  | O68: =DISEÑO!N124 ->  | P68: =IF(M68<='MC ANALISIS INTERNO'!$F$100,$D$34*(N68/((SUM($B$45:$B$74))+(SUM($H$45:$H$74))+(SUM($N$45:$N$74)))),"") ->  | Q68: =IF(P68=0,O68+P68,IF(M68<='MC ANALISIS INTERNO'!$F$100,O68+P68,"")) -> 
A69: 25 | B69: =DISEÑO!D53 ->  | C69: ='MC ANALISIS INTERNO'!D127 ->  | D69: =IF(A69<='MC ANALISIS INTERNO'!$F$100,$D$34*(B69/((SUM($B$45:$B$74))+(SUM($H$45:$H$74))+(SUM($N$45:$N$74)))),"") ->  | E69: =IF(D69=0,C69+D69,IF(A69<='MC ANALISIS INTERNO'!$F$100,C69+D69,"")) ->  | G69: 55 | H69: =DISEÑO!I53 ->  | I69: =DISEÑO!I125 ->  | J69: =IF(G69<='MC ANALISIS INTERNO'!$F$100,$D$34*(H69/((SUM($B$45:$B$74))+(SUM($H$45:$H$74))+(SUM($N$45:$N$74)))),"") ->  | K69: =IF(J69=0,I69+J69,IF(G69<='MC ANALISIS INTERNO'!$F$100,I69+J69,"")) ->  | M69: 85 | N69: =DISEÑO!N53 ->  | O69: =DISEÑO!N125 ->  | P69: =IF(M69<='MC ANALISIS INTERNO'!$F$100,$D$34*(N69/((SUM($B$45:$B$74))+(SUM($H$45:$H$74))+(SUM($N$45:$N$74)))),"") ->  | Q69: =IF(P69=0,O69+P69,IF(M69<='MC ANALISIS INTERNO'!$F$100,O69+P69,"")) -> 
A70: 26 | B70: =DISEÑO!D54 ->  | C70: ='MC ANALISIS INTERNO'!D128 ->  | D70: =IF(A70<='MC ANALISIS INTERNO'!$F$100,$D$34*(B70/((SUM($B$45:$B$74))+(SUM($H$45:$H$74))+(SUM($N$45:$N$74)))),"") ->  | E70: =IF(D70=0,C70+D70,IF(A70<='MC ANALISIS INTERNO'!$F$100,C70+D70,"")) ->  | G70: 56 | H70: =DISEÑO!I54 ->  | I70: =DISEÑO!I126 ->  | J70: =IF(G70<='MC ANALISIS INTERNO'!$F$100,$D$34*(H70/((SUM($B$45:$B$74))+(SUM($H$45:$H$74))+(SUM($N$45:$N$74)))),"") ->  | K70: =IF(J70=0,I70+J70,IF(G70<='MC ANALISIS INTERNO'!$F$100,I70+J70,"")) ->  | M70: 86 | N70: =DISEÑO!N54 ->  | O70: =DISEÑO!N126 ->  | P70: =IF(M70<='MC ANALISIS INTERNO'!$F$100,$D$34*(N70/((SUM($B$45:$B$74))+(SUM($H$45:$H$74))+(SUM($N$45:$N$74)))),"") ->  | Q70: =IF(P70=0,O70+P70,IF(M70<='MC ANALISIS INTERNO'!$F$100,O70+P70,"")) -> 
A71: 27 | B71: =DISEÑO!D55 ->  | C71: ='MC ANALISIS INTERNO'!D129 ->  | D71: =IF(A71<='MC ANALISIS INTERNO'!$F$100,$D$34*(B71/((SUM($B$45:$B$74))+(SUM($H$45:$H$74))+(SUM($N$45:$N$74)))),"") ->  | E71: =IF(D71=0,C71+D71,IF(A71<='MC ANALISIS INTERNO'!$F$100,C71+D71,"")) ->  | G71: 57 | H71: =DISEÑO!I55 ->  | I71: =DISEÑO!I127 ->  | J71: =IF(G71<='MC ANALISIS INTERNO'!$F$100,$D$34*(H71/((SUM($B$45:$B$74))+(SUM($H$45:$H$74))+(SUM($N$45:$N$74)))),"") ->  | K71: =IF(J71=0,I71+J71,IF(G71<='MC ANALISIS INTERNO'!$F$100,I71+J71,"")) ->  | M71: 87 | N71: =DISEÑO!N55 ->  | O71: =DISEÑO!N127 ->  | P71: =IF(M71<='MC ANALISIS INTERNO'!$F$100,$D$34*(N71/((SUM($B$45:$B$74))+(SUM($H$45:$H$74))+(SUM($N$45:$N$74)))),"") ->  | Q71: =IF(P71=0,O71+P71,IF(M71<='MC ANALISIS INTERNO'!$F$100,O71+P71,"")) -> 
A72: 28 | B72: =DISEÑO!D56 ->  | C72: ='MC ANALISIS INTERNO'!D130 ->  | D72: =IF(A72<='MC ANALISIS INTERNO'!$F$100,$D$34*(B72/((SUM($B$45:$B$74))+(SUM($H$45:$H$74))+(SUM($N$45:$N$74)))),"") ->  | E72: =IF(D72=0,C72+D72,IF(A72<='MC ANALISIS INTERNO'!$F$100,C72+D72,"")) ->  | G72: 58 | H72: =DISEÑO!I56 ->  | I72: =DISEÑO!I128 ->  | J72: =IF(G72<='MC ANALISIS INTERNO'!$F$100,$D$34*(H72/((SUM($B$45:$B$74))+(SUM($H$45:$H$74))+(SUM($N$45:$N$74)))),"") ->  | K72: =IF(J72=0,I72+J72,IF(G72<='MC ANALISIS INTERNO'!$F$100,I72+J72,"")) ->  | M72: 88 | N72: =DISEÑO!N56 ->  | O72: =DISEÑO!N128 ->  | P72: =IF(M72<='MC ANALISIS INTERNO'!$F$100,$D$34*(N72/((SUM($B$45:$B$74))+(SUM($H$45:$H$74))+(SUM($N$45:$N$74)))),"") ->  | Q72: =IF(P72=0,O72+P72,IF(M72<='MC ANALISIS INTERNO'!$F$100,O72+P72,"")) -> 
A73: 29 | B73: =DISEÑO!D57 ->  | C73: ='MC ANALISIS INTERNO'!D131 ->  | D73: =IF(A73<='MC ANALISIS INTERNO'!$F$100,$D$34*(B73/((SUM($B$45:$B$74))+(SUM($H$45:$H$74))+(SUM($N$45:$N$74)))),"") ->  | E73: =IF(D73=0,C73+D73,IF(A73<='MC ANALISIS INTERNO'!$F$100,C73+D73,"")) ->  | G73: 59 | H73: =DISEÑO!I57 ->  | I73: =DISEÑO!I129 ->  | J73: =IF(G73<='MC ANALISIS INTERNO'!$F$100,$D$34*(H73/((SUM($B$45:$B$74))+(SUM($H$45:$H$74))+(SUM($N$45:$N$74)))),"") ->  | K73: =IF(J73=0,I73+J73,IF(G73<='MC ANALISIS INTERNO'!$F$100,I73+J73,"")) ->  | M73: 89 | N73: =DISEÑO!N57 ->  | O73: =DISEÑO!N129 ->  | P73: =IF(M73<='MC ANALISIS INTERNO'!$F$100,$D$34*(N73/((SUM($B$45:$B$74))+(SUM($H$45:$H$74))+(SUM($N$45:$N$74)))),"") ->  | Q73: =IF(P73=0,O73+P73,IF(M73<='MC ANALISIS INTERNO'!$F$100,O73+P73,"")) -> 
A74: 30 | B74: =DISEÑO!D58 ->  | C74: ='MC ANALISIS INTERNO'!D132 ->  | D74: =IF(A74<='MC ANALISIS INTERNO'!$F$100,$D$34*(B74/((SUM($B$45:$B$74))+(SUM($H$45:$H$74))+(SUM($N$45:$N$74)))),"") ->  | E74: =IF(D74=0,C74+D74,IF(A74<='MC ANALISIS INTERNO'!$F$100,C74+D74,"")) ->  | G74: 60 | H74: =DISEÑO!I58 ->  | I74: =DISEÑO!I130 ->  | J74: =IF(G74<='MC ANALISIS INTERNO'!$F$100,$D$34*(H74/((SUM($B$45:$B$74))+(SUM($H$45:$H$74))+(SUM($N$45:$N$74)))),"") ->  | K74: =IF(J74=0,I74+J74,IF(G74<='MC ANALISIS INTERNO'!$F$100,I74+J74,"")) ->  | M74: 90 | N74: =DISEÑO!N58 ->  | O74: =DISEÑO!N130 ->  | P74: =IF(M74<='MC ANALISIS INTERNO'!$F$100,$D$34*(N74/((SUM($B$45:$B$74))+(SUM($H$45:$H$74))+(SUM($N$45:$N$74)))),"") ->  | Q74: =IF(P74=0,O74+P74,IF(M74<='MC ANALISIS INTERNO'!$F$100,O74+P74,"")) -> 

Sheet DISEÑO FINAL
C1: METODOLOGÍA PARA DISEÑOS DE MUROS MECANICAMENTE ESTABILIZADOS
C3: MUROS CON RELLENOS HORIZONTALES
D10: DISEÑO FINAL
A23: NOTA: el diseño dado en la siguiente tabla esta dada mediante un espaciamiento vertical constante y un solo tipo de geosintético. Si se requiere un diseño combinando diferentes tipos de geosintético y variando los espacios que existen entre los refuerzos entonces dar click en "Diseño Alternativo", de lo contrario si esta de acuerdo con el diseño presentado a continuación, dar clik en "Reporte Final".
C33: DISEÑO POR CAPA DEL MURO MECANICAMENTE ESTABILIZADO
D34: Capa No. | E34: Zi (m) | F34: LT (m) | G34: Ttotal (KN/m)
D35: =IF(DISEÑO!B101="","",DISEÑO!A101) -> 1 | E35: =IF(DISEÑO!B29="","",DISEÑO!B29) -> 0.5 | F35: =IF(DISEÑO!C101="","",DISEÑO!C101) -> 3.413918796 | G35: =IF('DISEÑO POR SISMO'!E45="","",'DISEÑO POR SISMO'!E45) -> 8.89469756
D36: =IF(DISEÑO!B102="","",DISEÑO!A102) -> 2 | E36: =IF(DISEÑO!B30="","",DISEÑO!B30) -> 1 | F36: =IF(DISEÑO!C102="","",DISEÑO!C102) -> 2.576166235 | G36: =IF('DISEÑO POR SISMO'!E46="","",'DISEÑO POR SISMO'!E46) -> 9.250507563
D37: =IF(DISEÑO!B103="","",DISEÑO!A103) -> 3 | E37: =IF(DISEÑO!B31="","",DISEÑO!B31) -> 1.5 | F37: =IF(DISEÑO!C103="","",DISEÑO!C103) -> 2.2874911 | G37: =IF('DISEÑO POR SISMO'!E47="","",'DISEÑO POR SISMO'!E47) -> 10.75050756
D38: =IF(DISEÑO!B104="","",DISEÑO!A104) -> 4 | E38: =IF(DISEÑO!B32="","",DISEÑO!B32) -> 2 | F38: =IF(DISEÑO!C104="","",DISEÑO!C104) -> 1.998815966 | G38: =IF('DISEÑO POR SISMO'!E48="","",'DISEÑO POR SISMO'!E48) -> 12.25050756
D39: =IF(DISEÑO!B105="","",DISEÑO!A105) -> 5 | E39: =IF(DISEÑO!B33="","",DISEÑO!B33) -> 2.5 | F39: =IF(DISEÑO!C105="","",DISEÑO!C105) -> 1.710140831 | G39: =IF('DISEÑO POR SISMO'!E49="","",'DISEÑO POR SISMO'!E49) -> 13.75050756
D40: =IF(DISEÑO!B106="","",DISEÑO!A106) -> 6 | E40: =IF(DISEÑO!B34="","",DISEÑO!B34) -> 3 | F40: =IF(DISEÑO!C106="","",DISEÑO!C106) -> 1.421465697 | G40: =IF('DISEÑO POR SISMO'!E50="","",'DISEÑO POR SISMO'!E50) -> 15.25050756
D41: =IF(DISEÑO!B107="","",DISEÑO!A107) -> 7 | E41: =IF(DISEÑO!B35="","",DISEÑO!B35) -> 3.5 | F41: =IF(DISEÑO!C107="","",DISEÑO!C107) -> 1.132790562 | G41: =IF('DISEÑO POR SISMO'!E51="","",'DISEÑO POR SISMO'!E51) -> 16.75050756
D42: =IF(DISEÑO!B108="","",DISEÑO!A108) ->  | E42: =IF(DISEÑO!B36="","",DISEÑO!B36) ->  | F42: =IF(DISEÑO!C108="","",DISEÑO!C108) ->  | G42: =IF('DISEÑO POR SISMO'!E52="","",'DISEÑO POR SISMO'!E52) -> 
D43: =IF(DISEÑO!B109="","",DISEÑO!A109) ->  | E43: =IF(DISEÑO!B37="","",DISEÑO!B37) ->  | F43: =IF(DISEÑO!C109="","",DISEÑO!C109) ->  | G43: =IF('DISEÑO POR SISMO'!E53="","",'DISEÑO POR SISMO'!E53) -> 
D44: =IF(DISEÑO!B110="","",DISEÑO!A110) ->  | E44: =IF(DISEÑO!B38="","",DISEÑO!B38) ->  | F44: =IF(DISEÑO!C110="","",DISEÑO!C110) ->  | G44: =IF('DISEÑO POR SISMO'!E54="","",'DISEÑO POR SISMO'!E54) -> 
D45: =IF(DISEÑO!B111="","",DISEÑO!A111) ->  | E45: =IF(DISEÑO!B39="","",DISEÑO!B39) ->  | F45: =IF(DISEÑO!C111="","",DISEÑO!C111) ->  | G45: =IF('DISEÑO POR SISMO'!E55="","",'DISEÑO POR SISMO'!E55) -> 
D46: =IF(DISEÑO!B112="","",DISEÑO!A112) ->  | E46: =IF(DISEÑO!B40="","",DISEÑO!B40) ->  | F46: =IF(DISEÑO!C112="","",DISEÑO!C112) ->  | G46: =IF('DISEÑO POR SISMO'!E56="","",'DISEÑO POR SISMO'!E56) -> 
D47: =IF(DISEÑO!B113="","",DISEÑO!A113) ->  | E47: =IF(DISEÑO!B41="","",DISEÑO!B41) ->  | F47: =IF(DISEÑO!C113="","",DISEÑO!C113) ->  | G47: =IF('DISEÑO POR SISMO'!E57="","",'DISEÑO POR SISMO'!E57) -> 
D48: =IF(DISEÑO!B114="","",DISEÑO!A114) ->  | E48: =IF(DISEÑO!B42="","",DISEÑO!B42) ->  | F48: =IF(DISEÑO!C114="","",DISEÑO!C114) ->  | G48: =IF('DISEÑO POR SISMO'!E58="","",'DISEÑO POR SISMO'!E58) -> 
D49: =IF(DISEÑO!B115="","",DISEÑO!A115) ->  | E49: =IF(DISEÑO!B43="","",DISEÑO!B43) ->  | F49: =IF(DISEÑO!C115="","",DISEÑO!C115) ->  | G49: =IF('DISEÑO POR SISMO'!E59="","",'DISEÑO POR SISMO'!E59) -> 
D50: =IF(DISEÑO!B116="","",DISEÑO!A116) ->  | E50: =IF(DISEÑO!B44="","",DISEÑO!B44) ->  | F50: =IF(DISEÑO!C116="","",DISEÑO!C116) ->  | G50: =IF('DISEÑO POR SISMO'!E60="","",'DISEÑO POR SISMO'!E60) -> 
D51: =IF(DISEÑO!B117="","",DISEÑO!A117) ->  | E51: =IF(DISEÑO!B45="","",DISEÑO!B45) ->  | F51: =IF(DISEÑO!C117="","",DISEÑO!C117) ->  | G51: =IF('DISEÑO POR SISMO'!E61="","",'DISEÑO POR SISMO'!E61) -> 
D52: =IF(DISEÑO!B118="","",DISEÑO!A118) ->  | E52: =IF(DISEÑO!B46="","",DISEÑO!B46) ->  | F52: =IF(DISEÑO!C118="","",DISEÑO!C118) ->  | G52: =IF('DISEÑO POR SISMO'!E62="","",'DISEÑO POR SISMO'!E62) -> 
D53: =IF(DISEÑO!B119="","",DISEÑO!A119) ->  | E53: =IF(DISEÑO!B47="","",DISEÑO!B47) ->  | F53: =IF(DISEÑO!C119="","",DISEÑO!C119) ->  | G53: =IF('DISEÑO POR SISMO'!E63="","",'DISEÑO POR SISMO'!E63) -> 
D54: =IF(DISEÑO!B120="","",DISEÑO!A120) ->  | E54: =IF(DISEÑO!B48="","",DISEÑO!B48) ->  | F54: =IF(DISEÑO!C120="","",DISEÑO!C120) ->  | G54: =IF('DISEÑO POR SISMO'!E64="","",'DISEÑO POR SISMO'!E64) -> 
D55: =IF(DISEÑO!B121="","",DISEÑO!A121) ->  | E55: =IF(DISEÑO!B49="","",DISEÑO!B49) ->  | F55: =IF(DISEÑO!C121="","",DISEÑO!C121) ->  | G55: =IF('DISEÑO POR SISMO'!E65="","",'DISEÑO POR SISMO'!E65) -> 
D56: =IF(DISEÑO!B122="","",DISEÑO!A122) ->  | E56: =IF(DISEÑO!B50="","",DISEÑO!B50) ->  | F56: =IF(DISEÑO!C122="","",DISEÑO!C122) ->  | G56: =IF('DISEÑO POR SISMO'!E66="","",'DISEÑO POR SISMO'!E66) -> 
D57: =IF(DISEÑO!B123="","",DISEÑO!A123) ->  | E57: =IF(DISEÑO!B51="","",DISEÑO!B51) ->  | F57: =IF(DISEÑO!C123="","",DISEÑO!C123) ->  | G57: =IF('DISEÑO POR SISMO'!E67="","",'DISEÑO POR SISMO'!E67) -> 
D58: =IF(DISEÑO!B124="","",DISEÑO!A124) ->  | E58: =IF(DISEÑO!B52="","",DISEÑO!B52) ->  | F58: =IF(DISEÑO!C124="","",DISEÑO!C124) ->  | G58: =IF('DISEÑO POR SISMO'!E68="","",'DISEÑO POR SISMO'!E68) -> 
D59: =IF(DISEÑO!B125="","",DISEÑO!A125) ->  | E59: =IF(DISEÑO!B53="","",DISEÑO!B53) ->  | F59: =IF(DISEÑO!C125="","",DISEÑO!C125) ->  | G59: =IF('DISEÑO POR SISMO'!E69="","",'DISEÑO POR SISMO'!E69) -> 
D60: =IF(DISEÑO!B126="","",DISEÑO!A126) ->  | E60: =IF(DISEÑO!B54="","",DISEÑO!B54) ->  | F60: =IF(DISEÑO!C126="","",DISEÑO!C126) ->  | G60: =IF('DISEÑO POR SISMO'!E70="","",'DISEÑO POR SISMO'!E70) -> 
D61: =IF(DISEÑO!B127="","",DISEÑO!A127) ->  | E61: =IF(DISEÑO!B55="","",DISEÑO!B55) ->  | F61: =IF(DISEÑO!C127="","",DISEÑO!C127) ->  | G61: =IF('DISEÑO POR SISMO'!E71="","",'DISEÑO POR SISMO'!E71) -> 
D62: =IF(DISEÑO!B128="","",DISEÑO!A128) ->  | E62: =IF(DISEÑO!B56="","",DISEÑO!B56) ->  | F62: =IF(DISEÑO!C128="","",DISEÑO!C128) ->  | G62: =IF('DISEÑO POR SISMO'!E72="","",'DISEÑO POR SISMO'!E72) -> 
D63: =IF(DISEÑO!B129="","",DISEÑO!A129) ->  | E63: =IF(DISEÑO!B57="","",DISEÑO!B57) ->  | F63: =IF(DISEÑO!C129="","",DISEÑO!C129) ->  | G63: =IF('DISEÑO POR SISMO'!E73="","",'DISEÑO POR SISMO'!E73) -> 
D64: =IF(DISEÑO!B130="","",DISEÑO!A130) ->  | E64: =IF(DISEÑO!B58="","",DISEÑO!B58) ->  | F64: =IF(DISEÑO!C130="","",DISEÑO!C130) ->  | G64: =IF('DISEÑO POR SISMO'!E74="","",'DISEÑO POR SISMO'!E74) -> 
D65: =IF(DISEÑO!G101="","",DISEÑO!F101) ->  | E65: =IF(DISEÑO!G29="","",DISEÑO!G29) ->  | F65: =IF(DISEÑO!H101="","",DISEÑO!H101) ->  | G65: =IF('DISEÑO POR SISMO'!K45="","",'DISEÑO POR SISMO'!K45) -> 
D66: =IF(DISEÑO!G102="","",DISEÑO!F102) ->  | E66: =IF(DISEÑO!G30="","",DISEÑO!G30) ->  | F66: =IF(DISEÑO!H102="","",DISEÑO!H102) ->  | G66: =IF('DISEÑO POR SISMO'!K46="","",'DISEÑO POR SISMO'!K46) -> 
D67: =IF(DISEÑO!G103="","",DISEÑO!F103) ->  | E67: =IF(DISEÑO!G31="","",DISEÑO!G31) ->  | F67: =IF(DISEÑO!H103="","",DISEÑO!H103) ->  | G67: =IF('DISEÑO POR SISMO'!K47="","",'DISEÑO POR SISMO'!K47) -> 
D68: =IF(DISEÑO!G104="","",DISEÑO!F104) ->  | E68: =IF(DISEÑO!G32="","",DISEÑO!G32) ->  | F68: =IF(DISEÑO!H104="","",DISEÑO!H104) ->  | G68: =IF('DISEÑO POR SISMO'!K48="","",'DISEÑO POR SISMO'!K48) -> 
D69: =IF(DISEÑO!G105="","",DISEÑO!F105) ->  | E69: =IF(DISEÑO!G33="","",DISEÑO!G33) ->  | F69: =IF(DISEÑO!H105="","",DISEÑO!H105) ->  | G69: =IF('DISEÑO POR SISMO'!K49="","",'DISEÑO POR SISMO'!K49) -> 
D70: =IF(DISEÑO!G106="","",DISEÑO!F106) ->  | E70: =IF(DISEÑO!G34="","",DISEÑO!G34) ->  | F70: =IF(DISEÑO!H106="","",DISEÑO!H106) ->  | G70: =IF('DISEÑO POR SISMO'!K50="","",'DISEÑO POR SISMO'!K50) -> 
D71: =IF(DISEÑO!G107="","",DISEÑO!F107) ->  | E71: =IF(DISEÑO!G35="","",DISEÑO!G35) ->  | F71: =IF(DISEÑO!H107="","",DISEÑO!H107) ->  | G71: =IF('DISEÑO POR SISMO'!K51="","",'DISEÑO POR SISMO'!K51) -> 
D72: =IF(DISEÑO!G108="","",DISEÑO!F108) ->  | E72: =IF(DISEÑO!G36="","",DISEÑO!G36) ->  | F72: =IF(DISEÑO!H108="","",DISEÑO!H108) ->  | G72: =IF('DISEÑO POR SISMO'!K52="","",'DISEÑO POR SISMO'!K52) -> 
D73: =IF(DISEÑO!G109="","",DISEÑO!F109) ->  | E73: =IF(DISEÑO!G37="","",DISEÑO!G37) ->  | F73: =IF(DISEÑO!H109="","",DISEÑO!H109) ->  | G73: =IF('DISEÑO POR SISMO'!K53="","",'DISEÑO POR SISMO'!K53) -> 
D74: =IF(DISEÑO!G110="","",DISEÑO!F110) ->  | E74: =IF(DISEÑO!G38="","",DISEÑO!G38) ->  | F74: =IF(DISEÑO!H110="","",DISEÑO!H110) ->  | G74: =IF('DISEÑO POR SISMO'!K54="","",'DISEÑO POR SISMO'!K54) -> 
D75: =IF(DISEÑO!G111="","",DISEÑO!F111) ->  | E75: =IF(DISEÑO!G39="","",DISEÑO!G39) ->  | F75: =IF(DISEÑO!H111="","",DISEÑO!H111) ->  | G75: =IF('DISEÑO POR SISMO'!K55="","",'DISEÑO POR SISMO'!K55) -> 
D76: =IF(DISEÑO!G112="","",DISEÑO!F112) ->  | E76: =IF(DISEÑO!G40="","",DISEÑO!G40) ->  | F76: =IF(DISEÑO!H112="","",DISEÑO!H112) ->  | G76: =IF('DISEÑO POR SISMO'!K56="","",'DISEÑO POR SISMO'!K56) -> 
D77: =IF(DISEÑO!G113="","",DISEÑO!F113) ->  | E77: =IF(DISEÑO!G41="","",DISEÑO!G41) ->  | F77: =IF(DISEÑO!H113="","",DISEÑO!H113) ->  | G77: =IF('DISEÑO POR SISMO'!K57="","",'DISEÑO POR SISMO'!K57) -> 
D78: =IF(DISEÑO!G114="","",DISEÑO!F114) ->  | E78: =IF(DISEÑO!G42="","",DISEÑO!G42) ->  | F78: =IF(DISEÑO!H114="","",DISEÑO!H114) ->  | G78: =IF('DISEÑO POR SISMO'!K58="","",'DISEÑO POR SISMO'!K58) -> 
D79: =IF(DISEÑO!G115="","",DISEÑO!F115) ->  | E79: =IF(DISEÑO!G43="","",DISEÑO!G43) ->  | F79: =IF(DISEÑO!H115="","",DISEÑO!H115) ->  | G79: =IF('DISEÑO POR SISMO'!K59="","",'DISEÑO POR SISMO'!K59) -> 
D80: =IF(DISEÑO!G116="","",DISEÑO!F116) ->  | E80: =IF(DISEÑO!G44="","",DISEÑO!G44) ->  | F80: =IF(DISEÑO!H116="","",DISEÑO!H116) ->  | G80: =IF('DISEÑO POR SISMO'!K60="","",'DISEÑO POR SISMO'!K60) -> 
D81: =IF(DISEÑO!G117="","",DISEÑO!F117) ->  | E81: =IF(DISEÑO!G45="","",DISEÑO!G45) ->  | F81: =IF(DISEÑO!H117="","",DISEÑO!H117) ->  | G81: =IF('DISEÑO POR SISMO'!K61="","",'DISEÑO POR SISMO'!K61) -> 
D82: =IF(DISEÑO!G118="","",DISEÑO!F118) ->  | E82: =IF(DISEÑO!G46="","",DISEÑO!G46) ->  | F82: =IF(DISEÑO!H118="","",DISEÑO!H118) ->  | G82: =IF('DISEÑO POR SISMO'!K62="","",'DISEÑO POR SISMO'!K62) -> 
D83: =IF(DISEÑO!G119="","",DISEÑO!F119) ->  | E83: =IF(DISEÑO!G47="","",DISEÑO!G47) ->  | F83: =IF(DISEÑO!H119="","",DISEÑO!H119) ->  | G83: =IF('DISEÑO POR SISMO'!K63="","",'DISEÑO POR SISMO'!K63) -> 
D84: =IF(DISEÑO!G120="","",DISEÑO!F120) ->  | E84: =IF(DISEÑO!G48="","",DISEÑO!G48) ->  | F84: =IF(DISEÑO!H120="","",DISEÑO!H120) ->  | G84: =IF('DISEÑO POR SISMO'!K64="","",'DISEÑO POR SISMO'!K64) -> 
D85: =IF(DISEÑO!G121="","",DISEÑO!F121) ->  | E85: =IF(DISEÑO!G49="","",DISEÑO!G49) ->  | F85: =IF(DISEÑO!H121="","",DISEÑO!H121) ->  | G85: =IF('DISEÑO POR SISMO'!K65="","",'DISEÑO POR SISMO'!K65) -> 
D86: =IF(DISEÑO!G122="","",DISEÑO!F122) ->  | E86: =IF(DISEÑO!G50="","",DISEÑO!G50) ->  | F86: =IF(DISEÑO!H122="","",DISEÑO!H122) ->  | G86: =IF('DISEÑO POR SISMO'!K66="","",'DISEÑO POR SISMO'!K66) -> 
D87: =IF(DISEÑO!G123="","",DISEÑO!F123) ->  | E87: =IF(DISEÑO!G51="","",DISEÑO!G51) ->  | F87: =IF(DISEÑO!H123="","",DISEÑO!H123) ->  | G87: =IF('DISEÑO POR SISMO'!K67="","",'DISEÑO POR SISMO'!K67) -> 
D88: =IF(DISEÑO!G124="","",DISEÑO!F124) ->  | E88: =IF(DISEÑO!G52="","",DISEÑO!G52) ->  | F88: =IF(DISEÑO!H124="","",DISEÑO!H124) ->  | G88: =IF('DISEÑO POR SISMO'!K68="","",'DISEÑO POR SISMO'!K68) -> 
D89: =IF(DISEÑO!G125="","",DISEÑO!F125) ->  | E89: =IF(DISEÑO!G53="","",DISEÑO!G53) ->  | F89: =IF(DISEÑO!H125="","",DISEÑO!H125) ->  | G89: =IF('DISEÑO POR SISMO'!K69="","",'DISEÑO POR SISMO'!K69) -> 
D90: =IF(DISEÑO!G126="","",DISEÑO!F126) ->  | E90: =IF(DISEÑO!G54="","",DISEÑO!G54) ->  | F90: =IF(DISEÑO!H126="","",DISEÑO!H126) ->  | G90: =IF('DISEÑO POR SISMO'!K70="","",'DISEÑO POR SISMO'!K70) -> 
D91: =IF(DISEÑO!G127="","",DISEÑO!F127) ->  | E91: =IF(DISEÑO!G55="","",DISEÑO!G55) ->  | F91: =IF(DISEÑO!H127="","",DISEÑO!H127) ->  | G91: =IF('DISEÑO POR SISMO'!K71="","",'DISEÑO POR SISMO'!K71) -> 
D92: =IF(DISEÑO!G128="","",DISEÑO!F128) ->  | E92: =IF(DISEÑO!G56="","",DISEÑO!G56) ->  | F92: =IF(DISEÑO!H128="","",DISEÑO!H128) ->  | G92: =IF('DISEÑO POR SISMO'!K72="","",'DISEÑO POR SISMO'!K72) -> 
D93: =IF(DISEÑO!G129="","",DISEÑO!F129) ->  | E93: =IF(DISEÑO!G57="","",DISEÑO!G57) ->  | F93: =IF(DISEÑO!H129="","",DISEÑO!H129) ->  | G93: =IF('DISEÑO POR SISMO'!K73="","",'DISEÑO POR SISMO'!K73) -> 
D94: =IF(DISEÑO!G130="","",DISEÑO!F130) ->  | E94: =IF(DISEÑO!G58="","",DISEÑO!G58) ->  | F94: =IF(DISEÑO!H130="","",DISEÑO!H130) ->  | G94: =IF('DISEÑO POR SISMO'!K74="","",'DISEÑO POR SISMO'!K74) -> 
D95: =IF(DISEÑO!L101="","",DISEÑO!K101) ->  | E95: =IF(DISEÑO!L29="","",DISEÑO!L29) ->  | F95: =IF(DISEÑO!M101="","",DISEÑO!M101) ->  | G95: =IF('DISEÑO POR SISMO'!Q45="","",'DISEÑO POR SISMO'!Q45) -> 
D96: =IF(DISEÑO!L102="","",DISEÑO!K102) ->  | E96: =IF(DISEÑO!L30="","",DISEÑO!L30) ->  | F96: =IF(DISEÑO!M102="","",DISEÑO!M102) ->  | G96: =IF('DISEÑO POR SISMO'!Q46="","",'DISEÑO POR SISMO'!Q46) -> 
D97: =IF(DISEÑO!L103="","",DISEÑO!K103) ->  | E97: =IF(DISEÑO!L31="","",DISEÑO!L31) ->  | F97: =IF(DISEÑO!M103="","",DISEÑO!M103) ->  | G97: =IF('DISEÑO POR SISMO'!Q47="","",'DISEÑO POR SISMO'!Q47) -> 
D98: =IF(DISEÑO!L104="","",DISEÑO!K104) ->  | E98: =IF(DISEÑO!L32="","",DISEÑO!L32) ->  | F98: =IF(DISEÑO!M104="","",DISEÑO!M104) ->  | G98: =IF('DISEÑO POR SISMO'!Q48="","",'DISEÑO POR SISMO'!Q48) -> 
D99: =IF(DISEÑO!L105="","",DISEÑO!K105) ->  | E99: =IF(DISEÑO!L33="","",DISEÑO!L33) ->  | F99: =IF(DISEÑO!M105="","",DISEÑO!M105) ->  | G99: =IF('DISEÑO POR SISMO'!Q49="","",'DISEÑO POR SISMO'!Q49) -> 
D100: =IF(DISEÑO!L106="","",DISEÑO!K106) ->  | E100: =IF(DISEÑO!L34="","",DISEÑO!L34) ->  | F100: =IF(DISEÑO!M106="","",DISEÑO!M106) ->  | G100: =IF('DISEÑO POR SISMO'!Q50="","",'DISEÑO POR SISMO'!Q50) -> 
D101: =IF(DISEÑO!L107="","",DISEÑO!K107) ->  | E101: =IF(DISEÑO!L35="","",DISEÑO!L35) ->  | F101: =IF(DISEÑO!M107="","",DISEÑO!M107) ->  | G101: =IF('DISEÑO POR SISMO'!Q51="","",'DISEÑO POR SISMO'!Q51) -> 
D102: =IF(DISEÑO!L108="","",DISEÑO!K108) ->  | E102: =IF(DISEÑO!L36="","",DISEÑO!L36) ->  | F102: =IF(DISEÑO!M108="","",DISEÑO!M108) ->  | G102: =IF('DISEÑO POR SISMO'!Q52="","",'DISEÑO POR SISMO'!Q52) -> 
D103: =IF(DISEÑO!L109="","",DISEÑO!K109) ->  | E103: =IF(DISEÑO!L37="","",DISEÑO!L37) ->  | F103: =IF(DISEÑO!M109="","",DISEÑO!M109) ->  | G103: =IF('DISEÑO POR SISMO'!Q53="","",'DISEÑO POR SISMO'!Q53) -> 
D104: =IF(DISEÑO!L110="","",DISEÑO!K110) ->  | E104: =IF(DISEÑO!L38="","",DISEÑO!L38) ->  | F104: =IF(DISEÑO!M110="","",DISEÑO!M110) ->  | G104: =IF('DISEÑO POR SISMO'!Q54="","",'DISEÑO POR SISMO'!Q54) -> 
D105: =IF(DISEÑO!L111="","",DISEÑO!K111) ->  | E105: =IF(DISEÑO!L39="","",DISEÑO!L39) ->  | F105: =IF(DISEÑO!M111="","",DISEÑO!M111) ->  | G105: =IF('DISEÑO POR SISMO'!Q55="","",'DISEÑO POR SISMO'!Q55) -> 
D106: =IF(DISEÑO!L112="","",DISEÑO!K112) ->  | E106: =IF(DISEÑO!L40="","",DISEÑO!L40) ->  | F106: =IF(DISEÑO!M112="","",DISEÑO!M112) ->  | G106: =IF('DISEÑO POR SISMO'!Q56="","",'DISEÑO POR SISMO'!Q56) -> 
D107: =IF(DISEÑO!L113="","",DISEÑO!K113) ->  | E107: =IF(DISEÑO!L41="","",DISEÑO!L41) ->  | F107: =IF(DISEÑO!M113="","",DISEÑO!M113) ->  | G107: =IF('DISEÑO POR SISMO'!Q57="","",'DISEÑO POR SISMO'!Q57) -> 
D108: =IF(DISEÑO!L114="","",DISEÑO!K114) ->  | E108: =IF(DISEÑO!L42="","",DISEÑO!L42) ->  | F108: =IF(DISEÑO!M114="","",DISEÑO!M114) ->  | G108: =IF('DISEÑO POR SISMO'!Q58="","",'DISEÑO POR SISMO'!Q58) -> 
D109: =IF(DISEÑO!L115="","",DISEÑO!K115) ->  | E109: =IF(DISEÑO!L43="","",DISEÑO!L43) ->  | F109: =IF(DISEÑO!M115="","",DISEÑO!M115) ->  | G109: =IF('DISEÑO POR SISMO'!Q59="","",'DISEÑO POR SISMO'!Q59) -> 
D110: =IF(DISEÑO!L116="","",DISEÑO!K116) ->  | E110: =IF(DISEÑO!L44="","",DISEÑO!L44) ->  | F110: =IF(DISEÑO!M116="","",DISEÑO!M116) ->  | G110: =IF('DISEÑO POR SISMO'!Q60="","",'DISEÑO POR SISMO'!Q60) -> 
D111: =IF(DISEÑO!L117="","",DISEÑO!K117) ->  | E111: =IF(DISEÑO!L45="","",DISEÑO!L45) ->  | F111: =IF(DISEÑO!M117="","",DISEÑO!M117) ->  | G111: =IF('DISEÑO POR SISMO'!Q61="","",'DISEÑO POR SISMO'!Q61) -> 
D112: =IF(DISEÑO!L118="","",DISEÑO!K118) ->  | E112: =IF(DISEÑO!L46="","",DISEÑO!L46) ->  | F112: =IF(DISEÑO!M118="","",DISEÑO!M118) ->  | G112: =IF('DISEÑO POR SISMO'!Q62="","",'DISEÑO POR SISMO'!Q62) -> 
D113: =IF(DISEÑO!L119="","",DISEÑO!K119) ->  | E113: =IF(DISEÑO!L47="","",DISEÑO!L47) ->  | F113: =IF(DISEÑO!M119="","",DISEÑO!M119) ->  | G113: =IF('DISEÑO POR SISMO'!Q63="","",'DISEÑO POR SISMO'!Q63) -> 
D114: =IF(DISEÑO!L120="","",DISEÑO!K120) ->  | E114: =IF(DISEÑO!L48="","",DISEÑO!L48) ->  | F114: =IF(DISEÑO!M120="","",DISEÑO!M120) ->  | G114: =IF('DISEÑO POR SISMO'!Q64="","",'DISEÑO POR SISMO'!Q64) -> 
D115: =IF(DISEÑO!L121="","",DISEÑO!K121) ->  | E115: =IF(DISEÑO!L49="","",DISEÑO!L49) ->  | F115: =IF(DISEÑO!M121="","",DISEÑO!M121) ->  | G115: =IF('DISEÑO POR SISMO'!Q65="","",'DISEÑO POR SISMO'!Q65) -> 
D116: =IF(DISEÑO!L122="","",DISEÑO!K122) ->  | E116: =IF(DISEÑO!L50="","",DISEÑO!L50) ->  | F116: =IF(DISEÑO!M122="","",DISEÑO!M122) ->  | G116: =IF('DISEÑO POR SISMO'!Q66="","",'DISEÑO POR SISMO'!Q66) -> 
D117: =IF(DISEÑO!L123="","",DISEÑO!K123) ->  | E117: =IF(DISEÑO!L51="","",DISEÑO!L51) ->  | F117: =IF(DISEÑO!M123="","",DISEÑO!M123) ->  | G117: =IF('DISEÑO POR SISMO'!Q67="","",'DISEÑO POR SISMO'!Q67) -> 
D118: =IF(DISEÑO!L124="","",DISEÑO!K124) ->  | E118: =IF(DISEÑO!L52="","",DISEÑO!L52) ->  | F118: =IF(DISEÑO!M124="","",DISEÑO!M124) ->  | G118: =IF('DISEÑO POR SISMO'!Q68="","",'DISEÑO POR SISMO'!Q68) -> 
D119: =IF(DISEÑO!L125="","",DISEÑO!K125) ->  | E119: =IF(DISEÑO!L53="","",DISEÑO!L53) ->  | F119: =IF(DISEÑO!M125="","",DISEÑO!M125) ->  | G119: =IF('DISEÑO POR SISMO'!Q69="","",'DISEÑO POR SISMO'!Q69) -> 
D120: =IF(DISEÑO!L126="","",DISEÑO!K126) ->  | E120: =IF(DISEÑO!L54="","",DISEÑO!L54) ->  | F120: =IF(DISEÑO!M126="","",DISEÑO!M126) ->  | G120: =IF('DISEÑO POR SISMO'!Q70="","",'DISEÑO POR SISMO'!Q70) -> 
D121: =IF(DISEÑO!L127="","",DISEÑO!K127) ->  | E121: =IF(DISEÑO!L55="","",DISEÑO!L55) ->  | F121: =IF(DISEÑO!M127="","",DISEÑO!M127) ->  | G121: =IF('DISEÑO POR SISMO'!Q71="","",'DISEÑO POR SISMO'!Q71) -> 
D122: =IF(DISEÑO!L128="","",DISEÑO!K128) ->  | E122: =IF(DISEÑO!L56="","",DISEÑO!L56) ->  | F122: =IF(DISEÑO!M128="","",DISEÑO!M128) ->  | G122: =IF('DISEÑO POR SISMO'!Q72="","",'DISEÑO POR SISMO'!Q72) -> 
D123: =IF(DISEÑO!L129="","",DISEÑO!K129) ->  | E123: =IF(DISEÑO!L57="","",DISEÑO!L57) ->  | F123: =IF(DISEÑO!M129="","",DISEÑO!M129) ->  | G123: =IF('DISEÑO POR SISMO'!Q73="","",'DISEÑO POR SISMO'!Q73) -> 
D124: =IF(DISEÑO!L130="","",DISEÑO!K130) ->  | E124: =IF(DISEÑO!L58="","",DISEÑO!L58) ->  | F124: =IF(DISEÑO!M130="","",DISEÑO!M130) ->  | G124: =IF('DISEÑO POR SISMO'!Q74="","",'DISEÑO POR SISMO'!Q74) -> 
H127: =IF('DISEÑO POR SISMO'!Q71="","",'DISEÑO POR SISMO'!Q71) -> 
H128: =IF('DISEÑO POR SISMO'!Q72="","",'DISEÑO POR SISMO'!Q72) -> 
H129: =IF('DISEÑO POR SISMO'!Q73="","",'DISEÑO POR SISMO'!Q73) -> 
H130: =IF('DISEÑO POR SISMO'!Q74="","",'DISEÑO POR SISMO'!Q74) -> 

Sheet REPORTE FINAL
B1: METODOLOGÍA PARA DISEÑOS DE MUROS MECANICAMENTE ESTABILIZADOS
B3: MUROS CON RELLENOS HORIZONTALES
A11: REPORTE DE DISEÑO DE MURO MECANICAMENTE ESTABILIZADO CON GEOSINTÉTICOS
A13: NOMBRE DEL PROYECTO: | D13: CARRETERA MEXICO - PUEBLA
A14: NOMBRE DE LA EMPRESA: | D14: CIIASA
A15: NOMBRE DEL ANALISTA: | D15: M.I. JESUS ALBERTO GOMEZ RIVERA
A16: UBICACIÓN DEL PROYECTO: | D16: KM. 120+727.34 CARRETERA MEXICO PUEBLA
A17: DESCRIPCION DEL PROYECTO: | D17: SE HACE LA PROPUESTA DE LA ESTABILIZACION CON MUROS MECANICAMENTE ESTABILIZADOS
A21: DATOS DE PROYECTO:
B22: Altura: | C22: ='GEOMETRIA DEL MURO'!F10 -> 3.73 | D22: ='GEOMETRIA DEL MURO'!G10 -> m
B23: Propiedades de los suelos:
C24: ='PROPIEDADES DE LOS SUELOS'!B13 -> Suelo de cimentación o de desplante:
D25: Peso especifico gc = | E25: ='PROPIEDADES DE LOS SUELOS'!C14 -> 16.43 | F25: ='PROPIEDADES DE LOS SUELOS'!D14 -> KN/m3
D26: Cohesion Cc = | E26: ='PROPIEDADES DE LOS SUELOS'!C15 -> 99 | F26: ='PROPIEDADES DE LOS SUELOS'!D15 -> KN/m2
D27: Coeficiente de friccion ϕc = | E27: ='PROPIEDADES DE LOS SUELOS'!C16 -> 28 | F27: ='PROPIEDADES DE LOS SUELOS'!D16 -> °
C28: ='PROPIEDADES DE LOS SUELOS'!B18 -> Relleno retenido:
D29: gf = | E29: ='PROPIEDADES DE LOS SUELOS'!C19 -> 18 | F29: ='PROPIEDADES DE LOS SUELOS'!D19 -> KN/m3
D30: Cf = | E30: ='PROPIEDADES DE LOS SUELOS'!C20 -> 10 | F30: ='PROPIEDADES DE LOS SUELOS'!D20 -> KN/m2
D31: ϕf = | E31: ='PROPIEDADES DE LOS SUELOS'!C21 -> 30 | F31: ='PROPIEDADES DE LOS SUELOS'!D21 -> °
C32: ='PROPIEDADES DE LOS SUELOS'!B23 -> Masa de suelo reforzado:
D33: gr = | E33: ='PROPIEDADES DE LOS SUELOS'!C24 -> 18 | F33: ='PROPIEDADES DE LOS SUELOS'!D24 -> KN/m3
D34: Cr = | E34: ='PROPIEDADES DE LOS SUELOS'!C25 -> 10 | F34: ='PROPIEDADES DE LOS SUELOS'!D25 -> KN/m2
D35: ϕr = | E35: ='PROPIEDADES DE LOS SUELOS'!C26 -> 30 | F35: ='PROPIEDADES DE LOS SUELOS'!D26 -> °
B36: Propiedades del Geosintetico:
D37: Tipo de Geosintetico: | H37: ='PROPIEDADES DEL GEOSINTETICO'!C25 -> Geomalla
D38: Coeficiente de interacion Suelo/Refuerzo: | H38: ='PROPIEDADES DEL GEOSINTETICO'!B15 -> 0.66
D39: Coeficiente de friccion Suelo/Refuerzo: | H39: ='PROPIEDADES DEL GEOSINTETICO'!B30 -> 0
A41: CONDICIONES DE SEGURIDAD UTILIZADOS EN LA METODOLOGIA:
B42: =REVISION!A13 -> Condiciones para el análisis de estabilidad externa.
C43: =REVISION!$B$14 -> Condición de excentricidad "e": | H43: e ≤ L/6
C44: =REVISION!$B$27 -> Condición del Factor de Seguridad por deslizamiento del muro "F.S.des": | H44: 1.5
C45: =REVISION!$B$43 -> Condición del Factor de Seguridad por volteo del muro "F.S.V: | H45: 2.5
C46: =REVISION!A64 -> Condiciones para el análisis de estabilidad interna.
D47: =REVISION!B65 -> Condición del Esfuerzo Vertical: | H47: σv ≤ qa
D48: =REVISION!B77 -> Condición de factor de seguridad de la primera capa de refuerzo: | H48: 1.5
A50: Cargas aplicadas en el Muro Mecanicamente Estabilizado
A51: Carga distribuida provocada por el transito vehicular, o cualquier otra carga viva incluida en el muro: | H51: ='CARGAS DISTRIBUIDAS'!B13 -> 25 | I51: ='CARGAS DISTRIBUIDAS'!C13 -> KN/m · m
A52: Coeficiente de aceleracion Sismica : | H52: ='CARGAS DISTRIBUIDAS'!C39 -> 0.17
A53: Incremento de esfuerzo por cargas concentradas:
E54: Incremento Horizontal: | H54: ='CARGAS CONCENTRADAS'!$D$34 -> 0 | I54: ='CARGAS CONCENTRADAS'!$E$34 -> KN/m2
E55: Incremento Vertical: | H55: ='CARGAS CONCENTRADAS'!$D$59 -> 0 | I55: ='CARGAS CONCENTRADAS'!$E$59 -> KN/m2
A57: DISEÑO POR CAPA DEL MURO MECANICAMENTE ESTABILIZADO
A58: Capa No. | B58: Zi (m) | C58: La (m) | D58: Le (m) | E58: LT (m) | F58: T max (KN/m | G58: Tmd (KN/m) | H58: Ttotal KN/m | I58: Tipo de Geosintético
A59: ='DISEÑO FINAL'!D35 -> 1 | B59: ='DISEÑO FINAL'!E35 -> 0.5 | C59: =DISEÑO!C66 -> 1.864841369 | D59: =DISEÑO!D29 -> 1.549077427 | E59: ='DISEÑO FINAL'!F35 -> 3.413918796 | F59: =DISEÑO!D101 -> 5.666666667 | G59: ='DISEÑO POR SISMO'!D45 -> 3.228030894 | H59: ='DISEÑO FINAL'!G35 -> 8.89469756 | I59: =IF(B59="","",$H$37) -> Geomalla | J59: P-UX11
A60: ='DISEÑO FINAL'!D36 -> 2 | B60: ='DISEÑO FINAL'!E36 -> 1 | C60: =DISEÑO!C67 -> 1.576166235 | D60: =DISEÑO!D30 -> 1 | E60: ='DISEÑO FINAL'!F36 -> 2.576166235 | F60: =DISEÑO!D102 -> 7.166666667 | G60: ='DISEÑO POR SISMO'!D46 -> 2.083840896 | H60: ='DISEÑO FINAL'!G36 -> 9.250507563 | I60: Geomalla | J60: P-UX11
A61: ='DISEÑO FINAL'!D37 -> 3 | B61: ='DISEÑO FINAL'!E37 -> 1.5 | C61: =DISEÑO!C68 -> 1.2874911 | D61: =DISEÑO!D31 -> 1 | E61: ='DISEÑO FINAL'!F37 -> 2.2874911 | F61: =DISEÑO!D103 -> 8.666666667 | G61: ='DISEÑO POR SISMO'!D47 -> 2.083840896 | H61: ='DISEÑO FINAL'!G37 -> 10.75050756 | I61: Geomalla | J61: P-UX11
A62: ='DISEÑO FINAL'!D38 -> 4 | B62: ='DISEÑO FINAL'!E38 -> 2 | C62: =DISEÑO!C69 -> 0.9988159657 | D62: =DISEÑO!D32 -> 1 | E62: ='DISEÑO FINAL'!F38 -> 1.998815966 | F62: =DISEÑO!D104 -> 10.16666667 | G62: ='DISEÑO POR SISMO'!D48 -> 2.083840896 | H62: ='DISEÑO FINAL'!G38 -> 12.25050756 | I62: Geomalla | J62: P-UX11
A63: ='DISEÑO FINAL'!D39 -> 5 | B63: ='DISEÑO FINAL'!E39 -> 2.5 | C63: =DISEÑO!C70 -> 0.7101408311 | D63: =DISEÑO!D33 -> 1 | E63: ='DISEÑO FINAL'!F39 -> 1.710140831 | F63: =DISEÑO!D105 -> 11.66666667 | G63: ='DISEÑO POR SISMO'!D49 -> 2.083840896 | H63: ='DISEÑO FINAL'!G39 -> 13.75050756 | I63: Geomalla | J63: P-UX11
A64: ='DISEÑO FINAL'!D40 -> 6 | B64: ='DISEÑO FINAL'!E40 -> 3 | C64: =DISEÑO!C71 -> 0.4214656965 | D64: =DISEÑO!D34 -> 1 | E64: ='DISEÑO FINAL'!F40 -> 1.421465697 | F64: =DISEÑO!D106 -> 13.16666667 | G64: ='DISEÑO POR SISMO'!D50 -> 2.083840896 | H64: ='DISEÑO FINAL'!G40 -> 15.25050756 | I64: Geomalla | J64: P-UX11
A65: ='DISEÑO FINAL'!D41 -> 7 | B65: ='DISEÑO FINAL'!E41 -> 3.5 | C65: =DISEÑO!C72 -> 0.1327905619 | D65: =DISEÑO!D35 -> 1 | E65: ='DISEÑO FINAL'!F41 -> 1.132790562 | F65: =DISEÑO!D107 -> 14.66666667 | G65: ='DISEÑO POR SISMO'!D51 -> 2.083840896 | H65: ='DISEÑO FINAL'!G41 -> 16.75050756 | I65: Geomalla | J65: P-UX11
A66: ='DISEÑO FINAL'!D42 ->  | B66: ='DISEÑO FINAL'!E42 ->  | C66: =DISEÑO!C73 ->  | D66: =DISEÑO!D36 ->  | E66: ='DISEÑO FINAL'!F42 ->  | F66: =DISEÑO!D108 ->  | G66: ='DISEÑO POR SISMO'!D52 ->  | H66: ='DISEÑO FINAL'!G42 ->  | J66: P-UX11
A67: ='DISEÑO FINAL'!D43 ->  | B67: ='DISEÑO FINAL'!E43 ->  | C67: =DISEÑO!C74 ->  | D67: =DISEÑO!D37 ->  | E67: ='DISEÑO FINAL'!F43 ->  | F67: =DISEÑO!D109 ->  | G67: ='DISEÑO POR SISMO'!D53 ->  | H67: ='DISEÑO FINAL'!G43 ->  | J67: P-UX11
A68: ='DISEÑO FINAL'!D44 ->  | B68: ='DISEÑO FINAL'!E44 ->  | C68: =DISEÑO!C75 ->  | D68: =DISEÑO!D38 ->  | E68: ='DISEÑO FINAL'!F44 ->  | F68: =DISEÑO!D110 ->  | G68: ='DISEÑO POR SISMO'!D54 ->  | H68: ='DISEÑO FINAL'!G44 ->  | J68: P-UX14
A69: ='DISEÑO FINAL'!D45 ->  | B69: ='DISEÑO FINAL'!E45 ->  | C69: =DISEÑO!C76 ->  | D69: =DISEÑO!D39 ->  | E69: ='DISEÑO FINAL'!F45 ->  | F69: =DISEÑO!D111 ->  | G69: ='DISEÑO POR SISMO'!D55 ->  | H69: ='DISEÑO FINAL'!G45 ->  | J69: P-UX14
A70: ='DISEÑO FINAL'!D46 ->  | B70: ='DISEÑO FINAL'!E46 ->  | C70: =DISEÑO!C77 ->  | D70: =DISEÑO!D40 ->  | E70: ='DISEÑO FINAL'!F46 ->  | F70: =DISEÑO!D112 ->  | G70: ='DISEÑO POR SISMO'!D56 ->  | H70: ='DISEÑO FINAL'!G46 ->  | J70: P-UX14
A71: ='DISEÑO FINAL'!D47 ->  | B71: ='DISEÑO FINAL'!E47 ->  | C71: =DISEÑO!C78 ->  | D71: =DISEÑO!D41 ->  | E71: ='DISEÑO FINAL'!F47 ->  | F71: =DISEÑO!D113 ->  | G71: ='DISEÑO POR SISMO'!D57 ->  | H71: ='DISEÑO FINAL'!G47 ->  | J71: P-UX14
A72: ='DISEÑO FINAL'!D48 ->  | B72: ='DISEÑO FINAL'!E48 ->  | C72: =DISEÑO!C79 ->  | D72: =DISEÑO!D42 ->  | E72: ='DISEÑO FINAL'!F48 ->  | F72: =DISEÑO!D114 ->  | G72: ='DISEÑO POR SISMO'!D58 ->  | H72: ='DISEÑO FINAL'!G48 ->  | J72: P-UX14
A73: ='DISEÑO FINAL'!D49 ->  | B73: ='DISEÑO FINAL'!E49 ->  | C73: =DISEÑO!C80 ->  | D73: =DISEÑO!D43 ->  | E73: ='DISEÑO FINAL'!F49 ->  | F73: =DISEÑO!D115 ->  | G73: ='DISEÑO POR SISMO'!D59 ->  | H73: ='DISEÑO FINAL'!G49 ->  | J73: P-UX14
A74: ='DISEÑO FINAL'!D50 ->  | B74: ='DISEÑO FINAL'!E50 ->  | C74: =DISEÑO!C81 ->  | D74: =DISEÑO!D44 ->  | E74: ='DISEÑO FINAL'!F50 ->  | F74: =DISEÑO!D116 ->  | G74: ='DISEÑO POR SISMO'!D60 ->  | H74: ='DISEÑO FINAL'!G50 ->  | J74: P-UX14
A75: ='DISEÑO FINAL'!D51 ->  | B75: ='DISEÑO FINAL'!E51 ->  | C75: =DISEÑO!C82 ->  | D75: =DISEÑO!D45 ->  | E75: ='DISEÑO FINAL'!F51 ->  | F75: =DISEÑO!D117 ->  | G75: ='DISEÑO POR SISMO'!D61 ->  | H75: ='DISEÑO FINAL'!G51 ->  | J75: P-UX15
A76: ='DISEÑO FINAL'!D52 ->  | B76: ='DISEÑO FINAL'!E52 ->  | C76: =DISEÑO!C83 ->  | D76: =DISEÑO!D46 ->  | E76: ='DISEÑO FINAL'!F52 ->  | F76: =DISEÑO!D118 ->  | G76: ='DISEÑO POR SISMO'!D62 ->  | H76: ='DISEÑO FINAL'!G52 ->  | J76: P-UX15
A77: ='DISEÑO FINAL'!D53 ->  | B77: ='DISEÑO FINAL'!E53 ->  | C77: =DISEÑO!C84 ->  | D77: =DISEÑO!D47 ->  | E77: ='DISEÑO FINAL'!F53 ->  | F77: =DISEÑO!D119 ->  | G77: ='DISEÑO POR SISMO'!D63 ->  | H77: ='DISEÑO FINAL'!G53 ->  | J77: P-UX15
A78: ='DISEÑO FINAL'!D54 ->  | B78: ='DISEÑO FINAL'!E54 ->  | C78: =DISEÑO!C85 ->  | D78: =DISEÑO!D48 ->  | E78: ='DISEÑO FINAL'!F54 ->  | F78: =DISEÑO!D120 ->  | G78: ='DISEÑO POR SISMO'!D64 ->  | H78: ='DISEÑO FINAL'!G54 ->  | J78: P-UX15
A79: ='DISEÑO FINAL'!D55 ->  | B79: ='DISEÑO FINAL'!E55 ->  | C79: =DISEÑO!C86 ->  | D79: =DISEÑO!D49 ->  | E79: ='DISEÑO FINAL'!F55 ->  | F79: =DISEÑO!D121 ->  | G79: ='DISEÑO POR SISMO'!D65 ->  | H79: ='DISEÑO FINAL'!G55 ->  | J79: P-UX15
A80: ='DISEÑO FINAL'!D56 ->  | B80: ='DISEÑO FINAL'!E56 ->  | C80: =DISEÑO!C87 ->  | D80: =DISEÑO!D50 ->  | E80: ='DISEÑO FINAL'!F56 ->  | F80: =DISEÑO!D122 ->  | G80: ='DISEÑO POR SISMO'!D66 ->  | H80: ='DISEÑO FINAL'!G56 ->  | J80: P-UX15
A81: ='DISEÑO FINAL'!D57 ->  | B81: ='DISEÑO FINAL'!E57 ->  | C81: =DISEÑO!C88 ->  | D81: =DISEÑO!D51 ->  | E81: ='DISEÑO FINAL'!F57 ->  | F81: =DISEÑO!D123 ->  | G81: ='DISEÑO POR SISMO'!D67 ->  | H81: ='DISEÑO FINAL'!G57 ->  | J81: P-UX15
A82: ='DISEÑO FINAL'!D58 ->  | B82: ='DISEÑO FINAL'!E58 ->  | C82: =DISEÑO!C89 ->  | D82: =DISEÑO!D52 ->  | E82: ='DISEÑO FINAL'!F58 ->  | F82: =DISEÑO!D124 ->  | G82: ='DISEÑO POR SISMO'!D68 ->  | H82: ='DISEÑO FINAL'!G58 ->  | J82: P-UX15
A83: ='DISEÑO FINAL'!D59 ->  | B83: ='DISEÑO FINAL'!E59 ->  | C83: =DISEÑO!C90 ->  | D83: =DISEÑO!D53 ->  | E83: ='DISEÑO FINAL'!F59 ->  | F83: =DISEÑO!D125 ->  | G83: ='DISEÑO POR SISMO'!D69 ->  | H83: ='DISEÑO FINAL'!G59 ->  | J83: P-UX15
A84: ='DISEÑO FINAL'!D60 ->  | B84: ='DISEÑO FINAL'!E60 ->  | C84: =DISEÑO!C91 ->  | D84: =DISEÑO!D54 ->  | E84: ='DISEÑO FINAL'!F60 ->  | F84: =DISEÑO!D126 ->  | G84: ='DISEÑO POR SISMO'!D70 ->  | H84: ='DISEÑO FINAL'!G60 ->  | J84: P-UX15
A85: ='DISEÑO FINAL'!D61 ->  | B85: ='DISEÑO FINAL'!E61 ->  | C85: =DISEÑO!C92 ->  | D85: =DISEÑO!D55 ->  | E85: ='DISEÑO FINAL'!F61 ->  | F85: =DISEÑO!D127 ->  | G85: ='DISEÑO POR SISMO'!D71 ->  | H85: ='DISEÑO FINAL'!G61 ->  | J85: P-UX15
A86: ='DISEÑO FINAL'!D62 ->  | B86: ='DISEÑO FINAL'!E62 ->  | C86: =DISEÑO!C93 ->  | D86: =DISEÑO!D56 ->  | E86: ='DISEÑO FINAL'!F62 ->  | F86: =DISEÑO!D128 ->  | G86: ='DISEÑO POR SISMO'!D72 ->  | H86: ='DISEÑO FINAL'!G62 ->  | J86: P-UX15
A87: ='DISEÑO FINAL'!D63 ->  | B87: ='DISEÑO FINAL'!E63 ->  | C87: =DISEÑO!C94 ->  | D87: =DISEÑO!D57 ->  | E87: ='DISEÑO FINAL'!F63 ->  | F87: =DISEÑO!D129 ->  | G87: ='DISEÑO POR SISMO'!D73 ->  | H87: ='DISEÑO FINAL'!G63 ->  | J87: P-UX15
A88: ='DISEÑO FINAL'!D64 ->  | B88: ='DISEÑO FINAL'!E64 ->  | C88: =DISEÑO!C95 ->  | D88: =DISEÑO!D58 ->  | E88: ='DISEÑO FINAL'!F64 ->  | F88: =DISEÑO!D130 ->  | G88: ='DISEÑO POR SISMO'!D74 ->  | H88: ='DISEÑO FINAL'!G64 ->  | J88: P-UX15
A89: ='DISEÑO FINAL'!D65 ->  | B89: ='DISEÑO FINAL'!E65 ->  | C89: =DISEÑO!G66 ->  | D89: =DISEÑO!I29 ->  | E89: ='DISEÑO FINAL'!F65 ->  | F89: =DISEÑO!I101 ->  | G89: ='DISEÑO POR SISMO'!J45 ->  | H89: ='DISEÑO FINAL'!G65 ->  | J89: P-UX15
A90: ='DISEÑO FINAL'!D66 ->  | B90: ='DISEÑO FINAL'!E66 ->  | C90: =DISEÑO!G67 ->  | D90: =DISEÑO!I30 ->  | E90: ='DISEÑO FINAL'!F66 ->  | F90: =DISEÑO!I102 ->  | G90: ='DISEÑO POR SISMO'!J46 ->  | H90: ='DISEÑO FINAL'!G66 ->  | J90: P-UX15
A91: ='DISEÑO FINAL'!D67 ->  | B91: ='DISEÑO FINAL'!E67 ->  | C91: =DISEÑO!G68 ->  | D91: =DISEÑO!I31 ->  | E91: ='DISEÑO FINAL'!F67 ->  | F91: =DISEÑO!I103 ->  | G91: ='DISEÑO POR SISMO'!J47 ->  | H91: ='DISEÑO FINAL'!G67 ->  | I91: =IF(B91="","",$H$37) ->  | J91: P-UX15
A92: ='DISEÑO FINAL'!D68 ->  | B92: ='DISEÑO FINAL'!E68 ->  | C92: =DISEÑO!G69 ->  | D92: =DISEÑO!I32 ->  | E92: ='DISEÑO FINAL'!F68 ->  | F92: =DISEÑO!I104 ->  | G92: ='DISEÑO POR SISMO'!J48 ->  | H92: ='DISEÑO FINAL'!G68 ->  | J92: P-UX15
A93: ='DISEÑO FINAL'!D69 ->  | B93: ='DISEÑO FINAL'!E69 ->  | C93: =DISEÑO!G70 ->  | D93: =DISEÑO!I33 ->  | E93: ='DISEÑO FINAL'!F69 ->  | F93: =DISEÑO!I105 ->  | G93: ='DISEÑO POR SISMO'!J49 ->  | H93: ='DISEÑO FINAL'!G69 ->  | J93: P-UX15
A94: ='DISEÑO FINAL'!D70 ->  | B94: ='DISEÑO FINAL'!E70 ->  | C94: =DISEÑO!G71 ->  | D94: =DISEÑO!I34 ->  | E94: ='DISEÑO FINAL'!F70 ->  | F94: =DISEÑO!I106 ->  | G94: ='DISEÑO POR SISMO'!J50 ->  | H94: ='DISEÑO FINAL'!G70 ->  | J94: P-UX15
A95: ='DISEÑO FINAL'!D71 ->  | B95: ='DISEÑO FINAL'!E71 ->  | C95: =DISEÑO!G72 ->  | D95: =DISEÑO!I35 ->  | E95: ='DISEÑO FINAL'!F71 ->  | F95: =DISEÑO!I107 ->  | G95: ='DISEÑO POR SISMO'!J51 ->  | H95: ='DISEÑO FINAL'!G71 ->  | J95: P-UX15
A96: ='DISEÑO FINAL'!D72 ->  | B96: ='DISEÑO FINAL'!E72 ->  | C96: =DISEÑO!G73 ->  | D96: =DISEÑO!I36 ->  | E96: ='DISEÑO FINAL'!F72 ->  | F96: =DISEÑO!I108 ->  | G96: ='DISEÑO POR SISMO'!J52 ->  | H96: ='DISEÑO FINAL'!G72 ->  | J96: P-UX15
A97: ='DISEÑO FINAL'!D73 ->  | B97: ='DISEÑO FINAL'!E73 ->  | C97: =DISEÑO!G74 ->  | D97: =DISEÑO!I37 ->  | E97: ='DISEÑO FINAL'!F73 ->  | F97: =DISEÑO!I109 ->  | G97: ='DISEÑO POR SISMO'!J53 ->  | H97: ='DISEÑO FINAL'!G73 ->  | J97: P-UX15
A98: ='DISEÑO FINAL'!D74 ->  | B98: ='DISEÑO FINAL'!E74 ->  | C98: =DISEÑO!G75 ->  | D98: =DISEÑO!I38 ->  | E98: ='DISEÑO FINAL'!F74 ->  | F98: =DISEÑO!I110 ->  | G98: ='DISEÑO POR SISMO'!J54 ->  | H98: ='DISEÑO FINAL'!G74 ->  | J98: P-UX15
A99: ='DISEÑO FINAL'!D75 ->  | B99: ='DISEÑO FINAL'!E75 ->  | C99: =DISEÑO!G76 ->  | D99: =DISEÑO!I39 ->  | E99: ='DISEÑO FINAL'!F75 ->  | F99: =DISEÑO!I111 ->  | G99: ='DISEÑO POR SISMO'!J55 ->  | H99: ='DISEÑO FINAL'!G75 ->  | J99: P-UX16
A100: ='DISEÑO FINAL'!D76 ->  | B100: ='DISEÑO FINAL'!E76 ->  | C100: =DISEÑO!G77 ->  | D100: =DISEÑO!I40 ->  | E100: ='DISEÑO FINAL'!F76 ->  | F100: =DISEÑO!I112 ->  | G100: ='DISEÑO POR SISMO'!J56 ->  | H100: ='DISEÑO FINAL'!G76 ->  | J100: P-UX16
A101: ='DISEÑO FINAL'!D77 ->  | B101: ='DISEÑO FINAL'!E77 ->  | C101: =DISEÑO!G78 ->  | D101: =DISEÑO!I41 ->  | E101: ='DISEÑO FINAL'!F77 ->  | F101: =DISEÑO!I113 ->  | G101: ='DISEÑO POR SISMO'!J57 ->  | H101: ='DISEÑO FINAL'!G77 ->  | J101: P-UX16
A102: ='DISEÑO FINAL'!D78 ->  | B102: ='DISEÑO FINAL'!E78 ->  | C102: =DISEÑO!G79 ->  | D102: =DISEÑO!I42 ->  | E102: ='DISEÑO FINAL'!F78 ->  | F102: =DISEÑO!I114 ->  | G102: ='DISEÑO POR SISMO'!J58 ->  | H102: ='DISEÑO FINAL'!G78 ->  | J102: P-UX16
A103: ='DISEÑO FINAL'!D79 ->  | B103: ='DISEÑO FINAL'!E79 ->  | C103: =DISEÑO!G80 ->  | D103: =DISEÑO!I43 ->  | E103: ='DISEÑO FINAL'!F79 ->  | F103: =DISEÑO!I115 ->  | G103: ='DISEÑO POR SISMO'!J59 ->  | H103: ='DISEÑO FINAL'!G79 ->  | J103: P-UX16
A104: ='DISEÑO FINAL'!D80 ->  | B104: ='DISEÑO FINAL'!E80 ->  | C104: =DISEÑO!G81 ->  | D104: =DISEÑO!I44 ->  | E104: ='DISEÑO FINAL'!F80 ->  | F104: =DISEÑO!I116 ->  | G104: ='DISEÑO POR SISMO'!J60 ->  | H104: ='DISEÑO FINAL'!G80 ->  | J104: P-UX16
A105: ='DISEÑO FINAL'!D81 ->  | B105: ='DISEÑO FINAL'!E81 ->  | C105: =DISEÑO!G82 ->  | D105: =DISEÑO!I45 ->  | E105: ='DISEÑO FINAL'!F81 ->  | F105: =DISEÑO!I117 ->  | G105: ='DISEÑO POR SISMO'!J61 ->  | H105: ='DISEÑO FINAL'!G81 ->  | J105: P-UX16
A106: ='DISEÑO FINAL'!D82 ->  | B106: ='DISEÑO FINAL'!E82 ->  | C106: =DISEÑO!G83 ->  | D106: =DISEÑO!I46 ->  | E106: ='DISEÑO FINAL'!F82 ->  | F106: =DISEÑO!I118 ->  | G106: ='DISEÑO POR SISMO'!J62 ->  | H106: ='DISEÑO FINAL'!G82 ->  | J106: P-UX16
A107: ='DISEÑO FINAL'!D83 ->  | B107: ='DISEÑO FINAL'!E83 ->  | C107: =DISEÑO!G84 ->  | D107: =DISEÑO!I47 ->  | E107: ='DISEÑO FINAL'!F83 ->  | F107: =DISEÑO!I119 ->  | G107: ='DISEÑO POR SISMO'!J63 ->  | H107: ='DISEÑO FINAL'!G83 ->  | J107: P-UX16
A108: ='DISEÑO FINAL'!D84 ->  | B108: ='DISEÑO FINAL'!E84 ->  | C108: =DISEÑO!G85 ->  | D108: =DISEÑO!I48 ->  | E108: ='DISEÑO FINAL'!F84 ->  | F108: =DISEÑO!I120 ->  | G108: ='DISEÑO POR SISMO'!J64 ->  | H108: ='DISEÑO FINAL'!G84 ->  | J108: P-UX16
A109: ='DISEÑO FINAL'!D85 ->  | B109: ='DISEÑO FINAL'!E85 ->  | C109: =DISEÑO!G86 ->  | D109: =DISEÑO!I49 ->  | E109: ='DISEÑO FINAL'!F85 ->  | F109: =DISEÑO!I121 ->  | G109: ='DISEÑO POR SISMO'!J65 ->  | H109: ='DISEÑO FINAL'!G85 ->  | J109: P-UX16
A110: ='DISEÑO FINAL'!D86 ->  | B110: ='DISEÑO FINAL'!E86 ->  | C110: =DISEÑO!G87 ->  | D110: =DISEÑO!I50 ->  | E110: ='DISEÑO FINAL'!F86 ->  | F110: =DISEÑO!I122 ->  | G110: ='DISEÑO POR SISMO'!J66 ->  | H110: ='DISEÑO FINAL'!G86 ->  | J110: P-UX16
A111: ='DISEÑO FINAL'!D87 ->  | B111: ='DISEÑO FINAL'!E87 ->  | C111: =DISEÑO!G88 ->  | D111: =DISEÑO!I51 ->  | E111: ='DISEÑO FINAL'!F87 ->  | F111: =DISEÑO!I123 ->  | G111: ='DISEÑO POR SISMO'!J67 ->  | H111: ='DISEÑO FINAL'!G87 ->  | J111: P-UX16
A112: ='DISEÑO FINAL'!D88 ->  | B112: ='DISEÑO FINAL'!E88 ->  | C112: =DISEÑO!G89 ->  | D112: =DISEÑO!I52 ->  | E112: ='DISEÑO FINAL'!F88 ->  | F112: =DISEÑO!I124 ->  | G112: ='DISEÑO POR SISMO'!J68 ->  | H112: ='DISEÑO FINAL'!G88 ->  | J112: P-UX16
A113: ='DISEÑO FINAL'!D89 ->  | B113: ='DISEÑO FINAL'!E89 ->  | C113: =DISEÑO!G90 ->  | D113: =DISEÑO!I53 ->  | E113: ='DISEÑO FINAL'!F89 ->  | F113: =DISEÑO!I125 ->  | G113: ='DISEÑO POR SISMO'!J69 ->  | H113: ='DISEÑO FINAL'!G89 ->  | J113: P-UX16
A114: ='DISEÑO FINAL'!D90 ->  | B114: ='DISEÑO FINAL'!E90 ->  | C114: =DISEÑO!G91 ->  | D114: =DISEÑO!I54 ->  | E114: ='DISEÑO FINAL'!F90 ->  | F114: =DISEÑO!I126 ->  | G114: ='DISEÑO POR SISMO'!J70 ->  | H114: ='DISEÑO FINAL'!G90 ->  | J114: P-UX16
A115: ='DISEÑO FINAL'!D91 ->  | B115: ='DISEÑO FINAL'!E91 ->  | C115: =DISEÑO!G92 ->  | D115: =DISEÑO!I55 ->  | E115: ='DISEÑO FINAL'!F91 ->  | F115: =DISEÑO!I127 ->  | G115: ='DISEÑO POR SISMO'!J71 ->  | H115: ='DISEÑO FINAL'!G91 ->  | J115: P-UX17
A116: ='DISEÑO FINAL'!D92 ->  | B116: ='DISEÑO FINAL'!E92 ->  | C116: =DISEÑO!G93 ->  | D116: =DISEÑO!I56 ->  | E116: ='DISEÑO FINAL'!F92 ->  | F116: =DISEÑO!I128 ->  | G116: ='DISEÑO POR SISMO'!J72 ->  | H116: ='DISEÑO FINAL'!G92 ->  | J116: P-UX17
A117: ='DISEÑO FINAL'!D93 ->  | B117: ='DISEÑO FINAL'!E93 ->  | C117: =DISEÑO!G94 ->  | D117: =DISEÑO!I57 ->  | E117: ='DISEÑO FINAL'!F93 ->  | F117: =DISEÑO!I129 ->  | G117: ='DISEÑO POR SISMO'!J73 ->  | H117: ='DISEÑO FINAL'!G93 ->  | J117: P-UX17
A118: ='DISEÑO FINAL'!D94 ->  | B118: ='DISEÑO FINAL'!E94 ->  | C118: =DISEÑO!G95 ->  | D118: =DISEÑO!I58 ->  | E118: ='DISEÑO FINAL'!F94 ->  | F118: =DISEÑO!I130 ->  | G118: ='DISEÑO POR SISMO'!J74 ->  | H118: ='DISEÑO FINAL'!G94 ->  | J118: P-UX17
A119: ='DISEÑO FINAL'!D95 ->  | B119: ='DISEÑO FINAL'!E95 ->  | C119: =DISEÑO!K66 ->  | D119: =DISEÑO!N29 ->  | E119: ='DISEÑO FINAL'!F95 ->  | F119: =DISEÑO!N101 ->  | G119: ='DISEÑO POR SISMO'!P45 ->  | H119: ='DISEÑO FINAL'!G95 ->  | J119: P-UX17
A120: ='DISEÑO FINAL'!D96 ->  | B120: ='DISEÑO FINAL'!E96 ->  | C120: =DISEÑO!K67 ->  | D120: =DISEÑO!N30 ->  | E120: ='DISEÑO FINAL'!F96 ->  | F120: =DISEÑO!N102 ->  | G120: ='DISEÑO POR SISMO'!P46 ->  | H120: ='DISEÑO FINAL'!G96 ->  | J120: P-UX17
A121: ='DISEÑO FINAL'!D97 ->  | B121: ='DISEÑO FINAL'!E97 ->  | C121: =DISEÑO!K68 ->  | D121: =DISEÑO!N31 ->  | E121: ='DISEÑO FINAL'!F97 ->  | F121: =DISEÑO!N103 ->  | G121: ='DISEÑO POR SISMO'!P47 ->  | H121: ='DISEÑO FINAL'!G97 ->  | J121: P-UX17
A122: ='DISEÑO FINAL'!D98 ->  | B122: ='DISEÑO FINAL'!E98 ->  | C122: =DISEÑO!K69 ->  | D122: =DISEÑO!N32 ->  | E122: ='DISEÑO FINAL'!F98 ->  | F122: =DISEÑO!N104 ->  | G122: ='DISEÑO POR SISMO'!P48 ->  | H122: ='DISEÑO FINAL'!G98 ->  | J122: P-UX17
A123: ='DISEÑO FINAL'!D99 ->  | B123: ='DISEÑO FINAL'!E99 ->  | C123: =DISEÑO!K70 ->  | D123: =DISEÑO!N33 ->  | E123: ='DISEÑO FINAL'!F99 ->  | F123: =DISEÑO!N105 ->  | G123: ='DISEÑO POR SISMO'!P49 ->  | H123: ='DISEÑO FINAL'!G99 ->  | I123: =IF(B123="","",$H$37) ->  | J123: P-UX17
A124: ='DISEÑO FINAL'!D100 ->  | B124: ='DISEÑO FINAL'!E100 ->  | C124: =DISEÑO!K71 ->  | D124: =DISEÑO!N34 ->  | E124: ='DISEÑO FINAL'!F100 ->  | F124: =DISEÑO!N106 ->  | G124: ='DISEÑO POR SISMO'!P50 ->  | H124: ='DISEÑO FINAL'!G100 ->  | J124: P-UX17
A125: ='DISEÑO FINAL'!D101 ->  | B125: ='DISEÑO FINAL'!E101 ->  | C125: =DISEÑO!K72 ->  | D125: =DISEÑO!N35 ->  | E125: ='DISEÑO FINAL'!F101 ->  | F125: =DISEÑO!N107 ->  | G125: ='DISEÑO POR SISMO'!P51 ->  | H125: ='DISEÑO FINAL'!G101 ->  | J125: P-UX17
A126: ='DISEÑO FINAL'!D102 ->  | B126: ='DISEÑO FINAL'!E102 ->  | C126: =DISEÑO!K73 ->  | D126: =DISEÑO!N36 ->  | E126: ='DISEÑO FINAL'!F102 ->  | F126: =DISEÑO!N108 ->  | G126: ='DISEÑO POR SISMO'!P52 ->  | H126: ='DISEÑO FINAL'!G102 ->  | J126: P-UX17
A127: ='DISEÑO FINAL'!D103 ->  | B127: ='DISEÑO FINAL'!E103 ->  | C127: =DISEÑO!K74 ->  | D127: =DISEÑO!N37 ->  | E127: ='DISEÑO FINAL'!F103 ->  | F127: =DISEÑO!N109 ->  | G127: ='DISEÑO POR SISMO'!P53 ->  | H127: ='DISEÑO FINAL'!G103 ->  | J127: P-UX17
A128: ='DISEÑO FINAL'!D104 ->  | B128: ='DISEÑO FINAL'!E104 ->  | C128: =DISEÑO!K75 ->  | D128: =DISEÑO!N38 ->  | E128: ='DISEÑO FINAL'!F104 ->  | F128: =DISEÑO!N110 ->  | G128: ='DISEÑO POR SISMO'!P54 ->  | H128: ='DISEÑO FINAL'!G104 ->  | J128: P-UX17
A129: ='DISEÑO FINAL'!D105 ->  | B129: ='DISEÑO FINAL'!E105 ->  | C129: =DISEÑO!K76 ->  | D129: =DISEÑO!N39 ->  | E129: ='DISEÑO FINAL'!F105 ->  | F129: =DISEÑO!N111 ->  | G129: ='DISEÑO POR SISMO'!P55 ->  | H129: ='DISEÑO FINAL'!G105 -> 
A130: ='DISEÑO FINAL'!D106 ->  | B130: ='DISEÑO FINAL'!E106 ->  | C130: =DISEÑO!K77 ->  | D130: =DISEÑO!N40 ->  | E130: ='DISEÑO FINAL'!F106 ->  | F130: =DISEÑO!N112 ->  | G130: ='DISEÑO POR SISMO'!P56 ->  | H130: ='DISEÑO FINAL'!G106 -> 
A131: ='DISEÑO FINAL'!D107 ->  | B131: ='DISEÑO FINAL'!E107 ->  | C131: =DISEÑO!K78 ->  | D131: =DISEÑO!N41 ->  | E131: ='DISEÑO FINAL'!F107 ->  | F131: =DISEÑO!N113 ->  | G131: ='DISEÑO POR SISMO'!P57 ->  | H131: ='DISEÑO FINAL'!G107 -> 
A132: ='DISEÑO FINAL'!D108 ->  | B132: ='DISEÑO FINAL'!E108 ->  | C132: =DISEÑO!K79 ->  | D132: =DISEÑO!N42 ->  | E132: ='DISEÑO FINAL'!F108 ->  | F132: =DISEÑO!N114 ->  | G132: ='DISEÑO POR SISMO'!P58 ->  | H132: ='DISEÑO FINAL'!G108 -> 
A133: ='DISEÑO FINAL'!D109 ->  | B133: ='DISEÑO FINAL'!E109 ->  | C133: =DISEÑO!K80 ->  | D133: =DISEÑO!N43 ->  | E133: ='DISEÑO FINAL'!F109 ->  | F133: =DISEÑO!N115 ->  | G133: ='DISEÑO POR SISMO'!P59 ->  | H133: ='DISEÑO FINAL'!G109 -> 
A134: ='DISEÑO FINAL'!D110 ->  | B134: ='DISEÑO FINAL'!E110 ->  | C134: =DISEÑO!K81 ->  | D134: =DISEÑO!N44 ->  | E134: ='DISEÑO FINAL'!F110 ->  | F134: =DISEÑO!N116 ->  | G134: ='DISEÑO POR SISMO'!P60 ->  | H134: ='DISEÑO FINAL'!G110 -> 
A135: ='DISEÑO FINAL'!D111 ->  | B135: ='DISEÑO FINAL'!E111 ->  | C135: =DISEÑO!K82 ->  | D135: =DISEÑO!N45 ->  | E135: ='DISEÑO FINAL'!F111 ->  | F135: =DISEÑO!N117 ->  | G135: ='DISEÑO POR SISMO'!P61 ->  | H135: ='DISEÑO FINAL'!G111 -> 
A136: ='DISEÑO FINAL'!D112 ->  | B136: ='DISEÑO FINAL'!E112 ->  | C136: =DISEÑO!K83 ->  | D136: =DISEÑO!N46 ->  | E136: ='DISEÑO FINAL'!F112 ->  | F136: =DISEÑO!N118 ->  | G136: ='DISEÑO POR SISMO'!P62 ->  | H136: ='DISEÑO FINAL'!G112 -> 
A137: ='DISEÑO FINAL'!D113 ->  | B137: ='DISEÑO FINAL'!E113 ->  | C137: =DISEÑO!K84 ->  | D137: =DISEÑO!N47 ->  | E137: ='DISEÑO FINAL'!F113 ->  | F137: =DISEÑO!N119 ->  | G137: ='DISEÑO POR SISMO'!P63 ->  | H137: ='DISEÑO FINAL'!G113 -> 
A138: ='DISEÑO FINAL'!D114 ->  | B138: ='DISEÑO FINAL'!E114 ->  | C138: =DISEÑO!K85 ->  | D138: =DISEÑO!N48 ->  | E138: ='DISEÑO FINAL'!F114 ->  | F138: =DISEÑO!N120 ->  | G138: ='DISEÑO POR SISMO'!P64 ->  | H138: ='DISEÑO FINAL'!G114 -> 
A139: ='DISEÑO FINAL'!D115 ->  | B139: ='DISEÑO FINAL'!E115 ->  | C139: =DISEÑO!K86 ->  | D139: =DISEÑO!N49 ->  | E139: ='DISEÑO FINAL'!F115 ->  | F139: =DISEÑO!N121 ->  | G139: ='DISEÑO POR SISMO'!P65 ->  | H139: ='DISEÑO FINAL'!G115 -> 
A140: ='DISEÑO FINAL'!D116 ->  | B140: ='DISEÑO FINAL'!E116 ->  | C140: =DISEÑO!K87 ->  | D140: =DISEÑO!N50 ->  | E140: ='DISEÑO FINAL'!F116 ->  | F140: =DISEÑO!N122 ->  | G140: ='DISEÑO POR SISMO'!P66 ->  | H140: ='DISEÑO FINAL'!G116 -> 
A141: ='DISEÑO FINAL'!D117 ->  | B141: ='DISEÑO FINAL'!E117 ->  | C141: =DISEÑO!K88 ->  | D141: =DISEÑO!N51 ->  | E141: ='DISEÑO FINAL'!F117 ->  | F141: =DISEÑO!N123 ->  | G141: ='DISEÑO POR SISMO'!P67 ->  | H141: ='DISEÑO FINAL'!G117 -> 
A142: ='DISEÑO FINAL'!D118 ->  | B142: ='DISEÑO FINAL'!E118 ->  | C142: =DISEÑO!K89 ->  | D142: =DISEÑO!N52 ->  | E142: ='DISEÑO FINAL'!F118 ->  | F142: =DISEÑO!N124 ->  | G142: ='DISEÑO POR SISMO'!P68 ->  | H142: ='DISEÑO FINAL'!G118 -> 
A143: ='DISEÑO FINAL'!D119 ->  | B143: ='DISEÑO FINAL'!E119 ->  | C143: =DISEÑO!K90 ->  | D143: =DISEÑO!N53 ->  | E143: ='DISEÑO FINAL'!F119 ->  | F143: =DISEÑO!N125 ->  | G143: ='DISEÑO POR SISMO'!P69 ->  | H143: ='DISEÑO FINAL'!G119 -> 
A144: ='DISEÑO FINAL'!D120 ->  | B144: ='DISEÑO FINAL'!E120 ->  | C144: =DISEÑO!K91 ->  | D144: =DISEÑO!N54 ->  | E144: ='DISEÑO FINAL'!F120 ->  | F144: =DISEÑO!N126 ->  | G144: ='DISEÑO POR SISMO'!P70 ->  | H144: ='DISEÑO FINAL'!G120 -> 
A145: ='DISEÑO FINAL'!D121 ->  | B145: ='DISEÑO FINAL'!E121 ->  | C145: =DISEÑO!K92 ->  | D145: =DISEÑO!N55 ->  | E145: ='DISEÑO FINAL'!F121 ->  | F145: =DISEÑO!N127 ->  | G145: ='DISEÑO POR SISMO'!P71 ->  | H145: ='DISEÑO FINAL'!G121 -> 
A146: ='DISEÑO FINAL'!D122 ->  | B146: ='DISEÑO FINAL'!E122 ->  | C146: =DISEÑO!K93 ->  | D146: =DISEÑO!N56 ->  | E146: ='DISEÑO FINAL'!F122 ->  | F146: =DISEÑO!N128 ->  | G146: ='DISEÑO POR SISMO'!P72 ->  | H146: ='DISEÑO FINAL'!G122 -> 
A147: ='DISEÑO FINAL'!D123 ->  | B147: ='DISEÑO FINAL'!E123 ->  | C147: =DISEÑO!K94 ->  | D147: =DISEÑO!N57 ->  | E147: ='DISEÑO FINAL'!F123 ->  | F147: =DISEÑO!N129 ->  | G147: ='DISEÑO POR SISMO'!P73 ->  | H147: ='DISEÑO FINAL'!G123 -> 
A148: ='DISEÑO FINAL'!D124 ->  | B148: ='DISEÑO FINAL'!E124 ->  | C148: =DISEÑO!K95 ->  | D148: =DISEÑO!N58 ->  | E148: ='DISEÑO FINAL'!F124 ->  | F148: =DISEÑO!N130 ->  | G148: ='DISEÑO POR SISMO'!P74 ->  | H148: ='DISEÑO FINAL'!G124 -> 

Sheet DISEÑO ALTERNATIVO
C1: METODOLOGÍA PARA DISEÑOS DE MUROS MECANICAMENTE ESTABILIZADOS
C3: MUROS CON RELLENOS HORIZONTALES
D10: DISEÑO ALTERNATIVO
A11: NOMBRE DEL PROYECTO: | D11: CARRETERA MEXICO - PUEBLA
A12: NOMBRE DE LA EMPRESA: | D12: CIIASA
A13: NOMBRE DEL ANALISTA: | D13: M.I. JESUS ALBERTO GOMEZ RIVERA
A14: UBICACIÓN DEL PROYECTO: | D14: KM. 120+727.34 CARRETERA MEXICO PUEBLA
A15: DESCRIPCION DEL PROYECTO: | D15: SE HACE LA PROPUESTA DE LA ESTABILIZACION CON MUROS MECANICAMENTE ESTABILIZADOS
A17: DATOS DE PROYECTO:
B18: Altura: | C18: ='GEOMETRIA DEL MURO'!F10 -> 3.73 | D18: ='GEOMETRIA DEL MURO'!G10 -> m
B19: Propiedades de los suelos:
C20: ='PROPIEDADES DE LOS SUELOS'!B13 -> Suelo de cimentación o de desplante:
D21: Peso especifico gc = | E21: ='PROPIEDADES DE LOS SUELOS'!C14 -> 16.43 | F21: ='PROPIEDADES DE LOS SUELOS'!D14 -> KN/m3
D22: Cohesión Cc = | E22: ='PROPIEDADES DE LOS SUELOS'!C15 -> 99 | F22: ='PROPIEDADES DE LOS SUELOS'!D15 -> KN/m2
D23: Coeficiente de fricción ϕc = | E23: ='PROPIEDADES DE LOS SUELOS'!C16 -> 28 | F23: ='PROPIEDADES DE LOS SUELOS'!D16 -> °
C24: ='PROPIEDADES DE LOS SUELOS'!B18 -> Relleno retenido:
D25: gf = | E25: ='PROPIEDADES DE LOS SUELOS'!C19 -> 18 | F25: ='PROPIEDADES DE LOS SUELOS'!D19 -> KN/m3
D26: Cf = | E26: ='PROPIEDADES DE LOS SUELOS'!C20 -> 10 | F26: ='PROPIEDADES DE LOS SUELOS'!D20 -> KN/m2
D27: ϕf = | E27: ='PROPIEDADES DE LOS SUELOS'!C21 -> 30 | F27: ='PROPIEDADES DE LOS SUELOS'!D21 -> °
C28: ='PROPIEDADES DE LOS SUELOS'!B23 -> Masa de suelo reforzado:
D29: gr = | E29: ='PROPIEDADES DE LOS SUELOS'!C24 -> 18 | F29: ='PROPIEDADES DE LOS SUELOS'!D24 -> KN/m3
D30: Cr = | E30: ='PROPIEDADES DE LOS SUELOS'!C25 -> 10 | F30: ='PROPIEDADES DE LOS SUELOS'!D25 -> KN/m2
D31: ϕr = | E31: ='PROPIEDADES DE LOS SUELOS'!C26 -> 30 | F31: ='PROPIEDADES DE LOS SUELOS'!D26 -> °
A33: CONDICIONES DE SEGURIDAD UTILIZADAS EN LA METODOLOGIA:
C34: =REVISION!A13 -> Condiciones para el análisis de estabilidad externa.
D35: =REVISION!B14 -> Condición de excentricidad "e": | K35: e ≤ L/6
D36: =REVISION!$B$27 -> Condición del Factor de Seguridad por deslizamiento del muro "F.S.des": | K36: 1.5
D37: =REVISION!$B$43 -> Condición del Factor de Seguridad por volteo del muro "F.S.V: | K37: 2.5
C38: =REVISION!A64 -> Condiciones para el análisis de estabilidad interna.
D39: =REVISION!B65 -> Condición del Esfuerzo Vertical: | K39: σv ≤ qa
D40: =REVISION!B77 -> Condición de factor de seguridad de la primera capa de refuerzo: | K40: 1.5
A42: Cargas aplicadas en el Muro Mecánicamente Estabilizado
B43: Carga distribuida provocada por el transito vehicular, o cualquier otra carga viva incluida en el muro: | K43: ='CARGAS DISTRIBUIDAS'!B13 -> 25 | L43: ='CARGAS DISTRIBUIDAS'!C13 -> KN/m · m
B44: Aceleración Sísmica : | K44: ='CARGAS DISTRIBUIDAS'!C39 -> 0.17
B45: Incremento de esfuerzo por cargas concentradas:
E46: Incremento Horizontal: | K46: ='CARGAS CONCENTRADAS'!$D$34 -> 0 | L46: ='CARGAS CONCENTRADAS'!$E$34 -> KN/m2
E47: Incremento Vertical: | K47: ='CARGAS CONCENTRADAS'!$D$59 -> 0 | L47: ='CARGAS CONCENTRADAS'!$E$59 -> KN/m2 | M47: Geomalla | N47: GEOMALLA
N48: GEOTEXTIL
A50: DISEÑO ALTERNATIVO DEL MURO MECANICAMENTE ESTABILIZADO
A51: Capa No. | B51: Er (m) | C51: Zi (m) | D51: Sv (m) | E51: H - Zi | F51: Tipo de Geosintético | G51: La (m) | H51: Le (m) | I51: Le ≥ 1 | J51: LT Teorico (m) | K51: LT Constructivo (m) | L51: T max (KN/m | M51: Tmd (KN/m) | N51: Ttotal KN/m | O51: ESPECIFICACION
A52: 1 | B52: 0.13 | C52: =IF(B52="","",B52) -> 0.13 | D52: =C52 -> 0.13 | E52: =IF(D52="","",$C$18-C52) -> 3.6 | F52: GEOTEXTIL | G52: =IF(F52="","",E52*TAN(RADIANS(45-('PROPIEDADES DE LOS SUELOS'!$C$26/2)))) -> 2.078460969 | H52: =IF(F52="","",IF(F52="Geomalla",(1.5*L52)/(DISEÑO!$C$20*TAN(RADIANS('PROPIEDADES DE LOS SUELOS'!$C$26))*DISEÑO!$C$21*'PROPIEDADES DE LOS SUELOS'!$C$24*C52*DISEÑO!$C$25*0.8),(1.5*L52)/(DISEÑO!$C$20*TAN(RADIANS('PROPIEDADES DE LOS SUELOS'!$C$26))*DISEÑO!$C$21*'PROPIEDADES DE LOS SUELOS'!$C$24*C52*DISEÑO!$C$25*0.6))) -> 1.660853994 | I52: =IF(D52="","",IF(H52<1,1,H52)) -> 1.660853994 | J52: =IF(F52="","",G52+I52) -> 3.739314963 | K52: =IF(J52="","",'GEOMETRIA DEL MURO'!$F$12) -> 4.3 | L52: =IF(F52="","",(('MC ANALISIS INTERNO'!$D$56*(($E$29*C52)+'CARGAS DISTRIBUIDAS'!$B$13+'CARGAS CONCENTRADAS'!$D$59))+'CARGAS CONCENTRADAS'!$D$34)*D52) -> 1.184733333 | M52: =IF(H52="","",'DISEÑO POR SISMO'!$D$34*('DISEÑO ALTERNATIVO'!I52/SUM($I$52:I683))) -> 2.304981502 | N52: =IF(L52="","",L52+M52) -> 3.489714836 | O52: GEOTEXTIL PAVCO T2400
A53: =IF(B52="","",2) -> 2 | B53: 0.4 | C53: =IF(B53="","",IF(SUM($B$52:B53)>$C$18,"",C52+B53)) -> 0.53 | D53: =IF(C53=$C$18,(0.5*B53)+(0.5*B53),IF(C53="","",(0.5*B53)+(0.5*B54))) -> 0.4 | E53: 3.2 | F53: GEOTEXTIL | G53: =IF(F53="","",E53*TAN(RADIANS(45-('PROPIEDADES DE LOS SUELOS'!$C$26/2)))) -> 1.847520861 | H53: =IF(F53="","",IF(F53="Geomalla",(1.5*L53)/(DISEÑO!$C$20*TAN(RADIANS('PROPIEDADES DE LOS SUELOS'!$C$26))*DISEÑO!$C$21*'PROPIEDADES DE LOS SUELOS'!$C$24*'DISEÑO ALTERNATIVO'!C53*DISEÑO!$C$25*0.8),(1.5*L53)/(DISEÑO!$C$20*TAN(RADIANS('PROPIEDADES DE LOS SUELOS'!$C$26))*DISEÑO!$C$21*'PROPIEDADES DE LOS SUELOS'!$C$24*'DISEÑO ALTERNATIVO'!C53*DISEÑO!$C$25*0.6))) -> 1.583577782 | I53: =IF(D53="","",IF(H53<1,1,H53)) -> 1.583577782 | J53: =IF(F53="","",G53+I53) -> 3.431098644 | K53: =IF(J53="","",'GEOMETRIA DEL MURO'!$F$12) -> 4.3 | L53: =IF(F53="","",(('MC ANALISIS INTERNO'!$D$56*(($E$29*C53)+'CARGAS DISTRIBUIDAS'!$B$13+'CARGAS CONCENTRADAS'!$D$59))+'CARGAS CONCENTRADAS'!$D$34)*D53) -> 4.605333333 | M53: =IF(H53="","",'DISEÑO POR SISMO'!$D$34*('DISEÑO ALTERNATIVO'!I53/SUM($I$52:I111))) -> 2.197735327 | N53: =IF(L53="","",L53+M53) -> 6.80306866 | O53: GEOTEXTIL PAVCO T2400
A54: =IF(B54="","",A53+1) -> 3 | B54: 0.4 | C54: =IF(B54="","",IF(SUM($B$52:B54)>$C$18,"",C53+B54)) -> 0.93 | D54: =IF(C54=$C$18,(0.5*B54)+(0.5*B54),IF(C54="","",(0.5*B54)+(0.5*B55))) -> 0.4 | E54: 2.8 | F54: GEOTEXTIL | G54: =IF(F54="","",E54*TAN(RADIANS(45-('PROPIEDADES DE LOS SUELOS'!$C$26/2)))) -> 1.616580754 | H54: =IF(F54="","",IF(F54="Geomalla",(1.5*L54)/(DISEÑO!$C$20*TAN(RADIANS('PROPIEDADES DE LOS SUELOS'!$C$26))*DISEÑO!$C$21*'PROPIEDADES DE LOS SUELOS'!$C$24*'DISEÑO ALTERNATIVO'!C54*DISEÑO!$C$25*0.8),(1.5*L54)/(DISEÑO!$C$20*TAN(RADIANS('PROPIEDADES DE LOS SUELOS'!$C$26))*DISEÑO!$C$21*'PROPIEDADES DE LOS SUELOS'!$C$24*'DISEÑO ALTERNATIVO'!C54*DISEÑO!$C$25*0.6))) -> 1.090592314 | I54: 1.090592314 | J54: 2.707173067 | K54: =IF(J54="","",'GEOMETRIA DEL MURO'!$F$12) -> 4.3 | L54: =IF(F54="","",(('MC ANALISIS INTERNO'!$D$56*(($E$29*C54)+'CARGAS DISTRIBUIDAS'!$B$13+'CARGAS CONCENTRADAS'!$D$59))+'CARGAS CONCENTRADAS'!$D$34)*D54) -> 5.565333333 | M54: =IF(H54="","",'DISEÑO POR SISMO'!$D$34*('DISEÑO ALTERNATIVO'!I54/SUM($I$52:I112))) -> 1.513555748 | N54: 7.078889081 | O54: GEOTEXTIL PAVCO T2400
A55: =IF(B55="","",A54+1) -> 4 | B55: 0.4 | C55: =IF(B55="","",IF(SUM($B$52:B55)>$C$18,"",C54+B55)) -> 1.33 | D55: 0.4 | E55: 2.4 | F55: GEOTEXTIL | G55: =IF(F55="","",E55*TAN(RADIANS(45-('PROPIEDADES DE LOS SUELOS'!$C$26/2)))) -> 1.385640646 | H55: =IF(F55="","",IF(F55="Geomalla",(1.5*L55)/(DISEÑO!$C$20*TAN(RADIANS('PROPIEDADES DE LOS SUELOS'!$C$26))*DISEÑO!$C$21*'PROPIEDADES DE LOS SUELOS'!$C$24*'DISEÑO ALTERNATIVO'!C55*DISEÑO!$C$25*0.8),(1.5*L55)/(DISEÑO!$C$20*TAN(RADIANS('PROPIEDADES DE LOS SUELOS'!$C$26))*DISEÑO!$C$21*'PROPIEDADES DE LOS SUELOS'!$C$24*'DISEÑO ALTERNATIVO'!C55*DISEÑO!$C$25*0.6))) -> 0.8941394577 | I55: 1 | J55: 2.385640646 | K55: =IF(J55="","",'GEOMETRIA DEL MURO'!$F$12) -> 4.3 | L55: =IF(F55="","",(('MC ANALISIS INTERNO'!$D$56*(($E$29*C55)+'CARGAS DISTRIBUIDAS'!$B$13+'CARGAS CONCENTRADAS'!$D$59))+'CARGAS CONCENTRADAS'!$D$34)*D55) -> 6.525333333 | M55: =IF(H55="","",'DISEÑO POR SISMO'!$D$34*('DISEÑO ALTERNATIVO'!I55/SUM($I$52:I113))) -> 1.387829099 | N55: 7.913162432 | O55: GEOTEXTIL PAVCO T2400
A56: 5 | B56: 0.4 | C56: =IF(B56="","",IF(SUM($B$52:B56)>$C$18,"",C55+B56)) -> 1.73 | D56: 0.4 | E56: 2 | F56: GEOTEXTIL | G56: =IF(F56="","",E56*TAN(RADIANS(45-('PROPIEDADES DE LOS SUELOS'!$C$26/2)))) -> 1.154700538 | H56: =IF(F56="","",IF(F56="Geomalla",(1.5*L56)/(DISEÑO!$C$20*TAN(RADIANS('PROPIEDADES DE LOS SUELOS'!$C$26))*DISEÑO!$C$21*'PROPIEDADES DE LOS SUELOS'!$C$24*'DISEÑO ALTERNATIVO'!C56*DISEÑO!$C$25*0.8),(1.5*L56)/(DISEÑO!$C$20*TAN(RADIANS('PROPIEDADES DE LOS SUELOS'!$C$26))*DISEÑO!$C$21*'PROPIEDADES DE LOS SUELOS'!$C$24*'DISEÑO ALTERNATIVO'!C56*DISEÑO!$C$25*0.6))) -> 0.788531853 | I56: 1 | J56: 2.154700538 | K56: =IF(J56="","",'GEOMETRIA DEL MURO'!$F$12) -> 4.3 | L56: =IF(F56="","",(('MC ANALISIS INTERNO'!$D$56*(($E$29*C56)+'CARGAS DISTRIBUIDAS'!$B$13+'CARGAS CONCENTRADAS'!$D$59))+'CARGAS CONCENTRADAS'!$D$34)*D56) -> 7.485333333 | M56: =IF(H56="","",'DISEÑO POR SISMO'!$D$34*('DISEÑO ALTERNATIVO'!I56/SUM($I$52:I114))) -> 1.387829099 | N56: 8.873162432 | O56: GEOTEXTIL PAVCO T2400
A57: 6 | B57: 0.4 | C57: =IF(B57="","",IF(SUM($B$52:B57)>$C$18,"",C56+B57)) -> 2.13 | D57: 0.4 | E57: 1.6 | F57: GEOTEXTIL | G57: =IF(F57="","",E57*TAN(RADIANS(45-('PROPIEDADES DE LOS SUELOS'!$C$26/2)))) -> 0.9237604307 | H57: =IF(F57="","",IF(F57="Geomalla",(1.5*L57)/(DISEÑO!$C$20*TAN(RADIANS('PROPIEDADES DE LOS SUELOS'!$C$26))*DISEÑO!$C$21*'PROPIEDADES DE LOS SUELOS'!$C$24*'DISEÑO ALTERNATIVO'!C57*DISEÑO!$C$25*0.8),(1.5*L57)/(DISEÑO!$C$20*TAN(RADIANS('PROPIEDADES DE LOS SUELOS'!$C$26))*DISEÑO!$C$21*'PROPIEDADES DE LOS SUELOS'!$C$24*'DISEÑO ALTERNATIVO'!C57*DISEÑO!$C$25*0.6))) -> 0.7225890764 | I57: 1 | J57: 1.923760431 | K57: =IF(J57="","",'GEOMETRIA DEL MURO'!$F$12) -> 4.3 | L57: =IF(F57="","",(('MC ANALISIS INTERNO'!$D$56*(($E$29*C57)+'CARGAS DISTRIBUIDAS'!$B$13+'CARGAS CONCENTRADAS'!$D$59))+'CARGAS CONCENTRADAS'!$D$34)*D57) -> 8.445333333 | M57: =IF(H57="","",'DISEÑO POR SISMO'!$D$34*('DISEÑO ALTERNATIVO'!I57/SUM($I$52:I115))) -> 1.387829099 | N57: 9.833162432 | O57: GEOTEXTIL PAVCO T2400
A58: 7 | B58: 0.4 | C58: =IF(B58="","",IF(SUM($B$52:B58)>$C$18,"",C57+B58)) -> 2.53 | D58: 0.4 | E58: 1.2 | F58: GEOTEXTIL | G58: =IF(F58="","",E58*TAN(RADIANS(45-('PROPIEDADES DE LOS SUELOS'!$C$26/2)))) -> 0.692820323 | H58: =IF(F58="","",IF(F58="Geomalla",(1.5*L58)/(DISEÑO!$C$20*TAN(RADIANS('PROPIEDADES DE LOS SUELOS'!$C$26))*DISEÑO!$C$21*'PROPIEDADES DE LOS SUELOS'!$C$24*'DISEÑO ALTERNATIVO'!C58*DISEÑO!$C$25*0.8),(1.5*L58)/(DISEÑO!$C$20*TAN(RADIANS('PROPIEDADES DE LOS SUELOS'!$C$26))*DISEÑO!$C$21*'PROPIEDADES DE LOS SUELOS'!$C$24*'DISEÑO ALTERNATIVO'!C58*DISEÑO!$C$25*0.6))) -> 0.6774977707 | I58: 1 | J58: 1.692820323 | K58: =IF(J58="","",'GEOMETRIA DEL MURO'!$F$12) -> 4.3 | L58: =IF(F58="","",(('MC ANALISIS INTERNO'!$D$56*(($E$29*C58)+'CARGAS DISTRIBUIDAS'!$B$13+'CARGAS CONCENTRADAS'!$D$59))+'CARGAS CONCENTRADAS'!$D$34)*D58) -> 9.405333333 | M58: =IF(H58="","",'DISEÑO POR SISMO'!$D$34*('DISEÑO ALTERNATIVO'!I58/SUM($I$52:I116))) -> 1.387829099 | N58: 10.79316243 | O58: GEOTEXTIL PAVCO T2400
A59: 8 | B59: 0.4 | C59: =IF(B59="","",IF(SUM($B$52:B59)>$C$18,"",C58+B59)) -> 2.93 | D59: 0.4 | E59: 0.8 | F59: GEOTEXTIL | G59: =IF(F59="","",E59*TAN(RADIANS(45-('PROPIEDADES DE LOS SUELOS'!$C$26/2)))) -> 0.4618802154 | H59: =IF(F59="","",IF(F59="Geomalla",(1.5*L59)/(DISEÑO!$C$20*TAN(RADIANS('PROPIEDADES DE LOS SUELOS'!$C$26))*DISEÑO!$C$21*'PROPIEDADES DE LOS SUELOS'!$C$24*'DISEÑO ALTERNATIVO'!C59*DISEÑO!$C$25*0.8),(1.5*L59)/(DISEÑO!$C$20*TAN(RADIANS('PROPIEDADES DE LOS SUELOS'!$C$26))*DISEÑO!$C$21*'PROPIEDADES DE LOS SUELOS'!$C$24*'DISEÑO ALTERNATIVO'!C59*DISEÑO!$C$25*0.6))) -> 0.6447180842 | I59: 1 | J59: 1.461880215 | K59: =IF(J59="","",'GEOMETRIA DEL MURO'!$F$12) -> 4.3 | L59: =IF(F59="","",(('MC ANALISIS INTERNO'!$D$56*(($E$29*C59)+'CARGAS DISTRIBUIDAS'!$B$13+'CARGAS CONCENTRADAS'!$D$59))+'CARGAS CONCENTRADAS'!$D$34)*D59) -> 10.36533333 | M59: =IF(H59="","",'DISEÑO POR SISMO'!$D$34*('DISEÑO ALTERNATIVO'!I59/SUM($I$52:I117))) -> 1.387829099 | N59: 11.75316243 | O59: GEOTEXTIL PAVCO T2400
A60: 9 | B60: 0.4 | C60: =IF(B60="","",IF(SUM($B$52:B60)>$C$18,"",C59+B60)) -> 3.33 | D60: 0.4 | E60: 0.4 | F60: GEOTEXTIL | G60: =IF(F60="","",E60*TAN(RADIANS(45-('PROPIEDADES DE LOS SUELOS'!$C$26/2)))) -> 0.2309401077 | H60: =IF(F60="","",IF(F60="Geomalla",(1.5*L60)/(DISEÑO!$C$20*TAN(RADIANS('PROPIEDADES DE LOS SUELOS'!$C$26))*DISEÑO!$C$21*'PROPIEDADES DE LOS SUELOS'!$C$24*'DISEÑO ALTERNATIVO'!C60*DISEÑO!$C$25*0.8),(1.5*L60)/(DISEÑO!$C$20*TAN(RADIANS('PROPIEDADES DE LOS SUELOS'!$C$26))*DISEÑO!$C$21*'PROPIEDADES DE LOS SUELOS'!$C$24*'DISEÑO ALTERNATIVO'!C60*DISEÑO!$C$25*0.6))) -> 0.6198133976 | I60: 1 | J60: 1.230940108 | K60: =IF(J60="","",'GEOMETRIA DEL MURO'!$F$12) -> 4.3 | L60: =IF(F60="","",(('MC ANALISIS INTERNO'!$D$56*(($E$29*C60)+'CARGAS DISTRIBUIDAS'!$B$13+'CARGAS CONCENTRADAS'!$D$59))+'CARGAS CONCENTRADAS'!$D$34)*D60) -> 11.32533333 | M60: =IF(H60="","",'DISEÑO POR SISMO'!$D$34*('DISEÑO ALTERNATIVO'!I60/SUM($I$52:I118))) -> 1.387829099 | N60: 12.71316243 | O60: GEOTEXTIL PAVCO T2400
A61: 10 | B61: 0.4 | C61: =IF(B61="","",IF(SUM($B$52:B61)>$C$18,"",C60+B61)) -> 3.73 | D61: 0.4 | E61: 4.440892099e-16 | F61: GEOTEXTIL | G61: =IF(F61="","",E61*TAN(RADIANS(45-('PROPIEDADES DE LOS SUELOS'!$C$26/2)))) -> 2.563950249e-16 | H61: =IF(F61="","",IF(F61="Geomalla",(1.5*L61)/(DISEÑO!$C$20*TAN(RADIANS('PROPIEDADES DE LOS SUELOS'!$C$26))*DISEÑO!$C$21*'PROPIEDADES DE LOS SUELOS'!$C$24*'DISEÑO ALTERNATIVO'!C61*DISEÑO!$C$25*0.8),(1.5*L61)/(DISEÑO!$C$20*TAN(RADIANS('PROPIEDADES DE LOS SUELOS'!$C$26))*DISEÑO!$C$21*'PROPIEDADES DE LOS SUELOS'!$C$24*'DISEÑO ALTERNATIVO'!C61*DISEÑO!$C$25*0.6))) -> 0.6002501986 | I61: 1 | J61: =IF(F61="","",G61+I61) -> 1 | K61: =IF(J61="","",'GEOMETRIA DEL MURO'!$F$12) -> 4.3 | L61: =IF(F61="","",(('MC ANALISIS INTERNO'!$D$56*(($E$29*C61)+'CARGAS DISTRIBUIDAS'!$B$13+'CARGAS CONCENTRADAS'!$D$59))+'CARGAS CONCENTRADAS'!$D$34)*D61) -> 12.28533333 | M61: =IF(H61="","",'DISEÑO POR SISMO'!$D$34*('DISEÑO ALTERNATIVO'!I61/SUM($I$52:I119))) -> 1.387829099 | N61: =IF(L61="","",L61+M61) -> 13.67316243 | O61: GEOTEXTIL PAVCO T2400
C62: =IF(B62="","",IF(SUM($B$52:B62)>$C$18,"",C61+B62)) ->  | G62: =IF(F62="","",E62*TAN(RADIANS(45-('PROPIEDADES DE LOS SUELOS'!$C$26/2)))) ->  | H62: =IF(F62="","",IF(F62="Geomalla",(1.5*L62)/(DISEÑO!$C$20*TAN(RADIANS('PROPIEDADES DE LOS SUELOS'!$C$26))*DISEÑO!$C$21*'PROPIEDADES DE LOS SUELOS'!$C$24*'DISEÑO ALTERNATIVO'!C62*DISEÑO!$C$25*0.8),(1.5*L62)/(DISEÑO!$C$20*TAN(RADIANS('PROPIEDADES DE LOS SUELOS'!$C$26))*DISEÑO!$C$21*'PROPIEDADES DE LOS SUELOS'!$C$24*'DISEÑO ALTERNATIVO'!C62*DISEÑO!$C$25*0.6))) ->  | J62: =IF(F62="","",G62+I62) ->  | K62: =IF(J62="","",'GEOMETRIA DEL MURO'!$F$12) ->  | L62: =IF(F62="","",(('MC ANALISIS INTERNO'!$D$56*(($E$29*C62)+'CARGAS DISTRIBUIDAS'!$B$13+'CARGAS CONCENTRADAS'!$D$59))+'CARGAS CONCENTRADAS'!$D$34)*D62) ->  | M62: =IF(H62="","",'DISEÑO POR SISMO'!$D$34*('DISEÑO ALTERNATIVO'!I62/SUM($I$52:I120))) -> 
C63: =IF(B63="","",IF(SUM($B$52:B63)>$C$18,"",C62+B63)) ->  | D63: =IF(C63=$C$18,(0.5*B63)+(0.5*B63),IF(C63="","",(0.5*B63)+(0.5*B64))) ->  | G63: =IF(F63="","",E63*TAN(RADIANS(45-('PROPIEDADES DE LOS SUELOS'!$C$26/2)))) ->  | H63: =IF(F63="","",IF(F63="Geomalla",(1.5*L63)/(DISEÑO!$C$20*TAN(RADIANS('PROPIEDADES DE LOS SUELOS'!$C$26))*DISEÑO!$C$21*'PROPIEDADES DE LOS SUELOS'!$C$24*'DISEÑO ALTERNATIVO'!C63*DISEÑO!$C$25*0.8),(1.5*L63)/(DISEÑO!$C$20*TAN(RADIANS('PROPIEDADES DE LOS SUELOS'!$C$26))*DISEÑO!$C$21*'PROPIEDADES DE LOS SUELOS'!$C$24*'DISEÑO ALTERNATIVO'!C63*DISEÑO!$C$25*0.6))) ->  | J63: =IF(F63="","",G63+I63) ->  | K63: =IF(J63="","",'GEOMETRIA DEL MURO'!$F$12) ->  | L63: =IF(F63="","",(('MC ANALISIS INTERNO'!$D$56*(($E$29*C63)+'CARGAS DISTRIBUIDAS'!$B$13+'CARGAS CONCENTRADAS'!$D$59))+'CARGAS CONCENTRADAS'!$D$34)*D63) ->  | M63: =IF(H63="","",'DISEÑO POR SISMO'!$D$34*('DISEÑO ALTERNATIVO'!I63/SUM($I$52:I121))) -> 
A64: =IF(B64="","",A63+1) ->  | C64: =IF(B64="","",IF(SUM($B$52:B64)>$C$18,"",C63+B64)) ->  | D64: =IF(C64=$C$18,(0.5*B64)+(0.5*B64),IF(C64="","",(0.5*B64)+(0.5*B65))) ->  | E64: =IF(D64="","",$C$18-C64) ->  | G64: =IF(F64="","",E64*TAN(RADIANS(45-('PROPIEDADES DE LOS SUELOS'!$C$26/2)))) ->  | H64: =IF(F64="","",IF(F64="Geomalla",(1.5*L64)/(DISEÑO!$C$20*TAN(RADIANS('PROPIEDADES DE LOS SUELOS'!$C$26))*DISEÑO!$C$21*'PROPIEDADES DE LOS SUELOS'!$C$24*'DISEÑO ALTERNATIVO'!C64*DISEÑO!$C$25*0.8),(1.5*L64)/(DISEÑO!$C$20*TAN(RADIANS('PROPIEDADES DE LOS SUELOS'!$C$26))*DISEÑO!$C$21*'PROPIEDADES DE LOS SUELOS'!$C$24*'DISEÑO ALTERNATIVO'!C64*DISEÑO!$C$25*0.6))) ->  | I64: =IF(D64="","",IF(H64<1,1,H64)) ->  | J64: =IF(F64="","",G64+I64) ->  | K64: =IF(J64="","",'GEOMETRIA DEL MURO'!$F$12) ->  | L64: =IF(F64="","",(('MC ANALISIS INTERNO'!$D$56*(($E$29*C64)+'CARGAS DISTRIBUIDAS'!$B$13+'CARGAS CONCENTRADAS'!$D$59))+'CARGAS CONCENTRADAS'!$D$34)*D64) ->  | M64: =IF(H64="","",'DISEÑO POR SISMO'!$D$34*('DISEÑO ALTERNATIVO'!I64/SUM($I$52:I122))) ->  | N64: =IF(L64="","",L64+M64) -> 
A65: =IF(B65="","",A64+1) ->  | C65: =IF(B65="","",IF(SUM($B$52:B65)>$C$18,"",C64+B65)) ->  | D65: =IF(C65=$C$18,(0.5*B65)+(0.5*B65),IF(C65="","",(0.5*B65)+(0.5*B66))) ->  | G65: =IF(F65="","",E65*TAN(RADIANS(45-('PROPIEDADES DE LOS SUELOS'!$C$26/2)))) ->  | H65: =IF(F65="","",IF(F65="Geomalla",(1.5*L65)/(DISEÑO!$C$20*TAN(RADIANS('PROPIEDADES DE LOS SUELOS'!$C$26))*DISEÑO!$C$21*'PROPIEDADES DE LOS SUELOS'!$C$24*'DISEÑO ALTERNATIVO'!C65*DISEÑO!$C$25*0.8),(1.5*L65)/(DISEÑO!$C$20*TAN(RADIANS('PROPIEDADES DE LOS SUELOS'!$C$26))*DISEÑO!$C$21*'PROPIEDADES DE LOS SUELOS'!$C$24*'DISEÑO ALTERNATIVO'!C65*DISEÑO!$C$25*0.6))) ->  | J65: =IF(F65="","",G65+I65) ->  | K65: =IF(J65="","",'GEOMETRIA DEL MURO'!$F$12) ->  | L65: =IF(F65="","",(('MC ANALISIS INTERNO'!$D$56*(($E$29*C65)+'CARGAS DISTRIBUIDAS'!$B$13+'CARGAS CONCENTRADAS'!$D$59))+'CARGAS CONCENTRADAS'!$D$34)*D65) ->  | M65: =IF(H65="","",'DISEÑO POR SISMO'!$D$34*('DISEÑO ALTERNATIVO'!I65/SUM($I$52:I123))) -> 
C66: =IF(B66="","",IF(SUM($B$52:B66)>$C$18,"",C65+B66)) ->  | G66: =IF(F66="","",E66*TAN(RADIANS(45-('PROPIEDADES DE LOS SUELOS'!$C$26/2)))) ->  | H66: =IF(F66="","",IF(F66="Geomalla",(1.5*L66)/(DISEÑO!$C$20*TAN(RADIANS('PROPIEDADES DE LOS SUELOS'!$C$26))*DISEÑO!$C$21*'PROPIEDADES DE LOS SUELOS'!$C$24*'DISEÑO ALTERNATIVO'!C66*DISEÑO!$C$25*0.8),(1.5*L66)/(DISEÑO!$C$20*TAN(RADIANS('PROPIEDADES DE LOS SUELOS'!$C$26))*DISEÑO!$C$21*'PROPIEDADES DE LOS SUELOS'!$C$24*'DISEÑO ALTERNATIVO'!C66*DISEÑO!$C$25*0.6))) ->  | K66: =IF(J66="","",'GEOMETRIA DEL MURO'!$F$12) ->  | L66: =IF(F66="","",(('MC ANALISIS INTERNO'!$D$56*(($E$29*C66)+'CARGAS DISTRIBUIDAS'!$B$13+'CARGAS CONCENTRADAS'!$D$59))+'CARGAS CONCENTRADAS'!$D$34)*D66) ->  | M66: =IF(H66="","",'DISEÑO POR SISMO'!$D$34*('DISEÑO ALTERNATIVO'!I66/SUM($I$52:I124))) -> 
C67: =IF(B67="","",IF(SUM($B$52:B67)>$C$18,"",C66+B67)) ->  | G67: =IF(F67="","",E67*TAN(RADIANS(45-('PROPIEDADES DE LOS SUELOS'!$C$26/2)))) ->  | H67: =IF(F67="","",IF(F67="Geomalla",(1.5*L67)/(DISEÑO!$C$20*TAN(RADIANS('PROPIEDADES DE LOS SUELOS'!$C$26))*DISEÑO!$C$21*'PROPIEDADES DE LOS SUELOS'!$C$24*'DISEÑO ALTERNATIVO'!C67*DISEÑO!$C$25*0.8),(1.5*L67)/(DISEÑO!$C$20*TAN(RADIANS('PROPIEDADES DE LOS SUELOS'!$C$26))*DISEÑO!$C$21*'PROPIEDADES DE LOS SUELOS'!$C$24*'DISEÑO ALTERNATIVO'!C67*DISEÑO!$C$25*0.6))) ->  | K67: =IF(J67="","",'GEOMETRIA DEL MURO'!$F$12) ->  | L67: =IF(F67="","",(('MC ANALISIS INTERNO'!$D$56*(($E$29*C67)+'CARGAS DISTRIBUIDAS'!$B$13+'CARGAS CONCENTRADAS'!$D$59))+'CARGAS CONCENTRADAS'!$D$34)*D67) ->  | M67: =IF(H67="","",'DISEÑO POR SISMO'!$D$34*('DISEÑO ALTERNATIVO'!I67/SUM($I$52:I125))) -> 
C68: =IF(B68="","",IF(SUM($B$52:B68)>$C$18,"",C67+B68)) ->  | G68: =IF(F68="","",E68*TAN(RADIANS(45-('PROPIEDADES DE LOS SUELOS'!$C$26/2)))) ->  | H68: =IF(F68="","",IF(F68="Geomalla",(1.5*L68)/(DISEÑO!$C$20*TAN(RADIANS('PROPIEDADES DE LOS SUELOS'!$C$26))*DISEÑO!$C$21*'PROPIEDADES DE LOS SUELOS'!$C$24*'DISEÑO ALTERNATIVO'!C68*DISEÑO!$C$25*0.8),(1.5*L68)/(DISEÑO!$C$20*TAN(RADIANS('PROPIEDADES DE LOS SUELOS'!$C$26))*DISEÑO!$C$21*'PROPIEDADES DE LOS SUELOS'!$C$24*'DISEÑO ALTERNATIVO'!C68*DISEÑO!$C$25*0.6))) ->  | K68: =IF(J68="","",'GEOMETRIA DEL MURO'!$F$12) ->  | L68: =IF(F68="","",(('MC ANALISIS INTERNO'!$D$56*(($E$29*C68)+'CARGAS DISTRIBUIDAS'!$B$13+'CARGAS CONCENTRADAS'!$D$59))+'CARGAS CONCENTRADAS'!$D$34)*D68) ->  | M68: =IF(H68="","",'DISEÑO POR SISMO'!$D$34*('DISEÑO ALTERNATIVO'!I68/SUM($I$52:I126))) -> 
C69: =IF(B69="","",IF(SUM($B$52:B69)>$C$18,"",C68+B69)) ->  | G69: =IF(F69="","",E69*TAN(RADIANS(45-('PROPIEDADES DE LOS SUELOS'!$C$26/2)))) ->  | H69: =IF(F69="","",IF(F69="Geomalla",(1.5*L69)/(DISEÑO!$C$20*TAN(RADIANS('PROPIEDADES DE LOS SUELOS'!$C$26))*DISEÑO!$C$21*'PROPIEDADES DE LOS SUELOS'!$C$24*'DISEÑO ALTERNATIVO'!C69*DISEÑO!$C$25*0.8),(1.5*L69)/(DISEÑO!$C$20*TAN(RADIANS('PROPIEDADES DE LOS SUELOS'!$C$26))*DISEÑO!$C$21*'PROPIEDADES DE LOS SUELOS'!$C$24*'DISEÑO ALTERNATIVO'!C69*DISEÑO!$C$25*0.6))) ->  | K69: =IF(J69="","",'GEOMETRIA DEL MURO'!$F$12) ->  | L69: =IF(F69="","",(('MC ANALISIS INTERNO'!$D$56*(($E$29*C69)+'CARGAS DISTRIBUIDAS'!$B$13+'CARGAS CONCENTRADAS'!$D$59))+'CARGAS CONCENTRADAS'!$D$34)*D69) ->  | M69: =IF(H69="","",'DISEÑO POR SISMO'!$D$34*('DISEÑO ALTERNATIVO'!I69/SUM($I$52:I127))) -> 
A70: =IF(B70="","",A69+1) ->  | C70: =IF(B70="","",IF(SUM($B$52:B70)>$C$18,"",C69+B70)) ->  | D70: =IF(C70=$C$18,(0.5*B70)+(0.5*B70),IF(C70="","",(0.5*B70)+(0.5*B71))) ->  | E70: =IF(D70="","",$C$18-C70) ->  | G70: =IF(F70="","",E70*TAN(RADIANS(45-('PROPIEDADES DE LOS SUELOS'!$C$26/2)))) ->  | H70: =IF(F70="","",IF(F70="Geomalla",(1.5*L70)/(DISEÑO!$C$20*TAN(RADIANS('PROPIEDADES DE LOS SUELOS'!$C$26))*DISEÑO!$C$21*'PROPIEDADES DE LOS SUELOS'!$C$24*'DISEÑO ALTERNATIVO'!C70*DISEÑO!$C$25*0.8),(1.5*L70)/(DISEÑO!$C$20*TAN(RADIANS('PROPIEDADES DE LOS SUELOS'!$C$26))*DISEÑO!$C$21*'PROPIEDADES DE LOS SUELOS'!$C$24*'DISEÑO ALTERNATIVO'!C70*DISEÑO!$C$25*0.6))) ->  | I70: =IF(D70="","",IF(H70<1,1,H70)) ->  | J70: =IF(F70="","",G70+I70) ->  | K70: =IF(J70="","",'GEOMETRIA DEL MURO'!$F$12) ->  | L70: =IF(F70="","",(('MC ANALISIS INTERNO'!$D$56*(($E$29*C70)+'CARGAS DISTRIBUIDAS'!$B$13+'CARGAS CONCENTRADAS'!$D$59))+'CARGAS CONCENTRADAS'!$D$34)*D70) ->  | M70: =IF(H70="","",'DISEÑO POR SISMO'!$D$34*('DISEÑO ALTERNATIVO'!I70/SUM($I$52:I128))) ->  | N70: =IF(L70="","",L70+M70) -> 
C71: =IF(B71="","",IF(SUM($B$52:B71)>$C$18,"",C70+B71)) ->  | G71: =IF(F71="","",E71*TAN(RADIANS(45-('PROPIEDADES DE LOS SUELOS'!$C$26/2)))) ->  | H71: =IF(F71="","",IF(F71="Geomalla",(1.5*L71)/(DISEÑO!$C$20*TAN(RADIANS('PROPIEDADES DE LOS SUELOS'!$C$26))*DISEÑO!$C$21*'PROPIEDADES DE LOS SUELOS'!$C$24*'DISEÑO ALTERNATIVO'!C71*DISEÑO!$C$25*0.8),(1.5*L71)/(DISEÑO!$C$20*TAN(RADIANS('PROPIEDADES DE LOS SUELOS'!$C$26))*DISEÑO!$C$21*'PROPIEDADES DE LOS SUELOS'!$C$24*'DISEÑO ALTERNATIVO'!C71*DISEÑO!$C$25*0.6))) ->  | K71: =IF(J71="","",'GEOMETRIA DEL MURO'!$F$12) ->  | L71: =IF(F71="","",(('MC ANALISIS INTERNO'!$D$56*(($E$29*C71)+'CARGAS DISTRIBUIDAS'!$B$13+'CARGAS CONCENTRADAS'!$D$59))+'CARGAS CONCENTRADAS'!$D$34)*D71) ->  | M71: =IF(H71="","",'DISEÑO POR SISMO'!$D$34*('DISEÑO ALTERNATIVO'!I71/SUM($I$52:I129))) -> 
C72: =IF(B72="","",IF(SUM($B$52:B72)>$C$18,"",C71+B72)) ->  | G72: =IF(F72="","",E72*TAN(RADIANS(45-('PROPIEDADES DE LOS SUELOS'!$C$26/2)))) ->  | H72: =IF(F72="","",IF(F72="Geomalla",(1.5*L72)/(DISEÑO!$C$20*TAN(RADIANS('PROPIEDADES DE LOS SUELOS'!$C$26))*DISEÑO!$C$21*'PROPIEDADES DE LOS SUELOS'!$C$24*'DISEÑO ALTERNATIVO'!C72*DISEÑO!$C$25*0.8),(1.5*L72)/(DISEÑO!$C$20*TAN(RADIANS('PROPIEDADES DE LOS SUELOS'!$C$26))*DISEÑO!$C$21*'PROPIEDADES DE LOS SUELOS'!$C$24*'DISEÑO ALTERNATIVO'!C72*DISEÑO!$C$25*0.6))) ->  | K72: =IF(J72="","",'GEOMETRIA DEL MURO'!$F$12) ->  | L72: =IF(F72="","",(('MC ANALISIS INTERNO'!$D$56*(($E$29*C72)+'CARGAS DISTRIBUIDAS'!$B$13+'CARGAS CONCENTRADAS'!$D$59))+'CARGAS CONCENTRADAS'!$D$34)*D72) ->  | M72: =IF(H72="","",'DISEÑO POR SISMO'!$D$34*('DISEÑO ALTERNATIVO'!I72/SUM($I$52:I130))) -> 
C73: =IF(B73="","",IF(SUM($B$52:B73)>$C$18,"",C72+B73)) ->  | G73: =IF(F73="","",E73*TAN(RADIANS(45-('PROPIEDADES DE LOS SUELOS'!$C$26/2)))) ->  | H73: =IF(F73="","",IF(F73="Geomalla",(1.5*L73)/(DISEÑO!$C$20*TAN(RADIANS('PROPIEDADES DE LOS SUELOS'!$C$26))*DISEÑO!$C$21*'PROPIEDADES DE LOS SUELOS'!$C$24*'DISEÑO ALTERNATIVO'!C73*DISEÑO!$C$25*0.8),(1.5*L73)/(DISEÑO!$C$20*TAN(RADIANS('PROPIEDADES DE LOS SUELOS'!$C$26))*DISEÑO!$C$21*'PROPIEDADES DE LOS SUELOS'!$C$24*'DISEÑO ALTERNATIVO'!C73*DISEÑO!$C$25*0.6))) ->  | K73: =IF(J73="","",'GEOMETRIA DEL MURO'!$F$12) ->  | L73: =IF(F73="","",(('MC ANALISIS INTERNO'!$D$56*(($E$29*C73)+'CARGAS DISTRIBUIDAS'!$B$13+'CARGAS CONCENTRADAS'!$D$59))+'CARGAS CONCENTRADAS'!$D$34)*D73) ->  | M73: =IF(H73="","",'DISEÑO POR SISMO'!$D$34*('DISEÑO ALTERNATIVO'!I73/SUM($I$52:I131))) -> 
C74: =IF(B74="","",IF(SUM($B$52:B74)>$C$18,"",C73+B74)) ->  | G74: =IF(F74="","",E74*TAN(RADIANS(45-('PROPIEDADES DE LOS SUELOS'!$C$26/2)))) ->  | H74: =IF(F74="","",IF(F74="Geomalla",(1.5*L74)/(DISEÑO!$C$20*TAN(RADIANS('PROPIEDADES DE LOS SUELOS'!$C$26))*DISEÑO!$C$21*'PROPIEDADES DE LOS SUELOS'!$C$24*'DISEÑO ALTERNATIVO'!C74*DISEÑO!$C$25*0.8),(1.5*L74)/(DISEÑO!$C$20*TAN(RADIANS('PROPIEDADES DE LOS SUELOS'!$C$26))*DISEÑO!$C$21*'PROPIEDADES DE LOS SUELOS'!$C$24*'DISEÑO ALTERNATIVO'!C74*DISEÑO!$C$25*0.6))) ->  | K74: =IF(J74="","",'GEOMETRIA DEL MURO'!$F$12) ->  | L74: =IF(F74="","",(('MC ANALISIS INTERNO'!$D$56*(($E$29*C74)+'CARGAS DISTRIBUIDAS'!$B$13+'CARGAS CONCENTRADAS'!$D$59))+'CARGAS CONCENTRADAS'!$D$34)*D74) ->  | M74: =IF(H74="","",'DISEÑO POR SISMO'!$D$34*('DISEÑO ALTERNATIVO'!I74/SUM($I$52:I132))) -> 
C75: =IF(B75="","",IF(SUM($B$52:B75)>$C$18,"",C74+B75)) ->  | G75: =IF(F75="","",E75*TAN(RADIANS(45-('PROPIEDADES DE LOS SUELOS'!$C$26/2)))) ->  | H75: =IF(F75="","",IF(F75="Geomalla",(1.5*L75)/(DISEÑO!$C$20*TAN(RADIANS('PROPIEDADES DE LOS SUELOS'!$C$26))*DISEÑO!$C$21*'PROPIEDADES DE LOS SUELOS'!$C$24*'DISEÑO ALTERNATIVO'!C75*DISEÑO!$C$25*0.8),(1.5*L75)/(DISEÑO!$C$20*TAN(RADIANS('PROPIEDADES DE LOS SUELOS'!$C$26))*DISEÑO!$C$21*'PROPIEDADES DE LOS SUELOS'!$C$24*'DISEÑO ALTERNATIVO'!C75*DISEÑO!$C$25*0.6))) ->  | K75: =IF(J75="","",'GEOMETRIA DEL MURO'!$F$12) ->  | L75: =IF(F75="","",(('MC ANALISIS INTERNO'!$D$56*(($E$29*C75)+'CARGAS DISTRIBUIDAS'!$B$13+'CARGAS CONCENTRADAS'!$D$59))+'CARGAS CONCENTRADAS'!$D$34)*D75) ->  | M75: =IF(H75="","",'DISEÑO POR SISMO'!$D$34*('DISEÑO ALTERNATIVO'!I75/SUM($I$52:I133))) -> 
C76: =IF(B76="","",IF(SUM($B$52:B76)>$C$18,"",C75+B76)) ->  | G76: =IF(F76="","",E76*TAN(RADIANS(45-('PROPIEDADES DE LOS SUELOS'!$C$26/2)))) ->  | H76: =IF(F76="","",IF(F76="Geomalla",(1.5*L76)/(DISEÑO!$C$20*TAN(RADIANS('PROPIEDADES DE LOS SUELOS'!$C$26))*DISEÑO!$C$21*'PROPIEDADES DE LOS SUELOS'!$C$24*'DISEÑO ALTERNATIVO'!C76*DISEÑO!$C$25*0.8),(1.5*L76)/(DISEÑO!$C$20*TAN(RADIANS('PROPIEDADES DE LOS SUELOS'!$C$26))*DISEÑO!$C$21*'PROPIEDADES DE LOS SUELOS'!$C$24*'DISEÑO ALTERNATIVO'!C76*DISEÑO!$C$25*0.6))) ->  | K76: =IF(J76="","",'GEOMETRIA DEL MURO'!$F$12) ->  | L76: =IF(F76="","",(('MC ANALISIS INTERNO'!$D$56*(($E$29*C76)+'CARGAS DISTRIBUIDAS'!$B$13+'CARGAS CONCENTRADAS'!$D$59))+'CARGAS CONCENTRADAS'!$D$34)*D76) ->  | M76: =IF(H76="","",'DISEÑO POR SISMO'!$D$34*('DISEÑO ALTERNATIVO'!I76/SUM($I$52:I134))) -> 
C77: =IF(B77="","",IF(SUM($B$52:B77)>$C$18,"",C76+B77)) ->  | G77: =IF(F77="","",E77*TAN(RADIANS(45-('PROPIEDADES DE LOS SUELOS'!$C$26/2)))) ->  | H77: =IF(F77="","",IF(F77="Geomalla",(1.5*L77)/(DISEÑO!$C$20*TAN(RADIANS('PROPIEDADES DE LOS SUELOS'!$C$26))*DISEÑO!$C$21*'PROPIEDADES DE LOS SUELOS'!$C$24*'DISEÑO ALTERNATIVO'!C77*DISEÑO!$C$25*0.8),(1.5*L77)/(DISEÑO!$C$20*TAN(RADIANS('PROPIEDADES DE LOS SUELOS'!$C$26))*DISEÑO!$C$21*'PROPIEDADES DE LOS SUELOS'!$C$24*'DISEÑO ALTERNATIVO'!C77*DISEÑO!$C$25*0.6))) ->  | K77: =IF(J77="","",'GEOMETRIA DEL MURO'!$F$12) ->  | L77: =IF(F77="","",(('MC ANALISIS INTERNO'!$D$56*(($E$29*C77)+'CARGAS DISTRIBUIDAS'!$B$13+'CARGAS CONCENTRADAS'!$D$59))+'CARGAS CONCENTRADAS'!$D$34)*D77) ->  | M77: =IF(H77="","",'DISEÑO POR SISMO'!$D$34*('DISEÑO ALTERNATIVO'!I77/SUM($I$52:I135))) -> 
C78: =IF(B78="","",IF(SUM($B$52:B78)>$C$18,"",C77+B78)) ->  | G78: =IF(F78="","",E78*TAN(RADIANS(45-('PROPIEDADES DE LOS SUELOS'!$C$26/2)))) ->  | H78: =IF(F78="","",IF(F78="Geomalla",(1.5*L78)/(DISEÑO!$C$20*TAN(RADIANS('PROPIEDADES DE LOS SUELOS'!$C$26))*DISEÑO!$C$21*'PROPIEDADES DE LOS SUELOS'!$C$24*'DISEÑO ALTERNATIVO'!C78*DISEÑO!$C$25*0.8),(1.5*L78)/(DISEÑO!$C$20*TAN(RADIANS('PROPIEDADES DE LOS SUELOS'!$C$26))*DISEÑO!$C$21*'PROPIEDADES DE LOS SUELOS'!$C$24*'DISEÑO ALTERNATIVO'!C78*DISEÑO!$C$25*0.6))) ->  | K78: =IF(J78="","",'GEOMETRIA DEL MURO'!$F$12) ->  | L78: =IF(F78="","",(('MC ANALISIS INTERNO'!$D$56*(($E$29*C78)+'CARGAS DISTRIBUIDAS'!$B$13+'CARGAS CONCENTRADAS'!$D$59))+'CARGAS CONCENTRADAS'!$D$34)*D78) ->  | M78: =IF(H78="","",'DISEÑO POR SISMO'!$D$34*('DISEÑO ALTERNATIVO'!I78/SUM($I$52:I136))) -> 
C79: =IF(B79="","",IF(SUM($B$52:B79)>$C$18,"",C78+B79)) ->  | G79: =IF(F79="","",E79*TAN(RADIANS(45-('PROPIEDADES DE LOS SUELOS'!$C$26/2)))) ->  | H79: =IF(F79="","",IF(F79="Geomalla",(1.5*L79)/(DISEÑO!$C$20*TAN(RADIANS('PROPIEDADES DE LOS SUELOS'!$C$26))*DISEÑO!$C$21*'PROPIEDADES DE LOS SUELOS'!$C$24*'DISEÑO ALTERNATIVO'!C79*DISEÑO!$C$25*0.8),(1.5*L79)/(DISEÑO!$C$20*TAN(RADIANS('PROPIEDADES DE LOS SUELOS'!$C$26))*DISEÑO!$C$21*'PROPIEDADES DE LOS SUELOS'!$C$24*'DISEÑO ALTERNATIVO'!C79*DISEÑO!$C$25*0.6))) ->  | K79: =IF(J79="","",'GEOMETRIA DEL MURO'!$F$12) ->  | L79: =IF(F79="","",(('MC ANALISIS INTERNO'!$D$56*(($E$29*C79)+'CARGAS DISTRIBUIDAS'!$B$13+'CARGAS CONCENTRADAS'!$D$59))+'CARGAS CONCENTRADAS'!$D$34)*D79) ->  | M79: =IF(H79="","",'DISEÑO POR SISMO'!$D$34*('DISEÑO ALTERNATIVO'!I79/SUM($I$52:I137))) -> 
C80: =IF(B80="","",IF(SUM($B$52:B80)>$C$18,"",C79+B80)) ->  | G80: =IF(F80="","",E80*TAN(RADIANS(45-('PROPIEDADES DE LOS SUELOS'!$C$26/2)))) ->  | H80: =IF(F80="","",IF(F80="Geomalla",(1.5*L80)/(DISEÑO!$C$20*TAN(RADIANS('PROPIEDADES DE LOS SUELOS'!$C$26))*DISEÑO!$C$21*'PROPIEDADES DE LOS SUELOS'!$C$24*'DISEÑO ALTERNATIVO'!C80*DISEÑO!$C$25*0.8),(1.5*L80)/(DISEÑO!$C$20*TAN(RADIANS('PROPIEDADES DE LOS SUELOS'!$C$26))*DISEÑO!$C$21*'PROPIEDADES DE LOS SUELOS'!$C$24*'DISEÑO ALTERNATIVO'!C80*DISEÑO!$C$25*0.6))) ->  | K80: =IF(J80="","",'GEOMETRIA DEL MURO'!$F$12) ->  | L80: =IF(F80="","",(('MC ANALISIS INTERNO'!$D$56*(($E$29*C80)+'CARGAS DISTRIBUIDAS'!$B$13+'CARGAS CONCENTRADAS'!$D$59))+'CARGAS CONCENTRADAS'!$D$34)*D80) ->  | M80: =IF(H80="","",'DISEÑO POR SISMO'!$D$34*('DISEÑO ALTERNATIVO'!I80/SUM($I$52:I138))) -> 
C81: =IF(B81="","",IF(SUM($B$52:B81)>$C$18,"",C80+B81)) ->  | G81: =IF(F81="","",E81*TAN(RADIANS(45-('PROPIEDADES DE LOS SUELOS'!$C$26/2)))) ->  | H81: =IF(F81="","",IF(F81="Geomalla",(1.5*L81)/(DISEÑO!$C$20*TAN(RADIANS('PROPIEDADES DE LOS SUELOS'!$C$26))*DISEÑO!$C$21*'PROPIEDADES DE LOS SUELOS'!$C$24*'DISEÑO ALTERNATIVO'!C81*DISEÑO!$C$25*0.8),(1.5*L81)/(DISEÑO!$C$20*TAN(RADIANS('PROPIEDADES DE LOS SUELOS'!$C$26))*DISEÑO!$C$21*'PROPIEDADES DE LOS SUELOS'!$C$24*'DISEÑO ALTERNATIVO'!C81*DISEÑO!$C$25*0.6))) ->  | K81: =IF(J81="","",'GEOMETRIA DEL MURO'!$F$12) ->  | L81: =IF(F81="","",(('MC ANALISIS INTERNO'!$D$56*(($E$29*C81)+'CARGAS DISTRIBUIDAS'!$B$13+'CARGAS CONCENTRADAS'!$D$59))+'CARGAS CONCENTRADAS'!$D$34)*D81) ->  | M81: =IF(H81="","",'DISEÑO POR SISMO'!$D$34*('DISEÑO ALTERNATIVO'!I81/SUM($I$52:I139))) -> 
C82: =IF(B82="","",IF(SUM($B$52:B82)>$C$18,"",C81+B82)) ->  | G82: =IF(F82="","",E82*TAN(RADIANS(45-('PROPIEDADES DE LOS SUELOS'!$C$26/2)))) ->  | H82: =IF(F82="","",IF(F82="Geomalla",(1.5*L82)/(DISEÑO!$C$20*TAN(RADIANS('PROPIEDADES DE LOS SUELOS'!$C$26))*DISEÑO!$C$21*'PROPIEDADES DE LOS SUELOS'!$C$24*'DISEÑO ALTERNATIVO'!C82*DISEÑO!$C$25*0.8),(1.5*L82)/(DISEÑO!$C$20*TAN(RADIANS('PROPIEDADES DE LOS SUELOS'!$C$26))*DISEÑO!$C$21*'PROPIEDADES DE LOS SUELOS'!$C$24*'DISEÑO ALTERNATIVO'!C82*DISEÑO!$C$25*0.6))) ->  | K82: =IF(J82="","",'GEOMETRIA DEL MURO'!$F$12) ->  | L82: =IF(F82="","",(('MC ANALISIS INTERNO'!$D$56*(($E$29*C82)+'CARGAS DISTRIBUIDAS'!$B$13+'CARGAS CONCENTRADAS'!$D$59))+'CARGAS CONCENTRADAS'!$D$34)*D82) ->  | M82: =IF(H82="","",'DISEÑO POR SISMO'!$D$34*('DISEÑO ALTERNATIVO'!I82/SUM($I$52:I140))) -> 
C83: =IF(B83="","",IF(SUM($B$52:B83)>$C$18,"",C82+B83)) ->  | G83: =IF(F83="","",E83*TAN(RADIANS(45-('PROPIEDADES DE LOS SUELOS'!$C$26/2)))) ->  | H83: =IF(F83="","",IF(F83="Geomalla",(1.5*L83)/(DISEÑO!$C$20*TAN(RADIANS('PROPIEDADES DE LOS SUELOS'!$C$26))*DISEÑO!$C$21*'PROPIEDADES DE LOS SUELOS'!$C$24*'DISEÑO ALTERNATIVO'!C83*DISEÑO!$C$25*0.8),(1.5*L83)/(DISEÑO!$C$20*TAN(RADIANS('PROPIEDADES DE LOS SUELOS'!$C$26))*DISEÑO!$C$21*'PROPIEDADES DE LOS SUELOS'!$C$24*'DISEÑO ALTERNATIVO'!C83*DISEÑO!$C$25*0.6))) ->  | K83: =IF(J83="","",'GEOMETRIA DEL MURO'!$F$12) ->  | L83: =IF(F83="","",(('MC ANALISIS INTERNO'!$D$56*(($E$29*C83)+'CARGAS DISTRIBUIDAS'!$B$13+'CARGAS CONCENTRADAS'!$D$59))+'CARGAS CONCENTRADAS'!$D$34)*D83) ->  | M83: =IF(H83="","",'DISEÑO POR SISMO'!$D$34*('DISEÑO ALTERNATIVO'!I83/SUM($I$52:I141))) -> 
C84: =IF(B84="","",IF(SUM($B$52:B84)>$C$18,"",C83+B84)) ->  | G84: =IF(F84="","",E84*TAN(RADIANS(45-('PROPIEDADES DE LOS SUELOS'!$C$26/2)))) ->  | H84: =IF(F84="","",IF(F84="Geomalla",(1.5*L84)/(DISEÑO!$C$20*TAN(RADIANS('PROPIEDADES DE LOS SUELOS'!$C$26))*DISEÑO!$C$21*'PROPIEDADES DE LOS SUELOS'!$C$24*'DISEÑO ALTERNATIVO'!C84*DISEÑO!$C$25*0.8),(1.5*L84)/(DISEÑO!$C$20*TAN(RADIANS('PROPIEDADES DE LOS SUELOS'!$C$26))*DISEÑO!$C$21*'PROPIEDADES DE LOS SUELOS'!$C$24*'DISEÑO ALTERNATIVO'!C84*DISEÑO!$C$25*0.6))) ->  | K84: =IF(J84="","",'GEOMETRIA DEL MURO'!$F$12) ->  | L84: =IF(F84="","",(('MC ANALISIS INTERNO'!$D$56*(($E$29*C84)+'CARGAS DISTRIBUIDAS'!$B$13+'CARGAS CONCENTRADAS'!$D$59))+'CARGAS CONCENTRADAS'!$D$34)*D84) ->  | M84: =IF(H84="","",'DISEÑO POR SISMO'!$D$34*('DISEÑO ALTERNATIVO'!I84/SUM($I$52:I142))) -> 
C85: =IF(B85="","",IF(SUM($B$52:B85)>$C$18,"",C84+B85)) ->  | G85: =IF(F85="","",E85*TAN(RADIANS(45-('PROPIEDADES DE LOS SUELOS'!$C$26/2)))) ->  | H85: =IF(F85="","",IF(F85="Geomalla",(1.5*L85)/(DISEÑO!$C$20*TAN(RADIANS('PROPIEDADES DE LOS SUELOS'!$C$26))*DISEÑO!$C$21*'PROPIEDADES DE LOS SUELOS'!$C$24*'DISEÑO ALTERNATIVO'!C85*DISEÑO!$C$25*0.8),(1.5*L85)/(DISEÑO!$C$20*TAN(RADIANS('PROPIEDADES DE LOS SUELOS'!$C$26))*DISEÑO!$C$21*'PROPIEDADES DE LOS SUELOS'!$C$24*'DISEÑO ALTERNATIVO'!C85*DISEÑO!$C$25*0.6))) ->  | K85: =IF(J85="","",'GEOMETRIA DEL MURO'!$F$12) ->  | L85: =IF(F85="","",(('MC ANALISIS INTERNO'!$D$56*(($E$29*C85)+'CARGAS DISTRIBUIDAS'!$B$13+'CARGAS CONCENTRADAS'!$D$59))+'CARGAS CONCENTRADAS'!$D$34)*D85) ->  | M85: =IF(H85="","",'DISEÑO POR SISMO'!$D$34*('DISEÑO ALTERNATIVO'!I85/SUM($I$52:I143))) -> 
C86: =IF(B86="","",IF(SUM($B$52:B86)>$C$18,"",C85+B86)) ->  | G86: =IF(F86="","",E86*TAN(RADIANS(45-('PROPIEDADES DE LOS SUELOS'!$C$26/2)))) ->  | H86: =IF(F86="","",IF(F86="Geomalla",(1.5*L86)/(DISEÑO!$C$20*TAN(RADIANS('PROPIEDADES DE LOS SUELOS'!$C$26))*DISEÑO!$C$21*'PROPIEDADES DE LOS SUELOS'!$C$24*'DISEÑO ALTERNATIVO'!C86*DISEÑO!$C$25*0.8),(1.5*L86)/(DISEÑO!$C$20*TAN(RADIANS('PROPIEDADES DE LOS SUELOS'!$C$26))*DISEÑO!$C$21*'PROPIEDADES DE LOS SUELOS'!$C$24*'DISEÑO ALTERNATIVO'!C86*DISEÑO!$C$25*0.6))) ->  | K86: =IF(J86="","",'GEOMETRIA DEL MURO'!$F$12) ->  | L86: =IF(F86="","",(('MC ANALISIS INTERNO'!$D$56*(($E$29*C86)+'CARGAS DISTRIBUIDAS'!$B$13+'CARGAS CONCENTRADAS'!$D$59))+'CARGAS CONCENTRADAS'!$D$34)*D86) ->  | M86: =IF(H86="","",'DISEÑO POR SISMO'!$D$34*('DISEÑO ALTERNATIVO'!I86/SUM($I$52:I144))) -> 
C87: =IF(B87="","",IF(SUM($B$52:B87)>$C$18,"",C86+B87)) ->  | G87: =IF(F87="","",E87*TAN(RADIANS(45-('PROPIEDADES DE LOS SUELOS'!$C$26/2)))) ->  | H87: =IF(F87="","",IF(F87="Geomalla",(1.5*L87)/(DISEÑO!$C$20*TAN(RADIANS('PROPIEDADES DE LOS SUELOS'!$C$26))*DISEÑO!$C$21*'PROPIEDADES DE LOS SUELOS'!$C$24*'DISEÑO ALTERNATIVO'!C87*DISEÑO!$C$25*0.8),(1.5*L87)/(DISEÑO!$C$20*TAN(RADIANS('PROPIEDADES DE LOS SUELOS'!$C$26))*DISEÑO!$C$21*'PROPIEDADES DE LOS SUELOS'!$C$24*'DISEÑO ALTERNATIVO'!C87*DISEÑO!$C$25*0.6))) ->  | K87: =IF(J87="","",'GEOMETRIA DEL MURO'!$F$12) ->  | L87: =IF(F87="","",(('MC ANALISIS INTERNO'!$D$56*(($E$29*C87)+'CARGAS DISTRIBUIDAS'!$B$13+'CARGAS CONCENTRADAS'!$D$59))+'CARGAS CONCENTRADAS'!$D$34)*D87) ->  | M87: =IF(H87="","",'DISEÑO POR SISMO'!$D$34*('DISEÑO ALTERNATIVO'!I87/SUM($I$52:I145))) -> 
C88: =IF(B88="","",IF(SUM($B$52:B88)>$C$18,"",C87+B88)) ->  | G88: =IF(F88="","",E88*TAN(RADIANS(45-('PROPIEDADES DE LOS SUELOS'!$C$26/2)))) ->  | H88: =IF(F88="","",IF(F88="Geomalla",(1.5*L88)/(DISEÑO!$C$20*TAN(RADIANS('PROPIEDADES DE LOS SUELOS'!$C$26))*DISEÑO!$C$21*'PROPIEDADES DE LOS SUELOS'!$C$24*'DISEÑO ALTERNATIVO'!C88*DISEÑO!$C$25*0.8),(1.5*L88)/(DISEÑO!$C$20*TAN(RADIANS('PROPIEDADES DE LOS SUELOS'!$C$26))*DISEÑO!$C$21*'PROPIEDADES DE LOS SUELOS'!$C$24*'DISEÑO ALTERNATIVO'!C88*DISEÑO!$C$25*0.6))) ->  | K88: =IF(J88="","",'GEOMETRIA DEL MURO'!$F$12) ->  | L88: =IF(F88="","",(('MC ANALISIS INTERNO'!$D$56*(($E$29*C88)+'CARGAS DISTRIBUIDAS'!$B$13+'CARGAS CONCENTRADAS'!$D$59))+'CARGAS CONCENTRADAS'!$D$34)*D88) ->  | M88: =IF(H88="","",'DISEÑO POR SISMO'!$D$34*('DISEÑO ALTERNATIVO'!I88/SUM($I$52:I146))) -> 
C89: =IF(B89="","",IF(SUM($B$52:B89)>$C$18,"",C88+B89)) ->  | G89: =IF(F89="","",E89*TAN(RADIANS(45-('PROPIEDADES DE LOS SUELOS'!$C$26/2)))) ->  | H89: =IF(F89="","",IF(F89="Geomalla",(1.5*L89)/(DISEÑO!$C$20*TAN(RADIANS('PROPIEDADES DE LOS SUELOS'!$C$26))*DISEÑO!$C$21*'PROPIEDADES DE LOS SUELOS'!$C$24*'DISEÑO ALTERNATIVO'!C89*DISEÑO!$C$25*0.8),(1.5*L89)/(DISEÑO!$C$20*TAN(RADIANS('PROPIEDADES DE LOS SUELOS'!$C$26))*DISEÑO!$C$21*'PROPIEDADES DE LOS SUELOS'!$C$24*'DISEÑO ALTERNATIVO'!C89*DISEÑO!$C$25*0.6))) ->  | K89: =IF(J89="","",'GEOMETRIA DEL MURO'!$F$12) ->  | L89: =IF(F89="","",(('MC ANALISIS INTERNO'!$D$56*(($E$29*C89)+'CARGAS DISTRIBUIDAS'!$B$13+'CARGAS CONCENTRADAS'!$D$59))+'CARGAS CONCENTRADAS'!$D$34)*D89) ->  | M89: =IF(H89="","",'DISEÑO POR SISMO'!$D$34*('DISEÑO ALTERNATIVO'!I89/SUM($I$52:I147))) -> 
C90: =IF(B90="","",IF(SUM($B$52:B90)>$C$18,"",C89+B90)) ->  | G90: =IF(F90="","",E90*TAN(RADIANS(45-('PROPIEDADES DE LOS SUELOS'!$C$26/2)))) ->  | H90: =IF(F90="","",IF(F90="Geomalla",(1.5*L90)/(DISEÑO!$C$20*TAN(RADIANS('PROPIEDADES DE LOS SUELOS'!$C$26))*DISEÑO!$C$21*'PROPIEDADES DE LOS SUELOS'!$C$24*'DISEÑO ALTERNATIVO'!C90*DISEÑO!$C$25*0.8),(1.5*L90)/(DISEÑO!$C$20*TAN(RADIANS('PROPIEDADES DE LOS SUELOS'!$C$26))*DISEÑO!$C$21*'PROPIEDADES DE LOS SUELOS'!$C$24*'DISEÑO ALTERNATIVO'!C90*DISEÑO!$C$25*0.6))) ->  | K90: =IF(J90="","",'GEOMETRIA DEL MURO'!$F$12) ->  | L90: =IF(F90="","",(('MC ANALISIS INTERNO'!$D$56*(($E$29*C90)+'CARGAS DISTRIBUIDAS'!$B$13+'CARGAS CONCENTRADAS'!$D$59))+'CARGAS CONCENTRADAS'!$D$34)*D90) ->  | M90: =IF(H90="","",'DISEÑO POR SISMO'!$D$34*('DISEÑO ALTERNATIVO'!I90/SUM($I$52:I148))) -> 
C91: =IF(B91="","",IF(SUM($B$52:B91)>$C$18,"",C90+B91)) ->  | G91: =IF(F91="","",E91*TAN(RADIANS(45-('PROPIEDADES DE LOS SUELOS'!$C$26/2)))) ->  | H91: =IF(F91="","",IF(F91="Geomalla",(1.5*L91)/(DISEÑO!$C$20*TAN(RADIANS('PROPIEDADES DE LOS SUELOS'!$C$26))*DISEÑO!$C$21*'PROPIEDADES DE LOS SUELOS'!$C$24*'DISEÑO ALTERNATIVO'!C91*DISEÑO!$C$25*0.8),(1.5*L91)/(DISEÑO!$C$20*TAN(RADIANS('PROPIEDADES DE LOS SUELOS'!$C$26))*DISEÑO!$C$21*'PROPIEDADES DE LOS SUELOS'!$C$24*'DISEÑO ALTERNATIVO'!C91*DISEÑO!$C$25*0.6))) ->  | K91: =IF(J91="","",'GEOMETRIA DEL MURO'!$F$12) ->  | L91: =IF(F91="","",(('MC ANALISIS INTERNO'!$D$56*(($E$29*C91)+'CARGAS DISTRIBUIDAS'!$B$13+'CARGAS CONCENTRADAS'!$D$59))+'CARGAS CONCENTRADAS'!$D$34)*D91) ->  | M91: =IF(H91="","",'DISEÑO POR SISMO'!$D$34*('DISEÑO ALTERNATIVO'!I91/SUM($I$52:I149))) -> 
C92: =IF(B92="","",IF(SUM($B$52:B92)>$C$18,"",C91+B92)) ->  | G92: =IF(F92="","",E92*TAN(RADIANS(45-('PROPIEDADES DE LOS SUELOS'!$C$26/2)))) ->  | H92: =IF(F92="","",IF(F92="Geomalla",(1.5*L92)/(DISEÑO!$C$20*TAN(RADIANS('PROPIEDADES DE LOS SUELOS'!$C$26))*DISEÑO!$C$21*'PROPIEDADES DE LOS SUELOS'!$C$24*'DISEÑO ALTERNATIVO'!C92*DISEÑO!$C$25*0.8),(1.5*L92)/(DISEÑO!$C$20*TAN(RADIANS('PROPIEDADES DE LOS SUELOS'!$C$26))*DISEÑO!$C$21*'PROPIEDADES DE LOS SUELOS'!$C$24*'DISEÑO ALTERNATIVO'!C92*DISEÑO!$C$25*0.6))) ->  | K92: =IF(J92="","",'GEOMETRIA DEL MURO'!$F$12) ->  | L92: =IF(F92="","",(('MC ANALISIS INTERNO'!$D$56*(($E$29*C92)+'CARGAS DISTRIBUIDAS'!$B$13+'CARGAS CONCENTRADAS'!$D$59))+'CARGAS CONCENTRADAS'!$D$34)*D92) ->  | M92: =IF(H92="","",'DISEÑO POR SISMO'!$D$34*('DISEÑO ALTERNATIVO'!I92/SUM($I$52:I150))) -> 
C93: =IF(B93="","",IF(SUM($B$52:B93)>$C$18,"",C92+B93)) ->  | G93: =IF(F93="","",E93*TAN(RADIANS(45-('PROPIEDADES DE LOS SUELOS'!$C$26/2)))) ->  | H93: =IF(F93="","",IF(F93="Geomalla",(1.5*L93)/(DISEÑO!$C$20*TAN(RADIANS('PROPIEDADES DE LOS SUELOS'!$C$26))*DISEÑO!$C$21*'PROPIEDADES DE LOS SUELOS'!$C$24*'DISEÑO ALTERNATIVO'!C93*DISEÑO!$C$25*0.8),(1.5*L93)/(DISEÑO!$C$20*TAN(RADIANS('PROPIEDADES DE LOS SUELOS'!$C$26))*DISEÑO!$C$21*'PROPIEDADES DE LOS SUELOS'!$C$24*'DISEÑO ALTERNATIVO'!C93*DISEÑO!$C$25*0.6))) ->  | K93: =IF(J93="","",'GEOMETRIA DEL MURO'!$F$12) ->  | L93: =IF(F93="","",(('MC ANALISIS INTERNO'!$D$56*(($E$29*C93)+'CARGAS DISTRIBUIDAS'!$B$13+'CARGAS CONCENTRADAS'!$D$59))+'CARGAS CONCENTRADAS'!$D$34)*D93) ->  | M93: =IF(H93="","",'DISEÑO POR SISMO'!$D$34*('DISEÑO ALTERNATIVO'!I93/SUM($I$52:I151))) -> 
C94: =IF(B94="","",IF(SUM($B$52:B94)>$C$18,"",C93+B94)) ->  | G94: =IF(F94="","",E94*TAN(RADIANS(45-('PROPIEDADES DE LOS SUELOS'!$C$26/2)))) ->  | H94: =IF(F94="","",IF(F94="Geomalla",(1.5*L94)/(DISEÑO!$C$20*TAN(RADIANS('PROPIEDADES DE LOS SUELOS'!$C$26))*DISEÑO!$C$21*'PROPIEDADES DE LOS SUELOS'!$C$24*'DISEÑO ALTERNATIVO'!C94*DISEÑO!$C$25*0.8),(1.5*L94)/(DISEÑO!$C$20*TAN(RADIANS('PROPIEDADES DE LOS SUELOS'!$C$26))*DISEÑO!$C$21*'PROPIEDADES DE LOS SUELOS'!$C$24*'DISEÑO ALTERNATIVO'!C94*DISEÑO!$C$25*0.6))) ->  | K94: =IF(J94="","",'GEOMETRIA DEL MURO'!$F$12) ->  | L94: =IF(F94="","",(('MC ANALISIS INTERNO'!$D$56*(($E$29*C94)+'CARGAS DISTRIBUIDAS'!$B$13+'CARGAS CONCENTRADAS'!$D$59))+'CARGAS CONCENTRADAS'!$D$34)*D94) ->  | M94: =IF(H94="","",'DISEÑO POR SISMO'!$D$34*('DISEÑO ALTERNATIVO'!I94/SUM($I$52:I152))) -> 
C95: =IF(B95="","",IF(SUM($B$52:B95)>$C$18,"",C94+B95)) ->  | G95: =IF(F95="","",E95*TAN(RADIANS(45-('PROPIEDADES DE LOS SUELOS'!$C$26/2)))) ->  | H95: =IF(F95="","",IF(F95="Geomalla",(1.5*L95)/(DISEÑO!$C$20*TAN(RADIANS('PROPIEDADES DE LOS SUELOS'!$C$26))*DISEÑO!$C$21*'PROPIEDADES DE LOS SUELOS'!$C$24*'DISEÑO ALTERNATIVO'!C95*DISEÑO!$C$25*0.8),(1.5*L95)/(DISEÑO!$C$20*TAN(RADIANS('PROPIEDADES DE LOS SUELOS'!$C$26))*DISEÑO!$C$21*'PROPIEDADES DE LOS SUELOS'!$C$24*'DISEÑO ALTERNATIVO'!C95*DISEÑO!$C$25*0.6))) ->  | K95: =IF(J95="","",'GEOMETRIA DEL MURO'!$F$12) ->  | L95: =IF(F95="","",(('MC ANALISIS INTERNO'!$D$56*(($E$29*C95)+'CARGAS DISTRIBUIDAS'!$B$13+'CARGAS CONCENTRADAS'!$D$59))+'CARGAS CONCENTRADAS'!$D$34)*D95) ->  | M95: =IF(H95="","",'DISEÑO POR SISMO'!$D$34*('DISEÑO ALTERNATIVO'!I95/SUM($I$52:I153))) -> 
C96: =IF(B96="","",IF(SUM($B$52:B96)>$C$18,"",C95+B96)) ->  | G96: =IF(F96="","",E96*TAN(RADIANS(45-('PROPIEDADES DE LOS SUELOS'!$C$26/2)))) ->  | H96: =IF(F96="","",IF(F96="Geomalla",(1.5*L96)/(DISEÑO!$C$20*TAN(RADIANS('PROPIEDADES DE LOS SUELOS'!$C$26))*DISEÑO!$C$21*'PROPIEDADES DE LOS SUELOS'!$C$24*'DISEÑO ALTERNATIVO'!C96*DISEÑO!$C$25*0.8),(1.5*L96)/(DISEÑO!$C$20*TAN(RADIANS('PROPIEDADES DE LOS SUELOS'!$C$26))*DISEÑO!$C$21*'PROPIEDADES DE LOS SUELOS'!$C$24*'DISEÑO ALTERNATIVO'!C96*DISEÑO!$C$25*0.6))) ->  | K96: =IF(J96="","",'GEOMETRIA DEL MURO'!$F$12) ->  | L96: =IF(F96="","",(('MC ANALISIS INTERNO'!$D$56*(($E$29*C96)+'CARGAS DISTRIBUIDAS'!$B$13+'CARGAS CONCENTRADAS'!$D$59))+'CARGAS CONCENTRADAS'!$D$34)*D96) ->  | M96: =IF(H96="","",'DISEÑO POR SISMO'!$D$34*('DISEÑO ALTERNATIVO'!I96/SUM($I$52:I154))) -> 
C97: =IF(B97="","",IF(SUM($B$52:B97)>$C$18,"",C96+B97)) ->  | G97: =IF(F97="","",E97*TAN(RADIANS(45-('PROPIEDADES DE LOS SUELOS'!$C$26/2)))) ->  | H97: =IF(F97="","",IF(F97="Geomalla",(1.5*L97)/(DISEÑO!$C$20*TAN(RADIANS('PROPIEDADES DE LOS SUELOS'!$C$26))*DISEÑO!$C$21*'PROPIEDADES DE LOS SUELOS'!$C$24*'DISEÑO ALTERNATIVO'!C97*DISEÑO!$C$25*0.8),(1.5*L97)/(DISEÑO!$C$20*TAN(RADIANS('PROPIEDADES DE LOS SUELOS'!$C$26))*DISEÑO!$C$21*'PROPIEDADES DE LOS SUELOS'!$C$24*'DISEÑO ALTERNATIVO'!C97*DISEÑO!$C$25*0.6))) ->  | K97: =IF(J97="","",'GEOMETRIA DEL MURO'!$F$12) ->  | L97: =IF(F97="","",(('MC ANALISIS INTERNO'!$D$56*(($E$29*C97)+'CARGAS DISTRIBUIDAS'!$B$13+'CARGAS CONCENTRADAS'!$D$59))+'CARGAS CONCENTRADAS'!$D$34)*D97) ->  | M97: =IF(H97="","",'DISEÑO POR SISMO'!$D$34*('DISEÑO ALTERNATIVO'!I97/SUM($I$52:I155))) -> 
C98: =IF(B98="","",IF(SUM($B$52:B98)>$C$18,"",C97+B98)) ->  | G98: =IF(F98="","",E98*TAN(RADIANS(45-('PROPIEDADES DE LOS SUELOS'!$C$26/2)))) ->  | H98: =IF(F98="","",IF(F98="Geomalla",(1.5*L98)/(DISEÑO!$C$20*TAN(RADIANS('PROPIEDADES DE LOS SUELOS'!$C$26))*DISEÑO!$C$21*'PROPIEDADES DE LOS SUELOS'!$C$24*'DISEÑO ALTERNATIVO'!C98*DISEÑO!$C$25*0.8),(1.5*L98)/(DISEÑO!$C$20*TAN(RADIANS('PROPIEDADES DE LOS SUELOS'!$C$26))*DISEÑO!$C$21*'PROPIEDADES DE LOS SUELOS'!$C$24*'DISEÑO ALTERNATIVO'!C98*DISEÑO!$C$25*0.6))) ->  | K98: =IF(J98="","",'GEOMETRIA DEL MURO'!$F$12) ->  | L98: =IF(F98="","",(('MC ANALISIS INTERNO'!$D$56*(($E$29*C98)+'CARGAS DISTRIBUIDAS'!$B$13+'CARGAS CONCENTRADAS'!$D$59))+'CARGAS CONCENTRADAS'!$D$34)*D98) ->  | M98: =IF(H98="","",'DISEÑO POR SISMO'!$D$34*('DISEÑO ALTERNATIVO'!I98/SUM($I$52:I156))) -> 
C99: =IF(B99="","",IF(SUM($B$52:B99)>$C$18,"",C98+B99)) ->  | G99: =IF(F99="","",E99*TAN(RADIANS(45-('PROPIEDADES DE LOS SUELOS'!$C$26/2)))) ->  | H99: =IF(F99="","",IF(F99="Geomalla",(1.5*L99)/(DISEÑO!$C$20*TAN(RADIANS('PROPIEDADES DE LOS SUELOS'!$C$26))*DISEÑO!$C$21*'PROPIEDADES DE LOS SUELOS'!$C$24*'DISEÑO ALTERNATIVO'!C99*DISEÑO!$C$25*0.8),(1.5*L99)/(DISEÑO!$C$20*TAN(RADIANS('PROPIEDADES DE LOS SUELOS'!$C$26))*DISEÑO!$C$21*'PROPIEDADES DE LOS SUELOS'!$C$24*'DISEÑO ALTERNATIVO'!C99*DISEÑO!$C$25*0.6))) ->  | K99: =IF(J99="","",'GEOMETRIA DEL MURO'!$F$12) ->  | L99: =IF(F99="","",(('MC ANALISIS INTERNO'!$D$56*(($E$29*C99)+'CARGAS DISTRIBUIDAS'!$B$13+'CARGAS CONCENTRADAS'!$D$59))+'CARGAS CONCENTRADAS'!$D$34)*D99) ->  | M99: =IF(H99="","",'DISEÑO POR SISMO'!$D$34*('DISEÑO ALTERNATIVO'!I99/SUM($I$52:I157))) -> 
C100: =IF(B100="","",IF(SUM($B$52:B100)>$C$18,"",C99+B100)) ->  | G100: =IF(F100="","",E100*TAN(RADIANS(45-('PROPIEDADES DE LOS SUELOS'!$C$26/2)))) ->  | H100: =IF(F100="","",IF(F100="Geomalla",(1.5*L100)/(DISEÑO!$C$20*TAN(RADIANS('PROPIEDADES DE LOS SUELOS'!$C$26))*DISEÑO!$C$21*'PROPIEDADES DE LOS SUELOS'!$C$24*'DISEÑO ALTERNATIVO'!C100*DISEÑO!$C$25*0.8),(1.5*L100)/(DISEÑO!$C$20*TAN(RADIANS('PROPIEDADES DE LOS SUELOS'!$C$26))*DISEÑO!$C$21*'PROPIEDADES DE LOS SUELOS'!$C$24*'DISEÑO ALTERNATIVO'!C100*DISEÑO!$C$25*0.6))) ->  | K100: =IF(J100="","",'GEOMETRIA DEL MURO'!$F$12) ->  | L100: =IF(F100="","",(('MC ANALISIS INTERNO'!$D$56*(($E$29*C100)+'CARGAS DISTRIBUIDAS'!$B$13+'CARGAS CONCENTRADAS'!$D$59))+'CARGAS CONCENTRADAS'!$D$34)*D100) ->  | M100: =IF(H100="","",'DISEÑO POR SISMO'!$D$34*('DISEÑO ALTERNATIVO'!I100/SUM($I$52:I158))) -> 
C101: =IF(B101="","",IF(SUM($B$52:B101)>$C$18,"",C100+B101)) ->  | G101: =IF(F101="","",E101*TAN(RADIANS(45-('PROPIEDADES DE LOS SUELOS'!$C$26/2)))) ->  | H101: =IF(F101="","",IF(F101="Geomalla",(1.5*L101)/(DISEÑO!$C$20*TAN(RADIANS('PROPIEDADES DE LOS SUELOS'!$C$26))*DISEÑO!$C$21*'PROPIEDADES DE LOS SUELOS'!$C$24*'DISEÑO ALTERNATIVO'!C101*DISEÑO!$C$25*0.8),(1.5*L101)/(DISEÑO!$C$20*TAN(RADIANS('PROPIEDADES DE LOS SUELOS'!$C$26))*DISEÑO!$C$21*'PROPIEDADES DE LOS SUELOS'!$C$24*'DISEÑO ALTERNATIVO'!C101*DISEÑO!$C$25*0.6))) ->  | K101: =IF(J101="","",'GEOMETRIA DEL MURO'!$F$12) ->  | L101: =IF(F101="","",(('MC ANALISIS INTERNO'!$D$56*(($E$29*C101)+'CARGAS DISTRIBUIDAS'!$B$13+'CARGAS CONCENTRADAS'!$D$59))+'CARGAS CONCENTRADAS'!$D$34)*D101) ->  | M101: =IF(H101="","",'DISEÑO POR SISMO'!$D$34*('DISEÑO ALTERNATIVO'!I101/SUM($I$52:I159))) -> 
C102: =IF(B102="","",IF(SUM($B$52:B102)>$C$18,"",C101+B102)) ->  | G102: =IF(F102="","",E102*TAN(RADIANS(45-('PROPIEDADES DE LOS SUELOS'!$C$26/2)))) ->  | H102: =IF(F102="","",IF(F102="Geomalla",(1.5*L102)/(DISEÑO!$C$20*TAN(RADIANS('PROPIEDADES DE LOS SUELOS'!$C$26))*DISEÑO!$C$21*'PROPIEDADES DE LOS SUELOS'!$C$24*'DISEÑO ALTERNATIVO'!C102*DISEÑO!$C$25*0.8),(1.5*L102)/(DISEÑO!$C$20*TAN(RADIANS('PROPIEDADES DE LOS SUELOS'!$C$26))*DISEÑO!$C$21*'PROPIEDADES DE LOS SUELOS'!$C$24*'DISEÑO ALTERNATIVO'!C102*DISEÑO!$C$25*0.6))) ->  | K102: =IF(J102="","",'GEOMETRIA DEL MURO'!$F$12) ->  | L102: =IF(F102="","",(('MC ANALISIS INTERNO'!$D$56*(($E$29*C102)+'CARGAS DISTRIBUIDAS'!$B$13+'CARGAS CONCENTRADAS'!$D$59))+'CARGAS CONCENTRADAS'!$D$34)*D102) ->  | M102: =IF(H102="","",'DISEÑO POR SISMO'!$D$34*('DISEÑO ALTERNATIVO'!I102/SUM($I$52:I160))) -> 
C103: =IF(B103="","",IF(SUM($B$52:B103)>$C$18,"",C102+B103)) ->  | G103: =IF(F103="","",E103*TAN(RADIANS(45-('PROPIEDADES DE LOS SUELOS'!$C$26/2)))) ->  | H103: =IF(F103="","",IF(F103="Geomalla",(1.5*L103)/(DISEÑO!$C$20*TAN(RADIANS('PROPIEDADES DE LOS SUELOS'!$C$26))*DISEÑO!$C$21*'PROPIEDADES DE LOS SUELOS'!$C$24*'DISEÑO ALTERNATIVO'!C103*DISEÑO!$C$25*0.8),(1.5*L103)/(DISEÑO!$C$20*TAN(RADIANS('PROPIEDADES DE LOS SUELOS'!$C$26))*DISEÑO!$C$21*'PROPIEDADES DE LOS SUELOS'!$C$24*'DISEÑO ALTERNATIVO'!C103*DISEÑO!$C$25*0.6))) ->  | K103: =IF(J103="","",'GEOMETRIA DEL MURO'!$F$12) ->  | L103: =IF(F103="","",(('MC ANALISIS INTERNO'!$D$56*(($E$29*C103)+'CARGAS DISTRIBUIDAS'!$B$13+'CARGAS CONCENTRADAS'!$D$59))+'CARGAS CONCENTRADAS'!$D$34)*D103) ->  | M103: =IF(H103="","",'DISEÑO POR SISMO'!$D$34*('DISEÑO ALTERNATIVO'!I103/SUM($I$52:I161))) -> 
C104: =IF(B104="","",IF(SUM($B$52:B104)>$C$18,"",C103+B104)) ->  | G104: =IF(F104="","",E104*TAN(RADIANS(45-('PROPIEDADES DE LOS SUELOS'!$C$26/2)))) ->  | H104: =IF(F104="","",IF(F104="Geomalla",(1.5*L104)/(DISEÑO!$C$20*TAN(RADIANS('PROPIEDADES DE LOS SUELOS'!$C$26))*DISEÑO!$C$21*'PROPIEDADES DE LOS SUELOS'!$C$24*'DISEÑO ALTERNATIVO'!C104*DISEÑO!$C$25*0.8),(1.5*L104)/(DISEÑO!$C$20*TAN(RADIANS('PROPIEDADES DE LOS SUELOS'!$C$26))*DISEÑO!$C$21*'PROPIEDADES DE LOS SUELOS'!$C$24*'DISEÑO ALTERNATIVO'!C104*DISEÑO!$C$25*0.6))) ->  | K104: =IF(J104="","",'GEOMETRIA DEL MURO'!$F$12) ->  | L104: =IF(F104="","",(('MC ANALISIS INTERNO'!$D$56*(($E$29*C104)+'CARGAS DISTRIBUIDAS'!$B$13+'CARGAS CONCENTRADAS'!$D$59))+'CARGAS CONCENTRADAS'!$D$34)*D104) ->  | M104: =IF(H104="","",'DISEÑO POR SISMO'!$D$34*('DISEÑO ALTERNATIVO'!I104/SUM($I$52:I162))) -> 
C105: =IF(B105="","",IF(SUM($B$52:B105)>$C$18,"",C104+B105)) ->  | G105: =IF(F105="","",E105*TAN(RADIANS(45-('PROPIEDADES DE LOS SUELOS'!$C$26/2)))) ->  | H105: =IF(F105="","",IF(F105="Geomalla",(1.5*L105)/(DISEÑO!$C$20*TAN(RADIANS('PROPIEDADES DE LOS SUELOS'!$C$26))*DISEÑO!$C$21*'PROPIEDADES DE LOS SUELOS'!$C$24*'DISEÑO ALTERNATIVO'!C105*DISEÑO!$C$25*0.8),(1.5*L105)/(DISEÑO!$C$20*TAN(RADIANS('PROPIEDADES DE LOS SUELOS'!$C$26))*DISEÑO!$C$21*'PROPIEDADES DE LOS SUELOS'!$C$24*'DISEÑO ALTERNATIVO'!C105*DISEÑO!$C$25*0.6))) ->  | K105: =IF(J105="","",'GEOMETRIA DEL MURO'!$F$12) ->  | L105: =IF(F105="","",(('MC ANALISIS INTERNO'!$D$56*(($E$29*C105)+'CARGAS DISTRIBUIDAS'!$B$13+'CARGAS CONCENTRADAS'!$D$59))+'CARGAS CONCENTRADAS'!$D$34)*D105) ->  | M105: =IF(H105="","",'DISEÑO POR SISMO'!$D$34*('DISEÑO ALTERNATIVO'!I105/SUM($I$52:I163))) -> 
C106: =IF(B106="","",IF(SUM($B$52:B106)>$C$18,"",C105+B106)) ->  | G106: =IF(F106="","",E106*TAN(RADIANS(45-('PROPIEDADES DE LOS SUELOS'!$C$26/2)))) ->  | H106: =IF(F106="","",IF(F106="Geomalla",(1.5*L106)/(DISEÑO!$C$20*TAN(RADIANS('PROPIEDADES DE LOS SUELOS'!$C$26))*DISEÑO!$C$21*'PROPIEDADES DE LOS SUELOS'!$C$24*'DISEÑO ALTERNATIVO'!C106*DISEÑO!$C$25*0.8),(1.5*L106)/(DISEÑO!$C$20*TAN(RADIANS('PROPIEDADES DE LOS SUELOS'!$C$26))*DISEÑO!$C$21*'PROPIEDADES DE LOS SUELOS'!$C$24*'DISEÑO ALTERNATIVO'!C106*DISEÑO!$C$25*0.6))) ->  | K106: =IF(J106="","",'GEOMETRIA DEL MURO'!$F$12) ->  | L106: =IF(F106="","",(('MC ANALISIS INTERNO'!$D$56*(($E$29*C106)+'CARGAS DISTRIBUIDAS'!$B$13+'CARGAS CONCENTRADAS'!$D$59))+'CARGAS CONCENTRADAS'!$D$34)*D106) ->  | M106: =IF(H106="","",'DISEÑO POR SISMO'!$D$34*('DISEÑO ALTERNATIVO'!I106/SUM($I$52:I164))) -> 
C107: =IF(B107="","",IF(SUM($B$52:B107)>$C$18,"",C106+B107)) ->  | G107: =IF(F107="","",E107*TAN(RADIANS(45-('PROPIEDADES DE LOS SUELOS'!$C$26/2)))) ->  | H107: =IF(F107="","",IF(F107="Geomalla",(1.5*L107)/(DISEÑO!$C$20*TAN(RADIANS('PROPIEDADES DE LOS SUELOS'!$C$26))*DISEÑO!$C$21*'PROPIEDADES DE LOS SUELOS'!$C$24*'DISEÑO ALTERNATIVO'!C107*DISEÑO!$C$25*0.8),(1.5*L107)/(DISEÑO!$C$20*TAN(RADIANS('PROPIEDADES DE LOS SUELOS'!$C$26))*DISEÑO!$C$21*'PROPIEDADES DE LOS SUELOS'!$C$24*'DISEÑO ALTERNATIVO'!C107*DISEÑO!$C$25*0.6))) ->  | K107: =IF(J107="","",'GEOMETRIA DEL MURO'!$F$12) ->  | L107: =IF(F107="","",(('MC ANALISIS INTERNO'!$D$56*(($E$29*C107)+'CARGAS DISTRIBUIDAS'!$B$13+'CARGAS CONCENTRADAS'!$D$59))+'CARGAS CONCENTRADAS'!$D$34)*D107) ->  | M107: =IF(H107="","",'DISEÑO POR SISMO'!$D$34*('DISEÑO ALTERNATIVO'!I107/SUM($I$52:I165))) -> 
C108: =IF(B108="","",IF(SUM($B$52:B108)>$C$18,"",C107+B108)) ->  | G108: =IF(F108="","",E108*TAN(RADIANS(45-('PROPIEDADES DE LOS SUELOS'!$C$26/2)))) ->  | H108: =IF(F108="","",IF(F108="Geomalla",(1.5*L108)/(DISEÑO!$C$20*TAN(RADIANS('PROPIEDADES DE LOS SUELOS'!$C$26))*DISEÑO!$C$21*'PROPIEDADES DE LOS SUELOS'!$C$24*'DISEÑO ALTERNATIVO'!C108*DISEÑO!$C$25*0.8),(1.5*L108)/(DISEÑO!$C$20*TAN(RADIANS('PROPIEDADES DE LOS SUELOS'!$C$26))*DISEÑO!$C$21*'PROPIEDADES DE LOS SUELOS'!$C$24*'DISEÑO ALTERNATIVO'!C108*DISEÑO!$C$25*0.6))) ->  | K108: =IF(J108="","",'GEOMETRIA DEL MURO'!$F$12) ->  | L108: =IF(F108="","",(('MC ANALISIS INTERNO'!$D$56*(($E$29*C108)+'CARGAS DISTRIBUIDAS'!$B$13+'CARGAS CONCENTRADAS'!$D$59))+'CARGAS CONCENTRADAS'!$D$34)*D108) ->  | M108: =IF(H108="","",'DISEÑO POR SISMO'!$D$34*('DISEÑO ALTERNATIVO'!I108/SUM($I$52:I166))) -> 
C109: =IF(B109="","",IF(SUM($B$52:B109)>$C$18,"",C108+B109)) ->  | G109: =IF(F109="","",E109*TAN(RADIANS(45-('PROPIEDADES DE LOS SUELOS'!$C$26/2)))) ->  | H109: =IF(F109="","",IF(F109="Geomalla",(1.5*L109)/(DISEÑO!$C$20*TAN(RADIANS('PROPIEDADES DE LOS SUELOS'!$C$26))*DISEÑO!$C$21*'PROPIEDADES DE LOS SUELOS'!$C$24*'DISEÑO ALTERNATIVO'!C109*DISEÑO!$C$25*0.8),(1.5*L109)/(DISEÑO!$C$20*TAN(RADIANS('PROPIEDADES DE LOS SUELOS'!$C$26))*DISEÑO!$C$21*'PROPIEDADES DE LOS SUELOS'!$C$24*'DISEÑO ALTERNATIVO'!C109*DISEÑO!$C$25*0.6))) ->  | K109: =IF(J109="","",'GEOMETRIA DEL MURO'!$F$12) ->  | L109: =IF(F109="","",(('MC ANALISIS INTERNO'!$D$56*(($E$29*C109)+'CARGAS DISTRIBUIDAS'!$B$13+'CARGAS CONCENTRADAS'!$D$59))+'CARGAS CONCENTRADAS'!$D$34)*D109) ->  | M109: =IF(H109="","",'DISEÑO POR SISMO'!$D$34*('DISEÑO ALTERNATIVO'!I109/SUM($I$52:I167))) -> 
C110: =IF(B110="","",IF(SUM($B$52:B110)>$C$18,"",C109+B110)) ->  | G110: =IF(F110="","",E110*TAN(RADIANS(45-('PROPIEDADES DE LOS SUELOS'!$C$26/2)))) ->  | H110: =IF(F110="","",IF(F110="Geomalla",(1.5*L110)/(DISEÑO!$C$20*TAN(RADIANS('PROPIEDADES DE LOS SUELOS'!$C$26))*DISEÑO!$C$21*'PROPIEDADES DE LOS SUELOS'!$C$24*'DISEÑO ALTERNATIVO'!C110*DISEÑO!$C$25*0.8),(1.5*L110)/(DISEÑO!$C$20*TAN(RADIANS('PROPIEDADES DE LOS SUELOS'!$C$26))*DISEÑO!$C$21*'PROPIEDADES DE LOS SUELOS'!$C$24*'DISEÑO ALTERNATIVO'!C110*DISEÑO!$C$25*0.6))) ->  | K110: =IF(J110="","",'GEOMETRIA DEL MURO'!$F$12) ->  | L110: =IF(F110="","",(('MC ANALISIS INTERNO'!$D$56*(($E$29*C110)+'CARGAS DISTRIBUIDAS'!$B$13+'CARGAS CONCENTRADAS'!$D$59))+'CARGAS CONCENTRADAS'!$D$34)*D110) ->  | M110: =IF(H110="","",'DISEÑO POR SISMO'!$D$34*('DISEÑO ALTERNATIVO'!I110/SUM($I$52:I168))) -> 
C111: =IF(B111="","",IF(SUM($B$52:B111)>$C$18,"",C110+B111)) ->  | G111: =IF(F111="","",E111*TAN(RADIANS(45-('PROPIEDADES DE LOS SUELOS'!$C$26/2)))) ->  | H111: =IF(F111="","",IF(F111="Geomalla",(1.5*L111)/(DISEÑO!$C$20*TAN(RADIANS('PROPIEDADES DE LOS SUELOS'!$C$26))*DISEÑO!$C$21*'PROPIEDADES DE LOS SUELOS'!$C$24*'DISEÑO ALTERNATIVO'!C111*DISEÑO!$C$25*0.8),(1.5*L111)/(DISEÑO!$C$20*TAN(RADIANS('PROPIEDADES DE LOS SUELOS'!$C$26))*DISEÑO!$C$21*'PROPIEDADES DE LOS SUELOS'!$C$24*'DISEÑO ALTERNATIVO'!C111*DISEÑO!$C$25*0.6))) ->  | K111: =IF(J111="","",'GEOMETRIA DEL MURO'!$F$12) ->  | L111: =IF(F111="","",(('MC ANALISIS INTERNO'!$D$56*(($E$29*C111)+'CARGAS DISTRIBUIDAS'!$B$13+'CARGAS CONCENTRADAS'!$D$59))+'CARGAS CONCENTRADAS'!$D$34)*D111) ->  | M111: =IF(H111="","",'DISEÑO POR SISMO'!$D$34*('DISEÑO ALTERNATIVO'!I111/SUM($I$52:I169))) -> 
C112: =IF(B112="","",IF(SUM($B$52:B112)>$C$18,"",C111+B112)) ->  | G112: =IF(F112="","",E112*TAN(RADIANS(45-('PROPIEDADES DE LOS SUELOS'!$C$26/2)))) ->  | H112: =IF(F112="","",IF(F112="Geomalla",(1.5*L112)/(DISEÑO!$C$20*TAN(RADIANS('PROPIEDADES DE LOS SUELOS'!$C$26))*DISEÑO!$C$21*'PROPIEDADES DE LOS SUELOS'!$C$24*'DISEÑO ALTERNATIVO'!C112*DISEÑO!$C$25*0.8),(1.5*L112)/(DISEÑO!$C$20*TAN(RADIANS('PROPIEDADES DE LOS SUELOS'!$C$26))*DISEÑO!$C$21*'PROPIEDADES DE LOS SUELOS'!$C$24*'DISEÑO ALTERNATIVO'!C112*DISEÑO!$C$25*0.6))) ->  | K112: =IF(J112="","",'GEOMETRIA DEL MURO'!$F$12) ->  | L112: =IF(F112="","",(('MC ANALISIS INTERNO'!$D$56*(($E$29*C112)+'CARGAS DISTRIBUIDAS'!$B$13+'CARGAS CONCENTRADAS'!$D$59))+'CARGAS CONCENTRADAS'!$D$34)*D112) ->  | M112: =IF(H112="","",'DISEÑO POR SISMO'!$D$34*('DISEÑO ALTERNATIVO'!I112/SUM($I$52:I170))) -> 
C113: =IF(B113="","",IF(SUM($B$52:B113)>$C$18,"",C112+B113)) ->  | G113: =IF(F113="","",E113*TAN(RADIANS(45-('PROPIEDADES DE LOS SUELOS'!$C$26/2)))) ->  | H113: =IF(F113="","",IF(F113="Geomalla",(1.5*L113)/(DISEÑO!$C$20*TAN(RADIANS('PROPIEDADES DE LOS SUELOS'!$C$26))*DISEÑO!$C$21*'PROPIEDADES DE LOS SUELOS'!$C$24*'DISEÑO ALTERNATIVO'!C113*DISEÑO!$C$25*0.8),(1.5*L113)/(DISEÑO!$C$20*TAN(RADIANS('PROPIEDADES DE LOS SUELOS'!$C$26))*DISEÑO!$C$21*'PROPIEDADES DE LOS SUELOS'!$C$24*'DISEÑO ALTERNATIVO'!C113*DISEÑO!$C$25*0.6))) ->  | K113: =IF(J113="","",'GEOMETRIA DEL MURO'!$F$12) ->  | L113: =IF(F113="","",(('MC ANALISIS INTERNO'!$D$56*(($E$29*C113)+'CARGAS DISTRIBUIDAS'!$B$13+'CARGAS CONCENTRADAS'!$D$59))+'CARGAS CONCENTRADAS'!$D$34)*D113) ->  | M113: =IF(H113="","",'DISEÑO POR SISMO'!$D$34*('DISEÑO ALTERNATIVO'!I113/SUM($I$52:I171))) -> 
C114: =IF(B114="","",IF(SUM($B$52:B114)>$C$18,"",C113+B114)) ->  | G114: =IF(F114="","",E114*TAN(RADIANS(45-('PROPIEDADES DE LOS SUELOS'!$C$26/2)))) ->  | H114: =IF(F114="","",IF(F114="Geomalla",(1.5*L114)/(DISEÑO!$C$20*TAN(RADIANS('PROPIEDADES DE LOS SUELOS'!$C$26))*DISEÑO!$C$21*'PROPIEDADES DE LOS SUELOS'!$C$24*'DISEÑO ALTERNATIVO'!C114*DISEÑO!$C$25*0.8),(1.5*L114)/(DISEÑO!$C$20*TAN(RADIANS('PROPIEDADES DE LOS SUELOS'!$C$26))*DISEÑO!$C$21*'PROPIEDADES DE LOS SUELOS'!$C$24*'DISEÑO ALTERNATIVO'!C114*DISEÑO!$C$25*0.6))) ->  | K114: =IF(J114="","",'GEOMETRIA DEL MURO'!$F$12) ->  | L114: =IF(F114="","",(('MC ANALISIS INTERNO'!$D$56*(($E$29*C114)+'CARGAS DISTRIBUIDAS'!$B$13+'CARGAS CONCENTRADAS'!$D$59))+'CARGAS CONCENTRADAS'!$D$34)*D114) ->  | M114: =IF(H114="","",'DISEÑO POR SISMO'!$D$34*('DISEÑO ALTERNATIVO'!I114/SUM($I$52:I172))) -> 
C115: =IF(B115="","",IF(SUM($B$52:B115)>$C$18,"",C114+B115)) ->  | G115: =IF(F115="","",E115*TAN(RADIANS(45-('PROPIEDADES DE LOS SUELOS'!$C$26/2)))) ->  | H115: =IF(F115="","",IF(F115="Geomalla",(1.5*L115)/(DISEÑO!$C$20*TAN(RADIANS('PROPIEDADES DE LOS SUELOS'!$C$26))*DISEÑO!$C$21*'PROPIEDADES DE LOS SUELOS'!$C$24*'DISEÑO ALTERNATIVO'!C115*DISEÑO!$C$25*0.8),(1.5*L115)/(DISEÑO!$C$20*TAN(RADIANS('PROPIEDADES DE LOS SUELOS'!$C$26))*DISEÑO!$C$21*'PROPIEDADES DE LOS SUELOS'!$C$24*'DISEÑO ALTERNATIVO'!C115*DISEÑO!$C$25*0.6))) ->  | K115: =IF(J115="","",'GEOMETRIA DEL MURO'!$F$12) ->  | L115: =IF(F115="","",(('MC ANALISIS INTERNO'!$D$56*(($E$29*C115)+'CARGAS DISTRIBUIDAS'!$B$13+'CARGAS CONCENTRADAS'!$D$59))+'CARGAS CONCENTRADAS'!$D$34)*D115) ->  | M115: =IF(H115="","",'DISEÑO POR SISMO'!$D$34*('DISEÑO ALTERNATIVO'!I115/SUM($I$52:I173))) -> 
C116: =IF(B116="","",IF(SUM($B$52:B116)>$C$18,"",C115+B116)) ->  | G116: =IF(F116="","",E116*TAN(RADIANS(45-('PROPIEDADES DE LOS SUELOS'!$C$26/2)))) ->  | H116: =IF(F116="","",IF(F116="Geomalla",(1.5*L116)/(DISEÑO!$C$20*TAN(RADIANS('PROPIEDADES DE LOS SUELOS'!$C$26))*DISEÑO!$C$21*'PROPIEDADES DE LOS SUELOS'!$C$24*'DISEÑO ALTERNATIVO'!C116*DISEÑO!$C$25*0.8),(1.5*L116)/(DISEÑO!$C$20*TAN(RADIANS('PROPIEDADES DE LOS SUELOS'!$C$26))*DISEÑO!$C$21*'PROPIEDADES DE LOS SUELOS'!$C$24*'DISEÑO ALTERNATIVO'!C116*DISEÑO!$C$25*0.6))) ->  | K116: =IF(J116="","",'GEOMETRIA DEL MURO'!$F$12) ->  | L116: =IF(F116="","",(('MC ANALISIS INTERNO'!$D$56*(($E$29*C116)+'CARGAS DISTRIBUIDAS'!$B$13+'CARGAS CONCENTRADAS'!$D$59))+'CARGAS CONCENTRADAS'!$D$34)*D116) ->  | M116: =IF(H116="","",'DISEÑO POR SISMO'!$D$34*('DISEÑO ALTERNATIVO'!I116/SUM($I$52:I174))) -> 
C117: =IF(B117="","",IF(SUM($B$52:B117)>$C$18,"",C116+B117)) ->  | G117: =IF(F117="","",E117*TAN(RADIANS(45-('PROPIEDADES DE LOS SUELOS'!$C$26/2)))) ->  | H117: =IF(F117="","",IF(F117="Geomalla",(1.5*L117)/(DISEÑO!$C$20*TAN(RADIANS('PROPIEDADES DE LOS SUELOS'!$C$26))*DISEÑO!$C$21*'PROPIEDADES DE LOS SUELOS'!$C$24*'DISEÑO ALTERNATIVO'!C117*DISEÑO!$C$25*0.8),(1.5*L117)/(DISEÑO!$C$20*TAN(RADIANS('PROPIEDADES DE LOS SUELOS'!$C$26))*DISEÑO!$C$21*'PROPIEDADES DE LOS SUELOS'!$C$24*'DISEÑO ALTERNATIVO'!C117*DISEÑO!$C$25*0.6))) ->  | K117: =IF(J117="","",'GEOMETRIA DEL MURO'!$F$12) ->  | L117: =IF(F117="","",(('MC ANALISIS INTERNO'!$D$56*(($E$29*C117)+'CARGAS DISTRIBUIDAS'!$B$13+'CARGAS CONCENTRADAS'!$D$59))+'CARGAS CONCENTRADAS'!$D$34)*D117) ->  | M117: =IF(H117="","",'DISEÑO POR SISMO'!$D$34*('DISEÑO ALTERNATIVO'!I117/SUM($I$52:I175))) -> 
C118: =IF(B118="","",IF(SUM($B$52:B118)>$C$18,"",C117+B118)) ->  | G118: =IF(F118="","",E118*TAN(RADIANS(45-('PROPIEDADES DE LOS SUELOS'!$C$26/2)))) ->  | H118: =IF(F118="","",IF(F118="Geomalla",(1.5*L118)/(DISEÑO!$C$20*TAN(RADIANS('PROPIEDADES DE LOS SUELOS'!$C$26))*DISEÑO!$C$21*'PROPIEDADES DE LOS SUELOS'!$C$24*'DISEÑO ALTERNATIVO'!C118*DISEÑO!$C$25*0.8),(1.5*L118)/(DISEÑO!$C$20*TAN(RADIANS('PROPIEDADES DE LOS SUELOS'!$C$26))*DISEÑO!$C$21*'PROPIEDADES DE LOS SUELOS'!$C$24*'DISEÑO ALTERNATIVO'!C118*DISEÑO!$C$25*0.6))) ->  | K118: =IF(J118="","",'GEOMETRIA DEL MURO'!$F$12) ->  | L118: =IF(F118="","",(('MC ANALISIS INTERNO'!$D$56*(($E$29*C118)+'CARGAS DISTRIBUIDAS'!$B$13+'CARGAS CONCENTRADAS'!$D$59))+'CARGAS CONCENTRADAS'!$D$34)*D118) ->  | M118: =IF(H118="","",'DISEÑO POR SISMO'!$D$34*('DISEÑO ALTERNATIVO'!I118/SUM($I$52:I176))) -> 
C119: =IF(B119="","",IF(SUM($B$52:B119)>$C$18,"",C118+B119)) ->  | G119: =IF(F119="","",E119*TAN(RADIANS(45-('PROPIEDADES DE LOS SUELOS'!$C$26/2)))) ->  | H119: =IF(F119="","",IF(F119="Geomalla",(1.5*L119)/(DISEÑO!$C$20*TAN(RADIANS('PROPIEDADES DE LOS SUELOS'!$C$26))*DISEÑO!$C$21*'PROPIEDADES DE LOS SUELOS'!$C$24*'DISEÑO ALTERNATIVO'!C119*DISEÑO!$C$25*0.8),(1.5*L119)/(DISEÑO!$C$20*TAN(RADIANS('PROPIEDADES DE LOS SUELOS'!$C$26))*DISEÑO!$C$21*'PROPIEDADES DE LOS SUELOS'!$C$24*'DISEÑO ALTERNATIVO'!C119*DISEÑO!$C$25*0.6))) ->  | K119: =IF(J119="","",'GEOMETRIA DEL MURO'!$F$12) ->  | L119: =IF(F119="","",(('MC ANALISIS INTERNO'!$D$56*(($E$29*C119)+'CARGAS DISTRIBUIDAS'!$B$13+'CARGAS CONCENTRADAS'!$D$59))+'CARGAS CONCENTRADAS'!$D$34)*D119) ->  | M119: =IF(H119="","",'DISEÑO POR SISMO'!$D$34*('DISEÑO ALTERNATIVO'!I119/SUM($I$52:I177))) -> 
C120: =IF(B120="","",IF(SUM($B$52:B120)>$C$18,"",C119+B120)) ->  | G120: =IF(F120="","",E120*TAN(RADIANS(45-('PROPIEDADES DE LOS SUELOS'!$C$26/2)))) ->  | H120: =IF(F120="","",IF(F120="Geomalla",(1.5*L120)/(DISEÑO!$C$20*TAN(RADIANS('PROPIEDADES DE LOS SUELOS'!$C$26))*DISEÑO!$C$21*'PROPIEDADES DE LOS SUELOS'!$C$24*'DISEÑO ALTERNATIVO'!C120*DISEÑO!$C$25*0.8),(1.5*L120)/(DISEÑO!$C$20*TAN(RADIANS('PROPIEDADES DE LOS SUELOS'!$C$26))*DISEÑO!$C$21*'PROPIEDADES DE LOS SUELOS'!$C$24*'DISEÑO ALTERNATIVO'!C120*DISEÑO!$C$25*0.6))) ->  | K120: =IF(J120="","",'GEOMETRIA DEL MURO'!$F$12) ->  | L120: =IF(F120="","",(('MC ANALISIS INTERNO'!$D$56*(($E$29*C120)+'CARGAS DISTRIBUIDAS'!$B$13+'CARGAS CONCENTRADAS'!$D$59))+'CARGAS CONCENTRADAS'!$D$34)*D120) ->  | M120: =IF(H120="","",'DISEÑO POR SISMO'!$D$34*('DISEÑO ALTERNATIVO'!I120/SUM($I$52:I178))) -> 
C121: =IF(B121="","",IF(SUM($B$52:B121)>$C$18,"",C120+B121)) ->  | G121: =IF(F121="","",E121*TAN(RADIANS(45-('PROPIEDADES DE LOS SUELOS'!$C$26/2)))) ->  | H121: =IF(F121="","",IF(F121="Geomalla",(1.5*L121)/(DISEÑO!$C$20*TAN(RADIANS('PROPIEDADES DE LOS SUELOS'!$C$26))*DISEÑO!$C$21*'PROPIEDADES DE LOS SUELOS'!$C$24*'DISEÑO ALTERNATIVO'!C121*DISEÑO!$C$25*0.8),(1.5*L121)/(DISEÑO!$C$20*TAN(RADIANS('PROPIEDADES DE LOS SUELOS'!$C$26))*DISEÑO!$C$21*'PROPIEDADES DE LOS SUELOS'!$C$24*'DISEÑO ALTERNATIVO'!C121*DISEÑO!$C$25*0.6))) ->  | K121: =IF(J121="","",'GEOMETRIA DEL MURO'!$F$12) ->  | L121: =IF(F121="","",(('MC ANALISIS INTERNO'!$D$56*(($E$29*C121)+'CARGAS DISTRIBUIDAS'!$B$13+'CARGAS CONCENTRADAS'!$D$59))+'CARGAS CONCENTRADAS'!$D$34)*D121) ->  | M121: =IF(H121="","",'DISEÑO POR SISMO'!$D$34*('DISEÑO ALTERNATIVO'!I121/SUM($I$52:I179))) -> 
C122: =IF(B122="","",IF(SUM($B$52:B122)>$C$18,"",C121+B122)) ->  | G122: =IF(F122="","",E122*TAN(RADIANS(45-('PROPIEDADES DE LOS SUELOS'!$C$26/2)))) ->  | H122: =IF(F122="","",IF(F122="Geomalla",(1.5*L122)/(DISEÑO!$C$20*TAN(RADIANS('PROPIEDADES DE LOS SUELOS'!$C$26))*DISEÑO!$C$21*'PROPIEDADES DE LOS SUELOS'!$C$24*'DISEÑO ALTERNATIVO'!C122*DISEÑO!$C$25*0.8),(1.5*L122)/(DISEÑO!$C$20*TAN(RADIANS('PROPIEDADES DE LOS SUELOS'!$C$26))*DISEÑO!$C$21*'PROPIEDADES DE LOS SUELOS'!$C$24*'DISEÑO ALTERNATIVO'!C122*DISEÑO!$C$25*0.6))) ->  | K122: =IF(J122="","",'GEOMETRIA DEL MURO'!$F$12) ->  | L122: =IF(F122="","",(('MC ANALISIS INTERNO'!$D$56*(($E$29*C122)+'CARGAS DISTRIBUIDAS'!$B$13+'CARGAS CONCENTRADAS'!$D$59))+'CARGAS CONCENTRADAS'!$D$34)*D122) ->  | M122: =IF(H122="","",'DISEÑO POR SISMO'!$D$34*('DISEÑO ALTERNATIVO'!I122/SUM($I$52:I180))) -> 
C123: =IF(B123="","",IF(SUM($B$52:B123)>$C$18,"",C122+B123)) ->  | G123: =IF(F123="","",E123*TAN(RADIANS(45-('PROPIEDADES DE LOS SUELOS'!$C$26/2)))) ->  | H123: =IF(F123="","",IF(F123="Geomalla",(1.5*L123)/(DISEÑO!$C$20*TAN(RADIANS('PROPIEDADES DE LOS SUELOS'!$C$26))*DISEÑO!$C$21*'PROPIEDADES DE LOS SUELOS'!$C$24*'DISEÑO ALTERNATIVO'!C123*DISEÑO!$C$25*0.8),(1.5*L123)/(DISEÑO!$C$20*TAN(RADIANS('PROPIEDADES DE LOS SUELOS'!$C$26))*DISEÑO!$C$21*'PROPIEDADES DE LOS SUELOS'!$C$24*'DISEÑO ALTERNATIVO'!C123*DISEÑO!$C$25*0.6))) ->  | K123: =IF(J123="","",'GEOMETRIA DEL MURO'!$F$12) ->  | L123: =IF(F123="","",(('MC ANALISIS INTERNO'!$D$56*(($E$29*C123)+'CARGAS DISTRIBUIDAS'!$B$13+'CARGAS CONCENTRADAS'!$D$59))+'CARGAS CONCENTRADAS'!$D$34)*D123) ->  | M123: =IF(H123="","",'DISEÑO POR SISMO'!$D$34*('DISEÑO ALTERNATIVO'!I123/SUM($I$52:I181))) -> 
C124: =IF(B124="","",IF(SUM($B$52:B124)>$C$18,"",C123+B124)) ->  | G124: =IF(F124="","",E124*TAN(RADIANS(45-('PROPIEDADES DE LOS SUELOS'!$C$26/2)))) ->  | H124: =IF(F124="","",IF(F124="Geomalla",(1.5*L124)/(DISEÑO!$C$20*TAN(RADIANS('PROPIEDADES DE LOS SUELOS'!$C$26))*DISEÑO!$C$21*'PROPIEDADES DE LOS SUELOS'!$C$24*'DISEÑO ALTERNATIVO'!C124*DISEÑO!$C$25*0.8),(1.5*L124)/(DISEÑO!$C$20*TAN(RADIANS('PROPIEDADES DE LOS SUELOS'!$C$26))*DISEÑO!$C$21*'PROPIEDADES DE LOS SUELOS'!$C$24*'DISEÑO ALTERNATIVO'!C124*DISEÑO!$C$25*0.6))) ->  | K124: =IF(J124="","",'GEOMETRIA DEL MURO'!$F$12) ->  | L124: =IF(F124="","",(('MC ANALISIS INTERNO'!$D$56*(($E$29*C124)+'CARGAS DISTRIBUIDAS'!$B$13+'CARGAS CONCENTRADAS'!$D$59))+'CARGAS CONCENTRADAS'!$D$34)*D124) ->  | M124: =IF(H124="","",'DISEÑO POR SISMO'!$D$34*('DISEÑO ALTERNATIVO'!I124/SUM($I$52:I182))) -> 
C125: =IF(B125="","",IF(SUM($B$52:B125)>$C$18,"",C124+B125)) ->  | G125: =IF(F125="","",E125*TAN(RADIANS(45-('PROPIEDADES DE LOS SUELOS'!$C$26/2)))) ->  | H125: =IF(F125="","",IF(F125="Geomalla",(1.5*L125)/(DISEÑO!$C$20*TAN(RADIANS('PROPIEDADES DE LOS SUELOS'!$C$26))*DISEÑO!$C$21*'PROPIEDADES DE LOS SUELOS'!$C$24*'DISEÑO ALTERNATIVO'!C125*DISEÑO!$C$25*0.8),(1.5*L125)/(DISEÑO!$C$20*TAN(RADIANS('PROPIEDADES DE LOS SUELOS'!$C$26))*DISEÑO!$C$21*'PROPIEDADES DE LOS SUELOS'!$C$24*'DISEÑO ALTERNATIVO'!C125*DISEÑO!$C$25*0.6))) ->  | K125: =IF(J125="","",'GEOMETRIA DEL MURO'!$F$12) ->  | L125: =IF(F125="","",(('MC ANALISIS INTERNO'!$D$56*(($E$29*C125)+'CARGAS DISTRIBUIDAS'!$B$13+'CARGAS CONCENTRADAS'!$D$59))+'CARGAS CONCENTRADAS'!$D$34)*D125) ->  | M125: =IF(H125="","",'DISEÑO POR SISMO'!$D$34*('DISEÑO ALTERNATIVO'!I125/SUM($I$52:I183))) -> 
C126: =IF(B126="","",IF(SUM($B$52:B126)>$C$18,"",C125+B126)) ->  | G126: =IF(F126="","",E126*TAN(RADIANS(45-('PROPIEDADES DE LOS SUELOS'!$C$26/2)))) ->  | H126: =IF(F126="","",IF(F126="Geomalla",(1.5*L126)/(DISEÑO!$C$20*TAN(RADIANS('PROPIEDADES DE LOS SUELOS'!$C$26))*DISEÑO!$C$21*'PROPIEDADES DE LOS SUELOS'!$C$24*'DISEÑO ALTERNATIVO'!C126*DISEÑO!$C$25*0.8),(1.5*L126)/(DISEÑO!$C$20*TAN(RADIANS('PROPIEDADES DE LOS SUELOS'!$C$26))*DISEÑO!$C$21*'PROPIEDADES DE LOS SUELOS'!$C$24*'DISEÑO ALTERNATIVO'!C126*DISEÑO!$C$25*0.6))) ->  | K126: =IF(J126="","",'GEOMETRIA DEL MURO'!$F$12) ->  | L126: =IF(F126="","",(('MC ANALISIS INTERNO'!$D$56*(($E$29*C126)+'CARGAS DISTRIBUIDAS'!$B$13+'CARGAS CONCENTRADAS'!$D$59))+'CARGAS CONCENTRADAS'!$D$34)*D126) ->  | M126: =IF(H126="","",'DISEÑO POR SISMO'!$D$34*('DISEÑO ALTERNATIVO'!I126/SUM($I$52:I184))) -> 
C127: =IF(B127="","",IF(SUM($B$52:B127)>$C$18,"",C126+B127)) ->  | G127: =IF(F127="","",E127*TAN(RADIANS(45-('PROPIEDADES DE LOS SUELOS'!$C$26/2)))) ->  | H127: =IF(F127="","",IF(F127="Geomalla",(1.5*L127)/(DISEÑO!$C$20*TAN(RADIANS('PROPIEDADES DE LOS SUELOS'!$C$26))*DISEÑO!$C$21*'PROPIEDADES DE LOS SUELOS'!$C$24*'DISEÑO ALTERNATIVO'!C127*DISEÑO!$C$25*0.8),(1.5*L127)/(DISEÑO!$C$20*TAN(RADIANS('PROPIEDADES DE LOS SUELOS'!$C$26))*DISEÑO!$C$21*'PROPIEDADES DE LOS SUELOS'!$C$24*'DISEÑO ALTERNATIVO'!C127*DISEÑO!$C$25*0.6))) ->  | K127: =IF(J127="","",'GEOMETRIA DEL MURO'!$F$12) ->  | L127: =IF(F127="","",(('MC ANALISIS INTERNO'!$D$56*(($E$29*C127)+'CARGAS DISTRIBUIDAS'!$B$13+'CARGAS CONCENTRADAS'!$D$59))+'CARGAS CONCENTRADAS'!$D$34)*D127) ->  | M127: =IF(H127="","",'DISEÑO POR SISMO'!$D$34*('DISEÑO ALTERNATIVO'!I127/SUM($I$52:I185))) -> 
C128: =IF(B128="","",IF(SUM($B$52:B128)>$C$18,"",C127+B128)) ->  | G128: =IF(F128="","",E128*TAN(RADIANS(45-('PROPIEDADES DE LOS SUELOS'!$C$26/2)))) ->  | H128: =IF(F128="","",IF(F128="Geomalla",(1.5*L128)/(DISEÑO!$C$20*TAN(RADIANS('PROPIEDADES DE LOS SUELOS'!$C$26))*DISEÑO!$C$21*'PROPIEDADES DE LOS SUELOS'!$C$24*'DISEÑO ALTERNATIVO'!C128*DISEÑO!$C$25*0.8),(1.5*L128)/(DISEÑO!$C$20*TAN(RADIANS('PROPIEDADES DE LOS SUELOS'!$C$26))*DISEÑO!$C$21*'PROPIEDADES DE LOS SUELOS'!$C$24*'DISEÑO ALTERNATIVO'!C128*DISEÑO!$C$25*0.6))) ->  | K128: =IF(J128="","",'GEOMETRIA DEL MURO'!$F$12) ->  | L128: =IF(F128="","",(('MC ANALISIS INTERNO'!$D$56*(($E$29*C128)+'CARGAS DISTRIBUIDAS'!$B$13+'CARGAS CONCENTRADAS'!$D$59))+'CARGAS CONCENTRADAS'!$D$34)*D128) ->  | M128: =IF(H128="","",'DISEÑO POR SISMO'!$D$34*('DISEÑO ALTERNATIVO'!I128/SUM($I$52:I186))) -> 
C129: =IF(B129="","",IF(SUM($B$52:B129)>$C$18,"",C128+B129)) ->  | G129: =IF(F129="","",E129*TAN(RADIANS(45-('PROPIEDADES DE LOS SUELOS'!$C$26/2)))) ->  | H129: =IF(F129="","",IF(F129="Geomalla",(1.5*L129)/(DISEÑO!$C$20*TAN(RADIANS('PROPIEDADES DE LOS SUELOS'!$C$26))*DISEÑO!$C$21*'PROPIEDADES DE LOS SUELOS'!$C$24*'DISEÑO ALTERNATIVO'!C129*DISEÑO!$C$25*0.8),(1.5*L129)/(DISEÑO!$C$20*TAN(RADIANS('PROPIEDADES DE LOS SUELOS'!$C$26))*DISEÑO!$C$21*'PROPIEDADES DE LOS SUELOS'!$C$24*'DISEÑO ALTERNATIVO'!C129*DISEÑO!$C$25*0.6))) ->  | K129: =IF(J129="","",'GEOMETRIA DEL MURO'!$F$12) ->  | L129: =IF(F129="","",(('MC ANALISIS INTERNO'!$D$56*(($E$29*C129)+'CARGAS DISTRIBUIDAS'!$B$13+'CARGAS CONCENTRADAS'!$D$59))+'CARGAS CONCENTRADAS'!$D$34)*D129) ->  | M129: =IF(H129="","",'DISEÑO POR SISMO'!$D$34*('DISEÑO ALTERNATIVO'!I129/SUM($I$52:I187))) -> 
C130: =IF(B130="","",IF(SUM($B$52:B130)>$C$18,"",C129+B130)) ->  | G130: =IF(F130="","",E130*TAN(RADIANS(45-('PROPIEDADES DE LOS SUELOS'!$C$26/2)))) ->  | H130: =IF(F130="","",IF(F130="Geomalla",(1.5*L130)/(DISEÑO!$C$20*TAN(RADIANS('PROPIEDADES DE LOS SUELOS'!$C$26))*DISEÑO!$C$21*'PROPIEDADES DE LOS SUELOS'!$C$24*'DISEÑO ALTERNATIVO'!C130*DISEÑO!$C$25*0.8),(1.5*L130)/(DISEÑO!$C$20*TAN(RADIANS('PROPIEDADES DE LOS SUELOS'!$C$26))*DISEÑO!$C$21*'PROPIEDADES DE LOS SUELOS'!$C$24*'DISEÑO ALTERNATIVO'!C130*DISEÑO!$C$25*0.6))) ->  | K130: =IF(J130="","",'GEOMETRIA DEL MURO'!$F$12) ->  | L130: =IF(F130="","",(('MC ANALISIS INTERNO'!$D$56*(($E$29*C130)+'CARGAS DISTRIBUIDAS'!$B$13+'CARGAS CONCENTRADAS'!$D$59))+'CARGAS CONCENTRADAS'!$D$34)*D130) ->  | M130: =IF(H130="","",'DISEÑO POR SISMO'!$D$34*('DISEÑO ALTERNATIVO'!I130/SUM($I$52:I188))) -> 
C131: =IF(B131="","",IF(SUM($B$52:B131)>$C$18,"",C130+B131)) ->  | G131: =IF(F131="","",E131*TAN(RADIANS(45-('PROPIEDADES DE LOS SUELOS'!$C$26/2)))) ->  | H131: =IF(F131="","",IF(F131="Geomalla",(1.5*L131)/(DISEÑO!$C$20*TAN(RADIANS('PROPIEDADES DE LOS SUELOS'!$C$26))*DISEÑO!$C$21*'PROPIEDADES DE LOS SUELOS'!$C$24*'DISEÑO ALTERNATIVO'!C131*DISEÑO!$C$25*0.8),(1.5*L131)/(DISEÑO!$C$20*TAN(RADIANS('PROPIEDADES DE LOS SUELOS'!$C$26))*DISEÑO!$C$21*'PROPIEDADES DE LOS SUELOS'!$C$24*'DISEÑO ALTERNATIVO'!C131*DISEÑO!$C$25*0.6))) ->  | K131: =IF(J131="","",'GEOMETRIA DEL MURO'!$F$12) ->  | L131: =IF(F131="","",(('MC ANALISIS INTERNO'!$D$56*(($E$29*C131)+'CARGAS DISTRIBUIDAS'!$B$13+'CARGAS CONCENTRADAS'!$D$59))+'CARGAS CONCENTRADAS'!$D$34)*D131) ->  | M131: =IF(H131="","",'DISEÑO POR SISMO'!$D$34*('DISEÑO ALTERNATIVO'!I131/SUM($I$52:I189))) -> 
C132: =IF(B132="","",IF(SUM($B$52:B132)>$C$18,"",C131+B132)) ->  | G132: =IF(F132="","",E132*TAN(RADIANS(45-('PROPIEDADES DE LOS SUELOS'!$C$26/2)))) ->  | H132: =IF(F132="","",IF(F132="Geomalla",(1.5*L132)/(DISEÑO!$C$20*TAN(RADIANS('PROPIEDADES DE LOS SUELOS'!$C$26))*DISEÑO!$C$21*'PROPIEDADES DE LOS SUELOS'!$C$24*'DISEÑO ALTERNATIVO'!C132*DISEÑO!$C$25*0.8),(1.5*L132)/(DISEÑO!$C$20*TAN(RADIANS('PROPIEDADES DE LOS SUELOS'!$C$26))*DISEÑO!$C$21*'PROPIEDADES DE LOS SUELOS'!$C$24*'DISEÑO ALTERNATIVO'!C132*DISEÑO!$C$25*0.6))) ->  | K132: =IF(J132="","",'GEOMETRIA DEL MURO'!$F$12) ->  | L132: =IF(F132="","",(('MC ANALISIS INTERNO'!$D$56*(($E$29*C132)+'CARGAS DISTRIBUIDAS'!$B$13+'CARGAS CONCENTRADAS'!$D$59))+'CARGAS CONCENTRADAS'!$D$34)*D132) ->  | M132: =IF(H132="","",'DISEÑO POR SISMO'!$D$34*('DISEÑO ALTERNATIVO'!I132/SUM($I$52:I190))) -> 
C133: =IF(B133="","",IF(SUM($B$52:B133)>$C$18,"",C132+B133)) ->  | G133: =IF(F133="","",E133*TAN(RADIANS(45-('PROPIEDADES DE LOS SUELOS'!$C$26/2)))) ->  | H133: =IF(F133="","",IF(F133="Geomalla",(1.5*L133)/(DISEÑO!$C$20*TAN(RADIANS('PROPIEDADES DE LOS SUELOS'!$C$26))*DISEÑO!$C$21*'PROPIEDADES DE LOS SUELOS'!$C$24*'DISEÑO ALTERNATIVO'!C133*DISEÑO!$C$25*0.8),(1.5*L133)/(DISEÑO!$C$20*TAN(RADIANS('PROPIEDADES DE LOS SUELOS'!$C$26))*DISEÑO!$C$21*'PROPIEDADES DE LOS SUELOS'!$C$24*'DISEÑO ALTERNATIVO'!C133*DISEÑO!$C$25*0.6))) ->  | K133: =IF(J133="","",'GEOMETRIA DEL MURO'!$F$12) ->  | L133: =IF(F133="","",(('MC ANALISIS INTERNO'!$D$56*(($E$29*C133)+'CARGAS DISTRIBUIDAS'!$B$13+'CARGAS CONCENTRADAS'!$D$59))+'CARGAS CONCENTRADAS'!$D$34)*D133) ->  | M133: =IF(H133="","",'DISEÑO POR SISMO'!$D$34*('DISEÑO ALTERNATIVO'!I133/SUM($I$52:I191))) -> 
A134: =IF(B134="","",A133+1) ->  | C134: =IF(B134="","",IF(SUM($B$52:B134)>$C$18,"",C133+B134)) ->  | D134: =IF(C134=$C$18,(0.5*B134)+(0.5*B134),IF(C134="","",(0.5*B134)+(0.5*B135))) ->  | E134: =IF(D134="","",$C$18-C134) ->  | G134: =IF(F134="","",E134*TAN(RADIANS(45-('PROPIEDADES DE LOS SUELOS'!$C$26/2)))) ->  | H134: =IF(F134="","",IF(F134="Geomalla",(1.5*L134)/(DISEÑO!$C$20*TAN(RADIANS('PROPIEDADES DE LOS SUELOS'!$C$26))*DISEÑO!$C$21*'PROPIEDADES DE LOS SUELOS'!$C$24*'DISEÑO ALTERNATIVO'!C134*DISEÑO!$C$25*0.8),(1.5*L134)/(DISEÑO!$C$20*TAN(RADIANS('PROPIEDADES DE LOS SUELOS'!$C$26))*DISEÑO!$C$21*'PROPIEDADES DE LOS SUELOS'!$C$24*'DISEÑO ALTERNATIVO'!C134*DISEÑO!$C$25*0.6))) ->  | I134: =IF(D134="","",IF(H134<1,1,H134)) ->  | J134: =IF(F134="","",G134+I134) ->  | K134: =IF(J134="","",'GEOMETRIA DEL MURO'!$F$12) ->  | L134: =IF(F134="","",(('MC ANALISIS INTERNO'!$D$56*(($E$29*C134)+'CARGAS DISTRIBUIDAS'!$B$13+'CARGAS CONCENTRADAS'!$D$59))+'CARGAS CONCENTRADAS'!$D$34)*D134) ->  | M134: =IF(H134="","",'DISEÑO POR SISMO'!$D$34*('DISEÑO ALTERNATIVO'!I134/SUM($I$52:I192))) ->  | N134: =IF(L134="","",L134+M134) -> 
C135: =IF(B135="","",IF(SUM($B$52:B135)>$C$18,"",C134+B135)) ->  | G135: =IF(F135="","",E135*TAN(RADIANS(45-('PROPIEDADES DE LOS SUELOS'!$C$26/2)))) ->  | H135: =IF(F135="","",IF(F135="Geomalla",(1.5*L135)/(DISEÑO!$C$20*TAN(RADIANS('PROPIEDADES DE LOS SUELOS'!$C$26))*DISEÑO!$C$21*'PROPIEDADES DE LOS SUELOS'!$C$24*'DISEÑO ALTERNATIVO'!C135*DISEÑO!$C$25*0.8),(1.5*L135)/(DISEÑO!$C$20*TAN(RADIANS('PROPIEDADES DE LOS SUELOS'!$C$26))*DISEÑO!$C$21*'PROPIEDADES DE LOS SUELOS'!$C$24*'DISEÑO ALTERNATIVO'!C135*DISEÑO!$C$25*0.6))) ->  | K135: =IF(J135="","",'GEOMETRIA DEL MURO'!$F$12) ->  | L135: =IF(F135="","",(('MC ANALISIS INTERNO'!$D$56*(($E$29*C135)+'CARGAS DISTRIBUIDAS'!$B$13+'CARGAS CONCENTRADAS'!$D$59))+'CARGAS CONCENTRADAS'!$D$34)*D135) ->  | M135: =IF(H135="","",'DISEÑO POR SISMO'!$D$34*('DISEÑO ALTERNATIVO'!I135/SUM($I$52:I193))) -> 
C136: =IF(B136="","",IF(SUM($B$52:B136)>$C$18,"",C135+B136)) ->  | G136: =IF(F136="","",E136*TAN(RADIANS(45-('PROPIEDADES DE LOS SUELOS'!$C$26/2)))) ->  | H136: =IF(F136="","",IF(F136="Geomalla",(1.5*L136)/(DISEÑO!$C$20*TAN(RADIANS('PROPIEDADES DE LOS SUELOS'!$C$26))*DISEÑO!$C$21*'PROPIEDADES DE LOS SUELOS'!$C$24*'DISEÑO ALTERNATIVO'!C136*DISEÑO!$C$25*0.8),(1.5*L136)/(DISEÑO!$C$20*TAN(RADIANS('PROPIEDADES DE LOS SUELOS'!$C$26))*DISEÑO!$C$21*'PROPIEDADES DE LOS SUELOS'!$C$24*'DISEÑO ALTERNATIVO'!C136*DISEÑO!$C$25*0.6))) ->  | K136: =IF(J136="","",'GEOMETRIA DEL MURO'!$F$12) ->  | L136: =IF(F136="","",(('MC ANALISIS INTERNO'!$D$56*(($E$29*C136)+'CARGAS DISTRIBUIDAS'!$B$13+'CARGAS CONCENTRADAS'!$D$59))+'CARGAS CONCENTRADAS'!$D$34)*D136) ->  | M136: =IF(H136="","",'DISEÑO POR SISMO'!$D$34*('DISEÑO ALTERNATIVO'!I136/SUM($I$52:I194))) -> 
C137: =IF(B137="","",IF(SUM($B$52:B137)>$C$18,"",C136+B137)) ->  | G137: =IF(F137="","",E137*TAN(RADIANS(45-('PROPIEDADES DE LOS SUELOS'!$C$26/2)))) ->  | H137: =IF(F137="","",IF(F137="Geomalla",(1.5*L137)/(DISEÑO!$C$20*TAN(RADIANS('PROPIEDADES DE LOS SUELOS'!$C$26))*DISEÑO!$C$21*'PROPIEDADES DE LOS SUELOS'!$C$24*'DISEÑO ALTERNATIVO'!C137*DISEÑO!$C$25*0.8),(1.5*L137)/(DISEÑO!$C$20*TAN(RADIANS('PROPIEDADES DE LOS SUELOS'!$C$26))*DISEÑO!$C$21*'PROPIEDADES DE LOS SUELOS'!$C$24*'DISEÑO ALTERNATIVO'!C137*DISEÑO!$C$25*0.6))) ->  | K137: =IF(J137="","",'GEOMETRIA DEL MURO'!$F$12) ->  | L137: =IF(F137="","",(('MC ANALISIS INTERNO'!$D$56*(($E$29*C137)+'CARGAS DISTRIBUIDAS'!$B$13+'CARGAS CONCENTRADAS'!$D$59))+'CARGAS CONCENTRADAS'!$D$34)*D137) ->  | M137: =IF(H137="","",'DISEÑO POR SISMO'!$D$34*('DISEÑO ALTERNATIVO'!I137/SUM($I$52:I195))) -> 
C138: =IF(B138="","",IF(SUM($B$52:B138)>$C$18,"",C137+B138)) ->  | G138: =IF(F138="","",E138*TAN(RADIANS(45-('PROPIEDADES DE LOS SUELOS'!$C$26/2)))) ->  | H138: =IF(F138="","",IF(F138="Geomalla",(1.5*L138)/(DISEÑO!$C$20*TAN(RADIANS('PROPIEDADES DE LOS SUELOS'!$C$26))*DISEÑO!$C$21*'PROPIEDADES DE LOS SUELOS'!$C$24*'DISEÑO ALTERNATIVO'!C138*DISEÑO!$C$25*0.8),(1.5*L138)/(DISEÑO!$C$20*TAN(RADIANS('PROPIEDADES DE LOS SUELOS'!$C$26))*DISEÑO!$C$21*'PROPIEDADES DE LOS SUELOS'!$C$24*'DISEÑO ALTERNATIVO'!C138*DISEÑO!$C$25*0.6))) ->  | K138: =IF(J138="","",'GEOMETRIA DEL MURO'!$F$12) ->  | L138: =IF(F138="","",(('MC ANALISIS INTERNO'!$D$56*(($E$29*C138)+'CARGAS DISTRIBUIDAS'!$B$13+'CARGAS CONCENTRADAS'!$D$59))+'CARGAS CONCENTRADAS'!$D$34)*D138) ->  | M138: =IF(H138="","",'DISEÑO POR SISMO'!$D$34*('DISEÑO ALTERNATIVO'!I138/SUM($I$52:I196))) -> 
C139: =IF(B139="","",IF(SUM($B$52:B139)>$C$18,"",C138+B139)) ->  | G139: =IF(F139="","",E139*TAN(RADIANS(45-('PROPIEDADES DE LOS SUELOS'!$C$26/2)))) ->  | H139: =IF(F139="","",IF(F139="Geomalla",(1.5*L139)/(DISEÑO!$C$20*TAN(RADIANS('PROPIEDADES DE LOS SUELOS'!$C$26))*DISEÑO!$C$21*'PROPIEDADES DE LOS SUELOS'!$C$24*'DISEÑO ALTERNATIVO'!C139*DISEÑO!$C$25*0.8),(1.5*L139)/(DISEÑO!$C$20*TAN(RADIANS('PROPIEDADES DE LOS SUELOS'!$C$26))*DISEÑO!$C$21*'PROPIEDADES DE LOS SUELOS'!$C$24*'DISEÑO ALTERNATIVO'!C139*DISEÑO!$C$25*0.6))) ->  | K139: =IF(J139="","",'GEOMETRIA DEL MURO'!$F$12) ->  | L139: =IF(F139="","",(('MC ANALISIS INTERNO'!$D$56*(($E$29*C139)+'CARGAS DISTRIBUIDAS'!$B$13+'CARGAS CONCENTRADAS'!$D$59))+'CARGAS CONCENTRADAS'!$D$34)*D139) ->  | M139: =IF(H139="","",'DISEÑO POR SISMO'!$D$34*('DISEÑO ALTERNATIVO'!I139/SUM($I$52:I197))) -> 
C140: =IF(B140="","",IF(SUM($B$52:B140)>$C$18,"",C139+B140)) ->  | G140: =IF(F140="","",E140*TAN(RADIANS(45-('PROPIEDADES DE LOS SUELOS'!$C$26/2)))) ->  | H140: =IF(F140="","",IF(F140="Geomalla",(1.5*L140)/(DISEÑO!$C$20*TAN(RADIANS('PROPIEDADES DE LOS SUELOS'!$C$26))*DISEÑO!$C$21*'PROPIEDADES DE LOS SUELOS'!$C$24*'DISEÑO ALTERNATIVO'!C140*DISEÑO!$C$25*0.8),(1.5*L140)/(DISEÑO!$C$20*TAN(RADIANS('PROPIEDADES DE LOS SUELOS'!$C$26))*DISEÑO!$C$21*'PROPIEDADES DE LOS SUELOS'!$C$24*'DISEÑO ALTERNATIVO'!C140*DISEÑO!$C$25*0.6))) ->  | K140: =IF(J140="","",'GEOMETRIA DEL MURO'!$F$12) ->  | L140: =IF(F140="","",(('MC ANALISIS INTERNO'!$D$56*(($E$29*C140)+'CARGAS DISTRIBUIDAS'!$B$13+'CARGAS CONCENTRADAS'!$D$59))+'CARGAS CONCENTRADAS'!$D$34)*D140) ->  | M140: =IF(H140="","",'DISEÑO POR SISMO'!$D$34*('DISEÑO ALTERNATIVO'!I140/SUM($I$52:I198))) -> 
C141: =IF(B141="","",IF(SUM($B$52:B141)>$C$18,"",C140+B141)) ->  | G141: =IF(F141="","",E141*TAN(RADIANS(45-('PROPIEDADES DE LOS SUELOS'!$C$26/2)))) ->  | H141: =IF(F141="","",IF(F141="Geomalla",(1.5*L141)/(DISEÑO!$C$20*TAN(RADIANS('PROPIEDADES DE LOS SUELOS'!$C$26))*DISEÑO!$C$21*'PROPIEDADES DE LOS SUELOS'!$C$24*'DISEÑO ALTERNATIVO'!C141*DISEÑO!$C$25*0.8),(1.5*L141)/(DISEÑO!$C$20*TAN(RADIANS('PROPIEDADES DE LOS SUELOS'!$C$26))*DISEÑO!$C$21*'PROPIEDADES DE LOS SUELOS'!$C$24*'DISEÑO ALTERNATIVO'!C141*DISEÑO!$C$25*0.6))) ->  | K141: =IF(J141="","",'GEOMETRIA DEL MURO'!$F$12) ->  | L141: =IF(F141="","",(('MC ANALISIS INTERNO'!$D$56*(($E$29*C141)+'CARGAS DISTRIBUIDAS'!$B$13+'CARGAS CONCENTRADAS'!$D$59))+'CARGAS CONCENTRADAS'!$D$34)*D141) ->  | M141: =IF(H141="","",'DISEÑO POR SISMO'!$D$34*('DISEÑO ALTERNATIVO'!I141/SUM($I$52:I199))) -> 
C142: =IF(B142="","",IF(SUM($B$52:B142)>$C$18,"",C141+B142)) ->  | G142: =IF(F142="","",E142*TAN(RADIANS(45-('PROPIEDADES DE LOS SUELOS'!$C$26/2)))) ->  | H142: =IF(F142="","",IF(F142="Geomalla",(1.5*L142)/(DISEÑO!$C$20*TAN(RADIANS('PROPIEDADES DE LOS SUELOS'!$C$26))*DISEÑO!$C$21*'PROPIEDADES DE LOS SUELOS'!$C$24*'DISEÑO ALTERNATIVO'!C142*DISEÑO!$C$25*0.8),(1.5*L142)/(DISEÑO!$C$20*TAN(RADIANS('PROPIEDADES DE LOS SUELOS'!$C$26))*DISEÑO!$C$21*'PROPIEDADES DE LOS SUELOS'!$C$24*'DISEÑO ALTERNATIVO'!C142*DISEÑO!$C$25*0.6))) ->  | K142: =IF(J142="","",'GEOMETRIA DEL MURO'!$F$12) ->  | L142: =IF(F142="","",(('MC ANALISIS INTERNO'!$D$56*(($E$29*C142)+'CARGAS DISTRIBUIDAS'!$B$13+'CARGAS CONCENTRADAS'!$D$59))+'CARGAS CONCENTRADAS'!$D$34)*D142) ->  | M142: =IF(H142="","",'DISEÑO POR SISMO'!$D$34*('DISEÑO ALTERNATIVO'!I142/SUM($I$52:I200))) -> 
C143: =IF(B143="","",IF(SUM($B$52:B143)>$C$18,"",C142+B143)) ->  | G143: =IF(F143="","",E143*TAN(RADIANS(45-('PROPIEDADES DE LOS SUELOS'!$C$26/2)))) ->  | H143: =IF(F143="","",IF(F143="Geomalla",(1.5*L143)/(DISEÑO!$C$20*TAN(RADIANS('PROPIEDADES DE LOS SUELOS'!$C$26))*DISEÑO!$C$21*'PROPIEDADES DE LOS SUELOS'!$C$24*'DISEÑO ALTERNATIVO'!C143*DISEÑO!$C$25*0.8),(1.5*L143)/(DISEÑO!$C$20*TAN(RADIANS('PROPIEDADES DE LOS SUELOS'!$C$26))*DISEÑO!$C$21*'PROPIEDADES DE LOS SUELOS'!$C$24*'DISEÑO ALTERNATIVO'!C143*DISEÑO!$C$25*0.6))) ->  | K143: =IF(J143="","",'GEOMETRIA DEL MURO'!$F$12) ->  | L143: =IF(F143="","",(('MC ANALISIS INTERNO'!$D$56*(($E$29*C143)+'CARGAS DISTRIBUIDAS'!$B$13+'CARGAS CONCENTRADAS'!$D$59))+'CARGAS CONCENTRADAS'!$D$34)*D143) ->  | M143: =IF(H143="","",'DISEÑO POR SISMO'!$D$34*('DISEÑO ALTERNATIVO'!I143/SUM($I$52:I201))) -> 
C144: =IF(B144="","",IF(SUM($B$52:B144)>$C$18,"",C143+B144)) ->  | G144: =IF(F144="","",E144*TAN(RADIANS(45-('PROPIEDADES DE LOS SUELOS'!$C$26/2)))) ->  | H144: =IF(F144="","",IF(F144="Geomalla",(1.5*L144)/(DISEÑO!$C$20*TAN(RADIANS('PROPIEDADES DE LOS SUELOS'!$C$26))*DISEÑO!$C$21*'PROPIEDADES DE LOS SUELOS'!$C$24*'DISEÑO ALTERNATIVO'!C144*DISEÑO!$C$25*0.8),(1.5*L144)/(DISEÑO!$C$20*TAN(RADIANS('PROPIEDADES DE LOS SUELOS'!$C$26))*DISEÑO!$C$21*'PROPIEDADES DE LOS SUELOS'!$C$24*'DISEÑO ALTERNATIVO'!C144*DISEÑO!$C$25*0.6))) ->  | K144: =IF(J144="","",'GEOMETRIA DEL MURO'!$F$12) ->  | L144: =IF(F144="","",(('MC ANALISIS INTERNO'!$D$56*(($E$29*C144)+'CARGAS DISTRIBUIDAS'!$B$13+'CARGAS CONCENTRADAS'!$D$59))+'CARGAS CONCENTRADAS'!$D$34)*D144) ->  | M144: =IF(H144="","",'DISEÑO POR SISMO'!$D$34*('DISEÑO ALTERNATIVO'!I144/SUM($I$52:I202))) -> 
C145: =IF(B145="","",IF(SUM($B$52:B145)>$C$18,"",C144+B145)) ->  | G145: =IF(F145="","",E145*TAN(RADIANS(45-('PROPIEDADES DE LOS SUELOS'!$C$26/2)))) ->  | H145: =IF(F145="","",IF(F145="Geomalla",(1.5*L145)/(DISEÑO!$C$20*TAN(RADIANS('PROPIEDADES DE LOS SUELOS'!$C$26))*DISEÑO!$C$21*'PROPIEDADES DE LOS SUELOS'!$C$24*'DISEÑO ALTERNATIVO'!C145*DISEÑO!$C$25*0.8),(1.5*L145)/(DISEÑO!$C$20*TAN(RADIANS('PROPIEDADES DE LOS SUELOS'!$C$26))*DISEÑO!$C$21*'PROPIEDADES DE LOS SUELOS'!$C$24*'DISEÑO ALTERNATIVO'!C145*DISEÑO!$C$25*0.6))) ->  | K145: =IF(J145="","",'GEOMETRIA DEL MURO'!$F$12) ->  | L145: =IF(F145="","",(('MC ANALISIS INTERNO'!$D$56*(($E$29*C145)+'CARGAS DISTRIBUIDAS'!$B$13+'CARGAS CONCENTRADAS'!$D$59))+'CARGAS CONCENTRADAS'!$D$34)*D145) ->  | M145: =IF(H145="","",'DISEÑO POR SISMO'!$D$34*('DISEÑO ALTERNATIVO'!I145/SUM($I$52:I203))) -> 
C146: =IF(B146="","",IF(SUM($B$52:B146)>$C$18,"",C145+B146)) ->  | G146: =IF(F146="","",E146*TAN(RADIANS(45-('PROPIEDADES DE LOS SUELOS'!$C$26/2)))) ->  | H146: =IF(F146="","",IF(F146="Geomalla",(1.5*L146)/(DISEÑO!$C$20*TAN(RADIANS('PROPIEDADES DE LOS SUELOS'!$C$26))*DISEÑO!$C$21*'PROPIEDADES DE LOS SUELOS'!$C$24*'DISEÑO ALTERNATIVO'!C146*DISEÑO!$C$25*0.8),(1.5*L146)/(DISEÑO!$C$20*TAN(RADIANS('PROPIEDADES DE LOS SUELOS'!$C$26))*DISEÑO!$C$21*'PROPIEDADES DE LOS SUELOS'!$C$24*'DISEÑO ALTERNATIVO'!C146*DISEÑO!$C$25*0.6))) ->  | K146: =IF(J146="","",'GEOMETRIA DEL MURO'!$F$12) ->  | L146: =IF(F146="","",(('MC ANALISIS INTERNO'!$D$56*(($E$29*C146)+'CARGAS DISTRIBUIDAS'!$B$13+'CARGAS CONCENTRADAS'!$D$59))+'CARGAS CONCENTRADAS'!$D$34)*D146) ->  | M146: =IF(H146="","",'DISEÑO POR SISMO'!$D$34*('DISEÑO ALTERNATIVO'!I146/SUM($I$52:I204))) -> 
C147: =IF(B147="","",IF(SUM($B$52:B147)>$C$18,"",C146+B147)) ->  | G147: =IF(F147="","",E147*TAN(RADIANS(45-('PROPIEDADES DE LOS SUELOS'!$C$26/2)))) ->  | H147: =IF(F147="","",IF(F147="Geomalla",(1.5*L147)/(DISEÑO!$C$20*TAN(RADIANS('PROPIEDADES DE LOS SUELOS'!$C$26))*DISEÑO!$C$21*'PROPIEDADES DE LOS SUELOS'!$C$24*'DISEÑO ALTERNATIVO'!C147*DISEÑO!$C$25*0.8),(1.5*L147)/(DISEÑO!$C$20*TAN(RADIANS('PROPIEDADES DE LOS SUELOS'!$C$26))*DISEÑO!$C$21*'PROPIEDADES DE LOS SUELOS'!$C$24*'DISEÑO ALTERNATIVO'!C147*DISEÑO!$C$25*0.6))) ->  | K147: =IF(J147="","",'GEOMETRIA DEL MURO'!$F$12) ->  | L147: =IF(F147="","",(('MC ANALISIS INTERNO'!$D$56*(($E$29*C147)+'CARGAS DISTRIBUIDAS'!$B$13+'CARGAS CONCENTRADAS'!$D$59))+'CARGAS CONCENTRADAS'!$D$34)*D147) ->  | M147: =IF(H147="","",'DISEÑO POR SISMO'!$D$34*('DISEÑO ALTERNATIVO'!I147/SUM($I$52:I205))) -> 
C148: =IF(B148="","",IF(SUM($B$52:B148)>$C$18,"",C147+B148)) ->  | G148: =IF(F148="","",E148*TAN(RADIANS(45-('PROPIEDADES DE LOS SUELOS'!$C$26/2)))) ->  | H148: =IF(F148="","",IF(F148="Geomalla",(1.5*L148)/(DISEÑO!$C$20*TAN(RADIANS('PROPIEDADES DE LOS SUELOS'!$C$26))*DISEÑO!$C$21*'PROPIEDADES DE LOS SUELOS'!$C$24*'DISEÑO ALTERNATIVO'!C148*DISEÑO!$C$25*0.8),(1.5*L148)/(DISEÑO!$C$20*TAN(RADIANS('PROPIEDADES DE LOS SUELOS'!$C$26))*DISEÑO!$C$21*'PROPIEDADES DE LOS SUELOS'!$C$24*'DISEÑO ALTERNATIVO'!C148*DISEÑO!$C$25*0.6))) ->  | K148: =IF(J148="","",'GEOMETRIA DEL MURO'!$F$12) ->  | L148: =IF(F148="","",(('MC ANALISIS INTERNO'!$D$56*(($E$29*C148)+'CARGAS DISTRIBUIDAS'!$B$13+'CARGAS CONCENTRADAS'!$D$59))+'CARGAS CONCENTRADAS'!$D$34)*D148) ->  | M148: =IF(H148="","",'DISEÑO POR SISMO'!$D$34*('DISEÑO ALTERNATIVO'!I148/SUM($I$52:I206))) -> 
C149: =IF(B149="","",IF(SUM($B$52:B149)>$C$18,"",C148+B149)) ->  | G149: =IF(F149="","",E149*TAN(RADIANS(45-('PROPIEDADES DE LOS SUELOS'!$C$26/2)))) ->  | H149: =IF(F149="","",IF(F149="Geomalla",(1.5*L149)/(DISEÑO!$C$20*TAN(RADIANS('PROPIEDADES DE LOS SUELOS'!$C$26))*DISEÑO!$C$21*'PROPIEDADES DE LOS SUELOS'!$C$24*'DISEÑO ALTERNATIVO'!C149*DISEÑO!$C$25*0.8),(1.5*L149)/(DISEÑO!$C$20*TAN(RADIANS('PROPIEDADES DE LOS SUELOS'!$C$26))*DISEÑO!$C$21*'PROPIEDADES DE LOS SUELOS'!$C$24*'DISEÑO ALTERNATIVO'!C149*DISEÑO!$C$25*0.6))) ->  | K149: =IF(J149="","",'GEOMETRIA DEL MURO'!$F$12) ->  | L149: =IF(F149="","",(('MC ANALISIS INTERNO'!$D$56*(($E$29*C149)+'CARGAS DISTRIBUIDAS'!$B$13+'CARGAS CONCENTRADAS'!$D$59))+'CARGAS CONCENTRADAS'!$D$34)*D149) ->  | M149: =IF(H149="","",'DISEÑO POR SISMO'!$D$34*('DISEÑO ALTERNATIVO'!I149/SUM($I$52:I207))) -> 
C150: =IF(B150="","",IF(SUM($B$52:B150)>$C$18,"",C149+B150)) ->  | G150: =IF(F150="","",E150*TAN(RADIANS(45-('PROPIEDADES DE LOS SUELOS'!$C$26/2)))) ->  | H150: =IF(F150="","",IF(F150="Geomalla",(1.5*L150)/(DISEÑO!$C$20*TAN(RADIANS('PROPIEDADES DE LOS SUELOS'!$C$26))*DISEÑO!$C$21*'PROPIEDADES DE LOS SUELOS'!$C$24*'DISEÑO ALTERNATIVO'!C150*DISEÑO!$C$25*0.8),(1.5*L150)/(DISEÑO!$C$20*TAN(RADIANS('PROPIEDADES DE LOS SUELOS'!$C$26))*DISEÑO!$C$21*'PROPIEDADES DE LOS SUELOS'!$C$24*'DISEÑO ALTERNATIVO'!C150*DISEÑO!$C$25*0.6))) ->  | K150: =IF(J150="","",'GEOMETRIA DEL MURO'!$F$12) ->  | L150: =IF(F150="","",(('MC ANALISIS INTERNO'!$D$56*(($E$29*C150)+'CARGAS DISTRIBUIDAS'!$B$13+'CARGAS CONCENTRADAS'!$D$59))+'CARGAS CONCENTRADAS'!$D$34)*D150) ->  | M150: =IF(H150="","",'DISEÑO POR SISMO'!$D$34*('DISEÑO ALTERNATIVO'!I150/SUM($I$52:I208))) -> 
C151: =IF(B151="","",IF(SUM($B$52:B151)>$C$18,"",C150+B151)) ->  | G151: =IF(F151="","",E151*TAN(RADIANS(45-('PROPIEDADES DE LOS SUELOS'!$C$26/2)))) ->  | H151: =IF(F151="","",IF(F151="Geomalla",(1.5*L151)/(DISEÑO!$C$20*TAN(RADIANS('PROPIEDADES DE LOS SUELOS'!$C$26))*DISEÑO!$C$21*'PROPIEDADES DE LOS SUELOS'!$C$24*'DISEÑO ALTERNATIVO'!C151*DISEÑO!$C$25*0.8),(1.5*L151)/(DISEÑO!$C$20*TAN(RADIANS('PROPIEDADES DE LOS SUELOS'!$C$26))*DISEÑO!$C$21*'PROPIEDADES DE LOS SUELOS'!$C$24*'DISEÑO ALTERNATIVO'!C151*DISEÑO!$C$25*0.6))) ->  | K151: =IF(J151="","",'GEOMETRIA DEL MURO'!$F$12) ->  | L151: =IF(F151="","",(('MC ANALISIS INTERNO'!$D$56*(($E$29*C151)+'CARGAS DISTRIBUIDAS'!$B$13+'CARGAS CONCENTRADAS'!$D$59))+'CARGAS CONCENTRADAS'!$D$34)*D151) ->  | M151: =IF(H151="","",'DISEÑO POR SISMO'!$D$34*('DISEÑO ALTERNATIVO'!I151/SUM($I$52:I209))) -> 
C152: =IF(B152="","",IF(SUM($B$52:B152)>$C$18,"",C151+B152)) ->  | G152: =IF(F152="","",E152*TAN(RADIANS(45-('PROPIEDADES DE LOS SUELOS'!$C$26/2)))) ->  | H152: =IF(F152="","",IF(F152="Geomalla",(1.5*L152)/(DISEÑO!$C$20*TAN(RADIANS('PROPIEDADES DE LOS SUELOS'!$C$26))*DISEÑO!$C$21*'PROPIEDADES DE LOS SUELOS'!$C$24*'DISEÑO ALTERNATIVO'!C152*DISEÑO!$C$25*0.8),(1.5*L152)/(DISEÑO!$C$20*TAN(RADIANS('PROPIEDADES DE LOS SUELOS'!$C$26))*DISEÑO!$C$21*'PROPIEDADES DE LOS SUELOS'!$C$24*'DISEÑO ALTERNATIVO'!C152*DISEÑO!$C$25*0.6))) ->  | K152: =IF(J152="","",'GEOMETRIA DEL MURO'!$F$12) ->  | L152: =IF(F152="","",(('MC ANALISIS INTERNO'!$D$56*(($E$29*C152)+'CARGAS DISTRIBUIDAS'!$B$13+'CARGAS CONCENTRADAS'!$D$59))+'CARGAS CONCENTRADAS'!$D$34)*D152) ->  | M152: =IF(H152="","",'DISEÑO POR SISMO'!$D$34*('DISEÑO ALTERNATIVO'!I152/SUM($I$52:I210))) -> 
C153: =IF(B153="","",IF(SUM($B$52:B153)>$C$18,"",C152+B153)) ->  | G153: =IF(F153="","",E153*TAN(RADIANS(45-('PROPIEDADES DE LOS SUELOS'!$C$26/2)))) ->  | H153: =IF(F153="","",IF(F153="Geomalla",(1.5*L153)/(DISEÑO!$C$20*TAN(RADIANS('PROPIEDADES DE LOS SUELOS'!$C$26))*DISEÑO!$C$21*'PROPIEDADES DE LOS SUELOS'!$C$24*'DISEÑO ALTERNATIVO'!C153*DISEÑO!$C$25*0.8),(1.5*L153)/(DISEÑO!$C$20*TAN(RADIANS('PROPIEDADES DE LOS SUELOS'!$C$26))*DISEÑO!$C$21*'PROPIEDADES DE LOS SUELOS'!$C$24*'DISEÑO ALTERNATIVO'!C153*DISEÑO!$C$25*0.6))) ->  | K153: =IF(J153="","",'GEOMETRIA DEL MURO'!$F$12) ->  | L153: =IF(F153="","",(('MC ANALISIS INTERNO'!$D$56*(($E$29*C153)+'CARGAS DISTRIBUIDAS'!$B$13+'CARGAS CONCENTRADAS'!$D$59))+'CARGAS CONCENTRADAS'!$D$34)*D153) ->  | M153: =IF(H153="","",'DISEÑO POR SISMO'!$D$34*('DISEÑO ALTERNATIVO'!I153/SUM($I$52:I211))) -> 
C154: =IF(B154="","",IF(SUM($B$52:B154)>$C$18,"",C153+B154)) ->  | G154: =IF(F154="","",E154*TAN(RADIANS(45-('PROPIEDADES DE LOS SUELOS'!$C$26/2)))) ->  | H154: =IF(F154="","",IF(F154="Geomalla",(1.5*L154)/(DISEÑO!$C$20*TAN(RADIANS('PROPIEDADES DE LOS SUELOS'!$C$26))*DISEÑO!$C$21*'PROPIEDADES DE LOS SUELOS'!$C$24*'DISEÑO ALTERNATIVO'!C154*DISEÑO!$C$25*0.8),(1.5*L154)/(DISEÑO!$C$20*TAN(RADIANS('PROPIEDADES DE LOS SUELOS'!$C$26))*DISEÑO!$C$21*'PROPIEDADES DE LOS SUELOS'!$C$24*'DISEÑO ALTERNATIVO'!C154*DISEÑO!$C$25*0.6))) ->  | K154: =IF(J154="","",'GEOMETRIA DEL MURO'!$F$12) ->  | L154: =IF(F154="","",(('MC ANALISIS INTERNO'!$D$56*(($E$29*C154)+'CARGAS DISTRIBUIDAS'!$B$13+'CARGAS CONCENTRADAS'!$D$59))+'CARGAS CONCENTRADAS'!$D$34)*D154) ->  | M154: =IF(H154="","",'DISEÑO POR SISMO'!$D$34*('DISEÑO ALTERNATIVO'!I154/SUM($I$52:I212))) -> 
C155: =IF(B155="","",IF(SUM($B$52:B155)>$C$18,"",C154+B155)) ->  | G155: =IF(F155="","",E155*TAN(RADIANS(45-('PROPIEDADES DE LOS SUELOS'!$C$26/2)))) ->  | H155: =IF(F155="","",IF(F155="Geomalla",(1.5*L155)/(DISEÑO!$C$20*TAN(RADIANS('PROPIEDADES DE LOS SUELOS'!$C$26))*DISEÑO!$C$21*'PROPIEDADES DE LOS SUELOS'!$C$24*'DISEÑO ALTERNATIVO'!C155*DISEÑO!$C$25*0.8),(1.5*L155)/(DISEÑO!$C$20*TAN(RADIANS('PROPIEDADES DE LOS SUELOS'!$C$26))*DISEÑO!$C$21*'PROPIEDADES DE LOS SUELOS'!$C$24*'DISEÑO ALTERNATIVO'!C155*DISEÑO!$C$25*0.6))) ->  | K155: =IF(J155="","",'GEOMETRIA DEL MURO'!$F$12) ->  | L155: =IF(F155="","",(('MC ANALISIS INTERNO'!$D$56*(($E$29*C155)+'CARGAS DISTRIBUIDAS'!$B$13+'CARGAS CONCENTRADAS'!$D$59))+'CARGAS CONCENTRADAS'!$D$34)*D155) ->  | M155: =IF(H155="","",'DISEÑO POR SISMO'!$D$34*('DISEÑO ALTERNATIVO'!I155/SUM($I$52:I213))) -> 
C156: =IF(B156="","",IF(SUM($B$52:B156)>$C$18,"",C155+B156)) ->  | G156: =IF(F156="","",E156*TAN(RADIANS(45-('PROPIEDADES DE LOS SUELOS'!$C$26/2)))) ->  | H156: =IF(F156="","",IF(F156="Geomalla",(1.5*L156)/(DISEÑO!$C$20*TAN(RADIANS('PROPIEDADES DE LOS SUELOS'!$C$26))*DISEÑO!$C$21*'PROPIEDADES DE LOS SUELOS'!$C$24*'DISEÑO ALTERNATIVO'!C156*DISEÑO!$C$25*0.8),(1.5*L156)/(DISEÑO!$C$20*TAN(RADIANS('PROPIEDADES DE LOS SUELOS'!$C$26))*DISEÑO!$C$21*'PROPIEDADES DE LOS SUELOS'!$C$24*'DISEÑO ALTERNATIVO'!C156*DISEÑO!$C$25*0.6))) ->  | K156: =IF(J156="","",'GEOMETRIA DEL MURO'!$F$12) ->  | L156: =IF(F156="","",(('MC ANALISIS INTERNO'!$D$56*(($E$29*C156)+'CARGAS DISTRIBUIDAS'!$B$13+'CARGAS CONCENTRADAS'!$D$59))+'CARGAS CONCENTRADAS'!$D$34)*D156) ->  | M156: =IF(H156="","",'DISEÑO POR SISMO'!$D$34*('DISEÑO ALTERNATIVO'!I156/SUM($I$52:I214))) -> 
C157: =IF(B157="","",IF(SUM($B$52:B157)>$C$18,"",C156+B157)) ->  | G157: =IF(F157="","",E157*TAN(RADIANS(45-('PROPIEDADES DE LOS SUELOS'!$C$26/2)))) ->  | H157: =IF(F157="","",IF(F157="Geomalla",(1.5*L157)/(DISEÑO!$C$20*TAN(RADIANS('PROPIEDADES DE LOS SUELOS'!$C$26))*DISEÑO!$C$21*'PROPIEDADES DE LOS SUELOS'!$C$24*'DISEÑO ALTERNATIVO'!C157*DISEÑO!$C$25*0.8),(1.5*L157)/(DISEÑO!$C$20*TAN(RADIANS('PROPIEDADES DE LOS SUELOS'!$C$26))*DISEÑO!$C$21*'PROPIEDADES DE LOS SUELOS'!$C$24*'DISEÑO ALTERNATIVO'!C157*DISEÑO!$C$25*0.6))) ->  | K157: =IF(J157="","",'GEOMETRIA DEL MURO'!$F$12) ->  | L157: =IF(F157="","",(('MC ANALISIS INTERNO'!$D$56*(($E$29*C157)+'CARGAS DISTRIBUIDAS'!$B$13+'CARGAS CONCENTRADAS'!$D$59))+'CARGAS CONCENTRADAS'!$D$34)*D157) ->  | M157: =IF(H157="","",'DISEÑO POR SISMO'!$D$34*('DISEÑO ALTERNATIVO'!I157/SUM($I$52:I215))) -> 
C158: =IF(B158="","",IF(SUM($B$52:B158)>$C$18,"",C157+B158)) ->  | G158: =IF(F158="","",E158*TAN(RADIANS(45-('PROPIEDADES DE LOS SUELOS'!$C$26/2)))) ->  | H158: =IF(F158="","",IF(F158="Geomalla",(1.5*L158)/(DISEÑO!$C$20*TAN(RADIANS('PROPIEDADES DE LOS SUELOS'!$C$26))*DISEÑO!$C$21*'PROPIEDADES DE LOS SUELOS'!$C$24*'DISEÑO ALTERNATIVO'!C158*DISEÑO!$C$25*0.8),(1.5*L158)/(DISEÑO!$C$20*TAN(RADIANS('PROPIEDADES DE LOS SUELOS'!$C$26))*DISEÑO!$C$21*'PROPIEDADES DE LOS SUELOS'!$C$24*'DISEÑO ALTERNATIVO'!C158*DISEÑO!$C$25*0.6))) ->  | K158: =IF(J158="","",'GEOMETRIA DEL MURO'!$F$12) ->  | L158: =IF(F158="","",(('MC ANALISIS INTERNO'!$D$56*(($E$29*C158)+'CARGAS DISTRIBUIDAS'!$B$13+'CARGAS CONCENTRADAS'!$D$59))+'CARGAS CONCENTRADAS'!$D$34)*D158) ->  | M158: =IF(H158="","",'DISEÑO POR SISMO'!$D$34*('DISEÑO ALTERNATIVO'!I158/SUM($I$52:I216))) -> 
C159: =IF(B159="","",IF(SUM($B$52:B159)>$C$18,"",C158+B159)) ->  | G159: =IF(F159="","",E159*TAN(RADIANS(45-('PROPIEDADES DE LOS SUELOS'!$C$26/2)))) ->  | H159: =IF(F159="","",IF(F159="Geomalla",(1.5*L159)/(DISEÑO!$C$20*TAN(RADIANS('PROPIEDADES DE LOS SUELOS'!$C$26))*DISEÑO!$C$21*'PROPIEDADES DE LOS SUELOS'!$C$24*'DISEÑO ALTERNATIVO'!C159*DISEÑO!$C$25*0.8),(1.5*L159)/(DISEÑO!$C$20*TAN(RADIANS('PROPIEDADES DE LOS SUELOS'!$C$26))*DISEÑO!$C$21*'PROPIEDADES DE LOS SUELOS'!$C$24*'DISEÑO ALTERNATIVO'!C159*DISEÑO!$C$25*0.6))) ->  | K159: =IF(J159="","",'GEOMETRIA DEL MURO'!$F$12) ->  | L159: =IF(F159="","",(('MC ANALISIS INTERNO'!$D$56*(($E$29*C159)+'CARGAS DISTRIBUIDAS'!$B$13+'CARGAS CONCENTRADAS'!$D$59))+'CARGAS CONCENTRADAS'!$D$34)*D159) ->  | M159: =IF(H159="","",'DISEÑO POR SISMO'!$D$34*('DISEÑO ALTERNATIVO'!I159/SUM($I$52:I217))) -> 
C160: =IF(B160="","",IF(SUM($B$52:B160)>$C$18,"",C159+B160)) ->  | G160: =IF(F160="","",E160*TAN(RADIANS(45-('PROPIEDADES DE LOS SUELOS'!$C$26/2)))) ->  | H160: =IF(F160="","",IF(F160="Geomalla",(1.5*L160)/(DISEÑO!$C$20*TAN(RADIANS('PROPIEDADES DE LOS SUELOS'!$C$26))*DISEÑO!$C$21*'PROPIEDADES DE LOS SUELOS'!$C$24*'DISEÑO ALTERNATIVO'!C160*DISEÑO!$C$25*0.8),(1.5*L160)/(DISEÑO!$C$20*TAN(RADIANS('PROPIEDADES DE LOS SUELOS'!$C$26))*DISEÑO!$C$21*'PROPIEDADES DE LOS SUELOS'!$C$24*'DISEÑO ALTERNATIVO'!C160*DISEÑO!$C$25*0.6))) ->  | K160: =IF(J160="","",'GEOMETRIA DEL MURO'!$F$12) ->  | L160: =IF(F160="","",(('MC ANALISIS INTERNO'!$D$56*(($E$29*C160)+'CARGAS DISTRIBUIDAS'!$B$13+'CARGAS CONCENTRADAS'!$D$59))+'CARGAS CONCENTRADAS'!$D$34)*D160) ->  | M160: =IF(H160="","",'DISEÑO POR SISMO'!$D$34*('DISEÑO ALTERNATIVO'!I160/SUM($I$52:I218))) -> 
C161: =IF(B161="","",IF(SUM($B$52:B161)>$C$18,"",C160+B161)) ->  | D161: =IF(C161=$C$18,(0.5*B161)+(0.5*B161),IF(C161="","",(0.5*B161)+(0.5*B162))) ->  | E161: =IF(D161="","",$C$18-C161) ->  | G161: =IF(F161="","",E161*TAN(RADIANS(45-('PROPIEDADES DE LOS SUELOS'!$C$26/2)))) ->  | H161: =IF(F161="","",IF(F161="Geomalla",(1.5*L161)/(DISEÑO!$C$20*TAN(RADIANS('PROPIEDADES DE LOS SUELOS'!$C$26))*DISEÑO!$C$21*'PROPIEDADES DE LOS SUELOS'!$C$24*'DISEÑO ALTERNATIVO'!C161*DISEÑO!$C$25*0.8),(1.5*L161)/(DISEÑO!$C$20*TAN(RADIANS('PROPIEDADES DE LOS SUELOS'!$C$26))*DISEÑO!$C$21*'PROPIEDADES DE LOS SUELOS'!$C$24*'DISEÑO ALTERNATIVO'!C161*DISEÑO!$C$25*0.6))) -> 
C162: =IF(B162="","",IF(SUM($B$52:B162)>$C$18,"",C161+B162)) ->  | G162: =IF(F162="","",E162*TAN(RADIANS(45-('PROPIEDADES DE LOS SUELOS'!$C$26/2)))) ->  | H162: =IF(F162="","",IF(F162="Geomalla",(1.5*L162)/(DISEÑO!$C$20*TAN(RADIANS('PROPIEDADES DE LOS SUELOS'!$C$26))*DISEÑO!$C$21*'PROPIEDADES DE LOS SUELOS'!$C$24*'DISEÑO ALTERNATIVO'!C162*DISEÑO!$C$25*0.8),(1.5*L162)/(DISEÑO!$C$20*TAN(RADIANS('PROPIEDADES DE LOS SUELOS'!$C$26))*DISEÑO!$C$21*'PROPIEDADES DE LOS SUELOS'!$C$24*'DISEÑO ALTERNATIVO'!C162*DISEÑO!$C$25*0.6))) -> 
C163: =IF(B163="","",IF(SUM($B$52:B163)>$C$18,"",C162+B163)) ->  | G163: =IF(F163="","",E163*TAN(RADIANS(45-('PROPIEDADES DE LOS SUELOS'!$C$26/2)))) ->  | H163: =IF(F163="","",IF(F163="Geomalla",(1.5*L163)/(DISEÑO!$C$20*TAN(RADIANS('PROPIEDADES DE LOS SUELOS'!$C$26))*DISEÑO!$C$21*'PROPIEDADES DE LOS SUELOS'!$C$24*'DISEÑO ALTERNATIVO'!C163*DISEÑO!$C$25*0.8),(1.5*L163)/(DISEÑO!$C$20*TAN(RADIANS('PROPIEDADES DE LOS SUELOS'!$C$26))*DISEÑO!$C$21*'PROPIEDADES DE LOS SUELOS'!$C$24*'DISEÑO ALTERNATIVO'!C163*DISEÑO!$C$25*0.6))) -> 
C164: =IF(B164="","",IF(SUM($B$52:B164)>$C$18,"",C163+B164)) ->  | G164: =IF(F164="","",E164*TAN(RADIANS(45-('PROPIEDADES DE LOS SUELOS'!$C$26/2)))) ->  | H164: =IF(F164="","",IF(F164="Geomalla",(1.5*L164)/(DISEÑO!$C$20*TAN(RADIANS('PROPIEDADES DE LOS SUELOS'!$C$26))*DISEÑO!$C$21*'PROPIEDADES DE LOS SUELOS'!$C$24*'DISEÑO ALTERNATIVO'!C164*DISEÑO!$C$25*0.8),(1.5*L164)/(DISEÑO!$C$20*TAN(RADIANS('PROPIEDADES DE LOS SUELOS'!$C$26))*DISEÑO!$C$21*'PROPIEDADES DE LOS SUELOS'!$C$24*'DISEÑO ALTERNATIVO'!C164*DISEÑO!$C$25*0.6))) -> 
C165: =IF(B165="","",IF(SUM($B$52:B165)>$C$18,"",C164+B165)) ->  | G165: =IF(F165="","",E165*TAN(RADIANS(45-('PROPIEDADES DE LOS SUELOS'!$C$26/2)))) ->  | H165: =IF(F165="","",IF(F165="Geomalla",(1.5*L165)/(DISEÑO!$C$20*TAN(RADIANS('PROPIEDADES DE LOS SUELOS'!$C$26))*DISEÑO!$C$21*'PROPIEDADES DE LOS SUELOS'!$C$24*'DISEÑO ALTERNATIVO'!C165*DISEÑO!$C$25*0.8),(1.5*L165)/(DISEÑO!$C$20*TAN(RADIANS('PROPIEDADES DE LOS SUELOS'!$C$26))*DISEÑO!$C$21*'PROPIEDADES DE LOS SUELOS'!$C$24*'DISEÑO ALTERNATIVO'!C165*DISEÑO!$C$25*0.6))) -> 
C166: =IF(B166="","",IF(SUM($B$52:B166)>$C$18,"",C165+B166)) ->  | D166: =IF(C166=$C$18,'MC ANALISIS INTERNO'!$D$71,IF(C166="","",(0.5*B166)+(0.5*B167))) ->  | G166: =IF(F166="","",E166*TAN(RADIANS(45-('PROPIEDADES DE LOS SUELOS'!$C$26/2)))) ->  | H166: =IF(F166="","",IF(F166="Geomalla",(1.5*L166)/(DISEÑO!$C$20*TAN(RADIANS('PROPIEDADES DE LOS SUELOS'!$C$26))*DISEÑO!$C$21*'PROPIEDADES DE LOS SUELOS'!$C$24*'DISEÑO ALTERNATIVO'!C166*DISEÑO!$C$25*0.8),(1.5*L166)/(DISEÑO!$C$20*TAN(RADIANS('PROPIEDADES DE LOS SUELOS'!$C$26))*DISEÑO!$C$21*'PROPIEDADES DE LOS SUELOS'!$C$24*'DISEÑO ALTERNATIVO'!C166*DISEÑO!$C$25*0.6))) -> 
C167: =IF(B167="","",IF(SUM($B$52:B167)>$C$18,"",C166+B167)) ->  | D167: =IF(C167=$C$18,'MC ANALISIS INTERNO'!$D$71,IF(C167="","",(0.5*B167)+(0.5*B168))) ->  | G167: =IF(F167="","",E167*TAN(RADIANS(45-('PROPIEDADES DE LOS SUELOS'!$C$26/2)))) ->  | H167: =IF(F167="","",IF(F167="Geomalla",(1.5*L167)/(DISEÑO!$C$20*TAN(RADIANS('PROPIEDADES DE LOS SUELOS'!$C$26))*DISEÑO!$C$21*'PROPIEDADES DE LOS SUELOS'!$C$24*'DISEÑO ALTERNATIVO'!C167*DISEÑO!$C$25*0.8),(1.5*L167)/(DISEÑO!$C$20*TAN(RADIANS('PROPIEDADES DE LOS SUELOS'!$C$26))*DISEÑO!$C$21*'PROPIEDADES DE LOS SUELOS'!$C$24*'DISEÑO ALTERNATIVO'!C167*DISEÑO!$C$25*0.6))) -> 
C168: =IF(B168="","",IF(SUM($B$52:B168)>$C$18,"",C167+B168)) ->  | D168: =IF(C168=$C$18,'MC ANALISIS INTERNO'!$D$71,IF(C168="","",(0.5*B168)+(0.5*B169))) ->  | G168: =IF(F168="","",E168*TAN(RADIANS(45-('PROPIEDADES DE LOS SUELOS'!$C$26/2)))) ->  | H168: =IF(F168="","",IF(F168="Geomalla",(1.5*L168)/(DISEÑO!$C$20*TAN(RADIANS('PROPIEDADES DE LOS SUELOS'!$C$26))*DISEÑO!$C$21*'PROPIEDADES DE LOS SUELOS'!$C$24*'DISEÑO ALTERNATIVO'!C168*DISEÑO!$C$25*0.8),(1.5*L168)/(DISEÑO!$C$20*TAN(RADIANS('PROPIEDADES DE LOS SUELOS'!$C$26))*DISEÑO!$C$21*'PROPIEDADES DE LOS SUELOS'!$C$24*'DISEÑO ALTERNATIVO'!C168*DISEÑO!$C$25*0.6))) -> 
C169: =IF(B169="","",IF(SUM($B$52:B169)>$C$18,"",C168+B169)) ->  | D169: =IF(C169=$C$18,'MC ANALISIS INTERNO'!$D$71,IF(C169="","",(0.5*B169)+(0.5*B170))) ->  | G169: =IF(F169="","",E169*TAN(RADIANS(45-('PROPIEDADES DE LOS SUELOS'!$C$26/2)))) ->  | H169: =IF(F169="","",IF(F169="Geomalla",(1.5*L169)/(DISEÑO!$C$20*TAN(RADIANS('PROPIEDADES DE LOS SUELOS'!$C$26))*DISEÑO!$C$21*'PROPIEDADES DE LOS SUELOS'!$C$24*'DISEÑO ALTERNATIVO'!C169*DISEÑO!$C$25*0.8),(1.5*L169)/(DISEÑO!$C$20*TAN(RADIANS('PROPIEDADES DE LOS SUELOS'!$C$26))*DISEÑO!$C$21*'PROPIEDADES DE LOS SUELOS'!$C$24*'DISEÑO ALTERNATIVO'!C169*DISEÑO!$C$25*0.6))) -> 
C170: =IF(B170="","",IF(SUM($B$52:B170)>$C$18,"",C169+B170)) ->  | D170: =IF(C170=$C$18,'MC ANALISIS INTERNO'!$D$71,IF(C170="","",(0.5*B170)+(0.5*B171))) -> 
